Workbook

Sheet 1 - PORTFOLIO
B2: Please enter either ISIN or Ticker (with the following formats: STERV FH Equity or STERV FH) | C2: or CHOOSE COMPANY NAME IN THE LIST | E2: WEIGHT
B3: AAK SS Equity | E3: 0.1
B4: TRACB SS Equity | E4: 0.1 | G4: Please input your holdings either in the form of identifier in column B, or choose the name of the company from the dropdown in column C. The tool includes data only for companies listed on the Nasdaq Helsinki Index & Nasdaq Stockholm. The row will be green if the company has been identified, and red if not. To clear existing holdings data and start over, please use the below button.
C5: ADDNODE GROUP AB | E5: 0.1
B6: ACAD SS Equity | E6: 0.1
B7: ACANB SS Equity | E7: 0.1
B8: ATIC SS Equity | E8: 0.1
B9: ACTI SS Equity | E9: 0.1
C10: ACANDO AB | E10: 0.1
B11: ANODB SS Equity | E11: 0.1
B12: ADDTB SS Equity | E12: 0.1

Sheet TMP_PORTFOLIO (hidden)
A1: ID | B1: WEIGHT | C1: NAME | D1: EMISSIONS | E1: SOURCE | F1: REVENUE | G1: MARKET_CAP | H1: CNI_SECTOR_2 | I1: GICS_SECTOR_1 | J1: TRUST_METRICS | K1: MODEL_QUALITY | L1: CNI_SECTOR_2_NAME
A2: AAK SS Equity | B2: 0.1 | C2: AAK AB | D2: 244000 | E2: CO2 | F2: 2330753691 | G2: 3021100000 | H2: 402520 | I2: Consumer Staples | J2: 0.69 | K2: 0.799 | L2: Food Products
A3: TRACB SS Equity | B3: 0.1 | C3: AB TRACTION -B SHS | D3: 27.11 | E3: APPROX | F3: 43504161.71 | G3: 295425500 | H3: 702020 | I3: Financials | K3: 0.9 | L3: Capital Markets
A4: ACAD SS Equity | B4: 0.1 | C4: ACADEMEDIA AB | D4: 10576.908 | E4: APPROX | F4: 922519061.5 | G4: 757516500 | H4: 502040 | I4: Consumer Discretionary | K4: 0.898 | L4: Specialized Consumer Services
A5: ATIC SS Equity | B5: 0.1 | C5: ACTIC GROUP AB | D5: 12731.33 | E5: APPROX | F5: 84747417.31 | G5: 61109300 | H5: 504030 | I5: Consumer Discretionary | K5: 0.922 | L5: Recreational Services
A6: ACTI SS Equity | B6: 0.1 | C6: ACTIVE BIOTECH AB | D6: 3306.812 | E6: APPROX | F6: 2012159.94 | G6: 17133100 | H6: 603020 | I6: Health Care | K6: 0.945 | L6: Pharmaceuticals
A7: ACANB SS Equity | B7: 0.2 | C7: ACANDO AB | D7: 2101.409 | E7: APPROX | F7: 233133593.1 | G7: 297796200 | H7: 801010 | I7: Information Technology | K7: 0.934 | L7: IT Services
A8: ANODB SS Equity | B8: 0.2 | C8: ADDNODE GROUP AB | D8: 1635.71 | E8: APPROX | F8: 231946395.5 | G8: 234903400 | H8: 801010 | I8: Information Technology | K8: 0.934 | L8: IT Services
A9: ADDTB SS Equity | B9: 0.1 | C9: ADDTECH AB-B SHARES | D9: 14633 | E9: CDP | F9: 658849666.2 | G9: 1244900000 | H9: 304510 | I9: Industrials | J9: 0.64 | K9: 0.41 | L9: Trading Companies & Distributors

Sheet TMP_BENCHMARK (hidden)
A1: ID | B1: WEIGHT | C1: NAME | D1: EMISSIONS | E1: SOURCE | F1: REVENUE | G1: MARKET_CAP | H1: CNI_SECTOR_2 | I1: GICS_SECTOR_1 | J1: TRUST_METRICS | K1: MODEL_QUALITY | L1: CNI_SECTOR_2_NAME
A2: NDA SS Equity | B2: 0.1452222277 | C2: NORDEA BANK AB | D2: 10911 | E2: CDP | F2: 13696000000 | G2: 40897900000 | H2: 701010 | I2: Financials | J2: 0.77 | K2: 0.764 | L2: Diversified Banks
A3: SAMPO FH Equity | B3: 0.09107215034 | C3: SAMPO OYJ-A SHS | D3: 1243 | E3: CO2 | F3: 6246000000 | G3: 25648000000 | H3: 703010 | I3: Financials | J3: 0.68 | K3: 0.779 | L3: Insurance
A4: KNEBV FH Equity | B4: 0.08382384545 | C4: KONE OYJ-B | D4: 141600 | E4: CDP | F4: 8784300000 | G4: 2.36067116e+10 | H4: 304020 | I4: Industrials | J4: 0.95 | K4: 0.819 | L4: Industrial Machinery
A5: NOKIA FH Equity | B5: 0.08074145637 | C5: NOKIA OYJ | D5: 674100 | E5: CSR | F5: 23614000000 | G5: 2.273864036e+10 | H5: 802010 | I5: Information Technology | J5: 0.78 | K5: 0.899 | L5: Communications Equipment
A6: TELIA SS Equity | B6: 0.05715018891 | C6: TELIA CO AB | D6: 287000 | E6: CDP | F6: 8895053010 | G6: 16094800000 | H6: 806010 | I6: Telecommunication Services | J6: 0.95 | K6: 0.862 | L6: Diversified Telecommunication Services
A7: FORTUM FH Equity | B7: 0.05204853017 | C7: FORTUM OYJ | D7: 18895500 | E7: CSR | F7: 3632000000 | G7: 1.465805624e+10 | H7: 902020 | I7: Utilities | J7: 0.93 | K7: 0 | L7: Conventional Electricity
A8: UPM FH Equity | B8: 0.04910500398 | C8: UPM-KYMMENE OYJ | D8: 7091000 | E8: CDP | F8: 9812000000 | G8: 1.382909196e+10 | H8: 207020 | I8: Materials | J8: 0.93 | K8: 0.879 | L8: Paper & Related Products
A9: NESTE FH Equity | B9: 0.04857253545 | C9: NESTE OYJ | D9: 3433359 | E9: CDP | F9: 11689000000 | G9: 1.367913665e+10 | H9: 102030 | I9: Energy | J9: 0.97 | K9: 0.911 | L9: Oil & Gas Refining & Marketing
A10: STERV FH Equity | B10: 0.03700703897 | C10: STORA ENSO OYJ-R SHS | D10: 3390000 | E10: CSR | F10: 9802000000 | G10: 1.042202838e+10 | H10: 207020 | I10: Materials | J10: 0.96 | K10: 0.879 | L10: Paper & Related Products
A11: WRT1V FH Equity | B11: 0.03683963444 | C11: WARTSILA OYJ ABP | D11: 117052 | E11: CO2 | F11: 4801000000 | G11: 10374883438 | H11: 304020 | I11: Industrials | J11: 0.96 | K11: 0.819 | L11: Industrial Machinery
A12: ELISA FH Equity | B12: 0.01944161589 | C12: ELISA OYJ | D12: 15415 | E12: CDP | F12: 1635700000 | G12: 5475203589 | H12: 806010 | I12: Telecommunication Services | J12: 0.73 | K12: 0.862 | L12: Diversified Telecommunication Services
A13: NRE1V FH Equity | B13: 0.0184242028 | C13: NOKIAN RENKAAT OYJ | D13: 114626 | E13: CDP | F13: 1391200000 | G13: 5188676800 | H13: 401520 | I13: Consumer Discretionary | J13: 0.93 | K13: 0.987 | L13: Tires
A14: KESKOB FH Equity | B14: 0.01594116373 | C14: KESKO OYJ-B SHS | D14: 220831 | E14: CSR | F14: 10180400000 | G14: 4489396220 | H14: 501020 | I14: Consumer Staples | J14: 0.92 | K14: 0.893 | L14: Food Retailers & Wholesalers
A15: ORNBV FH Equity | B15: 0.01571975493 | C15: ORION OYJ-CLASS B | D15: 44456 | E15: CO2 | F15: 1073500000 | G15: 4427042437 | H15: 603020 | I15: Health Care | J15: 0.71 | K15: 0.945 | L15: Pharmaceuticals
A16: METSO FH Equity | B16: 0.01519910264 | C16: METSO OYJ | D16: 130601 | E16: CDP | F16: 2586000000 | G16: 4280414848 | H16: 304020 | I16: Industrials | J16: 0.93 | K16: 0.819 | L16: Industrial Machinery
A17: SSABA SS Equity | B17: 0.01452509896 | C17: SSAB AB-A SHARES | D17: 10323163 | E17: CDP | F17: 5849233343 | G17: 4090600000 | H17: 204030 | I17: Materials | J17: 0.77 | K17: 0.924 | L17: Iron & Steel
A18: HUH1V FH Equity | B18: 0.01339242629 | C18: HUHTAMAKI OYJ | D18: 809483 | E18: CSR | F18: 2865000000 | G18: 3771613475 | H18: 203010 | I18: Materials | J18: 0.91 | K18: 0.956 | L18: Containers Paper/Plastic
A19: OUT1V FH Equity | B19: 0.01144345369 | C19: OUTOKUMPU OYJ | D19: 2117564 | E19: CDP | F19: 5690000000 | G19: 3222738228 | H19: 204030 | I19: Materials | J19: 0.94 | K19: 0.924 | L19: Iron & Steel
A20: KCR FH Equity | B20: 0.01139774414 | C20: KONECRANES OYJ | D20: 57700 | E20: CSR | F20: 2118400000 | G20: 3209865371 | H20: 304020 | I20: Industrials | J20: 0.93 | K20: 0.819 | L20: Industrial Machinery
A21: CGCBV FH Equity | B21: 0.01084509071 | C21: CARGOTEC OYJ-B SHARE | D21: 36300 | E21: CSR | F21: 3513700000 | G21: 3054225530 | H21: 304020 | I21: Industrials | J21: 0.94 | K21: 0.819 | L21: Industrial Machinery
A22: AMEAS FH Equity | B22: 0.009717123288 | C22: AMER SPORTS OYJ | D22: 31937 | E22: CDP | F22: 2622100000 | G22: 2736564111 | H22: 403040 | I22: Consumer Discretionary | J22: 0.68 | K22: 0.934 | L22: Recreational Products
A23: METSB FH Equity | B23: 0.009017734622 | C23: METSA BOARD OYJ | D23: 538568 | E23: CDP | F23: 1720300000 | G23: 2539600270 | H23: 207020 | I23: Materials | J23: 0.95 | K23: 0.879 | L23: Paper & Related Products
A24: VALMT FH Equity | B24: 0.008748488255 | C24: VALMET OYJ | D24: 83400 | E24: CSR | F24: 2926000000 | G24: 2463774336 | H24: 304020 | I24: Industrials | J24: 0.92 | K24: 0.819 | L24: Industrial Machinery
A25: DNA FH Equity | B25: 0.007352207595 | C25: DNA OY | D25: 34825.233 | E25: APPROX | F25: 858887000 | G25: 2070549775 | H25: 806010 | I25: Telecommunication Services | K25: 0.862 | L25: Diversified Telecommunication Services
A26: FSKRS FH Equity | B26: 0.006968360295 | C26: FISKARS OYJ ABP | D26: 80836 | E26: CDP | F26: 1204600000 | G26: 1962449598 | H26: 403010 | I26: Consumer Discretionary | J26: 0.66 | K26: 0.938 | L26: Durable Household Products
A27: TIE1V FH Equity | B27: 0.006836654969 | C27: TIETO OYJ | D27: 17505 | E27: CSR | F27: 1492600000 | G27: 1925358367 | H27: 801010 | I27: Information Technology | J27: 0.94 | K27: 0.934 | L27: IT Services
A28: CTY1S FH Equity | B28: 0.006819773258 | C28: CITYCON OYJ | D28: 58727 | E28: CSR | F28: 340200000 | G28: 1920604091 | H28: 706010 | I28: Financials | J28: 0.94 | K28: 0.515 | L28: Real Estate Operating Companies
A29: KEMIRA FH Equity | B29: 0.006343374848 | C29: KEMIRA OYJ | D29: 931207 | E29: CDP | F29: 2363300000 | G29: 1786439406 | H29: 201020 | I29: Materials | J29: 0.93 | K29: 0.907 | L29: Diversified Chemicals
A30: SAA1V FH Equity | B30: 0.006313261353 | C30: SANOMA OYJ | D30: 8400 | E30: CDP | F30: 1639100000 | G30: 1777958757 | H30: 503030 | I30: Consumer Discretionary | J30: 0.63 | K30: 0.904 | L30: Publishing
A31: AM1 FH Equity | B31: 0.006222111491 | C31: AHLSTROM-MUNKSJO OYJ | D31: 603166.402 | E31: APPROX | F31: 1142900000 | G31: 1752288871 | H31: 207020 | I31: Materials | K31: 0.879 | L31: Paper & Related Products
A32: SDA1V FH Equity | B32: 0.006085226206 | C32: SPONDA OYJ | D32: 55385 | E32: CSR | F32: 274000000 | G32: 1713738845 | H32: 706010 | I32: Financials | J32: 0.88 | K32: 0.515 | L32: Real Estate Operating Companies
A33: FIA1S FH Equity | B33: 0.005832995797 | C33: FINNAIR OYJ | D33: 2958564 | E33: CDP | F33: 2316800000 | G33: 1642704994 | H33: 307010 | I33: Industrials | J33: 0.95 | K33: 0.959 | L33: Airlines
A34: OTE1V FH Equity | B34: 0.004616679786 | C34: OUTOTEC OYJ | D34: 11180 | E34: CSR | F34: 1057900000 | G34: 1300162593 | H34: 304020 | I34: Industrials | J34: 0.94 | K34: 0.819 | L34: Industrial Machinery
A35: UPONOR FH Equity | B35: 0.004361906181 | C35: UPONOR OYJ | D35: 323153.179 | E35: APPROX | F35: 1099400000 | G35: 1228412520 | H35: 301510 | I35: Industrials | K35: 0.708 | L35: Building Materials & Products
A36: CRA1V FH Equity | B36: 0.003135701867 | C36: CRAMO OYJ | D36: 13108 | E36: CO2 | F36: 712287000 | G36: 883085347 | H36: 305010 | I36: Industrials | J36: 0.65 | K36: 0.859 | L36: Business Support Services
A37: RMR1V FH Equity | B37: 0.003014407684 | C37: RAMIRENT OYJ | D37: 11600.155 | E37: APPROX | F37: 665164000 | G37: 848926131.7 | H37: 302010 | I37: Industrials | K37: 0.835 | L37: Building&Construction-Misc
A38: VAIAS FH Equity | B38: 0.002878733567 | C38: VAISALA OYJ- A SHS | D38: 1733.25 | E38: CDP | F38: 319100000 | G38: 810717198 | H38: 804030 | I38: Information Technology | J38: 0.84 | K38: 0.948 | L38: Electronic Equipment Manufacturers
A39: YTY1V FH Equity | B39: 0.00287765411 | C39: YIT OYJ | D39: 40373 | E39: CDP | F39: 1678300000 | G39: 810413198.1 | H39: 302020 | I39: Industrials | J39: 0.67 | K39: 0.973 | L39: Building-Heavy Construction
A40: TIK1V FH Equity | B40: 0.002789432474 | C40: TIKKURILA OYJ | D40: 93169.545 | E40: APPROX | F40: 571998000 | G40: 785567968.1 | H40: 201010 | I40: Materials | K40: 0.935 | L40: Commodity Chemicals
A41: CAV1V FH Equity | B41: 0.002626778827 | C41: CAVERION OYJ | D41: 44467 | E41: CDP | F41: 2364100000 | G41: 739760981.9 | H41: 305010 | I41: Industrials | J41: 0.65 | K41: 0.859 | L41: Business Support Services
A42: PON1V FH Equity | B42: 0.002622798391 | C42: PONSSE OYJ | D42: 17770.19 | E42: APPROX | F42: 517400000 | G42: 738640000 | H42: 304010 | I42: Industrials | K42: 0.883 | L42: Construction & Farm Machinery & Heavy Trucks
A43: LEHTO FH Equity | B43: 0.002618588932 | C43: LEHTO GROUP OYJ | D43: 6309.434 | E43: APPROX | F43: 361789000 | G43: 737454520.3 | H43: 302010 | I43: Industrials | K43: 0.835 | L43: Building&Construction-Misc
A44: LAT1V FH Equity | B44: 0.002488106432 | C44: LASSILA & TIKANOJA OYJ | D44: 50032 | E44: CDP | F44: 661800000 | G44: 700707664.4 | H44: 308510 | I44: Industrials | J44: 0.93 | K44: 0.874 | L44: Trucking
A45: BAS1V FH Equity | B45: 0.00242910659 | C45: BASWARE OYJ | D45: 646.9 | E45: CDP | F45: 148580000 | G45: 684091960 | H45: 801030 | I45: Information Technology | J45: 0.59 | K45: 0.895 | L45: Software
A46: TPS1V FH Equity | B46: 0.002356902038 | C46: TECHNOPOLIS OYJ | D46: 34641 | E46: CDP | F46: 172506000 | G46: 663757507.2 | H46: 706010 | I46: Financials | J46: 0.63 | K46: 0.515 | L46: Real Estate Operating Companies
A47: RAIVV FH Equity | B47: 0.002251849376 | C47: RAISIO OYJ-V SHS | D47: 54828.172 | E47: APPROX | F47: 436300000 | G47: 634172275.2 | H47: 402520 | I47: Consumer Staples | K47: 0.799 | L47: Food Products
A48: AKTAV FH Equity | B48: 0.002241909853 | C48: AKTIA BANK OYJ | D48: 3524.409 | E48: APPROX | F48: 234912000 | G48: 631373078.2 | H48: 701020 | I48: Financials | K48: 0.986 | L48: Regional Banks
A49: OLVAS FH Equity | B49: 0.002201758698 | C49: OLVI OYJ-A SHARES | D49: 49189.14 | E49: APPROX | F49: 321478000 | G49: 620065595 | H49: 402010 | I49: Consumer Staples | K49: 0.96 | L49: Brewers
A50: FSC1V FH Equity | B50: 0.002193455039 | C50: F-SECURE OYJ | D50: 2484.439 | E50: APPROX | F50: 158289000 | G50: 617727094.7 | H50: 801030 | I50: Information Technology | K50: 0.895 | L50: Software
A51: ALMA FH Equity | B51: 0.002103291848 | C51: ALMA MEDIA CORP | D51: 5496 | E51: CDP | F51: 353200000 | G51: 592335078.6 | H51: 503030 | I51: Consumer Discretionary | J51: 0.58 | K51: 0.904 | L51: Publishing
A52: LEM1S FH Equity | B52: 0.00188563919 | C52: LEMMINKAINEN OYJ | D52: 84351.225 | E52: APPROX | F52: 1682700000 | G52: 531039113 | H52: 302020 | I52: Industrials | K52: 0.973 | L52: Building-Heavy Construction
A53: OKDBV FH Equity | B53: 0.00184377163 | C53: ORIOLA CORP -B | D53: 4635 | E53: CDP | F53: 1642100000 | G53: 519248251 | H53: 602010 | I53: Health Care | J53: 0.63 | K53: 0.978 | L53: Health Care Distributors
A54: TOKMAN FH Equity | B54: 0.001515496444 | C54: TOKMANNI GROUP CORP | D54: 22367.305 | E54: APPROX | F54: 775800000 | G54: 426798452 | H54: 502020 | I54: Consumer Discretionary | K54: 0.952 | L54: Broadline Retailers
A55: ATG1V FH Equity | B55: 0.001281650383 | C55: ASIAKASTIETO GROUP OYJ | D55: 1182.341 | E55: APPROX | F55: 49178000 | G55: 360942054.2 | H55: 305010 | I55: Industrials | K55: 0.859 | L55: Business Support Services
A56: ATRAV FH Equity | B56: 0.001215534061 | C56: ATRIA OYJ | D56: 192838.443 | E56: APPROX | F56: 1351752000 | G56: 342322186.1 | H56: 402520 | I56: Consumer Staples | K56: 0.799 | L56: Food Products
A57: STCAS FH Equity | B57: 0.001139841394 | C57: STOCKMANN OYJ ABP-A SHARE | D57: 50600 | E57: CDP | F57: 1303200000 | G57: 321005400.2 | H57: 502020 | I57: Consumer Discretionary | J57: 0.68 | K57: 0.952 | L57: Broadline Retailers
A58: EQV1V FH Equity | B58: 0.00110541359 | C58: EQ OYJ | D58: 433.76 | E58: APPROX | F58: 35633000 | G58: 311309743.4 | H58: 702020 | I58: Financials | K58: 0.9 | L58: Capital Markets
A59: ASPO FH Equity | B59: 0.001099893784 | C59: ASPO OYJ | D59: 20113.339 | E59: APPROX | F59: 457404000 | G59: 309755240 | H59: 305010 | I59: Industrials | K59: 0.859 | L59: Business Support Services
A60: POY1V FH Equity | B60: 0.001065607251 | C60: POYRY OYJ | D60: 11644.697 | E60: APPROX | F60: 529600000 | G60: 300099368 | H60: 305010 | I60: Industrials | K60: 0.859 | L60: Business Support Services
A61: TAALA FH Equity | B61: 0.001041921493 | C61: TAALERI OYJ | D61: 970.538 | E61: APPROX | F61: 60570000 | G61: 293428917 | H61: 702020 | I61: Financials | K61: 0.9 | L61: Capital Markets
A62: KAMUX FH Equity | B62: 0.001034061807 | C62: KAMUX CORP | D62: 8823.318 | E62: APPROX | F62: 404750000 | G62: 291215449.8 | H62: 502050 | I62: Consumer Discretionary | K62: 0.991 | L62: Specialty Retailers
A63: REG1V FH Equity | B63: 0.001020011691 | C63: REVENIO GROUP OYJ | D63: 393.353 | E63: APPROX | F63: 23434000 | G63: 287258616 | H63: 601010 | I63: Health Care | K63: 0.95 | L63: Health Care Equipment
A64: PIHLIS FH Equity | B64: 0.0009764099465 | C64: PIHLAJALINNA OYJ | D64: 5166.699 | E64: APPROX | F64: 399092000 | G64: 274979367.6 | H64: 602020 | I64: Health Care | K64: 0.855 | L64: Health Care Services
A65: SCANFL FH Equity | B65: 0.0009642527239 | C65: SCANFIL OYJ | D65: 22700.581 | E65: APPROX | F65: 507970000 | G65: 271555615.8 | H65: 303010 | I65: Information Technology | K65: 0.769 | L65: Electrical Components & Equipment
A66: CAPMAN FH Equity | B66: 0.0009152594639 | C66: CAPMAN OYJ-B SHS | D66: 585.576 | E66: APPROX | F66: 26803000 | G66: 257757993.4 | H66: 702020 | I66: Financials | K66: 0.9 | L66: Capital Markets
A67: SUY1V FH Equity | B67: 0.0009143637786 | C67: SUOMINEN OYJ | D67: 12656.289 | E67: APPROX | F67: 416862000 | G67: 257505748 | H67: 601020 | I67: Consumer Staples | K67: 0.948 | L67: Medical Products
A68: EVLI FH Equity | B68: 0.0008446147917 | C68: EVLI BANK PLC | D68: 1322.968 | E68: APPROX | F68: 63276000 | G68: 237862838.4 | H68: 702020 | I68: Financials | K68: 0.9 | L68: Capital Markets
A69: AFAGR FH Equity | B69: 0.0007892448165 | C69: AFARAK GROUP OYJ | D69: 141892.314 | E69: APPROX | F69: 153570000 | G69: 222269387.3 | H69: 205020 | I69: Materials | K69: 0.859 | L69: General Mining
A70: SRV1V FH Equity | B70: 0.0007733692687 | C70: SRV GROUP OYJ | D70: 15419.03 | E70: APPROX | F70: 884142000 | G70: 217798470 | H70: 302010 | I70: Industrials | K70: 0.835 | L70: Building&Construction-Misc
A71: ALBAV FH Equity | B71: 0.0007685191595 | C71: ALANDSBANKEN-A | D71: 923.89 | E71: APPROX | F71: 144400000 | G71: 216432568.3 | H71: 701010 | I71: Financials | K71: 0.609 | L71: Diversified Banks
A72: BITTI FH Equity | B72: 0.0007160866967 | C72: BITTIUM OYJ | D72: 6995.019 | E72: APPROX | F72: 64193000 | G72: 201666387.9 | H72: 804010 | I72: Information Technology | K72: 0.859 | L72: Electronic Components
A73: ETTE FH Equity | B73: 0.0006843272722 | C73: ETTEPLAN OYJ | D73: 655.704 | E73: APPROX | F73: 183938000 | G73: 192722207.8 | H73: 302510 | I73: Industrials | K73: 0.919 | L73: Engineering/R&D Services
A74: HOIVA FH Equity | B74: 0.0006555173351 | C74: SUOMEN HOIVATILAT OYJ | D74: 151.924 | E74: APPROX | F74: 7414028 | G74: 184608670.7 | H74: 706020 | I74: Financials | K74: 0.747 | L74: Real Estate Diversified Management & Development
A75: VIK1V FH Equity | B75: 0.0006231738297 | C75: VIKING LINE ABP | D75: 759613.318 | E75: APPROX | F75: 519500000 | G75: 175500000 | H75: 307510 | I75: Consumer Discretionary | K75: 0.958 | L75: Marine
A76: HKSAV FH Equity | B76: 0.0006115732584 | C76: HKSCAN OYJ-A SHS | D76: 216389.166 | E76: APPROX | F76: 1872900000 | G76: 172233013.9 | H76: 402520 | I76: Consumer Staples | K76: 0.756 | L76: Food Products
A77: RESTA FH Equity | B77: 0.0005057477945 | C77: RESTAMAX OYJ | D77: 6467.82 | E77: APPROX | F77: 130071900 | G77: 142430143.4 | H77: 504040 | I77: Consumer Discretionary | K77: 0.901 | L77: Restaurants & Bars
A78: ROBIT FH Equity | B78: 0.0004843812397 | C78: ROBIT OYJ | D78: 8303.016 | E78: APPROX | F78: 63931825.32 | G78: 136412833 | H78: 304020 | I78: Industrials | K78: 0.819 | L78: Industrial Machinery
A79: RAP1V FH Equity | B79: 0.000461148634 | C79: RAPALA VMC OYJ | D79: 19361.538 | E79: APPROX | F79: 260600000 | G79: 129870000 | H79: 403040 | I79: Consumer Discretionary | K79: 0.934 | L79: Recreational Products
A80: TLT1V FH Equity | B80: 0.0004503317845 | C80: TELESTE OYJ | D80: 11902.147 | E80: APPROX | F80: 259528000 | G80: 126823727.8 | H80: 802010 | I80: Information Technology | K80: 0.899 | L80: Communications Equipment
A81: QTCOM FH Equity | B81: 0.000440155827 | C81: QT GROUP OYJ | D81: 508.459 | E81: APPROX | F81: 32395000 | G81: 123957945.5 | H81: 801030 | I81: Information Technology | K81: 0.895 | L81: Software
A82: RAUTE FH Equity | B82: 0.0004375645831 | C82: RAUTE OYJ-A SHS | D82: 5436.87 | E82: APPROX | F82: 113130000 | G82: 123228192 | H82: 304020 | I82: Industrials | K82: 0.819 | L82: Industrial Machinery
A83: KSLAV FH Equity | B83: 0.0003727740538 | C83: KESKISUOMALAINEN OYJ-A SHS | D83: 8328.019 | E83: APPROX | F83: 152033000 | G83: 104981697.4 | H83: 503030 | I83: Consumer Discretionary | K83: 0.904 | L83: Publishing
A84: PKK1V FH Equity | B84: 0.0003635784488 | C84: POHJOIS-KARJALAN KIRJAPAINO | D84: 7031.663 | E84: APPROX | F84: 77453444.33 | G84: 102392004.8 | H84: 503030 | I84: Consumer Discretionary | K84: 0.904 | L84: Publishing
A85: AFE1V FH Equity | B85: 0.0003611279022 | C85: AFFECTO OYJ | D85: 1340.81 | E85: APPROX | F85: 112505000 | G85: 101701874.8 | H85: 801010 | I85: Information Technology | K85: 0.934 | L85: IT Services
A86: SIEVI FH Equity | B86: 0.0003384418874 | C86: SIEVI CAPITAL OYJ | D86: 16.266 | E86: APPROX | F86: 13209235 | G86: 95312974.35 | H86: 702020 | I86: Financials | K86: 0.9 | L86: Capital Markets
A87: SILMA FH Equity | B87: 0.0003354471121 | C87: SILMAASEMA OYJ | D87: 1345.737 | E87: APPROX | F87: 101345000 | G87: 94469577.15 | H87: 601030 | I87: Consumer Discretionary | K87: 0.871 | L87: Health Care Supplies
A88: GLA1V FH Equity | B88: 0.0003219039082 | C88: GLASTON OYJ ABP | D88: 3042.74 | E88: APPROX | F88: 107141000 | G88: 90655501.25 | H88: 304020 | I88: Industrials | K88: 0.819 | L88: Industrial Machinery
A89: APETIT FH Equity | B89: 0.0003167504626 | C89: APETIT OYJ | D89: 44655.034 | E89: APPROX | F89: 386500000 | G89: 89204173.12 | H89: 402520 | I89: Consumer Staples | K89: 0.756 | L89: Food Products
A90: PIZZA FH Equity | B90: 0.0003146024866 | C90: KOTIPIZZA GROUP OYJ | D90: 228.276 | E90: APPROX | F90: 56370000 | G90: 88599253.95 | H90: 504040 | I90: Consumer Discretionary | K90: 0.901 | L90: Restaurants & Bars
A91: TNOM FH Equity | B91: 0.0003093714283 | C91: TALENOM OYJ | D91: 1040.64 | E91: APPROX | F91: 36957000 | G91: 87126068.34 | H91: 305030 | I91: Industrials | K91: 0.385 | L91: Financial Administration
A92: ILK2S FH Equity | B92: 0.0003085393713 | C92: ILKKA-YHTYMA OYJ-II | D92: 3346.454 | E92: APPROX | F92: 39698000 | G92: 86891742.04 | H92: 503030 | I92: Consumer Discretionary | K92: 0.904 | L92: Publishing
A93: MMO1V FH Equity | B93: 0.0002901222551 | C93: MARIMEKKO OYJ | D93: 39744.504 | E93: APPROX | F93: 99614000 | G93: 81705061 | H93: 403510 | I93: Consumer Discretionary | K93: 0.766 | L93: Clothing & Accessories
A94: EXL1V FH Equity | B94: 0.0002775423018 | C94: EXEL COMPOSITES OYJ | D94: 5276.741 | E94: APPROX | F94: 73079000 | G94: 78162258.51 | H94: 304020 | I94: Industrials | K94: 0.819 | L94: Industrial Machinery
A95: SIILI FH Equity | B95: 0.0002749190647 | C95: SIILI SOLUTIONS OYJ | D95: 510.79 | E95: APPROX | F95: 48415000 | G95: 77423494.96 | H95: 801010 | I95: Information Technology | K95: 0.934 | L95: IT Services
A96: SSH1V FH Equity | B96: 0.0002416009888 | C96: SSH COMMUNICATIONS SECURITY | D96: 237.346 | E96: APPROX | F96: 15121803 | G96: 68040362.91 | H96: 801030 | I96: Information Technology | K96: 0.895 | L96: Software
A97: CONSTI FH Equity | B97: 0.0002371798513 | C97: CONSTI YHTIOT OY | D97: 9363.221 | E97: APPROX | F97: 261558000 | G97: 66795269.5 | H97: 302020 | I97: Industrials | K97: 0.973 | L97: Building-Heavy Construction
A98: DIGIA FH Equity | B98: 0.0002238303655 | C98: DIGIA OYJ | D98: 1885.586 | E98: APPROX | F98: 86462771.41 | G98: 63035749.05 | H98: 801010 | I98: Information Technology | K98: 0.934 | L98: IT Services
A99: BIOBV FH Equity | B99: 0.0001992856578 | C99: BIOHIT OYJ-B | D99: 137.558 | E99: APPROX | F99: 8195000 | G99: 56123398.11 | H99: 601010 | I99: Health Care | K99: 0.95 | L99: Health Care Equipment
A100: PNA1V FH Equity | B100: 0.0001865370903 | C100: PANOSTAJA OYJ | D100: 7775.148 | E100: APPROX | F100: 172476000 | G100: 52533110 | H100: 702020 | I100: Industrials | K100: 0.9 | L100: Capital Markets
A101: SAGCV FH Equity | B101: 0.0001712929091 | C101: SAGA FURS OYJ | D101: 5042.912 | E101: APPROX | F101: 43007998 | G101: 48240000 | H101: 305010 | I101: Industrials | K101: 0.859 | L101: Business Support Services
A102: OREIT FH Equity | B102: 0.0001704213534 | C102: ORAVA RESIDENTIAL REIT PLC | D102: 2485.056 | E102: APPROX | F102: 13902000 | G102: 47994550 | H102: 705050 | I102: Financials | K102: 0.775 | L102: Residential REIT's
A103: SOSI SS Equity | B103: 0.0001654457276 | C103: SOTKAMO SILVER AB | D103: 3691.052 | E103: APPROX | F103: 5494.817607 | G103: 46593300 | H103: 206030 | I103: Materials | K103: 0.856 | L103: Platinum & Precious Metals
A104: INVEST FH Equity | B104: 0.0001624474761 | C104: INVESTORS HOUSE OYJ | D104: 64.215 | E104: APPROX | F104: 3133722 | G104: 45748923.8 | H104: 706020 | I104: Financials | K104: 0.747 | L104: Real Estate Diversified Management & Development
A105: ELEAV FH Equity | B105: 0.0001473305229 | C105: ELECSTER OYJ-A SHS | D105: 3007.738 | E105: APPROX | F105: 44133000 | G105: 41491644.12 | H105: 304020 | I105: Industrials | K105: 0.819 | L105: Industrial Machinery
A106: IFA1V FH Equity | B106: 0.0001201464598 | C106: INNOFACTOR OYJ | D106: 935.708 | E106: APPROX | F106: 59616000 | G106: 33835990.38 | H106: 801030 | I106: Information Technology | K106: 0.895 | L106: Software
A107: MARAS FH Equity | B107: 0.0001102266035 | C107: MARTELA OYJ | D107: 28411.9 | E107: APPROX | F107: 129127000 | G107: 31042332 | H107: 403030 | I107: Industrials | K107: 0.824 | L107: Furnishings
A108: NEO1V FH Equity | B108: 0.0001071006911 | C108: NEO INDUSTRIAL OYJ | D108: 4515.359 | E108: APPROX | F108: 101040000 | G108: 30162003.6 | H108: 303010 | I108: Industrials | K108: 0.769 | L108: Electrical Components & Equipment
A109: DIGIGR FH Equity | B109: 0.000104990421 | C109: DIGITALIST GROUP OYJ | D109: 699.797 | E109: APPROX | F109: 15256000 | G109: 29567703.27 | H109: 801010 | I109: Information Technology | K109: 0.934 | L109: IT Services
A110: SOLTEQ FH Equity | B110: 0.000100808389 | C110: SOLTEQ OYJ | D110: 989.591 | E110: APPROX | F110: 63049000 | G110: 28389947.44 | H110: 801030 | I110: Information Technology | K110: 0.895 | L110: Software
A111: DOV1V FH Equity | B111: 9.710175283e-05 | C111: DOVRE GROUP OYJ | D111: 1544.374 | E111: APPROX | F111: 83810000 | G111: 27346073.94 | H111: 305010 | I111: Industrials | K111: 0.859 | L111: Business Support Services
A112: ICP1V FH Equity | B112: 9.594529838e-05 | C112: INCAP OYJ | D112: 1726.15 | E112: APPROX | F112: 38626000 | G112: 27020389.92 | H112: 303010 | I112: Information Technology | K112: 0.769 | L112: Electrical Components & Equipment
A113: CTH1V FH Equity | B113: 9.064167484e-05 | C113: COMPONENTA OYJ | D113: 16814.518 | E113: APPROX | F113: 183600000 | G113: 25526768.26 | H113: 304020 | I113: Industrials | K113: 0.819 | L113: Industrial Machinery
A114: NLG1V FH Equity | B114: 8.642691567e-05 | C114: NURMINEN LOGISTICS OYJ-A | D114: 12863.121 | E114: APPROX | F114: 49971000 | G114: 24339795.7 | H114: 306510 | I114: Industrials | K114: 0.963 | L114: Air Freight & Logistics
A115: EFO1V FH Equity | B115: 8.515765592e-05 | C115: EFORE OYJ | D115: 3368.107 | E115: APPROX | F115: 75368000 | G115: 23982343.13 | H115: 303010 | I115: Industrials | K115: 0.769 | L115: Electrical Components & Equipment
A116: HONBS FH Equity | B116: 7.962145581e-05 | C116: HONKARAKENNE OYJ-B SHS | D116: 1981.023 | E116: APPROX | F116: 36080000 | G116: 22423222.59 | H116: 302030 | I116: Consumer Discretionary | K116: 0.888 | L116: Home Construction
A117: YLEPS FH Equity | B117: 7.825181352e-05 | C117: YLEISELEKTRONIIKKA OYJ | D117: 703.779 | E117: APPROX | F117: 40290909 | G117: 22037500 | H117: 804020 | I117: Information Technology | K117: 0.886 | L117: Technology Distributors
A118: QPR1V FH Equity | B118: 7.556458758e-05 | C118: QPR SOFTWARE OYJ | D118: 135.516 | E118: APPROX | F118: 8634000 | G118: 21280715.73 | H118: 801030 | I118: Information Technology | K118: 0.895 | L118: Software
A119: UUTEC FH Equity | B119: 7.082205705e-05 | C119: UUTECHNIC GROUP OYJ | D119: 2234.059 | E119: APPROX | F119: 36377000 | G119: 19945110.69 | H119: 304020 | I119: Industrials | K119: 0.819 | L119: Industrial Machinery
A120: ENDO SS Equity | B120: 6.247965672e-05 | C120: ENDOMINES AB | D120: 15977.542 | E120: APPROX | F120: 10678861.01 | G120: 17595700 | H120: 206020 | I120: Materials | K120: 0.73 | L120: Gold Mining
A121: ACG1V FH Equity | B121: 5.610203841e-05 | C121: ASPOCOMP GROUP OYJ | D121: 1921.082 | E121: APPROX | F121: 21623000 | G121: 15799616.85 | H121: 804010 | I121: Information Technology | K121: 0.859 | L121: Electronic Components
A122: KELAS FH Equity | B122: 5.285734857e-05 | C122: KESLA OYJ-A | D122: 3192.03 | E122: APPROX | F122: 41998000 | G122: 14885838 | H122: 304010 | I122: Industrials | K122: 0.883 | L122: Construction & Farm Machinery & Heavy Trucks
A123: TULAV FH Equity | B123: 4.124317497e-05 | C123: TULIKIVI OYJ-A SHS | D123: 16628.973 | E123: APPROX | F123: 30485000 | G123: 11615021.14 | H123: 301510 | I123: Industrials | K123: 0.708 | L123: Building Materials & Products
A124: WUF1V FH Equity | B124: 3.871342676e-05 | C124: WULFF-GROUP OYJ | D124: 1857.161 | E124: APPROX | F124: 59304000 | G124: 10902586.2 | H124: 305510 | I124: Consumer Discretionary | K124: 0.878 | L124: Industrial Suppliers
A125: TRH1V FH Equity | B125: 3.752170157e-05 | C125: TRAINERS' HOUSE OYJ | D125: 159.035 | E125: APPROX | F125: 8845017.8 | G125: 10566969.14 | H125: 305010 | I125: Industrials | K125: 0.859 | L125: Business Support Services
A126: TEM1V FH Equity | B126: 3.17867486e-05 | C126: TECNOTREE OYJ | D126: 943.305 | E126: APPROX | F126: 60100000 | G126: 8951875.244 | H126: 801030 | I126: Information Technology | K126: 0.895 | L126: Software
A127: SOPRA FH Equity | B127: 2.966788655e-05 | C127: SOPRANO OYJ | D127: 359.669 | E127: APPROX | F127: 16661000 | G127: 8355155.241 | H127: 305010 | I127: Information Technology | K127: 0.859 | L127: Business Support Services
A128: VALOE FH Equity | B128: 1.280540551e-05 | C128: VALOE OYJ | D128: 98.407 | E128: APPROX | F128: 553000 | G128: 3606295 | H128: 804030 | I128: Information Technology | K128: 0.948 | L128: Electronic Equipment Manufacturers
A129: PKC1V FH Equity | B129: 0 | C129: PKC GROUP OYJ | D129: 37792.086 | E129: APPROX | F129: 845672000 | H129: 303010 | I129: Industrials | K129: 0.769 | L129: Electrical Components & Equipment

Sheet 2 - CHECK
B2: PORTFOLIO OVERVIEW
B4: Number of lines validated | E4: =COUNTA(HIDDEN_PORTFOLIO!A:A)-COUNTIF(HIDDEN_PORTFOLIO!A:A,"NO MATCHING DATA")-1 -> 10 | G4: Please Insert Name | H4: Sample Portfolio
B6: Total weight | E6: =SUMIF(HIDDEN_PORTFOLIO!A2:A500,"<>NO MATCHING DATA",HIDDEN_PORTFOLIO!B2:B500) -> 1 | G6: Please Insert Total value (EUR) | H6: 1000000
B9: IF VALUES ARE CORRECT, PLEASE CLICK ON THE FOLLOWING BUTTON TO GENERATE THE REPORT:
B16: Please note that this tool uses the 30 September 2017 as reference point for financial data. For best results, please use holdings data from the same date.

Sheet 3 - PDF
F2: Date of Holdings | G2: 2016-09-30
A4: Carbon Footprint Analysis: | D4: ='2 - CHECK'!H4 -> Sample Portfolio
A6: Benchmark: | D6: Nasdaq Helsinki
A9: Key Data
A11: Total Investment (EUR) | D11: ='2 - CHECK'!H6 -> 1000000
A13: Metric | D13: =D4 -> Sample Portfolio | E13: =D6 -> Nasdaq Helsinki | F13: Difference
A14: Total Emissions Financed Emissions Scope 1&2 (tCO2e) | D14: =HIDDEN_ANALYSIS!C26 -> 53.59579963 | E14: =HIDDEN_ANALYSIS!E26 -> 198.7785814 | F14: =E14-D14 -> 145.1827817
A15: Total Financed Emissions Scope 1,2 & 3 (tCO2e) | D15: =HIDDEN_ANALYSIS!G26 -> 255.5088358 | E15: =HIDDEN_ANALYSIS!H26 -> 610.0275285 | F15: =E15-D15 -> 354.5186927
A18: Percentage of Disclosing Titles | D18: =1-(COUNTIF(INDIRECT("'TMP_PORTFOLIO'!E:E"),"APPROX")/(COUNTA(INDIRECT("'TMP_PORTFOLIO'!E:E"))-1)) -> 0.25 | E18: =1-(COUNTIF(INDIRECT("'TMP_BENCHMARK'!E:E"),"APPROX")/(COUNTA(INDIRECT("'TMP_BENCHMARK'!E:E"))-1)) -> 0.3203125 | F18: =D18-E18 -> -0.0703125
A19: Emissions (tCO2e) per EUR 1 million Invested | D19: =(D14/D11)*1000000 -> 53.59579963 | E19: =(E14/D11)*1000000 -> 198.7785814 | F19: =(E19-D19)/E19 -> 0.730374373
A20: Weighted Emissions (tCO2e) / Weighted Sales EUR Million | D20: =SUM(INDIRECT("'TMP_PORTFOLIO_2'!E:E"))*1000000/SUM(INDIRECT("'TMP_PORTFOLIO_2'!F:F")) -> 58.87313864 | E20: =SUM(INDIRECT("'TMP_BENCHMARK_2'!E:E"))*1000000/SUM(INDIRECT("'TMP_BENCHMARK_2'!F:F")) -> 237.0605445 | F20: =(E20-D20)/E20 -> 0.7516535754
A21: Financed Emissions (tCO2e) / Financed Revenue EUR Million | D21: =SUM(INDIRECT("'TMP_PORTFOLIO_2'!A:A"))*1000000/SUM(INDIRECT("'TMP_PORTFOLIO_2'!G:G")) -> 69.50906796 | E21: =SUM(INDIRECT("'TMP_BENCHMARK_2'!A:A"))*1000000/SUM(INDIRECT("'TMP_BENCHMARK_2'!G:G")) -> 300.7235289 | F21: =(E21-D21)/E21 -> 0.7688605604
A22: ="The burning of fossil fuels contributes to the increase of carbon dioxide in the atmosphere, which causes Climate Change. By investing in a company, you also finance the emission of greenhouse gases. The "&D4&" is associated with greenhouse gas emissions of "&TEXT(D14,"#'##0")&" tonnes per year (Scope 1 &2). The same amount invested in the "&D6&" yields emissions of "&TEXT(E14,"#'##0")&" tonnes per year (Scope 1 & 2)." -> The burning of fossil fuels contributes to the increase of carbon dioxide in the atmosphere, which causes Climate Change. By investing in a company, you also finance the emission of greenhouse gases. The Sample Portfolio is associated with greenhouse gas emissions of '54 tonnes per year (Scope 1 &2). The same amount invested in the Nasdaq Helsinki yields emissions of '199 tonnes per year (Scope 1 & 2).
A27: Unless stated otherwise, the emissions used in this assessment are Scope 1 & 2 emissions that were reported in 2017, for the financial year 2016. In order calculate ownership %, ISS-Ethix Climate Solutions used the market cap data for each company from the same date as holdings assessed.
A28: Summary of 10 Largest Portfolio Companies
A29: Company | B29: Portfolio Weight | C29: Data Source | D29: % of Total Financed Emissions | E29: Emissions (tCO2e)
A30: =INDEX(INDIRECT("'TMP_PORTFOLIO'!C:C"),MATCH(LARGE(INDIRECT("'TMP_PORTFOLIO_2'!I:I"),1),INDIRECT("'TMP_PORTFOLIO_2'!I:I"),0)) -> ADDNODE GROUP AB | B30: =INDEX(INDIRECT("'TMP_PORTFOLIO'!B:B"),MATCH(LARGE(INDIRECT("'TMP_PORTFOLIO_2'!I:I"),1),INDIRECT("'TMP_PORTFOLIO_2'!I:I"),0)) -> 0.2 | C30: =INDEX(INDIRECT("'TMP_PORTFOLIO_2'!H:H"),MATCH(LARGE(INDIRECT("'TMP_PORTFOLIO_2'!I:I"),1),INDIRECT("'TMP_PORTFOLIO_2'!I:I"),0)) -> Approx | D30: =E30/$D$14 -> 0.02598461262 | E30: =INDEX(INDIRECT("'TMP_PORTFOLIO_2'!A:A"),MATCH(LARGE(INDIRECT("'TMP_PORTFOLIO_2'!I:I"),1),INDIRECT("'TMP_PORTFOLIO_2'!I:I"),0)) -> 1.392666092
A31: =INDEX(INDIRECT("'TMP_PORTFOLIO'!C:C"),MATCH(LARGE(INDIRECT("'TMP_PORTFOLIO_2'!I:I"),2),INDIRECT("'TMP_PORTFOLIO_2'!I:I"),0)) -> ACANDO AB | B31: =INDEX(INDIRECT("'TMP_PORTFOLIO'!B:B"),MATCH(LARGE(INDIRECT("'TMP_PORTFOLIO_2'!I:I"),2),INDIRECT("'TMP_PORTFOLIO_2'!I:I"),0)) -> 0.2 | C31: =INDEX(INDIRECT("'TMP_PORTFOLIO_2'!H:H"),MATCH(LARGE(INDIRECT("'TMP_PORTFOLIO_2'!I:I"),2),INDIRECT("'TMP_PORTFOLIO_2'!I:I"),0)) -> Approx | D31: 0.02633241416 | E31: =INDEX(INDIRECT("'TMP_PORTFOLIO_2'!A:A"),MATCH(LARGE(INDIRECT("'TMP_PORTFOLIO_2'!I:I"),2),INDIRECT("'TMP_PORTFOLIO_2'!I:I"),0)) -> 1.411306793
A32: =INDEX(INDIRECT("'TMP_PORTFOLIO'!C:C"),MATCH(LARGE(INDIRECT("'TMP_PORTFOLIO_2'!I:I"),3),INDIRECT("'TMP_PORTFOLIO_2'!I:I"),0)) -> ADDTECH AB-B SHARES | B32: =INDEX(INDIRECT("'TMP_PORTFOLIO'!B:B"),MATCH(LARGE(INDIRECT("'TMP_PORTFOLIO_2'!I:I"),3),INDIRECT("'TMP_PORTFOLIO_2'!I:I"),0)) -> 0.1 | C32: =INDEX(INDIRECT("'TMP_PORTFOLIO_2'!H:H"),MATCH(LARGE(INDIRECT("'TMP_PORTFOLIO_2'!I:I"),3),INDIRECT("'TMP_PORTFOLIO_2'!I:I"),0)) -> Disclosed | D32: 0.02193149064 | E32: =INDEX(INDIRECT("'TMP_PORTFOLIO_2'!A:A"),MATCH(LARGE(INDIRECT("'TMP_PORTFOLIO_2'!I:I"),3),INDIRECT("'TMP_PORTFOLIO_2'!I:I"),0)) -> 1.175435778
A33: =INDEX(INDIRECT("'TMP_PORTFOLIO'!C:C"),MATCH(LARGE(INDIRECT("'TMP_PORTFOLIO_2'!I:I"),4),INDIRECT("'TMP_PORTFOLIO_2'!I:I"),0)) -> ACTIVE BIOTECH AB | B33: =INDEX(INDIRECT("'TMP_PORTFOLIO'!B:B"),MATCH(LARGE(INDIRECT("'TMP_PORTFOLIO_2'!I:I"),4),INDIRECT("'TMP_PORTFOLIO_2'!I:I"),0)) -> 0.1 | C33: =INDEX(INDIRECT("'TMP_PORTFOLIO_2'!H:H"),MATCH(LARGE(INDIRECT("'TMP_PORTFOLIO_2'!I:I"),4),INDIRECT("'TMP_PORTFOLIO_2'!I:I"),0)) -> Approx | D33: 0.3601163175 | E33: =INDEX(INDIRECT("'TMP_PORTFOLIO_2'!A:A"),MATCH(LARGE(INDIRECT("'TMP_PORTFOLIO_2'!I:I"),4),INDIRECT("'TMP_PORTFOLIO_2'!I:I"),0)) -> 19.30072199
A34: =INDEX(INDIRECT("'TMP_PORTFOLIO'!C:C"),MATCH(LARGE(INDIRECT("'TMP_PORTFOLIO_2'!I:I"),5),INDIRECT("'TMP_PORTFOLIO_2'!I:I"),0)) -> ACTIC GROUP AB | B34: =INDEX(INDIRECT("'TMP_PORTFOLIO'!B:B"),MATCH(LARGE(INDIRECT("'TMP_PORTFOLIO_2'!I:I"),5),INDIRECT("'TMP_PORTFOLIO_2'!I:I"),0)) -> 0.1 | C34: =INDEX(INDIRECT("'TMP_PORTFOLIO_2'!H:H"),MATCH(LARGE(INDIRECT("'TMP_PORTFOLIO_2'!I:I"),5),INDIRECT("'TMP_PORTFOLIO_2'!I:I"),0)) -> Approx | D34: 0.3887189488 | E34: =INDEX(INDIRECT("'TMP_PORTFOLIO_2'!A:A"),MATCH(LARGE(INDIRECT("'TMP_PORTFOLIO_2'!I:I"),5),INDIRECT("'TMP_PORTFOLIO_2'!I:I"),0)) -> 20.83370289
A35: =INDEX(INDIRECT("'TMP_PORTFOLIO'!C:C"),MATCH(LARGE(INDIRECT("'TMP_PORTFOLIO_2'!I:I"),6),INDIRECT("'TMP_PORTFOLIO_2'!I:I"),0)) -> ACADEMEDIA AB | B35: =INDEX(INDIRECT("'TMP_PORTFOLIO'!B:B"),MATCH(LARGE(INDIRECT("'TMP_PORTFOLIO_2'!I:I"),6),INDIRECT("'TMP_PORTFOLIO_2'!I:I"),0)) -> 0.1 | C35: =INDEX(INDIRECT("'TMP_PORTFOLIO_2'!H:H"),MATCH(LARGE(INDIRECT("'TMP_PORTFOLIO_2'!I:I"),6),INDIRECT("'TMP_PORTFOLIO_2'!I:I"),0)) -> Approx | D35: 0.0260516884 | E35: =INDEX(INDIRECT("'TMP_PORTFOLIO_2'!A:A"),MATCH(LARGE(INDIRECT("'TMP_PORTFOLIO_2'!I:I"),6),INDIRECT("'TMP_PORTFOLIO_2'!I:I"),0)) -> 1.396261072
A36: =INDEX(INDIRECT("'TMP_PORTFOLIO'!C:C"),MATCH(LARGE(INDIRECT("'TMP_PORTFOLIO_2'!I:I"),7),INDIRECT("'TMP_PORTFOLIO_2'!I:I"),0)) -> AB TRACTION -B SHS | B36: =INDEX(INDIRECT("'TMP_PORTFOLIO'!B:B"),MATCH(LARGE(INDIRECT("'TMP_PORTFOLIO_2'!I:I"),7),INDIRECT("'TMP_PORTFOLIO_2'!I:I"),0)) -> 0.1 | C36: =INDEX(INDIRECT("'TMP_PORTFOLIO_2'!H:H"),MATCH(LARGE(INDIRECT("'TMP_PORTFOLIO_2'!I:I"),7),INDIRECT("'TMP_PORTFOLIO_2'!I:I"),0)) -> Approx | D36: 0.0001712185377 | E36: =INDEX(INDIRECT("'TMP_PORTFOLIO_2'!A:A"),MATCH(LARGE(INDIRECT("'TMP_PORTFOLIO_2'!I:I"),7),INDIRECT("'TMP_PORTFOLIO_2'!I:I"),0)) -> 0.009176594438
A37: =INDEX(INDIRECT("'TMP_PORTFOLIO'!C:C"),MATCH(LARGE(INDIRECT("'TMP_PORTFOLIO_2'!I:I"),8),INDIRECT("'TMP_PORTFOLIO_2'!I:I"),0)) -> AAK AB | B37: =INDEX(INDIRECT("'TMP_PORTFOLIO'!B:B"),MATCH(LARGE(INDIRECT("'TMP_PORTFOLIO_2'!I:I"),8),INDIRECT("'TMP_PORTFOLIO_2'!I:I"),0)) -> 0.1 | C37: =INDEX(INDIRECT("'TMP_PORTFOLIO_2'!H:H"),MATCH(LARGE(INDIRECT("'TMP_PORTFOLIO_2'!I:I"),8),INDIRECT("'TMP_PORTFOLIO_2'!I:I"),0)) -> Disclosed | D37: 0.1506933094 | E37: =INDEX(INDIRECT("'TMP_PORTFOLIO_2'!A:A"),MATCH(LARGE(INDIRECT("'TMP_PORTFOLIO_2'!I:I"),8),INDIRECT("'TMP_PORTFOLIO_2'!I:I"),0)) -> 8.076528417
A38: =INDEX(INDIRECT("'TMP_PORTFOLIO'!C:C"),MATCH(LARGE(INDIRECT("'TMP_PORTFOLIO_2'!I:I"),9),INDIRECT("'TMP_PORTFOLIO_2'!I:I"),0)) -> 0 | B38: =INDEX(INDIRECT("'TMP_PORTFOLIO'!B:B"),MATCH(LARGE(INDIRECT("'TMP_PORTFOLIO_2'!I:I"),9),INDIRECT("'TMP_PORTFOLIO_2'!I:I"),0)) -> 0 | C38: =INDEX(INDIRECT("'TMP_PORTFOLIO_2'!H:H"),MATCH(LARGE(INDIRECT("'TMP_PORTFOLIO_2'!I:I"),9),INDIRECT("'TMP_PORTFOLIO_2'!I:I"),0)) -> Disclosed | D38: 0 | E38: =INDEX(INDIRECT("'TMP_PORTFOLIO_2'!A:A"),MATCH(LARGE(INDIRECT("'TMP_PORTFOLIO_2'!I:I"),9),INDIRECT("'TMP_PORTFOLIO_2'!I:I"),0)) -> 0
A39: =INDEX(INDIRECT("'TMP_PORTFOLIO'!C:C"),MATCH(LARGE(INDIRECT("'TMP_PORTFOLIO_2'!I:I"),10),INDIRECT("'TMP_PORTFOLIO_2'!I:I"),0)) -> 0 | B39: =INDEX(INDIRECT("'TMP_PORTFOLIO'!B:B"),MATCH(LARGE(INDIRECT("'TMP_PORTFOLIO_2'!I:I"),10),INDIRECT("'TMP_PORTFOLIO_2'!I:I"),0)) -> 0 | C39: =INDEX(INDIRECT("'TMP_PORTFOLIO_2'!H:H"),MATCH(LARGE(INDIRECT("'TMP_PORTFOLIO_2'!I:I"),10),INDIRECT("'TMP_PORTFOLIO_2'!I:I"),0)) -> Disclosed | D39: 0 | E39: =INDEX(INDIRECT("'TMP_PORTFOLIO_2'!A:A"),MATCH(LARGE(INDIRECT("'TMP_PORTFOLIO_2'!I:I"),10),INDIRECT("'TMP_PORTFOLIO_2'!I:I"),0)) -> 0
A44: Carbon Footprint Analysis | D44: =D4 -> Sample Portfolio
A46: Benchmark: | D46: =D6 -> Nasdaq Helsinki
A49: Sector Analysis
A50: ="The greenhouse gas emissions of "&D4&" stem from different sectors. The light blue bar shows what percentage of total emissions stems from what sector. The dark blue bar shows what percentage of "&D4&" is invested in what sector. You can see that certain sectors are much more greenhouse gas intensive than others." -> The greenhouse gas emissions of Sample Portfolio stem from different sectors. The light blue bar shows what percentage of total emissions stems from what sector. The dark blue bar shows what percentage of Sample Portfolio is invested in what sector. You can see that certain sectors are much more greenhouse gas intensive than others.
A69: =" In comparison, the sector allocation and the emission allocation of "&D46&" can be found below." -> In comparison, the sector allocation and the emission allocation of Nasdaq Helsinki can be found below.
A95: Carbon Footprint Analysis | D95: =D4 -> Sample Portfolio
A97: Benchmark: | D97: =D6 -> Nasdaq Helsinki
A100: Sector Allocation | E100: Sector Emissions
A118: Disclosing Companies
A119: =" The following graphs analyse the amount of companies in the "&D95&" and the benchmark that disclose their emissions." -> The following graphs analyse the amount of companies in the Sample Portfolio and the benchmark that disclose their emissions.
A121: =D95 -> Sample Portfolio | E121: =D97 -> Nasdaq Helsinki
A145: Carbon Footprint Analysis | D145: =D4 -> Sample Portfolio
A147: Benchmark: | D147: =D6 -> Nasdaq Helsinki
A150: Attribution Analysis
C152: Sector Allocation Contribution to Out/ Underperformance (tCO2e) | D152: Sector Allocation Contribution to Out/ Underperformance (%) | E152: Stock Selection Contribution to Out/ Underperformance (tCO2e) | G152: Stock selection Contribution to Out/ Underperformance ( % )
A154: =HIDDEN_ANALYSIS!A2 -> Industrials | C154: =HIDDEN_ANALYSIS!F2 -> -8.066196129 | D154: =HIDDEN_ANALYSIS!G2 -> -0.04057879915 | E154: =HIDDEN_ANALYSIS!H2 -> -12.8380487 | G154: =HIDDEN_ANALYSIS!I2 -> -0.06458466807
A155: =HIDDEN_ANALYSIS!A3 -> Materials | C155: =HIDDEN_ANALYSIS!F3 -> -92.53112936 | D155: =HIDDEN_ANALYSIS!G3 -> -0.4654984894 | E155: =HIDDEN_ANALYSIS!H3 -> -92.53112936 | G155: =HIDDEN_ANALYSIS!I3 -> -0.4654984894
A156: =HIDDEN_ANALYSIS!A4 -> Consumer Staples | C156: =HIDDEN_ANALYSIS!F4 -> 9.171725817 | D156: =HIDDEN_ANALYSIS!G4 -> 0.04614041288 | E156: =HIDDEN_ANALYSIS!H4 -> -0.9159081643 | G156: =HIDDEN_ANALYSIS!I4 -> -0.004607680354
A157: =HIDDEN_ANALYSIS!A5 -> Financials | C157: =HIDDEN_ANALYSIS!F5 -> -0.3743215486 | D157: =HIDDEN_ANALYSIS!G5 -> -0.001883108059 | E157: =HIDDEN_ANALYSIS!H5 -> -0.5847233668 | G157: =HIDDEN_ANALYSIS!I5 -> -0.002941581345
A158: =HIDDEN_ANALYSIS!A6 -> Health Care | C158: =HIDDEN_ANALYSIS!F6 -> 0.7900368231 | D158: =HIDDEN_ANALYSIS!G6 -> 0.003974456491 | E158: =HIDDEN_ANALYSIS!H6 -> 3.619128766 | G158: =HIDDEN_ANALYSIS!I6 -> 0.01820683466
A159: =HIDDEN_ANALYSIS!A7 -> Energy | C159: =HIDDEN_ANALYSIS!F7 -> -12.19133605 | D159: =HIDDEN_ANALYSIS!G7 -> -0.06133123582 | E159: =HIDDEN_ANALYSIS!H7 -> -12.19133605 | G159: =HIDDEN_ANALYSIS!I7 -> -0.06133123582
A160: =HIDDEN_ANALYSIS!A8 -> Consumer Discretionary | C160: =HIDDEN_ANALYSIS!F8 -> 12.19158684 | D160: =HIDDEN_ANALYSIS!G8 -> 0.06133249748 | E160: =HIDDEN_ANALYSIS!H8 -> 1.495555434 | G160: =HIDDEN_ANALYSIS!I8 -> 0.007523725258
A161: =HIDDEN_ANALYSIS!A9 -> Information Technology | C161: =HIDDEN_ANALYSIS!F9 -> 8.058892609 | D161: =HIDDEN_ANALYSIS!G9 -> 0.04054205717 | E161: =HIDDEN_ANALYSIS!H9 -> -1.969719449 | G161: =HIDDEN_ANALYSIS!I9 -> -0.009909113121
A162: =HIDDEN_ANALYSIS!A10 -> Utilities | C162: =HIDDEN_ANALYSIS!F10 -> -67.095049 | D162: =HIDDEN_ANALYSIS!G10 -> -0.3375366125 | E162: =HIDDEN_ANALYSIS!H10 -> -67.095049 | G162: =HIDDEN_ANALYSIS!I10 -> -0.3375366125
A163: =HIDDEN_ANALYSIS!A11 -> Telecommunication Services | C163: =HIDDEN_ANALYSIS!F11 -> -1.197488818 | D163: =HIDDEN_ANALYSIS!G11 -> -0.006024234651 | E163: =HIDDEN_ANALYSIS!H11 -> -1.197488818 | G163: =HIDDEN_ANALYSIS!I11 -> -0.006024234651
A164: =HIDDEN_ANALYSIS!A12 -> Cash/Others | C164: =HIDDEN_ANALYSIS!F12 -> 0 | D164: =HIDDEN_ANALYSIS!G12 -> 0 | E164: =HIDDEN_ANALYSIS!H12 -> 0 | G164: =HIDDEN_ANALYSIS!I12 -> 0
A165: Total | C165: =SUM(C154:C164) -> -151.2432788 | D165: =SUM(D154:D164) -> -0.7608630556 | F165: =SUM(E154:F164) -> -184.2087187 | G165: =SUM(G154:H164) -> -0.9267030554
D166: Interaction Effect: | F166: =HIDDEN_ANALYSIS!J13 -> 190.2692158 | G166: =HIDDEN_ANALYSIS!K13 -> 0.957191738
D167: =IF(G167<0,HIDDEN_SENTENCES!C13,HIDDEN_SENTENCES!C14) -> Portfolio Carbon Outperformance | F167: (tCO2e) | G167: =C165+F165+F166 -> -145.1827817
D168: =IF(G167<0,"Portfolio Carbon Outperformance (%)"," Portfolio Carbon Underperformance (%)") -> Portfolio Carbon Outperformance (%) | G168: =D165+G165+G166 -> -0.730374373 | H168: =D165+G165+G166 -> -0.730374373
A169: Invested Money | D169: =HIDDEN_SENTENCES!C9&" "&HIDDEN_SENTENCES!C10&" "&HIDDEN_SENTENCES!C11 -> Explanation: The outperformance of the portfolio is based on the effect of over/underweighting certain sectors and selecting more/less carbon intense stocks within each sector for each of the underlying funds. A positive number indicates that the effect increased the greenhouse gas emissions (in tonnes) and a negative number indicates a decreasing effect. In this case, the sector weighting of Sample Portfolio helped save '151 tonnes of GHG emissions, while the stock selection helped save '184 tonnes of GHG emissions versus the benchmark. This explains a 76.1% carbon outperformance through sector weighting and 92.7% carbon outperformance by stock picking.
A170: Portfolio | B170: =D11 -> 1000000
A171: Benchmark | B171: =B170 -> 1000000
A173: Total Emissions (tCO2e)
A174: Portfolio | B174: =HIDDEN_ANALYSIS!E13 -> 53.59579963
A175: Benchmark | B175: =HIDDEN_ANALYSIS!D13 -> 198.7785814
A176: Difference | B176: =B174-B175 -> -145.1827817
A180: Carbon Footprint Analysis | D180: =D4 -> Sample Portfolio
A182: Benchmark: | D182: =D6 -> Nasdaq Helsinki
A185: Attribution Analysis - Graph
A207: Largest Contributors to Portfolio Emissions
A209: Company | D209: Weight in Portfolio | E209: CO2e In portfolio (t) | F209: % of Total | G209: Source
A210: =INDEX(INDIRECT("'TMP_PORTFOLIO'!C:C"),MATCH(E210,INDIRECT("'TMP_PORTFOLIO_2'!A:A"),0)) -> ACTIC GROUP AB | D210: =INDEX(INDIRECT("'TMP_PORTFOLIO'!B:B"),MATCH(E210,INDIRECT("'TMP_PORTFOLIO_2'!A:A"),0)) -> 0.1 | E210: =LARGE(INDIRECT("'TMP_PORTFOLIO_2'!A2:A50000"),1) -> 20.83370289 | F210: =E210/$D$14 -> 0.3887189488 | G210: =IF(INDEX(INDIRECT("'TMP_PORTFOLIO'!E:E"),MATCH(E210,INDIRECT("'TMP_PORTFOLIO_2'!A:A"),0))="Approx","Approx","Disclosed") -> Approx
A211: =INDEX(INDIRECT("'TMP_PORTFOLIO'!C:C"),MATCH(E211,INDIRECT("'TMP_PORTFOLIO_2'!A:A"),0)) -> ACTIVE BIOTECH AB | D211: =INDEX(INDIRECT("'TMP_PORTFOLIO'!B:B"),MATCH(E211,INDIRECT("'TMP_PORTFOLIO_2'!A:A"),0)) -> 0.1 | E211: =LARGE(INDIRECT("'TMP_PORTFOLIO_2'!A2:A50000"),2) -> 19.30072199 | F211: 0.3601163175 | G211: =IF(INDEX(INDIRECT("'TMP_PORTFOLIO'!E:E"),MATCH(E211,INDIRECT("'TMP_PORTFOLIO_2'!A:A"),0))="Approx","Approx","Disclosed") -> Approx
A212: AAK AB | D212: 0.1 | E212: =LARGE(INDIRECT("'TMP_PORTFOLIO_2'!A2:A50000"),3) -> 8.076528417 | F212: 0.1506933094 | G212: Disclosed
A213: ACANDO AB | D213: 0.2 | E213: =LARGE(INDIRECT("'TMP_PORTFOLIO_2'!A2:A50000"),4) -> 1.411306793 | F213: 0.02633241416 | G213: Approx
A214: ACADEMEDIA AB | D214: 0.1 | E214: =LARGE(INDIRECT("'TMP_PORTFOLIO_2'!A2:A50000"),5) -> 1.396261072 | F214: 0.0260516884 | G214: Approx
A215: ADDNODE GROUP AB | D215: 0.2 | E215: =LARGE(INDIRECT("'TMP_PORTFOLIO_2'!A2:A50000"),6) -> 1.392666092 | F215: 0.02598461262 | G215: Approx
A216: ADDTECH AB-B SHARES | D216: 0.1 | E216: =LARGE(INDIRECT("'TMP_PORTFOLIO_2'!A2:A50000"),7) -> 1.175435778 | F216: 0.02193149064 | G216: Disclosed
A217: AB TRACTION -B SHS | D217: 0.1 | E217: =LARGE(INDIRECT("'TMP_PORTFOLIO_2'!A2:A50000"),8) -> 0.009176594438 | F217: 0.0001712185377 | G217: Approx
A218: 0 | D218: 0 | E218: =LARGE(INDIRECT("'TMP_PORTFOLIO_2'!A2:A50000"),9) -> 0 | F218: 0 | G218: Disclosed
A219: 0 | D219: 0 | E219: =LARGE(INDIRECT("'TMP_PORTFOLIO_2'!A2:A50000"),10) -> 0 | F219: 0 | G219: Disclosed
A224: Carbon Footprint Analysis | D224: =D4 -> Sample Portfolio
A226: Benchmark: | D226: =D6 -> Nasdaq Helsinki
A229: Scope 3 Overview
A231: The following section provides a top-down approximation of the financed Scope 3 emissions from each sector. The purpose of this anlysis is to give an order of magnitude of the emissions in the portfolio on a sector level, and should not be used a basis for comparing two individual companies.
A237: The following graph shows the financed Scope 1&2 emissions, in relation to the Scope 3 emissions of the portfolio.
A257: The following graph shows the financed Scope 1&2 emissions, in relation to the Scope 3 emissions, for both the portfolio and the benchmark.
A284: Glossary
A287: The following page gives an overview of the key terms used to present the results in this report.
A291: Total Financed Emissions | D291: Financed emissions reflect the investors' share of emissions through investing the selected amount into the portfolio. It is the sum of the investors % share of each company's yearly emissions.
A292: Emissions (tCO2e) per EUR 1 million Invested
A293: Weighted Emissions (tCO2e) / Weighted Sales EUR Million
A294: Financed Emissions (tCO2e) / Financed Revenue EUR Million
A297: Attribution Analysis Key Results
A298: Out and Under Performance | D298: The analysis compares the financed emissions resulting from investements in the portfolio vs the benchmark. A negative numbers means less financed emissions and thus and outperformance in terms of carbon impact.
A299: Interaction Effect | D299: The interaction effect refers to the effect which cannot be directly attributed to the stock selection or the sector allocation.
A301: Data Periods
A302: Reporting Year of All Emissions | D302: 2017
A303: Date of Nasdaq Helsinki Holdings | D303: 2017-09-30
A304: Date of Market Cap Used | D304: 2017-09-30
A305: Financial Year Revenue Used | D305: 2016

Sheet TMP_BENCHMARK_2 (hidden)
A1: FINANCED_EMISSIONS | B1: SECTOR_WEIGHT | C1: IF_WAS_SECTOR | D1: MONEY_INVESTED | E1: WEIGHT x EMISSIONS | F1: WEIGHT x REVENUE | G1: FINANCED_REVENUE | H1: SOURCE_2
A2: =IFERROR(('2 - CHECK'!$H$6*INDIRECT("'TMP_BENCHMARK'!B" & (COUNTA($A$1:$A1)+1))/INDIRECT("'TMP_BENCHMARK'!G" & (COUNTA($A$1:$A1)+1)))*INDIRECT("'TMP_BENCHMARK'!D" & (COUNTA($A$1:$A1)+1)),0) -> 0.03874330288 | B2: =IFERROR(SUMIF(INDIRECT("'TMP_BENCHMARK'!I:I"),INDIRECT("'TMP_BENCHMARK'!I" & (COUNTA($A$1:$A1)+1)),INDIRECT("'TMP_BENCHMARK'!B:B")),0) -> 0.259800746 | C2: =IFERROR(A2/B2,0) -> 0.1491269886 | D2: =IFERROR(INDIRECT("'TMP_BENCHMARK'!B" & (COUNTA($A$1:$A1)+1))*'2 - CHECK'!$H$6,0) -> 145222.2277 | E2: =IFERROR(INDIRECT("'TMP_BENCHMARK'!B" & (COUNTA($A$1:$A1)+1))*INDIRECT("'TMP_BENCHMARK'!D" & (COUNTA($A$1:$A1)+1)),0) -> 1584.519727 | F2: =IFERROR(INDIRECT("'TMP_BENCHMARK'!B" & (COUNTA($A$1:$A1)+1))*INDIRECT("'TMP_BENCHMARK'!F" & (COUNTA($A$1:$A1)+1)),0) -> 1988963631 | G2: =IFERROR(('2 - CHECK'!$H$6*INDIRECT("'TMP_BENCHMARK'!B" & (COUNTA($A$1:$A1)+1))/INDIRECT("'TMP_BENCHMARK'!G" & (COUNTA($A$1:$A1)+1)))*INDIRECT("'TMP_BENCHMARK'!F" & (COUNTA($A$1:$A1)+1)),0) -> 48632.41465 | H2: =IFERROR(IF(INDIRECT("'TMP_BENCHMARK'!E" & (COUNTA($A$1:$A1)+1))<>"APPROX","REPORTED","APPROX"),0) -> REPORTED
A3: =IFERROR(('2 - CHECK'!$H$6*INDIRECT("'TMP_BENCHMARK'!B" & (COUNTA($A$1:$A2)+1))/INDIRECT("'TMP_BENCHMARK'!G" & (COUNTA($A$1:$A2)+1)))*INDIRECT("'TMP_BENCHMARK'!D" & (COUNTA($A$1:$A2)+1)),0) -> 0.004413704104 | B3: =IFERROR(SUMIF(INDIRECT("'TMP_BENCHMARK'!I:I"),INDIRECT("'TMP_BENCHMARK'!I" & (COUNTA($A$1:$A2)+1)),INDIRECT("'TMP_BENCHMARK'!B:B")),0) -> 0.259800746 | C3: =IFERROR(A3/B3,0) -> 0.01698880458 | D3: =IFERROR(INDIRECT("'TMP_BENCHMARK'!B" & (COUNTA($A$1:$A2)+1))*'2 - CHECK'!$H$6,0) -> 91072.15034 | E3: =IFERROR(INDIRECT("'TMP_BENCHMARK'!B" & (COUNTA($A$1:$A2)+1))*INDIRECT("'TMP_BENCHMARK'!D" & (COUNTA($A$1:$A2)+1)),0) -> 113.2026829 | F3: =IFERROR(INDIRECT("'TMP_BENCHMARK'!B" & (COUNTA($A$1:$A2)+1))*INDIRECT("'TMP_BENCHMARK'!F" & (COUNTA($A$1:$A2)+1)),0) -> 568836651 | G3: =IFERROR(('2 - CHECK'!$H$6*INDIRECT("'TMP_BENCHMARK'!B" & (COUNTA($A$1:$A2)+1))/INDIRECT("'TMP_BENCHMARK'!G" & (COUNTA($A$1:$A2)+1)))*INDIRECT("'TMP_BENCHMARK'!F" & (COUNTA($A$1:$A2)+1)),0) -> 22178.59681 | H3: =IFERROR(IF(INDIRECT("'TMP_BENCHMARK'!E" & (COUNTA($A$1:$A2)+1))<>"APPROX","REPORTED","APPROX"),0) -> REPORTED
A4: =IFERROR(('2 - CHECK'!$H$6*INDIRECT("'TMP_BENCHMARK'!B" & (COUNTA($A$1:$A3)+1))/INDIRECT("'TMP_BENCHMARK'!G" & (COUNTA($A$1:$A3)+1)))*INDIRECT("'TMP_BENCHMARK'!D" & (COUNTA($A$1:$A3)+1)),0) -> 0.5028000814 | B4: =IFERROR(SUMIF(INDIRECT("'TMP_BENCHMARK'!I:I"),INDIRECT("'TMP_BENCHMARK'!I" & (COUNTA($A$1:$A3)+1)),INDIRECT("'TMP_BENCHMARK'!B:B")),0) -> 0.2111922142 | C4: 2.38076997 | D4: =IFERROR(INDIRECT("'TMP_BENCHMARK'!B" & (COUNTA($A$1:$A3)+1))*'2 - CHECK'!$H$6,0) -> 83823.84545 | E4: =IFERROR(INDIRECT("'TMP_BENCHMARK'!B" & (COUNTA($A$1:$A3)+1))*INDIRECT("'TMP_BENCHMARK'!D" & (COUNTA($A$1:$A3)+1)),0) -> 11869.45652 | F4: =IFERROR(INDIRECT("'TMP_BENCHMARK'!B" & (COUNTA($A$1:$A3)+1))*INDIRECT("'TMP_BENCHMARK'!F" & (COUNTA($A$1:$A3)+1)),0) -> 736333805.6 | G4: =IFERROR(('2 - CHECK'!$H$6*INDIRECT("'TMP_BENCHMARK'!B" & (COUNTA($A$1:$A3)+1))/INDIRECT("'TMP_BENCHMARK'!G" & (COUNTA($A$1:$A3)+1)))*INDIRECT("'TMP_BENCHMARK'!F" & (COUNTA($A$1:$A3)+1)),0) -> 31191.71437 | H4: =IFERROR(IF(INDIRECT("'TMP_BENCHMARK'!E" & (COUNTA($A$1:$A3)+1))<>"APPROX","REPORTED","APPROX"),0) -> REPORTED
A5: =IFERROR(('2 - CHECK'!$H$6*INDIRECT("'TMP_BENCHMARK'!B" & (COUNTA($A$1:$A4)+1))/INDIRECT("'TMP_BENCHMARK'!G" & (COUNTA($A$1:$A4)+1)))*INDIRECT("'TMP_BENCHMARK'!D" & (COUNTA($A$1:$A4)+1)),0) -> 2.393626659 | B5: =IFERROR(SUMIF(INDIRECT("'TMP_BENCHMARK'!I:I"),INDIRECT("'TMP_BENCHMARK'!I" & (COUNTA($A$1:$A4)+1)),INDIRECT("'TMP_BENCHMARK'!B:B")),0) -> 0.09945778094 | C5: 24.06676115 | D5: =IFERROR(INDIRECT("'TMP_BENCHMARK'!B" & (COUNTA($A$1:$A4)+1))*'2 - CHECK'!$H$6,0) -> 80741.45637 | E5: =IFERROR(INDIRECT("'TMP_BENCHMARK'!B" & (COUNTA($A$1:$A4)+1))*INDIRECT("'TMP_BENCHMARK'!D" & (COUNTA($A$1:$A4)+1)),0) -> 54427.81574 | F5: =IFERROR(INDIRECT("'TMP_BENCHMARK'!B" & (COUNTA($A$1:$A4)+1))*INDIRECT("'TMP_BENCHMARK'!F" & (COUNTA($A$1:$A4)+1)),0) -> 1906628751 | G5: =IFERROR(('2 - CHECK'!$H$6*INDIRECT("'TMP_BENCHMARK'!B" & (COUNTA($A$1:$A4)+1))/INDIRECT("'TMP_BENCHMARK'!G" & (COUNTA($A$1:$A4)+1)))*INDIRECT("'TMP_BENCHMARK'!F" & (COUNTA($A$1:$A4)+1)),0) -> 83849.72544 | H5: =IFERROR(IF(INDIRECT("'TMP_BENCHMARK'!E" & (COUNTA($A$1:$A4)+1))<>"APPROX","REPORTED","APPROX"),0) -> REPORTED
A6: =IFERROR(('2 - CHECK'!$H$6*INDIRECT("'TMP_BENCHMARK'!B" & (COUNTA($A$1:$A5)+1))/INDIRECT("'TMP_BENCHMARK'!G" & (COUNTA($A$1:$A5)+1)))*INDIRECT("'TMP_BENCHMARK'!D" & (COUNTA($A$1:$A5)+1)),0) -> 1.019093385 | B6: =IFERROR(SUMIF(INDIRECT("'TMP_BENCHMARK'!I:I"),INDIRECT("'TMP_BENCHMARK'!I" & (COUNTA($A$1:$A5)+1)),INDIRECT("'TMP_BENCHMARK'!B:B")),0) -> 0.0839440124 | C6: 12.14015576 | D6: =IFERROR(INDIRECT("'TMP_BENCHMARK'!B" & (COUNTA($A$1:$A5)+1))*'2 - CHECK'!$H$6,0) -> 57150.18891 | E6: =IFERROR(INDIRECT("'TMP_BENCHMARK'!B" & (COUNTA($A$1:$A5)+1))*INDIRECT("'TMP_BENCHMARK'!D" & (COUNTA($A$1:$A5)+1)),0) -> 16402.10422 | F6: =IFERROR(INDIRECT("'TMP_BENCHMARK'!B" & (COUNTA($A$1:$A5)+1))*INDIRECT("'TMP_BENCHMARK'!F" & (COUNTA($A$1:$A5)+1)),0) -> 508353959.9 | G6: =IFERROR(('2 - CHECK'!$H$6*INDIRECT("'TMP_BENCHMARK'!B" & (COUNTA($A$1:$A5)+1))/INDIRECT("'TMP_BENCHMARK'!G" & (COUNTA($A$1:$A5)+1)))*INDIRECT("'TMP_BENCHMARK'!F" & (COUNTA($A$1:$A5)+1)),0) -> 31584.98148 | H6: =IFERROR(IF(INDIRECT("'TMP_BENCHMARK'!E" & (COUNTA($A$1:$A5)+1))<>"APPROX","REPORTED","APPROX"),0) -> REPORTED
A7: =IFERROR(('2 - CHECK'!$H$6*INDIRECT("'TMP_BENCHMARK'!B" & (COUNTA($A$1:$A6)+1))/INDIRECT("'TMP_BENCHMARK'!G" & (COUNTA($A$1:$A6)+1)))*INDIRECT("'TMP_BENCHMARK'!D" & (COUNTA($A$1:$A6)+1)),0) -> 67.095049 | B7: =IFERROR(SUMIF(INDIRECT("'TMP_BENCHMARK'!I:I"),INDIRECT("'TMP_BENCHMARK'!I" & (COUNTA($A$1:$A6)+1)),INDIRECT("'TMP_BENCHMARK'!B:B")),0) -> 0.05204853017 | C7: 1289.086335 | D7: =IFERROR(INDIRECT("'TMP_BENCHMARK'!B" & (COUNTA($A$1:$A6)+1))*'2 - CHECK'!$H$6,0) -> 52048.53017 | E7: =IFERROR(INDIRECT("'TMP_BENCHMARK'!B" & (COUNTA($A$1:$A6)+1))*INDIRECT("'TMP_BENCHMARK'!D" & (COUNTA($A$1:$A6)+1)),0) -> 983483.0018 | F7: =IFERROR(INDIRECT("'TMP_BENCHMARK'!B" & (COUNTA($A$1:$A6)+1))*INDIRECT("'TMP_BENCHMARK'!F" & (COUNTA($A$1:$A6)+1)),0) -> 189040261.6 | G7: =IFERROR(('2 - CHECK'!$H$6*INDIRECT("'TMP_BENCHMARK'!B" & (COUNTA($A$1:$A6)+1))/INDIRECT("'TMP_BENCHMARK'!G" & (COUNTA($A$1:$A6)+1)))*INDIRECT("'TMP_BENCHMARK'!F" & (COUNTA($A$1:$A6)+1)),0) -> 12896.68005 | H7: =IFERROR(IF(INDIRECT("'TMP_BENCHMARK'!E" & (COUNTA($A$1:$A6)+1))<>"APPROX","REPORTED","APPROX"),0) -> REPORTED
A8: =IFERROR(('2 - CHECK'!$H$6*INDIRECT("'TMP_BENCHMARK'!B" & (COUNTA($A$1:$A7)+1))/INDIRECT("'TMP_BENCHMARK'!G" & (COUNTA($A$1:$A7)+1)))*INDIRECT("'TMP_BENCHMARK'!D" & (COUNTA($A$1:$A7)+1)),0) -> 25.1790634 | B8: =IFERROR(SUMIF(INDIRECT("'TMP_BENCHMARK'!I:I"),INDIRECT("'TMP_BENCHMARK'!I" & (COUNTA($A$1:$A7)+1)),INDIRECT("'TMP_BENCHMARK'!B:B")),0) -> 0.1508628455 | C8: 166.9003611 | D8: =IFERROR(INDIRECT("'TMP_BENCHMARK'!B" & (COUNTA($A$1:$A7)+1))*'2 - CHECK'!$H$6,0) -> 49105.00398 | E8: =IFERROR(INDIRECT("'TMP_BENCHMARK'!B" & (COUNTA($A$1:$A7)+1))*INDIRECT("'TMP_BENCHMARK'!D" & (COUNTA($A$1:$A7)+1)),0) -> 348203.5832 | F8: =IFERROR(INDIRECT("'TMP_BENCHMARK'!B" & (COUNTA($A$1:$A7)+1))*INDIRECT("'TMP_BENCHMARK'!F" & (COUNTA($A$1:$A7)+1)),0) -> 481818299.1 | G8: =IFERROR(('2 - CHECK'!$H$6*INDIRECT("'TMP_BENCHMARK'!B" & (COUNTA($A$1:$A7)+1))/INDIRECT("'TMP_BENCHMARK'!G" & (COUNTA($A$1:$A7)+1)))*INDIRECT("'TMP_BENCHMARK'!F" & (COUNTA($A$1:$A7)+1)),0) -> 34840.92089 | H8: =IFERROR(IF(INDIRECT("'TMP_BENCHMARK'!E" & (COUNTA($A$1:$A7)+1))<>"APPROX","REPORTED","APPROX"),0) -> REPORTED
A9: =IFERROR(('2 - CHECK'!$H$6*INDIRECT("'TMP_BENCHMARK'!B" & (COUNTA($A$1:$A8)+1))/INDIRECT("'TMP_BENCHMARK'!G" & (COUNTA($A$1:$A8)+1)))*INDIRECT("'TMP_BENCHMARK'!D" & (COUNTA($A$1:$A8)+1)),0) -> 12.19133605 | B9: =IFERROR(SUMIF(INDIRECT("'TMP_BENCHMARK'!I:I"),INDIRECT("'TMP_BENCHMARK'!I" & (COUNTA($A$1:$A8)+1)),INDIRECT("'TMP_BENCHMARK'!B:B")),0) -> 0.04857253545 | C9: 250.9923753 | D9: =IFERROR(INDIRECT("'TMP_BENCHMARK'!B" & (COUNTA($A$1:$A8)+1))*'2 - CHECK'!$H$6,0) -> 48572.53545 | E9: =IFERROR(INDIRECT("'TMP_BENCHMARK'!B" & (COUNTA($A$1:$A8)+1))*INDIRECT("'TMP_BENCHMARK'!D" & (COUNTA($A$1:$A8)+1)),0) -> 166766.9517 | F9: =IFERROR(INDIRECT("'TMP_BENCHMARK'!B" & (COUNTA($A$1:$A8)+1))*INDIRECT("'TMP_BENCHMARK'!F" & (COUNTA($A$1:$A8)+1)),0) -> 567764366.9 | G9: =IFERROR(('2 - CHECK'!$H$6*INDIRECT("'TMP_BENCHMARK'!B" & (COUNTA($A$1:$A8)+1))/INDIRECT("'TMP_BENCHMARK'!G" & (COUNTA($A$1:$A8)+1)))*INDIRECT("'TMP_BENCHMARK'!F" & (COUNTA($A$1:$A8)+1)),0) -> 41505.86265 | H9: =IFERROR(IF(INDIRECT("'TMP_BENCHMARK'!E" & (COUNTA($A$1:$A8)+1))<>"APPROX","REPORTED","APPROX"),0) -> REPORTED
A10: =IFERROR(('2 - CHECK'!$H$6*INDIRECT("'TMP_BENCHMARK'!B" & (COUNTA($A$1:$A9)+1))/INDIRECT("'TMP_BENCHMARK'!G" & (COUNTA($A$1:$A9)+1)))*INDIRECT("'TMP_BENCHMARK'!D" & (COUNTA($A$1:$A9)+1)),0) -> 12.03737483 | B10: =IFERROR(SUMIF(INDIRECT("'TMP_BENCHMARK'!I:I"),INDIRECT("'TMP_BENCHMARK'!I" & (COUNTA($A$1:$A9)+1)),INDIRECT("'TMP_BENCHMARK'!B:B")),0) -> 0.1508628455 | C10: 79.79018815 | D10: =IFERROR(INDIRECT("'TMP_BENCHMARK'!B" & (COUNTA($A$1:$A9)+1))*'2 - CHECK'!$H$6,0) -> 37007.03897 | E10: =IFERROR(INDIRECT("'TMP_BENCHMARK'!B" & (COUNTA($A$1:$A9)+1))*INDIRECT("'TMP_BENCHMARK'!D" & (COUNTA($A$1:$A9)+1)),0) -> 125453.8621 | F10: =IFERROR(INDIRECT("'TMP_BENCHMARK'!B" & (COUNTA($A$1:$A9)+1))*INDIRECT("'TMP_BENCHMARK'!F" & (COUNTA($A$1:$A9)+1)),0) -> 362742996 | G10: =IFERROR(('2 - CHECK'!$H$6*INDIRECT("'TMP_BENCHMARK'!B" & (COUNTA($A$1:$A9)+1))/INDIRECT("'TMP_BENCHMARK'!G" & (COUNTA($A$1:$A9)+1)))*INDIRECT("'TMP_BENCHMARK'!F" & (COUNTA($A$1:$A9)+1)),0) -> 34805.41241 | H10: =IFERROR(IF(INDIRECT("'TMP_BENCHMARK'!E" & (COUNTA($A$1:$A9)+1))<>"APPROX","REPORTED","APPROX"),0) -> REPORTED
A11: =IFERROR(('2 - CHECK'!$H$6*INDIRECT("'TMP_BENCHMARK'!B" & (COUNTA($A$1:$A10)+1))/INDIRECT("'TMP_BENCHMARK'!G" & (COUNTA($A$1:$A10)+1)))*INDIRECT("'TMP_BENCHMARK'!D" & (COUNTA($A$1:$A10)+1)),0) -> 0.4156338639 | B11: =IFERROR(SUMIF(INDIRECT("'TMP_BENCHMARK'!I:I"),INDIRECT("'TMP_BENCHMARK'!I" & (COUNTA($A$1:$A10)+1)),INDIRECT("'TMP_BENCHMARK'!B:B")),0) -> 0.2111922142 | C11: 1.968035921 | D11: =IFERROR(INDIRECT("'TMP_BENCHMARK'!B" & (COUNTA($A$1:$A10)+1))*'2 - CHECK'!$H$6,0) -> 36839.63444 | E11: =IFERROR(INDIRECT("'TMP_BENCHMARK'!B" & (COUNTA($A$1:$A10)+1))*INDIRECT("'TMP_BENCHMARK'!D" & (COUNTA($A$1:$A10)+1)),0) -> 4312.152891 | F11: =IFERROR(INDIRECT("'TMP_BENCHMARK'!B" & (COUNTA($A$1:$A10)+1))*INDIRECT("'TMP_BENCHMARK'!F" & (COUNTA($A$1:$A10)+1)),0) -> 176867085 | G11: =IFERROR(('2 - CHECK'!$H$6*INDIRECT("'TMP_BENCHMARK'!B" & (COUNTA($A$1:$A10)+1))/INDIRECT("'TMP_BENCHMARK'!G" & (COUNTA($A$1:$A10)+1)))*INDIRECT("'TMP_BENCHMARK'!F" & (COUNTA($A$1:$A10)+1)),0) -> 17047.6214 | H11: =IFERROR(IF(INDIRECT("'TMP_BENCHMARK'!E" & (COUNTA($A$1:$A10)+1))<>"APPROX","REPORTED","APPROX"),0) -> REPORTED
A12: =IFERROR(('2 - CHECK'!$H$6*INDIRECT("'TMP_BENCHMARK'!B" & (COUNTA($A$1:$A11)+1))/INDIRECT("'TMP_BENCHMARK'!G" & (COUNTA($A$1:$A11)+1)))*INDIRECT("'TMP_BENCHMARK'!D" & (COUNTA($A$1:$A11)+1)),0) -> 0.05473632242 | B12: =IFERROR(SUMIF(INDIRECT("'TMP_BENCHMARK'!I:I"),INDIRECT("'TMP_BENCHMARK'!I" & (COUNTA($A$1:$A11)+1)),INDIRECT("'TMP_BENCHMARK'!B:B")),0) -> 0.0839440124 | C12: 0.6520574947 | D12: =IFERROR(INDIRECT("'TMP_BENCHMARK'!B" & (COUNTA($A$1:$A11)+1))*'2 - CHECK'!$H$6,0) -> 19441.61589 | E12: =IFERROR(INDIRECT("'TMP_BENCHMARK'!B" & (COUNTA($A$1:$A11)+1))*INDIRECT("'TMP_BENCHMARK'!D" & (COUNTA($A$1:$A11)+1)),0) -> 299.6925089 | F12: =IFERROR(INDIRECT("'TMP_BENCHMARK'!B" & (COUNTA($A$1:$A11)+1))*INDIRECT("'TMP_BENCHMARK'!F" & (COUNTA($A$1:$A11)+1)),0) -> 31800651.11 | G12: =IFERROR(('2 - CHECK'!$H$6*INDIRECT("'TMP_BENCHMARK'!B" & (COUNTA($A$1:$A11)+1))/INDIRECT("'TMP_BENCHMARK'!G" & (COUNTA($A$1:$A11)+1)))*INDIRECT("'TMP_BENCHMARK'!F" & (COUNTA($A$1:$A11)+1)),0) -> 5808.122127 | H12: =IFERROR(IF(INDIRECT("'TMP_BENCHMARK'!E" & (COUNTA($A$1:$A11)+1))<>"APPROX","REPORTED","APPROX"),0) -> REPORTED
A13: =IFERROR(('2 - CHECK'!$H$6*INDIRECT("'TMP_BENCHMARK'!B" & (COUNTA($A$1:$A12)+1))/INDIRECT("'TMP_BENCHMARK'!G" & (COUNTA($A$1:$A12)+1)))*INDIRECT("'TMP_BENCHMARK'!D" & (COUNTA($A$1:$A12)+1)),0) -> 0.4070195066 | B13: =IFERROR(SUMIF(INDIRECT("'TMP_BENCHMARK'!I:I"),INDIRECT("'TMP_BENCHMARK'!I" & (COUNTA($A$1:$A12)+1)),INDIRECT("'TMP_BENCHMARK'!B:B")),0) -> 0.0509091081 | C13: 7.995023322 | D13: =IFERROR(INDIRECT("'TMP_BENCHMARK'!B" & (COUNTA($A$1:$A12)+1))*'2 - CHECK'!$H$6,0) -> 18424.2028 | E13: =IFERROR(INDIRECT("'TMP_BENCHMARK'!B" & (COUNTA($A$1:$A12)+1))*INDIRECT("'TMP_BENCHMARK'!D" & (COUNTA($A$1:$A12)+1)),0) -> 2111.892671 | F13: =IFERROR(INDIRECT("'TMP_BENCHMARK'!B" & (COUNTA($A$1:$A12)+1))*INDIRECT("'TMP_BENCHMARK'!F" & (COUNTA($A$1:$A12)+1)),0) -> 25631750.94 | G13: =IFERROR(('2 - CHECK'!$H$6*INDIRECT("'TMP_BENCHMARK'!B" & (COUNTA($A$1:$A12)+1))/INDIRECT("'TMP_BENCHMARK'!G" & (COUNTA($A$1:$A12)+1)))*INDIRECT("'TMP_BENCHMARK'!F" & (COUNTA($A$1:$A12)+1)),0) -> 4939.939783 | H13: =IFERROR(IF(INDIRECT("'TMP_BENCHMARK'!E" & (COUNTA($A$1:$A12)+1))<>"APPROX","REPORTED","APPROX"),0) -> REPORTED
A14: =IFERROR(('2 - CHECK'!$H$6*INDIRECT("'TMP_BENCHMARK'!B" & (COUNTA($A$1:$A13)+1))/INDIRECT("'TMP_BENCHMARK'!G" & (COUNTA($A$1:$A13)+1)))*INDIRECT("'TMP_BENCHMARK'!D" & (COUNTA($A$1:$A13)+1)),0) -> 0.7841373219 | B14: =IFERROR(SUMIF(INDIRECT("'TMP_BENCHMARK'!I:I"),INDIRECT("'TMP_BENCHMARK'!I" & (COUNTA($A$1:$A13)+1)),INDIRECT("'TMP_BENCHMARK'!B:B")),0) -> 0.02345299337 | C14: 33.43442389 | D14: =IFERROR(INDIRECT("'TMP_BENCHMARK'!B" & (COUNTA($A$1:$A13)+1))*'2 - CHECK'!$H$6,0) -> 15941.16373 | E14: =IFERROR(INDIRECT("'TMP_BENCHMARK'!B" & (COUNTA($A$1:$A13)+1))*INDIRECT("'TMP_BENCHMARK'!D" & (COUNTA($A$1:$A13)+1)),0) -> 3520.303129 | F14: =IFERROR(INDIRECT("'TMP_BENCHMARK'!B" & (COUNTA($A$1:$A13)+1))*INDIRECT("'TMP_BENCHMARK'!F" & (COUNTA($A$1:$A13)+1)),0) -> 162287423.3 | G14: =IFERROR(('2 - CHECK'!$H$6*INDIRECT("'TMP_BENCHMARK'!B" & (COUNTA($A$1:$A13)+1))/INDIRECT("'TMP_BENCHMARK'!G" & (COUNTA($A$1:$A13)+1)))*INDIRECT("'TMP_BENCHMARK'!F" & (COUNTA($A$1:$A13)+1)),0) -> 36149.05331 | H14: =IFERROR(IF(INDIRECT("'TMP_BENCHMARK'!E" & (COUNTA($A$1:$A13)+1))<>"APPROX","REPORTED","APPROX"),0) -> REPORTED
A15: =IFERROR(('2 - CHECK'!$H$6*INDIRECT("'TMP_BENCHMARK'!B" & (COUNTA($A$1:$A14)+1))/INDIRECT("'TMP_BENCHMARK'!G" & (COUNTA($A$1:$A14)+1)))*INDIRECT("'TMP_BENCHMARK'!D" & (COUNTA($A$1:$A14)+1)),0) -> 0.1578565001 | B15: =IFERROR(SUMIF(INDIRECT("'TMP_BENCHMARK'!I:I"),INDIRECT("'TMP_BENCHMARK'!I" & (COUNTA($A$1:$A14)+1)),INDIRECT("'TMP_BENCHMARK'!B:B")),0) -> 0.01975923385 | C15: 7.988999033 | D15: =IFERROR(INDIRECT("'TMP_BENCHMARK'!B" & (COUNTA($A$1:$A14)+1))*'2 - CHECK'!$H$6,0) -> 15719.75493 | E15: =IFERROR(INDIRECT("'TMP_BENCHMARK'!B" & (COUNTA($A$1:$A14)+1))*INDIRECT("'TMP_BENCHMARK'!D" & (COUNTA($A$1:$A14)+1)),0) -> 698.837425 | F15: =IFERROR(INDIRECT("'TMP_BENCHMARK'!B" & (COUNTA($A$1:$A14)+1))*INDIRECT("'TMP_BENCHMARK'!F" & (COUNTA($A$1:$A14)+1)),0) -> 16875156.91 | G15: =IFERROR(('2 - CHECK'!$H$6*INDIRECT("'TMP_BENCHMARK'!B" & (COUNTA($A$1:$A14)+1))/INDIRECT("'TMP_BENCHMARK'!G" & (COUNTA($A$1:$A14)+1)))*INDIRECT("'TMP_BENCHMARK'!F" & (COUNTA($A$1:$A14)+1)),0) -> 3811.835363 | H15: =IFERROR(IF(INDIRECT("'TMP_BENCHMARK'!E" & (COUNTA($A$1:$A14)+1))<>"APPROX","REPORTED","APPROX"),0) -> REPORTED
A16: =IFERROR(('2 - CHECK'!$H$6*INDIRECT("'TMP_BENCHMARK'!B" & (COUNTA($A$1:$A15)+1))/INDIRECT("'TMP_BENCHMARK'!G" & (COUNTA($A$1:$A15)+1)))*INDIRECT("'TMP_BENCHMARK'!D" & (COUNTA($A$1:$A15)+1)),0) -> 0.4637443039 | B16: =IFERROR(SUMIF(INDIRECT("'TMP_BENCHMARK'!I:I"),INDIRECT("'TMP_BENCHMARK'!I" & (COUNTA($A$1:$A15)+1)),INDIRECT("'TMP_BENCHMARK'!B:B")),0) -> 0.2111922142 | C16: 2.195839963 | D16: =IFERROR(INDIRECT("'TMP_BENCHMARK'!B" & (COUNTA($A$1:$A15)+1))*'2 - CHECK'!$H$6,0) -> 15199.10264 | E16: =IFERROR(INDIRECT("'TMP_BENCHMARK'!B" & (COUNTA($A$1:$A15)+1))*INDIRECT("'TMP_BENCHMARK'!D" & (COUNTA($A$1:$A15)+1)),0) -> 1985.018004 | F16: =IFERROR(INDIRECT("'TMP_BENCHMARK'!B" & (COUNTA($A$1:$A15)+1))*INDIRECT("'TMP_BENCHMARK'!F" & (COUNTA($A$1:$A15)+1)),0) -> 39304879.43 | G16: =IFERROR(('2 - CHECK'!$H$6*INDIRECT("'TMP_BENCHMARK'!B" & (COUNTA($A$1:$A15)+1))/INDIRECT("'TMP_BENCHMARK'!G" & (COUNTA($A$1:$A15)+1)))*INDIRECT("'TMP_BENCHMARK'!F" & (COUNTA($A$1:$A15)+1)),0) -> 9182.493012 | H16: =IFERROR(IF(INDIRECT("'TMP_BENCHMARK'!E" & (COUNTA($A$1:$A15)+1))<>"APPROX","REPORTED","APPROX"),0) -> REPORTED
A17: =IFERROR(('2 - CHECK'!$H$6*INDIRECT("'TMP_BENCHMARK'!B" & (COUNTA($A$1:$A16)+1))/INDIRECT("'TMP_BENCHMARK'!G" & (COUNTA($A$1:$A16)+1)))*INDIRECT("'TMP_BENCHMARK'!D" & (COUNTA($A$1:$A16)+1)),0) -> 36.65598303 | B17: =IFERROR(SUMIF(INDIRECT("'TMP_BENCHMARK'!I:I"),INDIRECT("'TMP_BENCHMARK'!I" & (COUNTA($A$1:$A16)+1)),INDIRECT("'TMP_BENCHMARK'!B:B")),0) -> 0.1508628455 | C17: 242.9755511 | D17: =IFERROR(INDIRECT("'TMP_BENCHMARK'!B" & (COUNTA($A$1:$A16)+1))*'2 - CHECK'!$H$6,0) -> 14525.09896 | E17: =IFERROR(INDIRECT("'TMP_BENCHMARK'!B" & (COUNTA($A$1:$A16)+1))*INDIRECT("'TMP_BENCHMARK'!D" & (COUNTA($A$1:$A16)+1)),0) -> 149944.9642 | F17: =IFERROR(INDIRECT("'TMP_BENCHMARK'!B" & (COUNTA($A$1:$A16)+1))*INDIRECT("'TMP_BENCHMARK'!F" & (COUNTA($A$1:$A16)+1)),0) -> 84960693.15 | G17: =IFERROR(('2 - CHECK'!$H$6*INDIRECT("'TMP_BENCHMARK'!B" & (COUNTA($A$1:$A16)+1))/INDIRECT("'TMP_BENCHMARK'!G" & (COUNTA($A$1:$A16)+1)))*INDIRECT("'TMP_BENCHMARK'!F" & (COUNTA($A$1:$A16)+1)),0) -> 20769.73871 | H17: =IFERROR(IF(INDIRECT("'TMP_BENCHMARK'!E" & (COUNTA($A$1:$A16)+1))<>"APPROX","REPORTED","APPROX"),0) -> REPORTED
A18: =IFERROR(('2 - CHECK'!$H$6*INDIRECT("'TMP_BENCHMARK'!B" & (COUNTA($A$1:$A17)+1))/INDIRECT("'TMP_BENCHMARK'!G" & (COUNTA($A$1:$A17)+1)))*INDIRECT("'TMP_BENCHMARK'!D" & (COUNTA($A$1:$A17)+1)),0) -> 2.874351118 | B18: =IFERROR(SUMIF(INDIRECT("'TMP_BENCHMARK'!I:I"),INDIRECT("'TMP_BENCHMARK'!I" & (COUNTA($A$1:$A17)+1)),INDIRECT("'TMP_BENCHMARK'!B:B")),0) -> 0.1508628455 | C18: 19.05274362 | D18: =IFERROR(INDIRECT("'TMP_BENCHMARK'!B" & (COUNTA($A$1:$A17)+1))*'2 - CHECK'!$H$6,0) -> 13392.42629 | E18: =IFERROR(INDIRECT("'TMP_BENCHMARK'!B" & (COUNTA($A$1:$A17)+1))*INDIRECT("'TMP_BENCHMARK'!D" & (COUNTA($A$1:$A17)+1)),0) -> 10840.94141 | F18: =IFERROR(INDIRECT("'TMP_BENCHMARK'!B" & (COUNTA($A$1:$A17)+1))*INDIRECT("'TMP_BENCHMARK'!F" & (COUNTA($A$1:$A17)+1)),0) -> 38369301.31 | G18: =IFERROR(('2 - CHECK'!$H$6*INDIRECT("'TMP_BENCHMARK'!B" & (COUNTA($A$1:$A17)+1))/INDIRECT("'TMP_BENCHMARK'!G" & (COUNTA($A$1:$A17)+1)))*INDIRECT("'TMP_BENCHMARK'!F" & (COUNTA($A$1:$A17)+1)),0) -> 10173.17961 | H18: =IFERROR(IF(INDIRECT("'TMP_BENCHMARK'!E" & (COUNTA($A$1:$A17)+1))<>"APPROX","REPORTED","APPROX"),0) -> REPORTED
A19: =IFERROR(('2 - CHECK'!$H$6*INDIRECT("'TMP_BENCHMARK'!B" & (COUNTA($A$1:$A18)+1))/INDIRECT("'TMP_BENCHMARK'!G" & (COUNTA($A$1:$A18)+1)))*INDIRECT("'TMP_BENCHMARK'!D" & (COUNTA($A$1:$A18)+1)),0) -> 7.519147963 | B19: =IFERROR(SUMIF(INDIRECT("'TMP_BENCHMARK'!I:I"),INDIRECT("'TMP_BENCHMARK'!I" & (COUNTA($A$1:$A18)+1)),INDIRECT("'TMP_BENCHMARK'!B:B")),0) -> 0.1508628455 | C19: 49.8409528 | D19: =IFERROR(INDIRECT("'TMP_BENCHMARK'!B" & (COUNTA($A$1:$A18)+1))*'2 - CHECK'!$H$6,0) -> 11443.45369 | E19: =IFERROR(INDIRECT("'TMP_BENCHMARK'!B" & (COUNTA($A$1:$A18)+1))*INDIRECT("'TMP_BENCHMARK'!D" & (COUNTA($A$1:$A18)+1)),0) -> 24232.24558 | F19: =IFERROR(INDIRECT("'TMP_BENCHMARK'!B" & (COUNTA($A$1:$A18)+1))*INDIRECT("'TMP_BENCHMARK'!F" & (COUNTA($A$1:$A18)+1)),0) -> 65113251.52 | G19: =IFERROR(('2 - CHECK'!$H$6*INDIRECT("'TMP_BENCHMARK'!B" & (COUNTA($A$1:$A18)+1))/INDIRECT("'TMP_BENCHMARK'!G" & (COUNTA($A$1:$A18)+1)))*INDIRECT("'TMP_BENCHMARK'!F" & (COUNTA($A$1:$A18)+1)),0) -> 20204.3253 | H19: =IFERROR(IF(INDIRECT("'TMP_BENCHMARK'!E" & (COUNTA($A$1:$A18)+1))<>"APPROX","REPORTED","APPROX"),0) -> REPORTED
A20: =IFERROR(('2 - CHECK'!$H$6*INDIRECT("'TMP_BENCHMARK'!B" & (COUNTA($A$1:$A19)+1))/INDIRECT("'TMP_BENCHMARK'!G" & (COUNTA($A$1:$A19)+1)))*INDIRECT("'TMP_BENCHMARK'!D" & (COUNTA($A$1:$A19)+1)),0) -> 0.2048839315 | B20: =IFERROR(SUMIF(INDIRECT("'TMP_BENCHMARK'!I:I"),INDIRECT("'TMP_BENCHMARK'!I" & (COUNTA($A$1:$A19)+1)),INDIRECT("'TMP_BENCHMARK'!B:B")),0) -> 0.2111922142 | C20: 0.9701301359 | D20: =IFERROR(INDIRECT("'TMP_BENCHMARK'!B" & (COUNTA($A$1:$A19)+1))*'2 - CHECK'!$H$6,0) -> 11397.74414 | E20: =IFERROR(INDIRECT("'TMP_BENCHMARK'!B" & (COUNTA($A$1:$A19)+1))*INDIRECT("'TMP_BENCHMARK'!D" & (COUNTA($A$1:$A19)+1)),0) -> 657.6498367 | F20: =IFERROR(INDIRECT("'TMP_BENCHMARK'!B" & (COUNTA($A$1:$A19)+1))*INDIRECT("'TMP_BENCHMARK'!F" & (COUNTA($A$1:$A19)+1)),0) -> 24144981.18 | G20: =IFERROR(('2 - CHECK'!$H$6*INDIRECT("'TMP_BENCHMARK'!B" & (COUNTA($A$1:$A19)+1))/INDIRECT("'TMP_BENCHMARK'!G" & (COUNTA($A$1:$A19)+1)))*INDIRECT("'TMP_BENCHMARK'!F" & (COUNTA($A$1:$A19)+1)),0) -> 7522.116472 | H20: =IFERROR(IF(INDIRECT("'TMP_BENCHMARK'!E" & (COUNTA($A$1:$A19)+1))<>"APPROX","REPORTED","APPROX"),0) -> REPORTED
A21: =IFERROR(('2 - CHECK'!$H$6*INDIRECT("'TMP_BENCHMARK'!B" & (COUNTA($A$1:$A20)+1))/INDIRECT("'TMP_BENCHMARK'!G" & (COUNTA($A$1:$A20)+1)))*INDIRECT("'TMP_BENCHMARK'!D" & (COUNTA($A$1:$A20)+1)),0) -> 0.1288957836 | B21: =IFERROR(SUMIF(INDIRECT("'TMP_BENCHMARK'!I:I"),INDIRECT("'TMP_BENCHMARK'!I" & (COUNTA($A$1:$A20)+1)),INDIRECT("'TMP_BENCHMARK'!B:B")),0) -> 0.2111922142 | C21: 0.6103245049 | D21: =IFERROR(INDIRECT("'TMP_BENCHMARK'!B" & (COUNTA($A$1:$A20)+1))*'2 - CHECK'!$H$6,0) -> 10845.09071 | E21: =IFERROR(INDIRECT("'TMP_BENCHMARK'!B" & (COUNTA($A$1:$A20)+1))*INDIRECT("'TMP_BENCHMARK'!D" & (COUNTA($A$1:$A20)+1)),0) -> 393.6767929 | F21: =IFERROR(INDIRECT("'TMP_BENCHMARK'!B" & (COUNTA($A$1:$A20)+1))*INDIRECT("'TMP_BENCHMARK'!F" & (COUNTA($A$1:$A20)+1)),0) -> 38106395.24 | G21: =IFERROR(('2 - CHECK'!$H$6*INDIRECT("'TMP_BENCHMARK'!B" & (COUNTA($A$1:$A20)+1))/INDIRECT("'TMP_BENCHMARK'!G" & (COUNTA($A$1:$A20)+1)))*INDIRECT("'TMP_BENCHMARK'!F" & (COUNTA($A$1:$A20)+1)),0) -> 12476.61473 | H21: =IFERROR(IF(INDIRECT("'TMP_BENCHMARK'!E" & (COUNTA($A$1:$A20)+1))<>"APPROX","REPORTED","APPROX"),0) -> REPORTED
A22: =IFERROR(('2 - CHECK'!$H$6*INDIRECT("'TMP_BENCHMARK'!B" & (COUNTA($A$1:$A21)+1))/INDIRECT("'TMP_BENCHMARK'!G" & (COUNTA($A$1:$A21)+1)))*INDIRECT("'TMP_BENCHMARK'!D" & (COUNTA($A$1:$A21)+1)),0) -> 0.1134034336 | B22: =IFERROR(SUMIF(INDIRECT("'TMP_BENCHMARK'!I:I"),INDIRECT("'TMP_BENCHMARK'!I" & (COUNTA($A$1:$A21)+1)),INDIRECT("'TMP_BENCHMARK'!B:B")),0) -> 0.0509091081 | C22: 2.227566694 | D22: =IFERROR(INDIRECT("'TMP_BENCHMARK'!B" & (COUNTA($A$1:$A21)+1))*'2 - CHECK'!$H$6,0) -> 9717.123288 | E22: =IFERROR(INDIRECT("'TMP_BENCHMARK'!B" & (COUNTA($A$1:$A21)+1))*INDIRECT("'TMP_BENCHMARK'!D" & (COUNTA($A$1:$A21)+1)),0) -> 310.3357664 | F22: =IFERROR(INDIRECT("'TMP_BENCHMARK'!B" & (COUNTA($A$1:$A21)+1))*INDIRECT("'TMP_BENCHMARK'!F" & (COUNTA($A$1:$A21)+1)),0) -> 25479268.97 | G22: =IFERROR(('2 - CHECK'!$H$6*INDIRECT("'TMP_BENCHMARK'!B" & (COUNTA($A$1:$A21)+1))/INDIRECT("'TMP_BENCHMARK'!G" & (COUNTA($A$1:$A21)+1)))*INDIRECT("'TMP_BENCHMARK'!F" & (COUNTA($A$1:$A21)+1)),0) -> 9310.678626 | H22: =IFERROR(IF(INDIRECT("'TMP_BENCHMARK'!E" & (COUNTA($A$1:$A21)+1))<>"APPROX","REPORTED","APPROX"),0) -> REPORTED
A23: =IFERROR(('2 - CHECK'!$H$6*INDIRECT("'TMP_BENCHMARK'!B" & (COUNTA($A$1:$A22)+1))/INDIRECT("'TMP_BENCHMARK'!G" & (COUNTA($A$1:$A22)+1)))*INDIRECT("'TMP_BENCHMARK'!D" & (COUNTA($A$1:$A22)+1)),0) -> 1.912373123 | B23: =IFERROR(SUMIF(INDIRECT("'TMP_BENCHMARK'!I:I"),INDIRECT("'TMP_BENCHMARK'!I" & (COUNTA($A$1:$A22)+1)),INDIRECT("'TMP_BENCHMARK'!B:B")),0) -> 0.1508628455 | C23: 12.67623659 | D23: =IFERROR(INDIRECT("'TMP_BENCHMARK'!B" & (COUNTA($A$1:$A22)+1))*'2 - CHECK'!$H$6,0) -> 9017.734622 | E23: =IFERROR(INDIRECT("'TMP_BENCHMARK'!B" & (COUNTA($A$1:$A22)+1))*INDIRECT("'TMP_BENCHMARK'!D" & (COUNTA($A$1:$A22)+1)),0) -> 4856.6633 | F23: =IFERROR(INDIRECT("'TMP_BENCHMARK'!B" & (COUNTA($A$1:$A22)+1))*INDIRECT("'TMP_BENCHMARK'!F" & (COUNTA($A$1:$A22)+1)),0) -> 15513208.87 | G23: =IFERROR(('2 - CHECK'!$H$6*INDIRECT("'TMP_BENCHMARK'!B" & (COUNTA($A$1:$A22)+1))/INDIRECT("'TMP_BENCHMARK'!G" & (COUNTA($A$1:$A22)+1)))*INDIRECT("'TMP_BENCHMARK'!F" & (COUNTA($A$1:$A22)+1)),0) -> 6108.52387 | H23: =IFERROR(IF(INDIRECT("'TMP_BENCHMARK'!E" & (COUNTA($A$1:$A22)+1))<>"APPROX","REPORTED","APPROX"),0) -> REPORTED
A24: =IFERROR(('2 - CHECK'!$H$6*INDIRECT("'TMP_BENCHMARK'!B" & (COUNTA($A$1:$A23)+1))/INDIRECT("'TMP_BENCHMARK'!G" & (COUNTA($A$1:$A23)+1)))*INDIRECT("'TMP_BENCHMARK'!D" & (COUNTA($A$1:$A23)+1)),0) -> 0.2961407259 | B24: =IFERROR(SUMIF(INDIRECT("'TMP_BENCHMARK'!I:I"),INDIRECT("'TMP_BENCHMARK'!I" & (COUNTA($A$1:$A23)+1)),INDIRECT("'TMP_BENCHMARK'!B:B")),0) -> 0.2111922142 | C24: 1.40223316 | D24: =IFERROR(INDIRECT("'TMP_BENCHMARK'!B" & (COUNTA($A$1:$A23)+1))*'2 - CHECK'!$H$6,0) -> 8748.488255 | E24: =IFERROR(INDIRECT("'TMP_BENCHMARK'!B" & (COUNTA($A$1:$A23)+1))*INDIRECT("'TMP_BENCHMARK'!D" & (COUNTA($A$1:$A23)+1)),0) -> 729.6239204 | F24: =IFERROR(INDIRECT("'TMP_BENCHMARK'!B" & (COUNTA($A$1:$A23)+1))*INDIRECT("'TMP_BENCHMARK'!F" & (COUNTA($A$1:$A23)+1)),0) -> 25598076.63 | G24: =IFERROR(('2 - CHECK'!$H$6*INDIRECT("'TMP_BENCHMARK'!B" & (COUNTA($A$1:$A23)+1))/INDIRECT("'TMP_BENCHMARK'!G" & (COUNTA($A$1:$A23)+1)))*INDIRECT("'TMP_BENCHMARK'!F" & (COUNTA($A$1:$A23)+1)),0) -> 10389.78134 | H24: =IFERROR(IF(INDIRECT("'TMP_BENCHMARK'!E" & (COUNTA($A$1:$A23)+1))<>"APPROX","REPORTED","APPROX"),0) -> REPORTED
A25: =IFERROR(('2 - CHECK'!$H$6*INDIRECT("'TMP_BENCHMARK'!B" & (COUNTA($A$1:$A24)+1))/INDIRECT("'TMP_BENCHMARK'!G" & (COUNTA($A$1:$A24)+1)))*INDIRECT("'TMP_BENCHMARK'!D" & (COUNTA($A$1:$A24)+1)),0) -> 0.1236591101 | B25: =IFERROR(SUMIF(INDIRECT("'TMP_BENCHMARK'!I:I"),INDIRECT("'TMP_BENCHMARK'!I" & (COUNTA($A$1:$A24)+1)),INDIRECT("'TMP_BENCHMARK'!B:B")),0) -> 0.0839440124 | C25: 1.473114122 | D25: =IFERROR(INDIRECT("'TMP_BENCHMARK'!B" & (COUNTA($A$1:$A24)+1))*'2 - CHECK'!$H$6,0) -> 7352.207595 | E25: =IFERROR(INDIRECT("'TMP_BENCHMARK'!B" & (COUNTA($A$1:$A24)+1))*INDIRECT("'TMP_BENCHMARK'!D" & (COUNTA($A$1:$A24)+1)),0) -> 256.0423425 | F25: =IFERROR(INDIRECT("'TMP_BENCHMARK'!B" & (COUNTA($A$1:$A24)+1))*INDIRECT("'TMP_BENCHMARK'!F" & (COUNTA($A$1:$A24)+1)),0) -> 6314715.524 | G25: =IFERROR(('2 - CHECK'!$H$6*INDIRECT("'TMP_BENCHMARK'!B" & (COUNTA($A$1:$A24)+1))/INDIRECT("'TMP_BENCHMARK'!G" & (COUNTA($A$1:$A24)+1)))*INDIRECT("'TMP_BENCHMARK'!F" & (COUNTA($A$1:$A24)+1)),0) -> 3049.777214 | H25: =IFERROR(IF(INDIRECT("'TMP_BENCHMARK'!E" & (COUNTA($A$1:$A24)+1))<>"APPROX","REPORTED","APPROX"),0) -> APPROX
A26: =IFERROR(('2 - CHECK'!$H$6*INDIRECT("'TMP_BENCHMARK'!B" & (COUNTA($A$1:$A25)+1))/INDIRECT("'TMP_BENCHMARK'!G" & (COUNTA($A$1:$A25)+1)))*INDIRECT("'TMP_BENCHMARK'!D" & (COUNTA($A$1:$A25)+1)),0) -> 0.2870363516 | B26: =IFERROR(SUMIF(INDIRECT("'TMP_BENCHMARK'!I:I"),INDIRECT("'TMP_BENCHMARK'!I" & (COUNTA($A$1:$A25)+1)),INDIRECT("'TMP_BENCHMARK'!B:B")),0) -> 0.0509091081 | C26: 5.638212144 | D26: =IFERROR(INDIRECT("'TMP_BENCHMARK'!B" & (COUNTA($A$1:$A25)+1))*'2 - CHECK'!$H$6,0) -> 6968.360295 | E26: =IFERROR(INDIRECT("'TMP_BENCHMARK'!B" & (COUNTA($A$1:$A25)+1))*INDIRECT("'TMP_BENCHMARK'!D" & (COUNTA($A$1:$A25)+1)),0) -> 563.2943728 | F26: =IFERROR(INDIRECT("'TMP_BENCHMARK'!B" & (COUNTA($A$1:$A25)+1))*INDIRECT("'TMP_BENCHMARK'!F" & (COUNTA($A$1:$A25)+1)),0) -> 8394086.811 | G26: =IFERROR(('2 - CHECK'!$H$6*INDIRECT("'TMP_BENCHMARK'!B" & (COUNTA($A$1:$A25)+1))/INDIRECT("'TMP_BENCHMARK'!G" & (COUNTA($A$1:$A25)+1)))*INDIRECT("'TMP_BENCHMARK'!F" & (COUNTA($A$1:$A25)+1)),0) -> 4277.35154 | H26: =IFERROR(IF(INDIRECT("'TMP_BENCHMARK'!E" & (COUNTA($A$1:$A25)+1))<>"APPROX","REPORTED","APPROX"),0) -> REPORTED
A27: =IFERROR(('2 - CHECK'!$H$6*INDIRECT("'TMP_BENCHMARK'!B" & (COUNTA($A$1:$A26)+1))/INDIRECT("'TMP_BENCHMARK'!G" & (COUNTA($A$1:$A26)+1)))*INDIRECT("'TMP_BENCHMARK'!D" & (COUNTA($A$1:$A26)+1)),0) -> 0.06215759481 | B27: =IFERROR(SUMIF(INDIRECT("'TMP_BENCHMARK'!I:I"),INDIRECT("'TMP_BENCHMARK'!I" & (COUNTA($A$1:$A26)+1)),INDIRECT("'TMP_BENCHMARK'!B:B")),0) -> 0.09945778094 | C27: 0.6249646254 | D27: =IFERROR(INDIRECT("'TMP_BENCHMARK'!B" & (COUNTA($A$1:$A26)+1))*'2 - CHECK'!$H$6,0) -> 6836.654969 | E27: =IFERROR(INDIRECT("'TMP_BENCHMARK'!B" & (COUNTA($A$1:$A26)+1))*INDIRECT("'TMP_BENCHMARK'!D" & (COUNTA($A$1:$A26)+1)),0) -> 119.6756452 | F27: =IFERROR(INDIRECT("'TMP_BENCHMARK'!B" & (COUNTA($A$1:$A26)+1))*INDIRECT("'TMP_BENCHMARK'!F" & (COUNTA($A$1:$A26)+1)),0) -> 10204391.21 | G27: =IFERROR(('2 - CHECK'!$H$6*INDIRECT("'TMP_BENCHMARK'!B" & (COUNTA($A$1:$A26)+1))/INDIRECT("'TMP_BENCHMARK'!G" & (COUNTA($A$1:$A26)+1)))*INDIRECT("'TMP_BENCHMARK'!F" & (COUNTA($A$1:$A26)+1)),0) -> 5299.995773 | H27: =IFERROR(IF(INDIRECT("'TMP_BENCHMARK'!E" & (COUNTA($A$1:$A26)+1))<>"APPROX","REPORTED","APPROX"),0) -> REPORTED
A28: =IFERROR(('2 - CHECK'!$H$6*INDIRECT("'TMP_BENCHMARK'!B" & (COUNTA($A$1:$A27)+1))/INDIRECT("'TMP_BENCHMARK'!G" & (COUNTA($A$1:$A27)+1)))*INDIRECT("'TMP_BENCHMARK'!D" & (COUNTA($A$1:$A27)+1)),0) -> 0.2085306524 | B28: =IFERROR(SUMIF(INDIRECT("'TMP_BENCHMARK'!I:I"),INDIRECT("'TMP_BENCHMARK'!I" & (COUNTA($A$1:$A27)+1)),INDIRECT("'TMP_BENCHMARK'!B:B")),0) -> 0.259800746 | C28: 0.8026560956 | D28: =IFERROR(INDIRECT("'TMP_BENCHMARK'!B" & (COUNTA($A$1:$A27)+1))*'2 - CHECK'!$H$6,0) -> 6819.773258 | E28: =IFERROR(INDIRECT("'TMP_BENCHMARK'!B" & (COUNTA($A$1:$A27)+1))*INDIRECT("'TMP_BENCHMARK'!D" & (COUNTA($A$1:$A27)+1)),0) -> 400.5048241 | F28: =IFERROR(INDIRECT("'TMP_BENCHMARK'!B" & (COUNTA($A$1:$A27)+1))*INDIRECT("'TMP_BENCHMARK'!F" & (COUNTA($A$1:$A27)+1)),0) -> 2320086.862 | G28: =IFERROR(('2 - CHECK'!$H$6*INDIRECT("'TMP_BENCHMARK'!B" & (COUNTA($A$1:$A27)+1))/INDIRECT("'TMP_BENCHMARK'!G" & (COUNTA($A$1:$A27)+1)))*INDIRECT("'TMP_BENCHMARK'!F" & (COUNTA($A$1:$A27)+1)),0) -> 1207.998501 | H28: =IFERROR(IF(INDIRECT("'TMP_BENCHMARK'!E" & (COUNTA($A$1:$A27)+1))<>"APPROX","REPORTED","APPROX"),0) -> REPORTED
A29: =IFERROR(('2 - CHECK'!$H$6*INDIRECT("'TMP_BENCHMARK'!B" & (COUNTA($A$1:$A28)+1))/INDIRECT("'TMP_BENCHMARK'!G" & (COUNTA($A$1:$A28)+1)))*INDIRECT("'TMP_BENCHMARK'!D" & (COUNTA($A$1:$A28)+1)),0) -> 3.306574544 | B29: =IFERROR(SUMIF(INDIRECT("'TMP_BENCHMARK'!I:I"),INDIRECT("'TMP_BENCHMARK'!I" & (COUNTA($A$1:$A28)+1)),INDIRECT("'TMP_BENCHMARK'!B:B")),0) -> 0.1508628455 | C29: 21.91775272 | D29: =IFERROR(INDIRECT("'TMP_BENCHMARK'!B" & (COUNTA($A$1:$A28)+1))*'2 - CHECK'!$H$6,0) -> 6343.374848 | E29: =IFERROR(INDIRECT("'TMP_BENCHMARK'!B" & (COUNTA($A$1:$A28)+1))*INDIRECT("'TMP_BENCHMARK'!D" & (COUNTA($A$1:$A28)+1)),0) -> 5906.995062 | F29: =IFERROR(INDIRECT("'TMP_BENCHMARK'!B" & (COUNTA($A$1:$A28)+1))*INDIRECT("'TMP_BENCHMARK'!F" & (COUNTA($A$1:$A28)+1)),0) -> 14991297.78 | G29: =IFERROR(('2 - CHECK'!$H$6*INDIRECT("'TMP_BENCHMARK'!B" & (COUNTA($A$1:$A28)+1))/INDIRECT("'TMP_BENCHMARK'!G" & (COUNTA($A$1:$A28)+1)))*INDIRECT("'TMP_BENCHMARK'!F" & (COUNTA($A$1:$A28)+1)),0) -> 8391.719155 | H29: =IFERROR(IF(INDIRECT("'TMP_BENCHMARK'!E" & (COUNTA($A$1:$A28)+1))<>"APPROX","REPORTED","APPROX"),0) -> REPORTED
A30: =IFERROR(('2 - CHECK'!$H$6*INDIRECT("'TMP_BENCHMARK'!B" & (COUNTA($A$1:$A29)+1))/INDIRECT("'TMP_BENCHMARK'!G" & (COUNTA($A$1:$A29)+1)))*INDIRECT("'TMP_BENCHMARK'!D" & (COUNTA($A$1:$A29)+1)),0) -> 0.02982712347 | B30: =IFERROR(SUMIF(INDIRECT("'TMP_BENCHMARK'!I:I"),INDIRECT("'TMP_BENCHMARK'!I" & (COUNTA($A$1:$A29)+1)),INDIRECT("'TMP_BENCHMARK'!B:B")),0) -> 0.0509091081 | C30: 0.5858897275 | D30: =IFERROR(INDIRECT("'TMP_BENCHMARK'!B" & (COUNTA($A$1:$A29)+1))*'2 - CHECK'!$H$6,0) -> 6313.261353 | E30: =IFERROR(INDIRECT("'TMP_BENCHMARK'!B" & (COUNTA($A$1:$A29)+1))*INDIRECT("'TMP_BENCHMARK'!D" & (COUNTA($A$1:$A29)+1)),0) -> 53.03139537 | F30: =IFERROR(INDIRECT("'TMP_BENCHMARK'!B" & (COUNTA($A$1:$A29)+1))*INDIRECT("'TMP_BENCHMARK'!F" & (COUNTA($A$1:$A29)+1)),0) -> 10348066.68 | G30: =IFERROR(('2 - CHECK'!$H$6*INDIRECT("'TMP_BENCHMARK'!B" & (COUNTA($A$1:$A29)+1))/INDIRECT("'TMP_BENCHMARK'!G" & (COUNTA($A$1:$A29)+1)))*INDIRECT("'TMP_BENCHMARK'!F" & (COUNTA($A$1:$A29)+1)),0) -> 5820.19501 | H30: =IFERROR(IF(INDIRECT("'TMP_BENCHMARK'!E" & (COUNTA($A$1:$A29)+1))<>"APPROX","REPORTED","APPROX"),0) -> REPORTED
A31: =IFERROR(('2 - CHECK'!$H$6*INDIRECT("'TMP_BENCHMARK'!B" & (COUNTA($A$1:$A30)+1))/INDIRECT("'TMP_BENCHMARK'!G" & (COUNTA($A$1:$A30)+1)))*INDIRECT("'TMP_BENCHMARK'!D" & (COUNTA($A$1:$A30)+1)),0) -> 2.141752232 | B31: =IFERROR(SUMIF(INDIRECT("'TMP_BENCHMARK'!I:I"),INDIRECT("'TMP_BENCHMARK'!I" & (COUNTA($A$1:$A30)+1)),INDIRECT("'TMP_BENCHMARK'!B:B")),0) -> 0.1508628455 | C31: 14.19668457 | D31: =IFERROR(INDIRECT("'TMP_BENCHMARK'!B" & (COUNTA($A$1:$A30)+1))*'2 - CHECK'!$H$6,0) -> 6222.111491 | E31: =IFERROR(INDIRECT("'TMP_BENCHMARK'!B" & (COUNTA($A$1:$A30)+1))*INDIRECT("'TMP_BENCHMARK'!D" & (COUNTA($A$1:$A30)+1)),0) -> 3752.968601 | F31: =IFERROR(INDIRECT("'TMP_BENCHMARK'!B" & (COUNTA($A$1:$A30)+1))*INDIRECT("'TMP_BENCHMARK'!F" & (COUNTA($A$1:$A30)+1)),0) -> 7111251.223 | G31: =IFERROR(('2 - CHECK'!$H$6*INDIRECT("'TMP_BENCHMARK'!B" & (COUNTA($A$1:$A30)+1))/INDIRECT("'TMP_BENCHMARK'!G" & (COUNTA($A$1:$A30)+1)))*INDIRECT("'TMP_BENCHMARK'!F" & (COUNTA($A$1:$A30)+1)),0) -> 4058.264216 | H31: =IFERROR(IF(INDIRECT("'TMP_BENCHMARK'!E" & (COUNTA($A$1:$A30)+1))<>"APPROX","REPORTED","APPROX"),0) -> APPROX
A32: =IFERROR(('2 - CHECK'!$H$6*INDIRECT("'TMP_BENCHMARK'!B" & (COUNTA($A$1:$A31)+1))/INDIRECT("'TMP_BENCHMARK'!G" & (COUNTA($A$1:$A31)+1)))*INDIRECT("'TMP_BENCHMARK'!D" & (COUNTA($A$1:$A31)+1)),0) -> 0.1966637183 | B32: =IFERROR(SUMIF(INDIRECT("'TMP_BENCHMARK'!I:I"),INDIRECT("'TMP_BENCHMARK'!I" & (COUNTA($A$1:$A31)+1)),INDIRECT("'TMP_BENCHMARK'!B:B")),0) -> 0.259800746 | C32: 0.7569790361 | D32: =IFERROR(INDIRECT("'TMP_BENCHMARK'!B" & (COUNTA($A$1:$A31)+1))*'2 - CHECK'!$H$6,0) -> 6085.226206 | E32: =IFERROR(INDIRECT("'TMP_BENCHMARK'!B" & (COUNTA($A$1:$A31)+1))*INDIRECT("'TMP_BENCHMARK'!D" & (COUNTA($A$1:$A31)+1)),0) -> 337.0302534 | F32: =IFERROR(INDIRECT("'TMP_BENCHMARK'!B" & (COUNTA($A$1:$A31)+1))*INDIRECT("'TMP_BENCHMARK'!F" & (COUNTA($A$1:$A31)+1)),0) -> 1667351.98 | G32: =IFERROR(('2 - CHECK'!$H$6*INDIRECT("'TMP_BENCHMARK'!B" & (COUNTA($A$1:$A31)+1))/INDIRECT("'TMP_BENCHMARK'!G" & (COUNTA($A$1:$A31)+1)))*INDIRECT("'TMP_BENCHMARK'!F" & (COUNTA($A$1:$A31)+1)),0) -> 972.9323609 | H32: =IFERROR(IF(INDIRECT("'TMP_BENCHMARK'!E" & (COUNTA($A$1:$A31)+1))<>"APPROX","REPORTED","APPROX"),0) -> REPORTED
A33: =IFERROR(('2 - CHECK'!$H$6*INDIRECT("'TMP_BENCHMARK'!B" & (COUNTA($A$1:$A32)+1))/INDIRECT("'TMP_BENCHMARK'!G" & (COUNTA($A$1:$A32)+1)))*INDIRECT("'TMP_BENCHMARK'!D" & (COUNTA($A$1:$A32)+1)),0) -> 10.50541116 | B33: =IFERROR(SUMIF(INDIRECT("'TMP_BENCHMARK'!I:I"),INDIRECT("'TMP_BENCHMARK'!I" & (COUNTA($A$1:$A32)+1)),INDIRECT("'TMP_BENCHMARK'!B:B")),0) -> 0.2111922142 | C33: 49.74336387 | D33: =IFERROR(INDIRECT("'TMP_BENCHMARK'!B" & (COUNTA($A$1:$A32)+1))*'2 - CHECK'!$H$6,0) -> 5832.995797 | E33: =IFERROR(INDIRECT("'TMP_BENCHMARK'!B" & (COUNTA($A$1:$A32)+1))*INDIRECT("'TMP_BENCHMARK'!D" & (COUNTA($A$1:$A32)+1)),0) -> 17257.29138 | F33: =IFERROR(INDIRECT("'TMP_BENCHMARK'!B" & (COUNTA($A$1:$A32)+1))*INDIRECT("'TMP_BENCHMARK'!F" & (COUNTA($A$1:$A32)+1)),0) -> 13513884.66 | G33: =IFERROR(('2 - CHECK'!$H$6*INDIRECT("'TMP_BENCHMARK'!B" & (COUNTA($A$1:$A32)+1))/INDIRECT("'TMP_BENCHMARK'!G" & (COUNTA($A$1:$A32)+1)))*INDIRECT("'TMP_BENCHMARK'!F" & (COUNTA($A$1:$A32)+1)),0) -> 8226.604722 | H33: =IFERROR(IF(INDIRECT("'TMP_BENCHMARK'!E" & (COUNTA($A$1:$A32)+1))<>"APPROX","REPORTED","APPROX"),0) -> REPORTED
A34: =IFERROR(('2 - CHECK'!$H$6*INDIRECT("'TMP_BENCHMARK'!B" & (COUNTA($A$1:$A33)+1))/INDIRECT("'TMP_BENCHMARK'!G" & (COUNTA($A$1:$A33)+1)))*INDIRECT("'TMP_BENCHMARK'!D" & (COUNTA($A$1:$A33)+1)),0) -> 0.039698481 | B34: =IFERROR(SUMIF(INDIRECT("'TMP_BENCHMARK'!I:I"),INDIRECT("'TMP_BENCHMARK'!I" & (COUNTA($A$1:$A33)+1)),INDIRECT("'TMP_BENCHMARK'!B:B")),0) -> 0.2111922142 | C34: 0.1879732222 | D34: =IFERROR(INDIRECT("'TMP_BENCHMARK'!B" & (COUNTA($A$1:$A33)+1))*'2 - CHECK'!$H$6,0) -> 4616.679786 | E34: =IFERROR(INDIRECT("'TMP_BENCHMARK'!B" & (COUNTA($A$1:$A33)+1))*INDIRECT("'TMP_BENCHMARK'!D" & (COUNTA($A$1:$A33)+1)),0) -> 51.61448001 | F34: =IFERROR(INDIRECT("'TMP_BENCHMARK'!B" & (COUNTA($A$1:$A33)+1))*INDIRECT("'TMP_BENCHMARK'!F" & (COUNTA($A$1:$A33)+1)),0) -> 4883985.546 | G34: =IFERROR(('2 - CHECK'!$H$6*INDIRECT("'TMP_BENCHMARK'!B" & (COUNTA($A$1:$A33)+1))/INDIRECT("'TMP_BENCHMARK'!G" & (COUNTA($A$1:$A33)+1)))*INDIRECT("'TMP_BENCHMARK'!F" & (COUNTA($A$1:$A33)+1)),0) -> 3756.442134 | H34: =IFERROR(IF(INDIRECT("'TMP_BENCHMARK'!E" & (COUNTA($A$1:$A33)+1))<>"APPROX","REPORTED","APPROX"),0) -> REPORTED
A35: =IFERROR(('2 - CHECK'!$H$6*INDIRECT("'TMP_BENCHMARK'!B" & (COUNTA($A$1:$A34)+1))/INDIRECT("'TMP_BENCHMARK'!G" & (COUNTA($A$1:$A34)+1)))*INDIRECT("'TMP_BENCHMARK'!D" & (COUNTA($A$1:$A34)+1)),0) -> 1.14746783 | B35: =IFERROR(SUMIF(INDIRECT("'TMP_BENCHMARK'!I:I"),INDIRECT("'TMP_BENCHMARK'!I" & (COUNTA($A$1:$A34)+1)),INDIRECT("'TMP_BENCHMARK'!B:B")),0) -> 0.2111922142 | C35: 5.433286611 | D35: =IFERROR(INDIRECT("'TMP_BENCHMARK'!B" & (COUNTA($A$1:$A34)+1))*'2 - CHECK'!$H$6,0) -> 4361.906181 | E35: =IFERROR(INDIRECT("'TMP_BENCHMARK'!B" & (COUNTA($A$1:$A34)+1))*INDIRECT("'TMP_BENCHMARK'!D" & (COUNTA($A$1:$A34)+1)),0) -> 1409.563849 | F35: =IFERROR(INDIRECT("'TMP_BENCHMARK'!B" & (COUNTA($A$1:$A34)+1))*INDIRECT("'TMP_BENCHMARK'!F" & (COUNTA($A$1:$A34)+1)),0) -> 4795479.655 | G35: =IFERROR(('2 - CHECK'!$H$6*INDIRECT("'TMP_BENCHMARK'!B" & (COUNTA($A$1:$A34)+1))/INDIRECT("'TMP_BENCHMARK'!G" & (COUNTA($A$1:$A34)+1)))*INDIRECT("'TMP_BENCHMARK'!F" & (COUNTA($A$1:$A34)+1)),0) -> 3903.802327 | H35: =IFERROR(IF(INDIRECT("'TMP_BENCHMARK'!E" & (COUNTA($A$1:$A34)+1))<>"APPROX","REPORTED","APPROX"),0) -> APPROX
A36: =IFERROR(('2 - CHECK'!$H$6*INDIRECT("'TMP_BENCHMARK'!B" & (COUNTA($A$1:$A35)+1))/INDIRECT("'TMP_BENCHMARK'!G" & (COUNTA($A$1:$A35)+1)))*INDIRECT("'TMP_BENCHMARK'!D" & (COUNTA($A$1:$A35)+1)),0) -> 0.04654451601 | B36: =IFERROR(SUMIF(INDIRECT("'TMP_BENCHMARK'!I:I"),INDIRECT("'TMP_BENCHMARK'!I" & (COUNTA($A$1:$A35)+1)),INDIRECT("'TMP_BENCHMARK'!B:B")),0) -> 0.2111922142 | C36: 0.2203893557 | D36: =IFERROR(INDIRECT("'TMP_BENCHMARK'!B" & (COUNTA($A$1:$A35)+1))*'2 - CHECK'!$H$6,0) -> 3135.701867 | E36: =IFERROR(INDIRECT("'TMP_BENCHMARK'!B" & (COUNTA($A$1:$A35)+1))*INDIRECT("'TMP_BENCHMARK'!D" & (COUNTA($A$1:$A35)+1)),0) -> 41.10278007 | F36: =IFERROR(INDIRECT("'TMP_BENCHMARK'!B" & (COUNTA($A$1:$A35)+1))*INDIRECT("'TMP_BENCHMARK'!F" & (COUNTA($A$1:$A35)+1)),0) -> 2233519.676 | G36: =IFERROR(('2 - CHECK'!$H$6*INDIRECT("'TMP_BENCHMARK'!B" & (COUNTA($A$1:$A35)+1))/INDIRECT("'TMP_BENCHMARK'!G" & (COUNTA($A$1:$A35)+1)))*INDIRECT("'TMP_BENCHMARK'!F" & (COUNTA($A$1:$A35)+1)),0) -> 2529.222892 | H36: =IFERROR(IF(INDIRECT("'TMP_BENCHMARK'!E" & (COUNTA($A$1:$A35)+1))<>"APPROX","REPORTED","APPROX"),0) -> REPORTED
A37: =IFERROR(('2 - CHECK'!$H$6*INDIRECT("'TMP_BENCHMARK'!B" & (COUNTA($A$1:$A36)+1))/INDIRECT("'TMP_BENCHMARK'!G" & (COUNTA($A$1:$A36)+1)))*INDIRECT("'TMP_BENCHMARK'!D" & (COUNTA($A$1:$A36)+1)),0) -> 0.04119038756 | B37: =IFERROR(SUMIF(INDIRECT("'TMP_BENCHMARK'!I:I"),INDIRECT("'TMP_BENCHMARK'!I" & (COUNTA($A$1:$A36)+1)),INDIRECT("'TMP_BENCHMARK'!B:B")),0) -> 0.2111922142 | C37: 0.1950374341 | D37: =IFERROR(INDIRECT("'TMP_BENCHMARK'!B" & (COUNTA($A$1:$A36)+1))*'2 - CHECK'!$H$6,0) -> 3014.407684 | E37: =IFERROR(INDIRECT("'TMP_BENCHMARK'!B" & (COUNTA($A$1:$A36)+1))*INDIRECT("'TMP_BENCHMARK'!D" & (COUNTA($A$1:$A36)+1)),0) -> 34.96759637 | F37: =IFERROR(INDIRECT("'TMP_BENCHMARK'!B" & (COUNTA($A$1:$A36)+1))*INDIRECT("'TMP_BENCHMARK'!F" & (COUNTA($A$1:$A36)+1)),0) -> 2005075.473 | G37: =IFERROR(('2 - CHECK'!$H$6*INDIRECT("'TMP_BENCHMARK'!B" & (COUNTA($A$1:$A36)+1))/INDIRECT("'TMP_BENCHMARK'!G" & (COUNTA($A$1:$A36)+1)))*INDIRECT("'TMP_BENCHMARK'!F" & (COUNTA($A$1:$A36)+1)),0) -> 2361.896281 | H37: =IFERROR(IF(INDIRECT("'TMP_BENCHMARK'!E" & (COUNTA($A$1:$A36)+1))<>"APPROX","REPORTED","APPROX"),0) -> APPROX
A38: =IFERROR(('2 - CHECK'!$H$6*INDIRECT("'TMP_BENCHMARK'!B" & (COUNTA($A$1:$A37)+1))/INDIRECT("'TMP_BENCHMARK'!G" & (COUNTA($A$1:$A37)+1)))*INDIRECT("'TMP_BENCHMARK'!D" & (COUNTA($A$1:$A37)+1)),0) -> 0.006154507352 | B38: =IFERROR(SUMIF(INDIRECT("'TMP_BENCHMARK'!I:I"),INDIRECT("'TMP_BENCHMARK'!I" & (COUNTA($A$1:$A37)+1)),INDIRECT("'TMP_BENCHMARK'!B:B")),0) -> 0.09945778094 | C38: 0.06188060194 | D38: =IFERROR(INDIRECT("'TMP_BENCHMARK'!B" & (COUNTA($A$1:$A37)+1))*'2 - CHECK'!$H$6,0) -> 2878.733567 | E38: =IFERROR(INDIRECT("'TMP_BENCHMARK'!B" & (COUNTA($A$1:$A37)+1))*INDIRECT("'TMP_BENCHMARK'!D" & (COUNTA($A$1:$A37)+1)),0) -> 4.989564956 | F38: =IFERROR(INDIRECT("'TMP_BENCHMARK'!B" & (COUNTA($A$1:$A37)+1))*INDIRECT("'TMP_BENCHMARK'!F" & (COUNTA($A$1:$A37)+1)),0) -> 918603.8814 | G38: =IFERROR(('2 - CHECK'!$H$6*INDIRECT("'TMP_BENCHMARK'!B" & (COUNTA($A$1:$A37)+1))/INDIRECT("'TMP_BENCHMARK'!G" & (COUNTA($A$1:$A37)+1)))*INDIRECT("'TMP_BENCHMARK'!F" & (COUNTA($A$1:$A37)+1)),0) -> 1133.075607 | H38: =IFERROR(IF(INDIRECT("'TMP_BENCHMARK'!E" & (COUNTA($A$1:$A37)+1))<>"APPROX","REPORTED","APPROX"),0) -> REPORTED
A39: =IFERROR(('2 - CHECK'!$H$6*INDIRECT("'TMP_BENCHMARK'!B" & (COUNTA($A$1:$A38)+1))/INDIRECT("'TMP_BENCHMARK'!G" & (COUNTA($A$1:$A38)+1)))*INDIRECT("'TMP_BENCHMARK'!D" & (COUNTA($A$1:$A38)+1)),0) -> 0.1433583876 | B39: =IFERROR(SUMIF(INDIRECT("'TMP_BENCHMARK'!I:I"),INDIRECT("'TMP_BENCHMARK'!I" & (COUNTA($A$1:$A38)+1)),INDIRECT("'TMP_BENCHMARK'!B:B")),0) -> 0.2111922142 | C39: 0.6788052682 | D39: =IFERROR(INDIRECT("'TMP_BENCHMARK'!B" & (COUNTA($A$1:$A38)+1))*'2 - CHECK'!$H$6,0) -> 2877.65411 | E39: =IFERROR(INDIRECT("'TMP_BENCHMARK'!B" & (COUNTA($A$1:$A38)+1))*INDIRECT("'TMP_BENCHMARK'!D" & (COUNTA($A$1:$A38)+1)),0) -> 116.1795294 | F39: =IFERROR(INDIRECT("'TMP_BENCHMARK'!B" & (COUNTA($A$1:$A38)+1))*INDIRECT("'TMP_BENCHMARK'!F" & (COUNTA($A$1:$A38)+1)),0) -> 4829566.893 | G39: =IFERROR(('2 - CHECK'!$H$6*INDIRECT("'TMP_BENCHMARK'!B" & (COUNTA($A$1:$A38)+1))/INDIRECT("'TMP_BENCHMARK'!G" & (COUNTA($A$1:$A38)+1)))*INDIRECT("'TMP_BENCHMARK'!F" & (COUNTA($A$1:$A38)+1)),0) -> 5959.388253 | H39: =IFERROR(IF(INDIRECT("'TMP_BENCHMARK'!E" & (COUNTA($A$1:$A38)+1))<>"APPROX","REPORTED","APPROX"),0) -> REPORTED
A40: =IFERROR(('2 - CHECK'!$H$6*INDIRECT("'TMP_BENCHMARK'!B" & (COUNTA($A$1:$A39)+1))/INDIRECT("'TMP_BENCHMARK'!G" & (COUNTA($A$1:$A39)+1)))*INDIRECT("'TMP_BENCHMARK'!D" & (COUNTA($A$1:$A39)+1)),0) -> 0.3308308955 | B40: =IFERROR(SUMIF(INDIRECT("'TMP_BENCHMARK'!I:I"),INDIRECT("'TMP_BENCHMARK'!I" & (COUNTA($A$1:$A39)+1)),INDIRECT("'TMP_BENCHMARK'!B:B")),0) -> 0.1508628455 | C40: 2.192924934 | D40: =IFERROR(INDIRECT("'TMP_BENCHMARK'!B" & (COUNTA($A$1:$A39)+1))*'2 - CHECK'!$H$6,0) -> 2789.432474 | E40: =IFERROR(INDIRECT("'TMP_BENCHMARK'!B" & (COUNTA($A$1:$A39)+1))*INDIRECT("'TMP_BENCHMARK'!D" & (COUNTA($A$1:$A39)+1)),0) -> 259.8901544 | F40: =IFERROR(INDIRECT("'TMP_BENCHMARK'!B" & (COUNTA($A$1:$A39)+1))*INDIRECT("'TMP_BENCHMARK'!F" & (COUNTA($A$1:$A39)+1)),0) -> 1595549.796 | G40: =IFERROR(('2 - CHECK'!$H$6*INDIRECT("'TMP_BENCHMARK'!B" & (COUNTA($A$1:$A39)+1))/INDIRECT("'TMP_BENCHMARK'!G" & (COUNTA($A$1:$A39)+1)))*INDIRECT("'TMP_BENCHMARK'!F" & (COUNTA($A$1:$A39)+1)),0) -> 2031.077973 | H40: =IFERROR(IF(INDIRECT("'TMP_BENCHMARK'!E" & (COUNTA($A$1:$A39)+1))<>"APPROX","REPORTED","APPROX"),0) -> APPROX
A41: =IFERROR(('2 - CHECK'!$H$6*INDIRECT("'TMP_BENCHMARK'!B" & (COUNTA($A$1:$A40)+1))/INDIRECT("'TMP_BENCHMARK'!G" & (COUNTA($A$1:$A40)+1)))*INDIRECT("'TMP_BENCHMARK'!D" & (COUNTA($A$1:$A40)+1)),0) -> 0.1578955595 | B41: =IFERROR(SUMIF(INDIRECT("'TMP_BENCHMARK'!I:I"),INDIRECT("'TMP_BENCHMARK'!I" & (COUNTA($A$1:$A40)+1)),INDIRECT("'TMP_BENCHMARK'!B:B")),0) -> 0.2111922142 | C41: 0.7476391119 | D41: =IFERROR(INDIRECT("'TMP_BENCHMARK'!B" & (COUNTA($A$1:$A40)+1))*'2 - CHECK'!$H$6,0) -> 2626.778827 | E41: =IFERROR(INDIRECT("'TMP_BENCHMARK'!B" & (COUNTA($A$1:$A40)+1))*INDIRECT("'TMP_BENCHMARK'!D" & (COUNTA($A$1:$A40)+1)),0) -> 116.8049741 | F41: =IFERROR(INDIRECT("'TMP_BENCHMARK'!B" & (COUNTA($A$1:$A40)+1))*INDIRECT("'TMP_BENCHMARK'!F" & (COUNTA($A$1:$A40)+1)),0) -> 6209967.825 | G41: =IFERROR(('2 - CHECK'!$H$6*INDIRECT("'TMP_BENCHMARK'!B" & (COUNTA($A$1:$A40)+1))/INDIRECT("'TMP_BENCHMARK'!G" & (COUNTA($A$1:$A40)+1)))*INDIRECT("'TMP_BENCHMARK'!F" & (COUNTA($A$1:$A40)+1)),0) -> 8394.559834 | H41: =IFERROR(IF(INDIRECT("'TMP_BENCHMARK'!E" & (COUNTA($A$1:$A40)+1))<>"APPROX","REPORTED","APPROX"),0) -> REPORTED
A42: =IFERROR(('2 - CHECK'!$H$6*INDIRECT("'TMP_BENCHMARK'!B" & (COUNTA($A$1:$A41)+1))/INDIRECT("'TMP_BENCHMARK'!G" & (COUNTA($A$1:$A41)+1)))*INDIRECT("'TMP_BENCHMARK'!D" & (COUNTA($A$1:$A41)+1)),0) -> 0.0630992442 | B42: =IFERROR(SUMIF(INDIRECT("'TMP_BENCHMARK'!I:I"),INDIRECT("'TMP_BENCHMARK'!I" & (COUNTA($A$1:$A41)+1)),INDIRECT("'TMP_BENCHMARK'!B:B")),0) -> 0.2111922142 | C42: 0.298776375 | D42: =IFERROR(INDIRECT("'TMP_BENCHMARK'!B" & (COUNTA($A$1:$A41)+1))*'2 - CHECK'!$H$6,0) -> 2622.798391 | E42: =IFERROR(INDIRECT("'TMP_BENCHMARK'!B" & (COUNTA($A$1:$A41)+1))*INDIRECT("'TMP_BENCHMARK'!D" & (COUNTA($A$1:$A41)+1)),0) -> 46.60762573 | F42: =IFERROR(INDIRECT("'TMP_BENCHMARK'!B" & (COUNTA($A$1:$A41)+1))*INDIRECT("'TMP_BENCHMARK'!F" & (COUNTA($A$1:$A41)+1)),0) -> 1357035.887 | G42: =IFERROR(('2 - CHECK'!$H$6*INDIRECT("'TMP_BENCHMARK'!B" & (COUNTA($A$1:$A41)+1))/INDIRECT("'TMP_BENCHMARK'!G" & (COUNTA($A$1:$A41)+1)))*INDIRECT("'TMP_BENCHMARK'!F" & (COUNTA($A$1:$A41)+1)),0) -> 1837.208772 | H42: =IFERROR(IF(INDIRECT("'TMP_BENCHMARK'!E" & (COUNTA($A$1:$A41)+1))<>"APPROX","REPORTED","APPROX"),0) -> APPROX
A43: =IFERROR(('2 - CHECK'!$H$6*INDIRECT("'TMP_BENCHMARK'!B" & (COUNTA($A$1:$A42)+1))/INDIRECT("'TMP_BENCHMARK'!G" & (COUNTA($A$1:$A42)+1)))*INDIRECT("'TMP_BENCHMARK'!D" & (COUNTA($A$1:$A42)+1)),0) -> 0.0224038413 | B43: =IFERROR(SUMIF(INDIRECT("'TMP_BENCHMARK'!I:I"),INDIRECT("'TMP_BENCHMARK'!I" & (COUNTA($A$1:$A42)+1)),INDIRECT("'TMP_BENCHMARK'!B:B")),0) -> 0.2111922142 | C43: 0.1060827047 | D43: =IFERROR(INDIRECT("'TMP_BENCHMARK'!B" & (COUNTA($A$1:$A42)+1))*'2 - CHECK'!$H$6,0) -> 2618.588932 | E43: =IFERROR(INDIRECT("'TMP_BENCHMARK'!B" & (COUNTA($A$1:$A42)+1))*INDIRECT("'TMP_BENCHMARK'!D" & (COUNTA($A$1:$A42)+1)),0) -> 16.52181404 | F43: =IFERROR(INDIRECT("'TMP_BENCHMARK'!B" & (COUNTA($A$1:$A42)+1))*INDIRECT("'TMP_BENCHMARK'!F" & (COUNTA($A$1:$A42)+1)),0) -> 947376.6713 | G43: =IFERROR(('2 - CHECK'!$H$6*INDIRECT("'TMP_BENCHMARK'!B" & (COUNTA($A$1:$A42)+1))/INDIRECT("'TMP_BENCHMARK'!G" & (COUNTA($A$1:$A42)+1)))*INDIRECT("'TMP_BENCHMARK'!F" & (COUNTA($A$1:$A42)+1)),0) -> 1284.657759 | H43: =IFERROR(IF(INDIRECT("'TMP_BENCHMARK'!E" & (COUNTA($A$1:$A42)+1))<>"APPROX","REPORTED","APPROX"),0) -> APPROX
A44: =IFERROR(('2 - CHECK'!$H$6*INDIRECT("'TMP_BENCHMARK'!B" & (COUNTA($A$1:$A43)+1))/INDIRECT("'TMP_BENCHMARK'!G" & (COUNTA($A$1:$A43)+1)))*INDIRECT("'TMP_BENCHMARK'!D" & (COUNTA($A$1:$A43)+1)),0) -> 0.1776560288 | B44: =IFERROR(SUMIF(INDIRECT("'TMP_BENCHMARK'!I:I"),INDIRECT("'TMP_BENCHMARK'!I" & (COUNTA($A$1:$A43)+1)),INDIRECT("'TMP_BENCHMARK'!B:B")),0) -> 0.2111922142 | C44: 0.8412053893 | D44: =IFERROR(INDIRECT("'TMP_BENCHMARK'!B" & (COUNTA($A$1:$A43)+1))*'2 - CHECK'!$H$6,0) -> 2488.106432 | E44: =IFERROR(INDIRECT("'TMP_BENCHMARK'!B" & (COUNTA($A$1:$A43)+1))*INDIRECT("'TMP_BENCHMARK'!D" & (COUNTA($A$1:$A43)+1)),0) -> 124.484941 | F44: =IFERROR(INDIRECT("'TMP_BENCHMARK'!B" & (COUNTA($A$1:$A43)+1))*INDIRECT("'TMP_BENCHMARK'!F" & (COUNTA($A$1:$A43)+1)),0) -> 1646628.836 | G44: =IFERROR(('2 - CHECK'!$H$6*INDIRECT("'TMP_BENCHMARK'!B" & (COUNTA($A$1:$A43)+1))/INDIRECT("'TMP_BENCHMARK'!G" & (COUNTA($A$1:$A43)+1)))*INDIRECT("'TMP_BENCHMARK'!F" & (COUNTA($A$1:$A43)+1)),0) -> 2349.951228 | H44: =IFERROR(IF(INDIRECT("'TMP_BENCHMARK'!E" & (COUNTA($A$1:$A43)+1))<>"APPROX","REPORTED","APPROX"),0) -> REPORTED
A45: =IFERROR(('2 - CHECK'!$H$6*INDIRECT("'TMP_BENCHMARK'!B" & (COUNTA($A$1:$A44)+1))/INDIRECT("'TMP_BENCHMARK'!G" & (COUNTA($A$1:$A44)+1)))*INDIRECT("'TMP_BENCHMARK'!D" & (COUNTA($A$1:$A44)+1)),0) -> 0.002297043592 | B45: =IFERROR(SUMIF(INDIRECT("'TMP_BENCHMARK'!I:I"),INDIRECT("'TMP_BENCHMARK'!I" & (COUNTA($A$1:$A44)+1)),INDIRECT("'TMP_BENCHMARK'!B:B")),0) -> 0.09945778094 | C45: 0.02309566502 | D45: =IFERROR(INDIRECT("'TMP_BENCHMARK'!B" & (COUNTA($A$1:$A44)+1))*'2 - CHECK'!$H$6,0) -> 2429.10659 | E45: =IFERROR(INDIRECT("'TMP_BENCHMARK'!B" & (COUNTA($A$1:$A44)+1))*INDIRECT("'TMP_BENCHMARK'!D" & (COUNTA($A$1:$A44)+1)),0) -> 1.571389053 | F45: =IFERROR(INDIRECT("'TMP_BENCHMARK'!B" & (COUNTA($A$1:$A44)+1))*INDIRECT("'TMP_BENCHMARK'!F" & (COUNTA($A$1:$A44)+1)),0) -> 360916.6572 | G45: =IFERROR(('2 - CHECK'!$H$6*INDIRECT("'TMP_BENCHMARK'!B" & (COUNTA($A$1:$A44)+1))/INDIRECT("'TMP_BENCHMARK'!G" & (COUNTA($A$1:$A44)+1)))*INDIRECT("'TMP_BENCHMARK'!F" & (COUNTA($A$1:$A44)+1)),0) -> 527.5850007 | H45: =IFERROR(IF(INDIRECT("'TMP_BENCHMARK'!E" & (COUNTA($A$1:$A44)+1))<>"APPROX","REPORTED","APPROX"),0) -> REPORTED
A46: =IFERROR(('2 - CHECK'!$H$6*INDIRECT("'TMP_BENCHMARK'!B" & (COUNTA($A$1:$A45)+1))/INDIRECT("'TMP_BENCHMARK'!G" & (COUNTA($A$1:$A45)+1)))*INDIRECT("'TMP_BENCHMARK'!D" & (COUNTA($A$1:$A45)+1)),0) -> 0.1230049267 | B46: =IFERROR(SUMIF(INDIRECT("'TMP_BENCHMARK'!I:I"),INDIRECT("'TMP_BENCHMARK'!I" & (COUNTA($A$1:$A45)+1)),INDIRECT("'TMP_BENCHMARK'!B:B")),0) -> 0.259800746 | C46: 0.4734587125 | D46: =IFERROR(INDIRECT("'TMP_BENCHMARK'!B" & (COUNTA($A$1:$A45)+1))*'2 - CHECK'!$H$6,0) -> 2356.902038 | E46: =IFERROR(INDIRECT("'TMP_BENCHMARK'!B" & (COUNTA($A$1:$A45)+1))*INDIRECT("'TMP_BENCHMARK'!D" & (COUNTA($A$1:$A45)+1)),0) -> 81.64544351 | F46: =IFERROR(INDIRECT("'TMP_BENCHMARK'!B" & (COUNTA($A$1:$A45)+1))*INDIRECT("'TMP_BENCHMARK'!F" & (COUNTA($A$1:$A45)+1)),0) -> 406579.743 | G46: =IFERROR(('2 - CHECK'!$H$6*INDIRECT("'TMP_BENCHMARK'!B" & (COUNTA($A$1:$A45)+1))/INDIRECT("'TMP_BENCHMARK'!G" & (COUNTA($A$1:$A45)+1)))*INDIRECT("'TMP_BENCHMARK'!F" & (COUNTA($A$1:$A45)+1)),0) -> 612.5425907 | H46: =IFERROR(IF(INDIRECT("'TMP_BENCHMARK'!E" & (COUNTA($A$1:$A45)+1))<>"APPROX","REPORTED","APPROX"),0) -> REPORTED
A47: =IFERROR(('2 - CHECK'!$H$6*INDIRECT("'TMP_BENCHMARK'!B" & (COUNTA($A$1:$A46)+1))/INDIRECT("'TMP_BENCHMARK'!G" & (COUNTA($A$1:$A46)+1)))*INDIRECT("'TMP_BENCHMARK'!D" & (COUNTA($A$1:$A46)+1)),0) -> 0.1946865067 | B47: =IFERROR(SUMIF(INDIRECT("'TMP_BENCHMARK'!I:I"),INDIRECT("'TMP_BENCHMARK'!I" & (COUNTA($A$1:$A46)+1)),INDIRECT("'TMP_BENCHMARK'!B:B")),0) -> 0.02345299337 | C47: 8.301136815 | D47: =IFERROR(INDIRECT("'TMP_BENCHMARK'!B" & (COUNTA($A$1:$A46)+1))*'2 - CHECK'!$H$6,0) -> 2251.849376 | E47: =IFERROR(INDIRECT("'TMP_BENCHMARK'!B" & (COUNTA($A$1:$A46)+1))*INDIRECT("'TMP_BENCHMARK'!D" & (COUNTA($A$1:$A46)+1)),0) -> 123.4647849 | F47: =IFERROR(INDIRECT("'TMP_BENCHMARK'!B" & (COUNTA($A$1:$A46)+1))*INDIRECT("'TMP_BENCHMARK'!F" & (COUNTA($A$1:$A46)+1)),0) -> 982481.8826 | G47: =IFERROR(('2 - CHECK'!$H$6*INDIRECT("'TMP_BENCHMARK'!B" & (COUNTA($A$1:$A46)+1))/INDIRECT("'TMP_BENCHMARK'!G" & (COUNTA($A$1:$A46)+1)))*INDIRECT("'TMP_BENCHMARK'!F" & (COUNTA($A$1:$A46)+1)),0) -> 1549.234997 | H47: =IFERROR(IF(INDIRECT("'TMP_BENCHMARK'!E" & (COUNTA($A$1:$A46)+1))<>"APPROX","REPORTED","APPROX"),0) -> APPROX
A48: =IFERROR(('2 - CHECK'!$H$6*INDIRECT("'TMP_BENCHMARK'!B" & (COUNTA($A$1:$A47)+1))/INDIRECT("'TMP_BENCHMARK'!G" & (COUNTA($A$1:$A47)+1)))*INDIRECT("'TMP_BENCHMARK'!D" & (COUNTA($A$1:$A47)+1)),0) -> 0.01251464076 | B48: =IFERROR(SUMIF(INDIRECT("'TMP_BENCHMARK'!I:I"),INDIRECT("'TMP_BENCHMARK'!I" & (COUNTA($A$1:$A47)+1)),INDIRECT("'TMP_BENCHMARK'!B:B")),0) -> 0.259800746 | C48: 0.04817014946 | D48: =IFERROR(INDIRECT("'TMP_BENCHMARK'!B" & (COUNTA($A$1:$A47)+1))*'2 - CHECK'!$H$6,0) -> 2241.909853 | E48: =IFERROR(INDIRECT("'TMP_BENCHMARK'!B" & (COUNTA($A$1:$A47)+1))*INDIRECT("'TMP_BENCHMARK'!D" & (COUNTA($A$1:$A47)+1)),0) -> 7.901407261 | F48: =IFERROR(INDIRECT("'TMP_BENCHMARK'!B" & (COUNTA($A$1:$A47)+1))*INDIRECT("'TMP_BENCHMARK'!F" & (COUNTA($A$1:$A47)+1)),0) -> 526651.5273 | G48: =IFERROR(('2 - CHECK'!$H$6*INDIRECT("'TMP_BENCHMARK'!B" & (COUNTA($A$1:$A47)+1))/INDIRECT("'TMP_BENCHMARK'!G" & (COUNTA($A$1:$A47)+1)))*INDIRECT("'TMP_BENCHMARK'!F" & (COUNTA($A$1:$A47)+1)),0) -> 834.136813 | H48: =IFERROR(IF(INDIRECT("'TMP_BENCHMARK'!E" & (COUNTA($A$1:$A47)+1))<>"APPROX","REPORTED","APPROX"),0) -> APPROX
A49: =IFERROR(('2 - CHECK'!$H$6*INDIRECT("'TMP_BENCHMARK'!B" & (COUNTA($A$1:$A48)+1))/INDIRECT("'TMP_BENCHMARK'!G" & (COUNTA($A$1:$A48)+1)))*INDIRECT("'TMP_BENCHMARK'!D" & (COUNTA($A$1:$A48)+1)),0) -> 0.174663161 | B49: =IFERROR(SUMIF(INDIRECT("'TMP_BENCHMARK'!I:I"),INDIRECT("'TMP_BENCHMARK'!I" & (COUNTA($A$1:$A48)+1)),INDIRECT("'TMP_BENCHMARK'!B:B")),0) -> 0.02345299337 | C49: 7.447371781 | D49: =IFERROR(INDIRECT("'TMP_BENCHMARK'!B" & (COUNTA($A$1:$A48)+1))*'2 - CHECK'!$H$6,0) -> 2201.758698 | E49: =IFERROR(INDIRECT("'TMP_BENCHMARK'!B" & (COUNTA($A$1:$A48)+1))*INDIRECT("'TMP_BENCHMARK'!D" & (COUNTA($A$1:$A48)+1)),0) -> 108.3026168 | F49: =IFERROR(INDIRECT("'TMP_BENCHMARK'!B" & (COUNTA($A$1:$A48)+1))*INDIRECT("'TMP_BENCHMARK'!F" & (COUNTA($A$1:$A48)+1)),0) -> 707816.9827 | G49: =IFERROR(('2 - CHECK'!$H$6*INDIRECT("'TMP_BENCHMARK'!B" & (COUNTA($A$1:$A48)+1))/INDIRECT("'TMP_BENCHMARK'!G" & (COUNTA($A$1:$A48)+1)))*INDIRECT("'TMP_BENCHMARK'!F" & (COUNTA($A$1:$A48)+1)),0) -> 1141.519524 | H49: =IFERROR(IF(INDIRECT("'TMP_BENCHMARK'!E" & (COUNTA($A$1:$A48)+1))<>"APPROX","REPORTED","APPROX"),0) -> APPROX
A50: =IFERROR(('2 - CHECK'!$H$6*INDIRECT("'TMP_BENCHMARK'!B" & (COUNTA($A$1:$A49)+1))/INDIRECT("'TMP_BENCHMARK'!G" & (COUNTA($A$1:$A49)+1)))*INDIRECT("'TMP_BENCHMARK'!D" & (COUNTA($A$1:$A49)+1)),0) -> 0.008821865335 | B50: =IFERROR(SUMIF(INDIRECT("'TMP_BENCHMARK'!I:I"),INDIRECT("'TMP_BENCHMARK'!I" & (COUNTA($A$1:$A49)+1)),INDIRECT("'TMP_BENCHMARK'!B:B")),0) -> 0.09945778094 | C50: 0.08869959949 | D50: =IFERROR(INDIRECT("'TMP_BENCHMARK'!B" & (COUNTA($A$1:$A49)+1))*'2 - CHECK'!$H$6,0) -> 2193.455039 | E50: =IFERROR(INDIRECT("'TMP_BENCHMARK'!B" & (COUNTA($A$1:$A49)+1))*INDIRECT("'TMP_BENCHMARK'!D" & (COUNTA($A$1:$A49)+1)),0) -> 5.449505243 | F50: =IFERROR(INDIRECT("'TMP_BENCHMARK'!B" & (COUNTA($A$1:$A49)+1))*INDIRECT("'TMP_BENCHMARK'!F" & (COUNTA($A$1:$A49)+1)),0) -> 347199.8046 | G50: =IFERROR(('2 - CHECK'!$H$6*INDIRECT("'TMP_BENCHMARK'!B" & (COUNTA($A$1:$A49)+1))/INDIRECT("'TMP_BENCHMARK'!G" & (COUNTA($A$1:$A49)+1)))*INDIRECT("'TMP_BENCHMARK'!F" & (COUNTA($A$1:$A49)+1)),0) -> 562.0601842 | H50: =IFERROR(IF(INDIRECT("'TMP_BENCHMARK'!E" & (COUNTA($A$1:$A49)+1))<>"APPROX","REPORTED","APPROX"),0) -> APPROX
A51: =IFERROR(('2 - CHECK'!$H$6*INDIRECT("'TMP_BENCHMARK'!B" & (COUNTA($A$1:$A50)+1))/INDIRECT("'TMP_BENCHMARK'!G" & (COUNTA($A$1:$A50)+1)))*INDIRECT("'TMP_BENCHMARK'!D" & (COUNTA($A$1:$A50)+1)),0) -> 0.01951546079 | B51: =IFERROR(SUMIF(INDIRECT("'TMP_BENCHMARK'!I:I"),INDIRECT("'TMP_BENCHMARK'!I" & (COUNTA($A$1:$A50)+1)),INDIRECT("'TMP_BENCHMARK'!B:B")),0) -> 0.0509091081 | C51: 0.3833392788 | D51: =IFERROR(INDIRECT("'TMP_BENCHMARK'!B" & (COUNTA($A$1:$A50)+1))*'2 - CHECK'!$H$6,0) -> 2103.291848 | E51: =IFERROR(INDIRECT("'TMP_BENCHMARK'!B" & (COUNTA($A$1:$A50)+1))*INDIRECT("'TMP_BENCHMARK'!D" & (COUNTA($A$1:$A50)+1)),0) -> 11.559692 | F51: =IFERROR(INDIRECT("'TMP_BENCHMARK'!B" & (COUNTA($A$1:$A50)+1))*INDIRECT("'TMP_BENCHMARK'!F" & (COUNTA($A$1:$A50)+1)),0) -> 742882.6808 | G51: =IFERROR(('2 - CHECK'!$H$6*INDIRECT("'TMP_BENCHMARK'!B" & (COUNTA($A$1:$A50)+1))/INDIRECT("'TMP_BENCHMARK'!G" & (COUNTA($A$1:$A50)+1)))*INDIRECT("'TMP_BENCHMARK'!F" & (COUNTA($A$1:$A50)+1)),0) -> 1254.159525 | H51: =IFERROR(IF(INDIRECT("'TMP_BENCHMARK'!E" & (COUNTA($A$1:$A50)+1))<>"APPROX","REPORTED","APPROX"),0) -> REPORTED
A52: =IFERROR(('2 - CHECK'!$H$6*INDIRECT("'TMP_BENCHMARK'!B" & (COUNTA($A$1:$A51)+1))/INDIRECT("'TMP_BENCHMARK'!G" & (COUNTA($A$1:$A51)+1)))*INDIRECT("'TMP_BENCHMARK'!D" & (COUNTA($A$1:$A51)+1)),0) -> 0.2995183813 | B52: =IFERROR(SUMIF(INDIRECT("'TMP_BENCHMARK'!I:I"),INDIRECT("'TMP_BENCHMARK'!I" & (COUNTA($A$1:$A51)+1)),INDIRECT("'TMP_BENCHMARK'!B:B")),0) -> 0.2111922142 | C52: 1.418226436 | D52: =IFERROR(INDIRECT("'TMP_BENCHMARK'!B" & (COUNTA($A$1:$A51)+1))*'2 - CHECK'!$H$6,0) -> 1885.63919 | E52: =IFERROR(INDIRECT("'TMP_BENCHMARK'!B" & (COUNTA($A$1:$A51)+1))*INDIRECT("'TMP_BENCHMARK'!D" & (COUNTA($A$1:$A51)+1)),0) -> 159.0559755 | F52: =IFERROR(INDIRECT("'TMP_BENCHMARK'!B" & (COUNTA($A$1:$A51)+1))*INDIRECT("'TMP_BENCHMARK'!F" & (COUNTA($A$1:$A51)+1)),0) -> 3172965.064 | G52: =IFERROR(('2 - CHECK'!$H$6*INDIRECT("'TMP_BENCHMARK'!B" & (COUNTA($A$1:$A51)+1))/INDIRECT("'TMP_BENCHMARK'!G" & (COUNTA($A$1:$A51)+1)))*INDIRECT("'TMP_BENCHMARK'!F" & (COUNTA($A$1:$A51)+1)),0) -> 5975.011984 | H52: =IFERROR(IF(INDIRECT("'TMP_BENCHMARK'!E" & (COUNTA($A$1:$A51)+1))<>"APPROX","REPORTED","APPROX"),0) -> APPROX
A53: =IFERROR(('2 - CHECK'!$H$6*INDIRECT("'TMP_BENCHMARK'!B" & (COUNTA($A$1:$A52)+1))/INDIRECT("'TMP_BENCHMARK'!G" & (COUNTA($A$1:$A52)+1)))*INDIRECT("'TMP_BENCHMARK'!D" & (COUNTA($A$1:$A52)+1)),0) -> 0.01645818063 | B53: =IFERROR(SUMIF(INDIRECT("'TMP_BENCHMARK'!I:I"),INDIRECT("'TMP_BENCHMARK'!I" & (COUNTA($A$1:$A52)+1)),INDIRECT("'TMP_BENCHMARK'!B:B")),0) -> 0.01975923385 | C53: 0.8329361732 | D53: =IFERROR(INDIRECT("'TMP_BENCHMARK'!B" & (COUNTA($A$1:$A52)+1))*'2 - CHECK'!$H$6,0) -> 1843.77163 | E53: =IFERROR(INDIRECT("'TMP_BENCHMARK'!B" & (COUNTA($A$1:$A52)+1))*INDIRECT("'TMP_BENCHMARK'!D" & (COUNTA($A$1:$A52)+1)),0) -> 8.545881507 | F53: =IFERROR(INDIRECT("'TMP_BENCHMARK'!B" & (COUNTA($A$1:$A52)+1))*INDIRECT("'TMP_BENCHMARK'!F" & (COUNTA($A$1:$A52)+1)),0) -> 3027657.394 | G53: =IFERROR(('2 - CHECK'!$H$6*INDIRECT("'TMP_BENCHMARK'!B" & (COUNTA($A$1:$A52)+1))/INDIRECT("'TMP_BENCHMARK'!G" & (COUNTA($A$1:$A52)+1)))*INDIRECT("'TMP_BENCHMARK'!F" & (COUNTA($A$1:$A52)+1)),0) -> 5830.847554 | H53: =IFERROR(IF(INDIRECT("'TMP_BENCHMARK'!E" & (COUNTA($A$1:$A52)+1))<>"APPROX","REPORTED","APPROX"),0) -> REPORTED
A54: =IFERROR(('2 - CHECK'!$H$6*INDIRECT("'TMP_BENCHMARK'!B" & (COUNTA($A$1:$A53)+1))/INDIRECT("'TMP_BENCHMARK'!G" & (COUNTA($A$1:$A53)+1)))*INDIRECT("'TMP_BENCHMARK'!D" & (COUNTA($A$1:$A53)+1)),0) -> 0.07942290095 | B54: =IFERROR(SUMIF(INDIRECT("'TMP_BENCHMARK'!I:I"),INDIRECT("'TMP_BENCHMARK'!I" & (COUNTA($A$1:$A53)+1)),INDIRECT("'TMP_BENCHMARK'!B:B")),0) -> 0.0509091081 | C54: 1.56009217 | D54: =IFERROR(INDIRECT("'TMP_BENCHMARK'!B" & (COUNTA($A$1:$A53)+1))*'2 - CHECK'!$H$6,0) -> 1515.496444 | E54: =IFERROR(INDIRECT("'TMP_BENCHMARK'!B" & (COUNTA($A$1:$A53)+1))*INDIRECT("'TMP_BENCHMARK'!D" & (COUNTA($A$1:$A53)+1)),0) -> 33.89757118 | F54: =IFERROR(INDIRECT("'TMP_BENCHMARK'!B" & (COUNTA($A$1:$A53)+1))*INDIRECT("'TMP_BENCHMARK'!F" & (COUNTA($A$1:$A53)+1)),0) -> 1175722.141 | G54: =IFERROR(('2 - CHECK'!$H$6*INDIRECT("'TMP_BENCHMARK'!B" & (COUNTA($A$1:$A53)+1))/INDIRECT("'TMP_BENCHMARK'!G" & (COUNTA($A$1:$A53)+1)))*INDIRECT("'TMP_BENCHMARK'!F" & (COUNTA($A$1:$A53)+1)),0) -> 2754.747904 | H54: =IFERROR(IF(INDIRECT("'TMP_BENCHMARK'!E" & (COUNTA($A$1:$A53)+1))<>"APPROX","REPORTED","APPROX"),0) -> APPROX
A55: =IFERROR(('2 - CHECK'!$H$6*INDIRECT("'TMP_BENCHMARK'!B" & (COUNTA($A$1:$A54)+1))/INDIRECT("'TMP_BENCHMARK'!G" & (COUNTA($A$1:$A54)+1)))*INDIRECT("'TMP_BENCHMARK'!D" & (COUNTA($A$1:$A54)+1)),0) -> 0.004198313214 | B55: =IFERROR(SUMIF(INDIRECT("'TMP_BENCHMARK'!I:I"),INDIRECT("'TMP_BENCHMARK'!I" & (COUNTA($A$1:$A54)+1)),INDIRECT("'TMP_BENCHMARK'!B:B")),0) -> 0.2111922142 | C55: 0.01987910979 | D55: =IFERROR(INDIRECT("'TMP_BENCHMARK'!B" & (COUNTA($A$1:$A54)+1))*'2 - CHECK'!$H$6,0) -> 1281.650383 | E55: =IFERROR(INDIRECT("'TMP_BENCHMARK'!B" & (COUNTA($A$1:$A54)+1))*INDIRECT("'TMP_BENCHMARK'!D" & (COUNTA($A$1:$A54)+1)),0) -> 1.515347795 | F55: =IFERROR(INDIRECT("'TMP_BENCHMARK'!B" & (COUNTA($A$1:$A54)+1))*INDIRECT("'TMP_BENCHMARK'!F" & (COUNTA($A$1:$A54)+1)),0) -> 63029.00253 | G55: =IFERROR(('2 - CHECK'!$H$6*INDIRECT("'TMP_BENCHMARK'!B" & (COUNTA($A$1:$A54)+1))/INDIRECT("'TMP_BENCHMARK'!G" & (COUNTA($A$1:$A54)+1)))*INDIRECT("'TMP_BENCHMARK'!F" & (COUNTA($A$1:$A54)+1)),0) -> 174.6236045 | H55: =IFERROR(IF(INDIRECT("'TMP_BENCHMARK'!E" & (COUNTA($A$1:$A54)+1))<>"APPROX","REPORTED","APPROX"),0) -> APPROX
A56: =IFERROR(('2 - CHECK'!$H$6*INDIRECT("'TMP_BENCHMARK'!B" & (COUNTA($A$1:$A55)+1))/INDIRECT("'TMP_BENCHMARK'!G" & (COUNTA($A$1:$A55)+1)))*INDIRECT("'TMP_BENCHMARK'!D" & (COUNTA($A$1:$A55)+1)),0) -> 0.6847400059 | B56: =IFERROR(SUMIF(INDIRECT("'TMP_BENCHMARK'!I:I"),INDIRECT("'TMP_BENCHMARK'!I" & (COUNTA($A$1:$A55)+1)),INDIRECT("'TMP_BENCHMARK'!B:B")),0) -> 0.02345299337 | C56: 29.19627338 | D56: =IFERROR(INDIRECT("'TMP_BENCHMARK'!B" & (COUNTA($A$1:$A55)+1))*'2 - CHECK'!$H$6,0) -> 1215.534061 | E56: =IFERROR(INDIRECT("'TMP_BENCHMARK'!B" & (COUNTA($A$1:$A55)+1))*INDIRECT("'TMP_BENCHMARK'!D" & (COUNTA($A$1:$A55)+1)),0) -> 234.4016957 | F56: =IFERROR(INDIRECT("'TMP_BENCHMARK'!B" & (COUNTA($A$1:$A55)+1))*INDIRECT("'TMP_BENCHMARK'!F" & (COUNTA($A$1:$A55)+1)),0) -> 1643100.598 | G56: =IFERROR(('2 - CHECK'!$H$6*INDIRECT("'TMP_BENCHMARK'!B" & (COUNTA($A$1:$A55)+1))/INDIRECT("'TMP_BENCHMARK'!G" & (COUNTA($A$1:$A55)+1)))*INDIRECT("'TMP_BENCHMARK'!F" & (COUNTA($A$1:$A55)+1)),0) -> 4799.86593 | H56: =IFERROR(IF(INDIRECT("'TMP_BENCHMARK'!E" & (COUNTA($A$1:$A55)+1))<>"APPROX","REPORTED","APPROX"),0) -> APPROX
A57: =IFERROR(('2 - CHECK'!$H$6*INDIRECT("'TMP_BENCHMARK'!B" & (COUNTA($A$1:$A56)+1))/INDIRECT("'TMP_BENCHMARK'!G" & (COUNTA($A$1:$A56)+1)))*INDIRECT("'TMP_BENCHMARK'!D" & (COUNTA($A$1:$A56)+1)),0) -> 0.1796729104 | B57: =IFERROR(SUMIF(INDIRECT("'TMP_BENCHMARK'!I:I"),INDIRECT("'TMP_BENCHMARK'!I" & (COUNTA($A$1:$A56)+1)),INDIRECT("'TMP_BENCHMARK'!B:B")),0) -> 0.0509091081 | C57: 3.52928812 | D57: =IFERROR(INDIRECT("'TMP_BENCHMARK'!B" & (COUNTA($A$1:$A56)+1))*'2 - CHECK'!$H$6,0) -> 1139.841394 | E57: =IFERROR(INDIRECT("'TMP_BENCHMARK'!B" & (COUNTA($A$1:$A56)+1))*INDIRECT("'TMP_BENCHMARK'!D" & (COUNTA($A$1:$A56)+1)),0) -> 57.67597452 | F57: =IFERROR(INDIRECT("'TMP_BENCHMARK'!B" & (COUNTA($A$1:$A56)+1))*INDIRECT("'TMP_BENCHMARK'!F" & (COUNTA($A$1:$A56)+1)),0) -> 1485441.304 | G57: =IFERROR(('2 - CHECK'!$H$6*INDIRECT("'TMP_BENCHMARK'!B" & (COUNTA($A$1:$A56)+1))/INDIRECT("'TMP_BENCHMARK'!G" & (COUNTA($A$1:$A56)+1)))*INDIRECT("'TMP_BENCHMARK'!F" & (COUNTA($A$1:$A56)+1)),0) -> 4627.465156 | H57: =IFERROR(IF(INDIRECT("'TMP_BENCHMARK'!E" & (COUNTA($A$1:$A56)+1))<>"APPROX","REPORTED","APPROX"),0) -> REPORTED
A58: =IFERROR(('2 - CHECK'!$H$6*INDIRECT("'TMP_BENCHMARK'!B" & (COUNTA($A$1:$A57)+1))/INDIRECT("'TMP_BENCHMARK'!G" & (COUNTA($A$1:$A57)+1)))*INDIRECT("'TMP_BENCHMARK'!D" & (COUNTA($A$1:$A57)+1)),0) -> 0.001540215843 | B58: =IFERROR(SUMIF(INDIRECT("'TMP_BENCHMARK'!I:I"),INDIRECT("'TMP_BENCHMARK'!I" & (COUNTA($A$1:$A57)+1)),INDIRECT("'TMP_BENCHMARK'!B:B")),0) -> 0.259800746 | C58: 0.005928450423 | D58: =IFERROR(INDIRECT("'TMP_BENCHMARK'!B" & (COUNTA($A$1:$A57)+1))*'2 - CHECK'!$H$6,0) -> 1105.41359 | E58: =IFERROR(INDIRECT("'TMP_BENCHMARK'!B" & (COUNTA($A$1:$A57)+1))*INDIRECT("'TMP_BENCHMARK'!D" & (COUNTA($A$1:$A57)+1)),0) -> 0.4794841987 | F58: =IFERROR(INDIRECT("'TMP_BENCHMARK'!B" & (COUNTA($A$1:$A57)+1))*INDIRECT("'TMP_BENCHMARK'!F" & (COUNTA($A$1:$A57)+1)),0) -> 39389.20245 | G58: =IFERROR(('2 - CHECK'!$H$6*INDIRECT("'TMP_BENCHMARK'!B" & (COUNTA($A$1:$A57)+1))/INDIRECT("'TMP_BENCHMARK'!G" & (COUNTA($A$1:$A57)+1)))*INDIRECT("'TMP_BENCHMARK'!F" & (COUNTA($A$1:$A57)+1)),0) -> 126.5273679 | H58: =IFERROR(IF(INDIRECT("'TMP_BENCHMARK'!E" & (COUNTA($A$1:$A57)+1))<>"APPROX","REPORTED","APPROX"),0) -> APPROX
A59: =IFERROR(('2 - CHECK'!$H$6*INDIRECT("'TMP_BENCHMARK'!B" & (COUNTA($A$1:$A58)+1))/INDIRECT("'TMP_BENCHMARK'!G" & (COUNTA($A$1:$A58)+1)))*INDIRECT("'TMP_BENCHMARK'!D" & (COUNTA($A$1:$A58)+1)),0) -> 0.07141941021 | B59: =IFERROR(SUMIF(INDIRECT("'TMP_BENCHMARK'!I:I"),INDIRECT("'TMP_BENCHMARK'!I" & (COUNTA($A$1:$A58)+1)),INDIRECT("'TMP_BENCHMARK'!B:B")),0) -> 0.2111922142 | C59: 0.3381725528 | D59: =IFERROR(INDIRECT("'TMP_BENCHMARK'!B" & (COUNTA($A$1:$A58)+1))*'2 - CHECK'!$H$6,0) -> 1099.893784 | E59: =IFERROR(INDIRECT("'TMP_BENCHMARK'!B" & (COUNTA($A$1:$A58)+1))*INDIRECT("'TMP_BENCHMARK'!D" & (COUNTA($A$1:$A58)+1)),0) -> 22.12253655 | F59: =IFERROR(INDIRECT("'TMP_BENCHMARK'!B" & (COUNTA($A$1:$A58)+1))*INDIRECT("'TMP_BENCHMARK'!F" & (COUNTA($A$1:$A58)+1)),0) -> 503095.8166 | G59: =IFERROR(('2 - CHECK'!$H$6*INDIRECT("'TMP_BENCHMARK'!B" & (COUNTA($A$1:$A58)+1))/INDIRECT("'TMP_BENCHMARK'!G" & (COUNTA($A$1:$A58)+1)))*INDIRECT("'TMP_BENCHMARK'!F" & (COUNTA($A$1:$A58)+1)),0) -> 1624.172093 | H59: =IFERROR(IF(INDIRECT("'TMP_BENCHMARK'!E" & (COUNTA($A$1:$A58)+1))<>"APPROX","REPORTED","APPROX"),0) -> APPROX
A60: =IFERROR(('2 - CHECK'!$H$6*INDIRECT("'TMP_BENCHMARK'!B" & (COUNTA($A$1:$A59)+1))/INDIRECT("'TMP_BENCHMARK'!G" & (COUNTA($A$1:$A59)+1)))*INDIRECT("'TMP_BENCHMARK'!D" & (COUNTA($A$1:$A59)+1)),0) -> 0.04134854943 | B60: =IFERROR(SUMIF(INDIRECT("'TMP_BENCHMARK'!I:I"),INDIRECT("'TMP_BENCHMARK'!I" & (COUNTA($A$1:$A59)+1)),INDIRECT("'TMP_BENCHMARK'!B:B")),0) -> 0.2111922142 | C60: 0.1957863342 | D60: =IFERROR(INDIRECT("'TMP_BENCHMARK'!B" & (COUNTA($A$1:$A59)+1))*'2 - CHECK'!$H$6,0) -> 1065.607251 | E60: =IFERROR(INDIRECT("'TMP_BENCHMARK'!B" & (COUNTA($A$1:$A59)+1))*INDIRECT("'TMP_BENCHMARK'!D" & (COUNTA($A$1:$A59)+1)),0) -> 12.40867355 | F60: =IFERROR(INDIRECT("'TMP_BENCHMARK'!B" & (COUNTA($A$1:$A59)+1))*INDIRECT("'TMP_BENCHMARK'!F" & (COUNTA($A$1:$A59)+1)),0) -> 564345.5999 | G60: =IFERROR(('2 - CHECK'!$H$6*INDIRECT("'TMP_BENCHMARK'!B" & (COUNTA($A$1:$A59)+1))/INDIRECT("'TMP_BENCHMARK'!G" & (COUNTA($A$1:$A59)+1)))*INDIRECT("'TMP_BENCHMARK'!F" & (COUNTA($A$1:$A59)+1)),0) -> 1880.529118 | H60: =IFERROR(IF(INDIRECT("'TMP_BENCHMARK'!E" & (COUNTA($A$1:$A59)+1))<>"APPROX","REPORTED","APPROX"),0) -> APPROX
A61: =IFERROR(('2 - CHECK'!$H$6*INDIRECT("'TMP_BENCHMARK'!B" & (COUNTA($A$1:$A60)+1))/INDIRECT("'TMP_BENCHMARK'!G" & (COUNTA($A$1:$A60)+1)))*INDIRECT("'TMP_BENCHMARK'!D" & (COUNTA($A$1:$A60)+1)),0) -> 0.003446232948 | B61: =IFERROR(SUMIF(INDIRECT("'TMP_BENCHMARK'!I:I"),INDIRECT("'TMP_BENCHMARK'!I" & (COUNTA($A$1:$A60)+1)),INDIRECT("'TMP_BENCHMARK'!B:B")),0) -> 0.259800746 | C61: 0.01326490782 | D61: =IFERROR(INDIRECT("'TMP_BENCHMARK'!B" & (COUNTA($A$1:$A60)+1))*'2 - CHECK'!$H$6,0) -> 1041.921493 | E61: =IFERROR(INDIRECT("'TMP_BENCHMARK'!B" & (COUNTA($A$1:$A60)+1))*INDIRECT("'TMP_BENCHMARK'!D" & (COUNTA($A$1:$A60)+1)),0) -> 1.011224402 | F61: =IFERROR(INDIRECT("'TMP_BENCHMARK'!B" & (COUNTA($A$1:$A60)+1))*INDIRECT("'TMP_BENCHMARK'!F" & (COUNTA($A$1:$A60)+1)),0) -> 63109.18481 | G61: =IFERROR(('2 - CHECK'!$H$6*INDIRECT("'TMP_BENCHMARK'!B" & (COUNTA($A$1:$A60)+1))/INDIRECT("'TMP_BENCHMARK'!G" & (COUNTA($A$1:$A60)+1)))*INDIRECT("'TMP_BENCHMARK'!F" & (COUNTA($A$1:$A60)+1)),0) -> 215.0748653 | H61: =IFERROR(IF(INDIRECT("'TMP_BENCHMARK'!E" & (COUNTA($A$1:$A60)+1))<>"APPROX","REPORTED","APPROX"),0) -> APPROX
A62: =IFERROR(('2 - CHECK'!$H$6*INDIRECT("'TMP_BENCHMARK'!B" & (COUNTA($A$1:$A61)+1))/INDIRECT("'TMP_BENCHMARK'!G" & (COUNTA($A$1:$A61)+1)))*INDIRECT("'TMP_BENCHMARK'!D" & (COUNTA($A$1:$A61)+1)),0) -> 0.03133026136 | B62: =IFERROR(SUMIF(INDIRECT("'TMP_BENCHMARK'!I:I"),INDIRECT("'TMP_BENCHMARK'!I" & (COUNTA($A$1:$A61)+1)),INDIRECT("'TMP_BENCHMARK'!B:B")),0) -> 0.0509091081 | C62: 0.6154156403 | D62: =IFERROR(INDIRECT("'TMP_BENCHMARK'!B" & (COUNTA($A$1:$A61)+1))*'2 - CHECK'!$H$6,0) -> 1034.061807 | E62: =IFERROR(INDIRECT("'TMP_BENCHMARK'!B" & (COUNTA($A$1:$A61)+1))*INDIRECT("'TMP_BENCHMARK'!D" & (COUNTA($A$1:$A61)+1)),0) -> 9.123856154 | F62: =IFERROR(INDIRECT("'TMP_BENCHMARK'!B" & (COUNTA($A$1:$A61)+1))*INDIRECT("'TMP_BENCHMARK'!F" & (COUNTA($A$1:$A61)+1)),0) -> 418536.5164 | G62: =IFERROR(('2 - CHECK'!$H$6*INDIRECT("'TMP_BENCHMARK'!B" & (COUNTA($A$1:$A61)+1))/INDIRECT("'TMP_BENCHMARK'!G" & (COUNTA($A$1:$A61)+1)))*INDIRECT("'TMP_BENCHMARK'!F" & (COUNTA($A$1:$A61)+1)),0) -> 1437.205741 | H62: =IFERROR(IF(INDIRECT("'TMP_BENCHMARK'!E" & (COUNTA($A$1:$A61)+1))<>"APPROX","REPORTED","APPROX"),0) -> APPROX
A63: =IFERROR(('2 - CHECK'!$H$6*INDIRECT("'TMP_BENCHMARK'!B" & (COUNTA($A$1:$A62)+1))/INDIRECT("'TMP_BENCHMARK'!G" & (COUNTA($A$1:$A62)+1)))*INDIRECT("'TMP_BENCHMARK'!D" & (COUNTA($A$1:$A62)+1)),0) -> 0.001396736726 | B63: =IFERROR(SUMIF(INDIRECT("'TMP_BENCHMARK'!I:I"),INDIRECT("'TMP_BENCHMARK'!I" & (COUNTA($A$1:$A62)+1)),INDIRECT("'TMP_BENCHMARK'!B:B")),0) -> 0.01975923385 | C63: 0.07068779774 | D63: =IFERROR(INDIRECT("'TMP_BENCHMARK'!B" & (COUNTA($A$1:$A62)+1))*'2 - CHECK'!$H$6,0) -> 1020.011691 | E63: =IFERROR(INDIRECT("'TMP_BENCHMARK'!B" & (COUNTA($A$1:$A62)+1))*INDIRECT("'TMP_BENCHMARK'!D" & (COUNTA($A$1:$A62)+1)),0) -> 0.4012246589 | F63: =IFERROR(INDIRECT("'TMP_BENCHMARK'!B" & (COUNTA($A$1:$A62)+1))*INDIRECT("'TMP_BENCHMARK'!F" & (COUNTA($A$1:$A62)+1)),0) -> 23902.95398 | G63: =IFERROR(('2 - CHECK'!$H$6*INDIRECT("'TMP_BENCHMARK'!B" & (COUNTA($A$1:$A62)+1))/INDIRECT("'TMP_BENCHMARK'!G" & (COUNTA($A$1:$A62)+1)))*INDIRECT("'TMP_BENCHMARK'!F" & (COUNTA($A$1:$A62)+1)),0) -> 83.21057279 | H63: =IFERROR(IF(INDIRECT("'TMP_BENCHMARK'!E" & (COUNTA($A$1:$A62)+1))<>"APPROX","REPORTED","APPROX"),0) -> APPROX
A64: =IFERROR(('2 - CHECK'!$H$6*INDIRECT("'TMP_BENCHMARK'!B" & (COUNTA($A$1:$A63)+1))/INDIRECT("'TMP_BENCHMARK'!G" & (COUNTA($A$1:$A63)+1)))*INDIRECT("'TMP_BENCHMARK'!D" & (COUNTA($A$1:$A63)+1)),0) -> 0.01834616298 | B64: =IFERROR(SUMIF(INDIRECT("'TMP_BENCHMARK'!I:I"),INDIRECT("'TMP_BENCHMARK'!I" & (COUNTA($A$1:$A63)+1)),INDIRECT("'TMP_BENCHMARK'!B:B")),0) -> 0.01975923385 | C64: 0.9284855433 | D64: =IFERROR(INDIRECT("'TMP_BENCHMARK'!B" & (COUNTA($A$1:$A63)+1))*'2 - CHECK'!$H$6,0) -> 976.4099465 | E64: =IFERROR(INDIRECT("'TMP_BENCHMARK'!B" & (COUNTA($A$1:$A63)+1))*INDIRECT("'TMP_BENCHMARK'!D" & (COUNTA($A$1:$A63)+1)),0) -> 5.044816294 | F64: =IFERROR(INDIRECT("'TMP_BENCHMARK'!B" & (COUNTA($A$1:$A63)+1))*INDIRECT("'TMP_BENCHMARK'!F" & (COUNTA($A$1:$A63)+1)),0) -> 389677.3984 | G64: =IFERROR(('2 - CHECK'!$H$6*INDIRECT("'TMP_BENCHMARK'!B" & (COUNTA($A$1:$A63)+1))/INDIRECT("'TMP_BENCHMARK'!G" & (COUNTA($A$1:$A63)+1)))*INDIRECT("'TMP_BENCHMARK'!F" & (COUNTA($A$1:$A63)+1)),0) -> 1417.115043 | H64: =IFERROR(IF(INDIRECT("'TMP_BENCHMARK'!E" & (COUNTA($A$1:$A63)+1))<>"APPROX","REPORTED","APPROX"),0) -> APPROX
A65: =IFERROR(('2 - CHECK'!$H$6*INDIRECT("'TMP_BENCHMARK'!B" & (COUNTA($A$1:$A64)+1))/INDIRECT("'TMP_BENCHMARK'!G" & (COUNTA($A$1:$A64)+1)))*INDIRECT("'TMP_BENCHMARK'!D" & (COUNTA($A$1:$A64)+1)),0) -> 0.08060631338 | B65: =IFERROR(SUMIF(INDIRECT("'TMP_BENCHMARK'!I:I"),INDIRECT("'TMP_BENCHMARK'!I" & (COUNTA($A$1:$A64)+1)),INDIRECT("'TMP_BENCHMARK'!B:B")),0) -> 0.09945778094 | C65: 0.8104575894 | D65: =IFERROR(INDIRECT("'TMP_BENCHMARK'!B" & (COUNTA($A$1:$A64)+1))*'2 - CHECK'!$H$6,0) -> 964.2527239 | E65: =IFERROR(INDIRECT("'TMP_BENCHMARK'!B" & (COUNTA($A$1:$A64)+1))*INDIRECT("'TMP_BENCHMARK'!D" & (COUNTA($A$1:$A64)+1)),0) -> 21.88909706 | F65: =IFERROR(INDIRECT("'TMP_BENCHMARK'!B" & (COUNTA($A$1:$A64)+1))*INDIRECT("'TMP_BENCHMARK'!F" & (COUNTA($A$1:$A64)+1)),0) -> 489811.4562 | G65: =IFERROR(('2 - CHECK'!$H$6*INDIRECT("'TMP_BENCHMARK'!B" & (COUNTA($A$1:$A64)+1))/INDIRECT("'TMP_BENCHMARK'!G" & (COUNTA($A$1:$A64)+1)))*INDIRECT("'TMP_BENCHMARK'!F" & (COUNTA($A$1:$A64)+1)),0) -> 1803.724275 | H65: =IFERROR(IF(INDIRECT("'TMP_BENCHMARK'!E" & (COUNTA($A$1:$A64)+1))<>"APPROX","REPORTED","APPROX"),0) -> APPROX
A66: =IFERROR(('2 - CHECK'!$H$6*INDIRECT("'TMP_BENCHMARK'!B" & (COUNTA($A$1:$A65)+1))/INDIRECT("'TMP_BENCHMARK'!G" & (COUNTA($A$1:$A65)+1)))*INDIRECT("'TMP_BENCHMARK'!D" & (COUNTA($A$1:$A65)+1)),0) -> 0.002079291387 | B66: =IFERROR(SUMIF(INDIRECT("'TMP_BENCHMARK'!I:I"),INDIRECT("'TMP_BENCHMARK'!I" & (COUNTA($A$1:$A65)+1)),INDIRECT("'TMP_BENCHMARK'!B:B")),0) -> 0.259800746 | C66: 0.008003408072 | D66: =IFERROR(INDIRECT("'TMP_BENCHMARK'!B" & (COUNTA($A$1:$A65)+1))*'2 - CHECK'!$H$6,0) -> 915.2594639 | E66: =IFERROR(INDIRECT("'TMP_BENCHMARK'!B" & (COUNTA($A$1:$A65)+1))*INDIRECT("'TMP_BENCHMARK'!D" & (COUNTA($A$1:$A65)+1)),0) -> 0.5359539758 | F66: =IFERROR(INDIRECT("'TMP_BENCHMARK'!B" & (COUNTA($A$1:$A65)+1))*INDIRECT("'TMP_BENCHMARK'!F" & (COUNTA($A$1:$A65)+1)),0) -> 24531.69941 | G66: =IFERROR(('2 - CHECK'!$H$6*INDIRECT("'TMP_BENCHMARK'!B" & (COUNTA($A$1:$A65)+1))/INDIRECT("'TMP_BENCHMARK'!G" & (COUNTA($A$1:$A65)+1)))*INDIRECT("'TMP_BENCHMARK'!F" & (COUNTA($A$1:$A65)+1)),0) -> 95.17337981 | H66: =IFERROR(IF(INDIRECT("'TMP_BENCHMARK'!E" & (COUNTA($A$1:$A65)+1))<>"APPROX","REPORTED","APPROX"),0) -> APPROX
A67: =IFERROR(('2 - CHECK'!$H$6*INDIRECT("'TMP_BENCHMARK'!B" & (COUNTA($A$1:$A66)+1))/INDIRECT("'TMP_BENCHMARK'!G" & (COUNTA($A$1:$A66)+1)))*INDIRECT("'TMP_BENCHMARK'!D" & (COUNTA($A$1:$A66)+1)),0) -> 0.04494055889 | B67: =IFERROR(SUMIF(INDIRECT("'TMP_BENCHMARK'!I:I"),INDIRECT("'TMP_BENCHMARK'!I" & (COUNTA($A$1:$A66)+1)),INDIRECT("'TMP_BENCHMARK'!B:B")),0) -> 0.02345299337 | C67: =IFERROR(A67/B67,0) -> 1.916197143 | D67: =IFERROR(INDIRECT("'TMP_BENCHMARK'!B" & (COUNTA($A$1:$A66)+1))*'2 - CHECK'!$H$6,0) -> 914.3637786 | E67: =IFERROR(INDIRECT("'TMP_BENCHMARK'!B" & (COUNTA($A$1:$A66)+1))*INDIRECT("'TMP_BENCHMARK'!D" & (COUNTA($A$1:$A66)+1)),0) -> 11.57245223 | F67: =IFERROR(INDIRECT("'TMP_BENCHMARK'!B" & (COUNTA($A$1:$A66)+1))*INDIRECT("'TMP_BENCHMARK'!F" & (COUNTA($A$1:$A66)+1)),0) -> 381163.5135 | G67: =IFERROR(('2 - CHECK'!$H$6*INDIRECT("'TMP_BENCHMARK'!B" & (COUNTA($A$1:$A66)+1))/INDIRECT("'TMP_BENCHMARK'!G" & (COUNTA($A$1:$A66)+1)))*INDIRECT("'TMP_BENCHMARK'!F" & (COUNTA($A$1:$A66)+1)),0) -> 1480.213613 | H67: =IFERROR(IF(INDIRECT("'TMP_BENCHMARK'!E" & (COUNTA($A$1:$A66)+1))<>"APPROX","REPORTED","APPROX"),0) -> APPROX
A68: =IFERROR(('2 - CHECK'!$H$6*INDIRECT("'TMP_BENCHMARK'!B" & (COUNTA($A$1:$A67)+1))/INDIRECT("'TMP_BENCHMARK'!G" & (COUNTA($A$1:$A67)+1)))*INDIRECT("'TMP_BENCHMARK'!D" & (COUNTA($A$1:$A67)+1)),0) -> 0.00469765832 | B68: =IFERROR(SUMIF(INDIRECT("'TMP_BENCHMARK'!I:I"),INDIRECT("'TMP_BENCHMARK'!I" & (COUNTA($A$1:$A67)+1)),INDIRECT("'TMP_BENCHMARK'!B:B")),0) -> 0.259800746 | C68: 0.01808177379 | D68: =IFERROR(INDIRECT("'TMP_BENCHMARK'!B" & (COUNTA($A$1:$A67)+1))*'2 - CHECK'!$H$6,0) -> 844.6147917 | E68: =IFERROR(INDIRECT("'TMP_BENCHMARK'!B" & (COUNTA($A$1:$A67)+1))*INDIRECT("'TMP_BENCHMARK'!D" & (COUNTA($A$1:$A67)+1)),0) -> 1.117398342 | F68: =IFERROR(INDIRECT("'TMP_BENCHMARK'!B" & (COUNTA($A$1:$A67)+1))*INDIRECT("'TMP_BENCHMARK'!F" & (COUNTA($A$1:$A67)+1)),0) -> 53443.84556 | G68: =IFERROR(('2 - CHECK'!$H$6*INDIRECT("'TMP_BENCHMARK'!B" & (COUNTA($A$1:$A67)+1))/INDIRECT("'TMP_BENCHMARK'!G" & (COUNTA($A$1:$A67)+1)))*INDIRECT("'TMP_BENCHMARK'!F" & (COUNTA($A$1:$A67)+1)),0) -> 224.6834601 | H68: =IFERROR(IF(INDIRECT("'TMP_BENCHMARK'!E" & (COUNTA($A$1:$A67)+1))<>"APPROX","REPORTED","APPROX"),0) -> APPROX
A69: =IFERROR(('2 - CHECK'!$H$6*INDIRECT("'TMP_BENCHMARK'!B" & (COUNTA($A$1:$A68)+1))/INDIRECT("'TMP_BENCHMARK'!G" & (COUNTA($A$1:$A68)+1)))*INDIRECT("'TMP_BENCHMARK'!D" & (COUNTA($A$1:$A68)+1)),0) -> 0.503838044 | B69: =IFERROR(SUMIF(INDIRECT("'TMP_BENCHMARK'!I:I"),INDIRECT("'TMP_BENCHMARK'!I" & (COUNTA($A$1:$A68)+1)),INDIRECT("'TMP_BENCHMARK'!B:B")),0) -> 0.1508628455 | C69: 3.339709272 | D69: =IFERROR(INDIRECT("'TMP_BENCHMARK'!B" & (COUNTA($A$1:$A68)+1))*'2 - CHECK'!$H$6,0) -> 789.2448165 | E69: =IFERROR(INDIRECT("'TMP_BENCHMARK'!B" & (COUNTA($A$1:$A68)+1))*INDIRECT("'TMP_BENCHMARK'!D" & (COUNTA($A$1:$A68)+1)),0) -> 111.9877733 | F69: =IFERROR(INDIRECT("'TMP_BENCHMARK'!B" & (COUNTA($A$1:$A68)+1))*INDIRECT("'TMP_BENCHMARK'!F" & (COUNTA($A$1:$A68)+1)),0) -> 121204.3265 | G69: =IFERROR(('2 - CHECK'!$H$6*INDIRECT("'TMP_BENCHMARK'!B" & (COUNTA($A$1:$A68)+1))/INDIRECT("'TMP_BENCHMARK'!G" & (COUNTA($A$1:$A68)+1)))*INDIRECT("'TMP_BENCHMARK'!F" & (COUNTA($A$1:$A68)+1)),0) -> 545.3037323 | H69: =IFERROR(IF(INDIRECT("'TMP_BENCHMARK'!E" & (COUNTA($A$1:$A68)+1))<>"APPROX","REPORTED","APPROX"),0) -> APPROX
A70: =IFERROR(('2 - CHECK'!$H$6*INDIRECT("'TMP_BENCHMARK'!B" & (COUNTA($A$1:$A69)+1))/INDIRECT("'TMP_BENCHMARK'!G" & (COUNTA($A$1:$A69)+1)))*INDIRECT("'TMP_BENCHMARK'!D" & (COUNTA($A$1:$A69)+1)),0) -> 0.05475063234 | B70: =IFERROR(SUMIF(INDIRECT("'TMP_BENCHMARK'!I:I"),INDIRECT("'TMP_BENCHMARK'!I" & (COUNTA($A$1:$A69)+1)),INDIRECT("'TMP_BENCHMARK'!B:B")),0) -> 0.2111922142 | C70: 0.2592455055 | D70: =IFERROR(INDIRECT("'TMP_BENCHMARK'!B" & (COUNTA($A$1:$A69)+1))*'2 - CHECK'!$H$6,0) -> 773.3692687 | E70: =IFERROR(INDIRECT("'TMP_BENCHMARK'!B" & (COUNTA($A$1:$A69)+1))*INDIRECT("'TMP_BENCHMARK'!D" & (COUNTA($A$1:$A69)+1)),0) -> 11.92460395 | F70: =IFERROR(INDIRECT("'TMP_BENCHMARK'!B" & (COUNTA($A$1:$A69)+1))*INDIRECT("'TMP_BENCHMARK'!F" & (COUNTA($A$1:$A69)+1)),0) -> 683768.2519 | G70: =IFERROR(('2 - CHECK'!$H$6*INDIRECT("'TMP_BENCHMARK'!B" & (COUNTA($A$1:$A69)+1))/INDIRECT("'TMP_BENCHMARK'!G" & (COUNTA($A$1:$A69)+1)))*INDIRECT("'TMP_BENCHMARK'!F" & (COUNTA($A$1:$A69)+1)),0) -> 3139.453881 | H70: =IFERROR(IF(INDIRECT("'TMP_BENCHMARK'!E" & (COUNTA($A$1:$A69)+1))<>"APPROX","REPORTED","APPROX"),0) -> APPROX
A71: =IFERROR(('2 - CHECK'!$H$6*INDIRECT("'TMP_BENCHMARK'!B" & (COUNTA($A$1:$A70)+1))/INDIRECT("'TMP_BENCHMARK'!G" & (COUNTA($A$1:$A70)+1)))*INDIRECT("'TMP_BENCHMARK'!D" & (COUNTA($A$1:$A70)+1)),0) -> 0.003280592989 | B71: =IFERROR(SUMIF(INDIRECT("'TMP_BENCHMARK'!I:I"),INDIRECT("'TMP_BENCHMARK'!I" & (COUNTA($A$1:$A70)+1)),INDIRECT("'TMP_BENCHMARK'!B:B")),0) -> 0.259800746 | C71: 0.01262734245 | D71: =IFERROR(INDIRECT("'TMP_BENCHMARK'!B" & (COUNTA($A$1:$A70)+1))*'2 - CHECK'!$H$6,0) -> 768.5191595 | E71: =IFERROR(INDIRECT("'TMP_BENCHMARK'!B" & (COUNTA($A$1:$A70)+1))*INDIRECT("'TMP_BENCHMARK'!D" & (COUNTA($A$1:$A70)+1)),0) -> 0.7100271663 | F71: =IFERROR(INDIRECT("'TMP_BENCHMARK'!B" & (COUNTA($A$1:$A70)+1))*INDIRECT("'TMP_BENCHMARK'!F" & (COUNTA($A$1:$A70)+1)),0) -> 110974.1666 | G71: =IFERROR(('2 - CHECK'!$H$6*INDIRECT("'TMP_BENCHMARK'!B" & (COUNTA($A$1:$A70)+1))/INDIRECT("'TMP_BENCHMARK'!G" & (COUNTA($A$1:$A70)+1)))*INDIRECT("'TMP_BENCHMARK'!F" & (COUNTA($A$1:$A70)+1)),0) -> 512.7424559 | H71: =IFERROR(IF(INDIRECT("'TMP_BENCHMARK'!E" & (COUNTA($A$1:$A70)+1))<>"APPROX","REPORTED","APPROX"),0) -> APPROX
A72: =IFERROR(('2 - CHECK'!$H$6*INDIRECT("'TMP_BENCHMARK'!B" & (COUNTA($A$1:$A71)+1))/INDIRECT("'TMP_BENCHMARK'!G" & (COUNTA($A$1:$A71)+1)))*INDIRECT("'TMP_BENCHMARK'!D" & (COUNTA($A$1:$A71)+1)),0) -> 0.02483824945 | B72: =IFERROR(SUMIF(INDIRECT("'TMP_BENCHMARK'!I:I"),INDIRECT("'TMP_BENCHMARK'!I" & (COUNTA($A$1:$A71)+1)),INDIRECT("'TMP_BENCHMARK'!B:B")),0) -> 0.09945778094 | C72: 0.2497366141 | D72: =IFERROR(INDIRECT("'TMP_BENCHMARK'!B" & (COUNTA($A$1:$A71)+1))*'2 - CHECK'!$H$6,0) -> 716.0866967 | E72: =IFERROR(INDIRECT("'TMP_BENCHMARK'!B" & (COUNTA($A$1:$A71)+1))*INDIRECT("'TMP_BENCHMARK'!D" & (COUNTA($A$1:$A71)+1)),0) -> 5.009040049 | F72: =IFERROR(INDIRECT("'TMP_BENCHMARK'!B" & (COUNTA($A$1:$A71)+1))*INDIRECT("'TMP_BENCHMARK'!F" & (COUNTA($A$1:$A71)+1)),0) -> 45967.75332 | G72: =IFERROR(('2 - CHECK'!$H$6*INDIRECT("'TMP_BENCHMARK'!B" & (COUNTA($A$1:$A71)+1))/INDIRECT("'TMP_BENCHMARK'!G" & (COUNTA($A$1:$A71)+1)))*INDIRECT("'TMP_BENCHMARK'!F" & (COUNTA($A$1:$A71)+1)),0) -> 227.9395877 | H72: =IFERROR(IF(INDIRECT("'TMP_BENCHMARK'!E" & (COUNTA($A$1:$A71)+1))<>"APPROX","REPORTED","APPROX"),0) -> APPROX
A73: =IFERROR(('2 - CHECK'!$H$6*INDIRECT("'TMP_BENCHMARK'!B" & (COUNTA($A$1:$A72)+1))/INDIRECT("'TMP_BENCHMARK'!G" & (COUNTA($A$1:$A72)+1)))*INDIRECT("'TMP_BENCHMARK'!D" & (COUNTA($A$1:$A72)+1)),0) -> 0.002328305258 | B73: =IFERROR(SUMIF(INDIRECT("'TMP_BENCHMARK'!I:I"),INDIRECT("'TMP_BENCHMARK'!I" & (COUNTA($A$1:$A72)+1)),INDIRECT("'TMP_BENCHMARK'!B:B")),0) -> 0.2111922142 | C73: 0.01102457904 | D73: =IFERROR(INDIRECT("'TMP_BENCHMARK'!B" & (COUNTA($A$1:$A72)+1))*'2 - CHECK'!$H$6,0) -> 684.3272722 | E73: =IFERROR(INDIRECT("'TMP_BENCHMARK'!B" & (COUNTA($A$1:$A72)+1))*INDIRECT("'TMP_BENCHMARK'!D" & (COUNTA($A$1:$A72)+1)),0) -> 0.4487161297 | F73: =IFERROR(INDIRECT("'TMP_BENCHMARK'!B" & (COUNTA($A$1:$A72)+1))*INDIRECT("'TMP_BENCHMARK'!F" & (COUNTA($A$1:$A72)+1)),0) -> 125873.7898 | G73: =IFERROR(('2 - CHECK'!$H$6*INDIRECT("'TMP_BENCHMARK'!B" & (COUNTA($A$1:$A72)+1))/INDIRECT("'TMP_BENCHMARK'!G" & (COUNTA($A$1:$A72)+1)))*INDIRECT("'TMP_BENCHMARK'!F" & (COUNTA($A$1:$A72)+1)),0) -> 653.1358854 | H73: =IFERROR(IF(INDIRECT("'TMP_BENCHMARK'!E" & (COUNTA($A$1:$A72)+1))<>"APPROX","REPORTED","APPROX"),0) -> APPROX
A74: =IFERROR(('2 - CHECK'!$H$6*INDIRECT("'TMP_BENCHMARK'!B" & (COUNTA($A$1:$A73)+1))/INDIRECT("'TMP_BENCHMARK'!G" & (COUNTA($A$1:$A73)+1)))*INDIRECT("'TMP_BENCHMARK'!D" & (COUNTA($A$1:$A73)+1)),0) -> 0.0005394590365 | B74: =IFERROR(SUMIF(INDIRECT("'TMP_BENCHMARK'!I:I"),INDIRECT("'TMP_BENCHMARK'!I" & (COUNTA($A$1:$A73)+1)),INDIRECT("'TMP_BENCHMARK'!B:B")),0) -> 0.259800746 | C74: 0.002076433747 | D74: =IFERROR(INDIRECT("'TMP_BENCHMARK'!B" & (COUNTA($A$1:$A73)+1))*'2 - CHECK'!$H$6,0) -> 655.5173351 | E74: =IFERROR(INDIRECT("'TMP_BENCHMARK'!B" & (COUNTA($A$1:$A73)+1))*INDIRECT("'TMP_BENCHMARK'!D" & (COUNTA($A$1:$A73)+1)),0) -> 0.09958881562 | F74: =IFERROR(INDIRECT("'TMP_BENCHMARK'!B" & (COUNTA($A$1:$A73)+1))*INDIRECT("'TMP_BENCHMARK'!F" & (COUNTA($A$1:$A73)+1)),0) -> 4860.023877 | G74: =IFERROR(('2 - CHECK'!$H$6*INDIRECT("'TMP_BENCHMARK'!B" & (COUNTA($A$1:$A73)+1))/INDIRECT("'TMP_BENCHMARK'!G" & (COUNTA($A$1:$A73)+1)))*INDIRECT("'TMP_BENCHMARK'!F" & (COUNTA($A$1:$A73)+1)),0) -> 26.32608674 | H74: =IFERROR(IF(INDIRECT("'TMP_BENCHMARK'!E" & (COUNTA($A$1:$A73)+1))<>"APPROX","REPORTED","APPROX"),0) -> APPROX
A75: =IFERROR(('2 - CHECK'!$H$6*INDIRECT("'TMP_BENCHMARK'!B" & (COUNTA($A$1:$A74)+1))/INDIRECT("'TMP_BENCHMARK'!G" & (COUNTA($A$1:$A74)+1)))*INDIRECT("'TMP_BENCHMARK'!D" & (COUNTA($A$1:$A74)+1)),0) -> 2.697271456 | B75: =IFERROR(SUMIF(INDIRECT("'TMP_BENCHMARK'!I:I"),INDIRECT("'TMP_BENCHMARK'!I" & (COUNTA($A$1:$A74)+1)),INDIRECT("'TMP_BENCHMARK'!B:B")),0) -> 0.0509091081 | C75: 52.98209999 | D75: =IFERROR(INDIRECT("'TMP_BENCHMARK'!B" & (COUNTA($A$1:$A74)+1))*'2 - CHECK'!$H$6,0) -> 623.1738297 | E75: =IFERROR(INDIRECT("'TMP_BENCHMARK'!B" & (COUNTA($A$1:$A74)+1))*INDIRECT("'TMP_BENCHMARK'!D" & (COUNTA($A$1:$A74)+1)),0) -> 473.3711405 | F75: =IFERROR(INDIRECT("'TMP_BENCHMARK'!B" & (COUNTA($A$1:$A74)+1))*INDIRECT("'TMP_BENCHMARK'!F" & (COUNTA($A$1:$A74)+1)),0) -> 323738.8045 | G75: =IFERROR(('2 - CHECK'!$H$6*INDIRECT("'TMP_BENCHMARK'!B" & (COUNTA($A$1:$A74)+1))/INDIRECT("'TMP_BENCHMARK'!G" & (COUNTA($A$1:$A74)+1)))*INDIRECT("'TMP_BENCHMARK'!F" & (COUNTA($A$1:$A74)+1)),0) -> 1844.665553 | H75: =IFERROR(IF(INDIRECT("'TMP_BENCHMARK'!E" & (COUNTA($A$1:$A74)+1))<>"APPROX","REPORTED","APPROX"),0) -> APPROX
A76: =IFERROR(('2 - CHECK'!$H$6*INDIRECT("'TMP_BENCHMARK'!B" & (COUNTA($A$1:$A75)+1))/INDIRECT("'TMP_BENCHMARK'!G" & (COUNTA($A$1:$A75)+1)))*INDIRECT("'TMP_BENCHMARK'!D" & (COUNTA($A$1:$A75)+1)),0) -> 0.7683650443 | B76: =IFERROR(SUMIF(INDIRECT("'TMP_BENCHMARK'!I:I"),INDIRECT("'TMP_BENCHMARK'!I" & (COUNTA($A$1:$A75)+1)),INDIRECT("'TMP_BENCHMARK'!B:B")),0) -> 0.02345299337 | C76: 32.76191795 | D76: =IFERROR(INDIRECT("'TMP_BENCHMARK'!B" & (COUNTA($A$1:$A75)+1))*'2 - CHECK'!$H$6,0) -> 611.5732584 | E76: =IFERROR(INDIRECT("'TMP_BENCHMARK'!B" & (COUNTA($A$1:$A75)+1))*INDIRECT("'TMP_BENCHMARK'!D" & (COUNTA($A$1:$A75)+1)),0) -> 132.3378273 | F76: =IFERROR(INDIRECT("'TMP_BENCHMARK'!B" & (COUNTA($A$1:$A75)+1))*INDIRECT("'TMP_BENCHMARK'!F" & (COUNTA($A$1:$A75)+1)),0) -> 1145415.556 | G76: =IFERROR(('2 - CHECK'!$H$6*INDIRECT("'TMP_BENCHMARK'!B" & (COUNTA($A$1:$A75)+1))/INDIRECT("'TMP_BENCHMARK'!G" & (COUNTA($A$1:$A75)+1)))*INDIRECT("'TMP_BENCHMARK'!F" & (COUNTA($A$1:$A75)+1)),0) -> 6650.38328 | H76: =IFERROR(IF(INDIRECT("'TMP_BENCHMARK'!E" & (COUNTA($A$1:$A75)+1))<>"APPROX","REPORTED","APPROX"),0) -> APPROX
A77: =IFERROR(('2 - CHECK'!$H$6*INDIRECT("'TMP_BENCHMARK'!B" & (COUNTA($A$1:$A76)+1))/INDIRECT("'TMP_BENCHMARK'!G" & (COUNTA($A$1:$A76)+1)))*INDIRECT("'TMP_BENCHMARK'!D" & (COUNTA($A$1:$A76)+1)),0) -> 0.02296624592 | B77: =IFERROR(SUMIF(INDIRECT("'TMP_BENCHMARK'!I:I"),INDIRECT("'TMP_BENCHMARK'!I" & (COUNTA($A$1:$A76)+1)),INDIRECT("'TMP_BENCHMARK'!B:B")),0) -> 0.0509091081 | C77: 0.4511225354 | D77: =IFERROR(INDIRECT("'TMP_BENCHMARK'!B" & (COUNTA($A$1:$A76)+1))*'2 - CHECK'!$H$6,0) -> 505.7477945 | E77: =IFERROR(INDIRECT("'TMP_BENCHMARK'!B" & (COUNTA($A$1:$A76)+1))*INDIRECT("'TMP_BENCHMARK'!D" & (COUNTA($A$1:$A76)+1)),0) -> 3.2710857 | F77: =IFERROR(INDIRECT("'TMP_BENCHMARK'!B" & (COUNTA($A$1:$A76)+1))*INDIRECT("'TMP_BENCHMARK'!F" & (COUNTA($A$1:$A76)+1)),0) -> 65783.57655 | G77: =IFERROR(('2 - CHECK'!$H$6*INDIRECT("'TMP_BENCHMARK'!B" & (COUNTA($A$1:$A76)+1))/INDIRECT("'TMP_BENCHMARK'!G" & (COUNTA($A$1:$A76)+1)))*INDIRECT("'TMP_BENCHMARK'!F" & (COUNTA($A$1:$A76)+1)),0) -> 461.8655502 | H77: =IFERROR(IF(INDIRECT("'TMP_BENCHMARK'!E" & (COUNTA($A$1:$A76)+1))<>"APPROX","REPORTED","APPROX"),0) -> APPROX
A78: =IFERROR(('2 - CHECK'!$H$6*INDIRECT("'TMP_BENCHMARK'!B" & (COUNTA($A$1:$A77)+1))/INDIRECT("'TMP_BENCHMARK'!G" & (COUNTA($A$1:$A77)+1)))*INDIRECT("'TMP_BENCHMARK'!D" & (COUNTA($A$1:$A77)+1)),0) -> 0.02948274803 | B78: =IFERROR(SUMIF(INDIRECT("'TMP_BENCHMARK'!I:I"),INDIRECT("'TMP_BENCHMARK'!I" & (COUNTA($A$1:$A77)+1)),INDIRECT("'TMP_BENCHMARK'!B:B")),0) -> 0.2111922142 | C78: 0.1396014912 | D78: =IFERROR(INDIRECT("'TMP_BENCHMARK'!B" & (COUNTA($A$1:$A77)+1))*'2 - CHECK'!$H$6,0) -> 484.3812397 | E78: =IFERROR(INDIRECT("'TMP_BENCHMARK'!B" & (COUNTA($A$1:$A77)+1))*INDIRECT("'TMP_BENCHMARK'!D" & (COUNTA($A$1:$A77)+1)),0) -> 4.021825183 | F78: =IFERROR(INDIRECT("'TMP_BENCHMARK'!B" & (COUNTA($A$1:$A77)+1))*INDIRECT("'TMP_BENCHMARK'!F" & (COUNTA($A$1:$A77)+1)),0) -> 30967.3768 | G78: =IFERROR(('2 - CHECK'!$H$6*INDIRECT("'TMP_BENCHMARK'!B" & (COUNTA($A$1:$A77)+1))/INDIRECT("'TMP_BENCHMARK'!G" & (COUNTA($A$1:$A77)+1)))*INDIRECT("'TMP_BENCHMARK'!F" & (COUNTA($A$1:$A77)+1)),0) -> 227.0121961 | H78: =IFERROR(IF(INDIRECT("'TMP_BENCHMARK'!E" & (COUNTA($A$1:$A77)+1))<>"APPROX","REPORTED","APPROX"),0) -> APPROX
A79: =IFERROR(('2 - CHECK'!$H$6*INDIRECT("'TMP_BENCHMARK'!B" & (COUNTA($A$1:$A78)+1))/INDIRECT("'TMP_BENCHMARK'!G" & (COUNTA($A$1:$A78)+1)))*INDIRECT("'TMP_BENCHMARK'!D" & (COUNTA($A$1:$A78)+1)),0) -> 0.06874987911 | B79: =IFERROR(SUMIF(INDIRECT("'TMP_BENCHMARK'!I:I"),INDIRECT("'TMP_BENCHMARK'!I" & (COUNTA($A$1:$A78)+1)),INDIRECT("'TMP_BENCHMARK'!B:B")),0) -> 0.0509091081 | C79: 1.350443598 | D79: =IFERROR(INDIRECT("'TMP_BENCHMARK'!B" & (COUNTA($A$1:$A78)+1))*'2 - CHECK'!$H$6,0) -> 461.148634 | E79: =IFERROR(INDIRECT("'TMP_BENCHMARK'!B" & (COUNTA($A$1:$A78)+1))*INDIRECT("'TMP_BENCHMARK'!D" & (COUNTA($A$1:$A78)+1)),0) -> 8.9285468 | F79: =IFERROR(INDIRECT("'TMP_BENCHMARK'!B" & (COUNTA($A$1:$A78)+1))*INDIRECT("'TMP_BENCHMARK'!F" & (COUNTA($A$1:$A78)+1)),0) -> 120175.334 | G79: =IFERROR(('2 - CHECK'!$H$6*INDIRECT("'TMP_BENCHMARK'!B" & (COUNTA($A$1:$A78)+1))/INDIRECT("'TMP_BENCHMARK'!G" & (COUNTA($A$1:$A78)+1)))*INDIRECT("'TMP_BENCHMARK'!F" & (COUNTA($A$1:$A78)+1)),0) -> 925.3509973 | H79: =IFERROR(IF(INDIRECT("'TMP_BENCHMARK'!E" & (COUNTA($A$1:$A78)+1))<>"APPROX","REPORTED","APPROX"),0) -> APPROX
A80: =IFERROR(('2 - CHECK'!$H$6*INDIRECT("'TMP_BENCHMARK'!B" & (COUNTA($A$1:$A79)+1))/INDIRECT("'TMP_BENCHMARK'!G" & (COUNTA($A$1:$A79)+1)))*INDIRECT("'TMP_BENCHMARK'!D" & (COUNTA($A$1:$A79)+1)),0) -> 0.04226271526 | B80: =IFERROR(SUMIF(INDIRECT("'TMP_BENCHMARK'!I:I"),INDIRECT("'TMP_BENCHMARK'!I" & (COUNTA($A$1:$A79)+1)),INDIRECT("'TMP_BENCHMARK'!B:B")),0) -> 0.09945778094 | C80: 0.4249312106 | D80: =IFERROR(INDIRECT("'TMP_BENCHMARK'!B" & (COUNTA($A$1:$A79)+1))*'2 - CHECK'!$H$6,0) -> 450.3317845 | E80: =IFERROR(INDIRECT("'TMP_BENCHMARK'!B" & (COUNTA($A$1:$A79)+1))*INDIRECT("'TMP_BENCHMARK'!D" & (COUNTA($A$1:$A79)+1)),0) -> 5.359915098 | F80: =IFERROR(INDIRECT("'TMP_BENCHMARK'!B" & (COUNTA($A$1:$A79)+1))*INDIRECT("'TMP_BENCHMARK'!F" & (COUNTA($A$1:$A79)+1)),0) -> 116873.7074 | G80: =IFERROR(('2 - CHECK'!$H$6*INDIRECT("'TMP_BENCHMARK'!B" & (COUNTA($A$1:$A79)+1))/INDIRECT("'TMP_BENCHMARK'!G" & (COUNTA($A$1:$A79)+1)))*INDIRECT("'TMP_BENCHMARK'!F" & (COUNTA($A$1:$A79)+1)),0) -> 921.5444882 | H80: =IFERROR(IF(INDIRECT("'TMP_BENCHMARK'!E" & (COUNTA($A$1:$A79)+1))<>"APPROX","REPORTED","APPROX"),0) -> APPROX
A81: =IFERROR(('2 - CHECK'!$H$6*INDIRECT("'TMP_BENCHMARK'!B" & (COUNTA($A$1:$A80)+1))/INDIRECT("'TMP_BENCHMARK'!G" & (COUNTA($A$1:$A80)+1)))*INDIRECT("'TMP_BENCHMARK'!D" & (COUNTA($A$1:$A80)+1)),0) -> 0.00180546064 | B81: =IFERROR(SUMIF(INDIRECT("'TMP_BENCHMARK'!I:I"),INDIRECT("'TMP_BENCHMARK'!I" & (COUNTA($A$1:$A80)+1)),INDIRECT("'TMP_BENCHMARK'!B:B")),0) -> 0.09945778094 | C81: 0.01815303562 | D81: =IFERROR(INDIRECT("'TMP_BENCHMARK'!B" & (COUNTA($A$1:$A80)+1))*'2 - CHECK'!$H$6,0) -> 440.155827 | E81: =IFERROR(INDIRECT("'TMP_BENCHMARK'!B" & (COUNTA($A$1:$A80)+1))*INDIRECT("'TMP_BENCHMARK'!D" & (COUNTA($A$1:$A80)+1)),0) -> 0.2238011916 | F81: =IFERROR(INDIRECT("'TMP_BENCHMARK'!B" & (COUNTA($A$1:$A80)+1))*INDIRECT("'TMP_BENCHMARK'!F" & (COUNTA($A$1:$A80)+1)),0) -> 14258.84801 | G81: =IFERROR(('2 - CHECK'!$H$6*INDIRECT("'TMP_BENCHMARK'!B" & (COUNTA($A$1:$A80)+1))/INDIRECT("'TMP_BENCHMARK'!G" & (COUNTA($A$1:$A80)+1)))*INDIRECT("'TMP_BENCHMARK'!F" & (COUNTA($A$1:$A80)+1)),0) -> 115.029722 | H81: =IFERROR(IF(INDIRECT("'TMP_BENCHMARK'!E" & (COUNTA($A$1:$A80)+1))<>"APPROX","REPORTED","APPROX"),0) -> APPROX
A82: =IFERROR(('2 - CHECK'!$H$6*INDIRECT("'TMP_BENCHMARK'!B" & (COUNTA($A$1:$A81)+1))/INDIRECT("'TMP_BENCHMARK'!G" & (COUNTA($A$1:$A81)+1)))*INDIRECT("'TMP_BENCHMARK'!D" & (COUNTA($A$1:$A81)+1)),0) -> 0.01930549914 | B82: =IFERROR(SUMIF(INDIRECT("'TMP_BENCHMARK'!I:I"),INDIRECT("'TMP_BENCHMARK'!I" & (COUNTA($A$1:$A81)+1)),INDIRECT("'TMP_BENCHMARK'!B:B")),0) -> 0.2111922142 | C82: 0.09141198323 | D82: =IFERROR(INDIRECT("'TMP_BENCHMARK'!B" & (COUNTA($A$1:$A81)+1))*'2 - CHECK'!$H$6,0) -> 437.5645831 | E82: =IFERROR(INDIRECT("'TMP_BENCHMARK'!B" & (COUNTA($A$1:$A81)+1))*INDIRECT("'TMP_BENCHMARK'!D" & (COUNTA($A$1:$A81)+1)),0) -> 2.378981755 | F82: =IFERROR(INDIRECT("'TMP_BENCHMARK'!B" & (COUNTA($A$1:$A81)+1))*INDIRECT("'TMP_BENCHMARK'!F" & (COUNTA($A$1:$A81)+1)),0) -> 49501.68129 | G82: =IFERROR(('2 - CHECK'!$H$6*INDIRECT("'TMP_BENCHMARK'!B" & (COUNTA($A$1:$A81)+1))/INDIRECT("'TMP_BENCHMARK'!G" & (COUNTA($A$1:$A81)+1)))*INDIRECT("'TMP_BENCHMARK'!F" & (COUNTA($A$1:$A81)+1)),0) -> 401.7074379 | H82: =IFERROR(IF(INDIRECT("'TMP_BENCHMARK'!E" & (COUNTA($A$1:$A81)+1))<>"APPROX","REPORTED","APPROX"),0) -> APPROX
A83: =IFERROR(('2 - CHECK'!$H$6*INDIRECT("'TMP_BENCHMARK'!B" & (COUNTA($A$1:$A82)+1))/INDIRECT("'TMP_BENCHMARK'!G" & (COUNTA($A$1:$A82)+1)))*INDIRECT("'TMP_BENCHMARK'!D" & (COUNTA($A$1:$A82)+1)),0) -> 0.02957152988 | B83: =IFERROR(SUMIF(INDIRECT("'TMP_BENCHMARK'!I:I"),INDIRECT("'TMP_BENCHMARK'!I" & (COUNTA($A$1:$A82)+1)),INDIRECT("'TMP_BENCHMARK'!B:B")),0) -> 0.0509091081 | C83: 0.5808691408 | D83: =IFERROR(INDIRECT("'TMP_BENCHMARK'!B" & (COUNTA($A$1:$A82)+1))*'2 - CHECK'!$H$6,0) -> 372.7740538 | E83: =IFERROR(INDIRECT("'TMP_BENCHMARK'!B" & (COUNTA($A$1:$A82)+1))*INDIRECT("'TMP_BENCHMARK'!D" & (COUNTA($A$1:$A82)+1)),0) -> 3.104469403 | F83: =IFERROR(INDIRECT("'TMP_BENCHMARK'!B" & (COUNTA($A$1:$A82)+1))*INDIRECT("'TMP_BENCHMARK'!F" & (COUNTA($A$1:$A82)+1)),0) -> 56673.95772 | G83: =IFERROR(('2 - CHECK'!$H$6*INDIRECT("'TMP_BENCHMARK'!B" & (COUNTA($A$1:$A82)+1))/INDIRECT("'TMP_BENCHMARK'!G" & (COUNTA($A$1:$A82)+1)))*INDIRECT("'TMP_BENCHMARK'!F" & (COUNTA($A$1:$A82)+1)),0) -> 539.8460789 | H83: =IFERROR(IF(INDIRECT("'TMP_BENCHMARK'!E" & (COUNTA($A$1:$A82)+1))<>"APPROX","REPORTED","APPROX"),0) -> APPROX
A84: =IFERROR(('2 - CHECK'!$H$6*INDIRECT("'TMP_BENCHMARK'!B" & (COUNTA($A$1:$A83)+1))/INDIRECT("'TMP_BENCHMARK'!G" & (COUNTA($A$1:$A83)+1)))*INDIRECT("'TMP_BENCHMARK'!D" & (COUNTA($A$1:$A83)+1)),0) -> 0.02496836673 | B84: =IFERROR(SUMIF(INDIRECT("'TMP_BENCHMARK'!I:I"),INDIRECT("'TMP_BENCHMARK'!I" & (COUNTA($A$1:$A83)+1)),INDIRECT("'TMP_BENCHMARK'!B:B")),0) -> 0.0509091081 | C84: 0.4904498951 | D84: =IFERROR(INDIRECT("'TMP_BENCHMARK'!B" & (COUNTA($A$1:$A83)+1))*'2 - CHECK'!$H$6,0) -> 363.5784488 | E84: =IFERROR(INDIRECT("'TMP_BENCHMARK'!B" & (COUNTA($A$1:$A83)+1))*INDIRECT("'TMP_BENCHMARK'!D" & (COUNTA($A$1:$A83)+1)),0) -> 2.556561126 | F84: =IFERROR(INDIRECT("'TMP_BENCHMARK'!B" & (COUNTA($A$1:$A83)+1))*INDIRECT("'TMP_BENCHMARK'!F" & (COUNTA($A$1:$A83)+1)),0) -> 28160.40314 | G84: =IFERROR(('2 - CHECK'!$H$6*INDIRECT("'TMP_BENCHMARK'!B" & (COUNTA($A$1:$A83)+1))/INDIRECT("'TMP_BENCHMARK'!G" & (COUNTA($A$1:$A83)+1)))*INDIRECT("'TMP_BENCHMARK'!F" & (COUNTA($A$1:$A83)+1)),0) -> 275.0254104 | H84: =IFERROR(IF(INDIRECT("'TMP_BENCHMARK'!E" & (COUNTA($A$1:$A83)+1))<>"APPROX","REPORTED","APPROX"),0) -> APPROX
A85: =IFERROR(('2 - CHECK'!$H$6*INDIRECT("'TMP_BENCHMARK'!B" & (COUNTA($A$1:$A84)+1))/INDIRECT("'TMP_BENCHMARK'!G" & (COUNTA($A$1:$A84)+1)))*INDIRECT("'TMP_BENCHMARK'!D" & (COUNTA($A$1:$A84)+1)),0) -> 0.00476101255 | B85: =IFERROR(SUMIF(INDIRECT("'TMP_BENCHMARK'!I:I"),INDIRECT("'TMP_BENCHMARK'!I" & (COUNTA($A$1:$A84)+1)),INDIRECT("'TMP_BENCHMARK'!B:B")),0) -> 0.09945778094 | C85: 0.04786968406 | D85: =IFERROR(INDIRECT("'TMP_BENCHMARK'!B" & (COUNTA($A$1:$A84)+1))*'2 - CHECK'!$H$6,0) -> 361.1279022 | E85: =IFERROR(INDIRECT("'TMP_BENCHMARK'!B" & (COUNTA($A$1:$A84)+1))*INDIRECT("'TMP_BENCHMARK'!D" & (COUNTA($A$1:$A84)+1)),0) -> 0.4842039026 | F85: =IFERROR(INDIRECT("'TMP_BENCHMARK'!B" & (COUNTA($A$1:$A84)+1))*INDIRECT("'TMP_BENCHMARK'!F" & (COUNTA($A$1:$A84)+1)),0) -> 40628.69464 | G85: =IFERROR(('2 - CHECK'!$H$6*INDIRECT("'TMP_BENCHMARK'!B" & (COUNTA($A$1:$A84)+1))/INDIRECT("'TMP_BENCHMARK'!G" & (COUNTA($A$1:$A84)+1)))*INDIRECT("'TMP_BENCHMARK'!F" & (COUNTA($A$1:$A84)+1)),0) -> 399.4881579 | H85: =IFERROR(IF(INDIRECT("'TMP_BENCHMARK'!E" & (COUNTA($A$1:$A84)+1))<>"APPROX","REPORTED","APPROX"),0) -> APPROX
A86: =IFERROR(('2 - CHECK'!$H$6*INDIRECT("'TMP_BENCHMARK'!B" & (COUNTA($A$1:$A85)+1))/INDIRECT("'TMP_BENCHMARK'!G" & (COUNTA($A$1:$A85)+1)))*INDIRECT("'TMP_BENCHMARK'!D" & (COUNTA($A$1:$A85)+1)),0) -> 5.77580941e-05 | B86: =IFERROR(SUMIF(INDIRECT("'TMP_BENCHMARK'!I:I"),INDIRECT("'TMP_BENCHMARK'!I" & (COUNTA($A$1:$A85)+1)),INDIRECT("'TMP_BENCHMARK'!B:B")),0) -> 0.259800746 | C86: 0.0002223168909 | D86: =IFERROR(INDIRECT("'TMP_BENCHMARK'!B" & (COUNTA($A$1:$A85)+1))*'2 - CHECK'!$H$6,0) -> 338.4418874 | E86: =IFERROR(INDIRECT("'TMP_BENCHMARK'!B" & (COUNTA($A$1:$A85)+1))*INDIRECT("'TMP_BENCHMARK'!D" & (COUNTA($A$1:$A85)+1)),0) -> 0.005505095741 | F86: =IFERROR(INDIRECT("'TMP_BENCHMARK'!B" & (COUNTA($A$1:$A85)+1))*INDIRECT("'TMP_BENCHMARK'!F" & (COUNTA($A$1:$A85)+1)),0) -> 4470.558425 | G86: =IFERROR(('2 - CHECK'!$H$6*INDIRECT("'TMP_BENCHMARK'!B" & (COUNTA($A$1:$A85)+1))/INDIRECT("'TMP_BENCHMARK'!G" & (COUNTA($A$1:$A85)+1)))*INDIRECT("'TMP_BENCHMARK'!F" & (COUNTA($A$1:$A85)+1)),0) -> 46.90398611 | H86: =IFERROR(IF(INDIRECT("'TMP_BENCHMARK'!E" & (COUNTA($A$1:$A85)+1))<>"APPROX","REPORTED","APPROX"),0) -> APPROX
A87: =IFERROR(('2 - CHECK'!$H$6*INDIRECT("'TMP_BENCHMARK'!B" & (COUNTA($A$1:$A86)+1))/INDIRECT("'TMP_BENCHMARK'!G" & (COUNTA($A$1:$A86)+1)))*INDIRECT("'TMP_BENCHMARK'!D" & (COUNTA($A$1:$A86)+1)),0) -> 0.004778507579 | B87: =IFERROR(SUMIF(INDIRECT("'TMP_BENCHMARK'!I:I"),INDIRECT("'TMP_BENCHMARK'!I" & (COUNTA($A$1:$A86)+1)),INDIRECT("'TMP_BENCHMARK'!B:B")),0) -> 0.0509091081 | C87: 0.09386351002 | D87: =IFERROR(INDIRECT("'TMP_BENCHMARK'!B" & (COUNTA($A$1:$A86)+1))*'2 - CHECK'!$H$6,0) -> 335.4471121 | E87: =IFERROR(INDIRECT("'TMP_BENCHMARK'!B" & (COUNTA($A$1:$A86)+1))*INDIRECT("'TMP_BENCHMARK'!D" & (COUNTA($A$1:$A86)+1)),0) -> 0.4514235904 | F87: =IFERROR(INDIRECT("'TMP_BENCHMARK'!B" & (COUNTA($A$1:$A86)+1))*INDIRECT("'TMP_BENCHMARK'!F" & (COUNTA($A$1:$A86)+1)),0) -> 33995.88758 | G87: =IFERROR(('2 - CHECK'!$H$6*INDIRECT("'TMP_BENCHMARK'!B" & (COUNTA($A$1:$A86)+1))/INDIRECT("'TMP_BENCHMARK'!G" & (COUNTA($A$1:$A86)+1)))*INDIRECT("'TMP_BENCHMARK'!F" & (COUNTA($A$1:$A86)+1)),0) -> 359.8606938 | H87: =IFERROR(IF(INDIRECT("'TMP_BENCHMARK'!E" & (COUNTA($A$1:$A86)+1))<>"APPROX","REPORTED","APPROX"),0) -> APPROX
A88: =IFERROR(('2 - CHECK'!$H$6*INDIRECT("'TMP_BENCHMARK'!B" & (COUNTA($A$1:$A87)+1))/INDIRECT("'TMP_BENCHMARK'!G" & (COUNTA($A$1:$A87)+1)))*INDIRECT("'TMP_BENCHMARK'!D" & (COUNTA($A$1:$A87)+1)),0) -> 0.01080430734 | B88: =IFERROR(SUMIF(INDIRECT("'TMP_BENCHMARK'!I:I"),INDIRECT("'TMP_BENCHMARK'!I" & (COUNTA($A$1:$A87)+1)),INDIRECT("'TMP_BENCHMARK'!B:B")),0) -> 0.2111922142 | C88: 0.05115864419 | D88: =IFERROR(INDIRECT("'TMP_BENCHMARK'!B" & (COUNTA($A$1:$A87)+1))*'2 - CHECK'!$H$6,0) -> 321.9039082 | E88: =IFERROR(INDIRECT("'TMP_BENCHMARK'!B" & (COUNTA($A$1:$A87)+1))*INDIRECT("'TMP_BENCHMARK'!D" & (COUNTA($A$1:$A87)+1)),0) -> 0.9794698977 | F88: =IFERROR(INDIRECT("'TMP_BENCHMARK'!B" & (COUNTA($A$1:$A87)+1))*INDIRECT("'TMP_BENCHMARK'!F" & (COUNTA($A$1:$A87)+1)),0) -> 34489.10663 | G88: =IFERROR(('2 - CHECK'!$H$6*INDIRECT("'TMP_BENCHMARK'!B" & (COUNTA($A$1:$A87)+1))/INDIRECT("'TMP_BENCHMARK'!G" & (COUNTA($A$1:$A87)+1)))*INDIRECT("'TMP_BENCHMARK'!F" & (COUNTA($A$1:$A87)+1)),0) -> 380.441409 | H88: =IFERROR(IF(INDIRECT("'TMP_BENCHMARK'!E" & (COUNTA($A$1:$A87)+1))<>"APPROX","REPORTED","APPROX"),0) -> APPROX
A89: =IFERROR(('2 - CHECK'!$H$6*INDIRECT("'TMP_BENCHMARK'!B" & (COUNTA($A$1:$A88)+1))/INDIRECT("'TMP_BENCHMARK'!G" & (COUNTA($A$1:$A88)+1)))*INDIRECT("'TMP_BENCHMARK'!D" & (COUNTA($A$1:$A88)+1)),0) -> 0.1585632396 | B89: =IFERROR(SUMIF(INDIRECT("'TMP_BENCHMARK'!I:I"),INDIRECT("'TMP_BENCHMARK'!I" & (COUNTA($A$1:$A88)+1)),INDIRECT("'TMP_BENCHMARK'!B:B")),0) -> 0.02345299337 | C89: 6.760895598 | D89: =IFERROR(INDIRECT("'TMP_BENCHMARK'!B" & (COUNTA($A$1:$A88)+1))*'2 - CHECK'!$H$6,0) -> 316.7504626 | E89: =IFERROR(INDIRECT("'TMP_BENCHMARK'!B" & (COUNTA($A$1:$A88)+1))*INDIRECT("'TMP_BENCHMARK'!D" & (COUNTA($A$1:$A88)+1)),0) -> 14.14450268 | F89: =IFERROR(INDIRECT("'TMP_BENCHMARK'!B" & (COUNTA($A$1:$A88)+1))*INDIRECT("'TMP_BENCHMARK'!F" & (COUNTA($A$1:$A88)+1)),0) -> 122424.0538 | G89: =IFERROR(('2 - CHECK'!$H$6*INDIRECT("'TMP_BENCHMARK'!B" & (COUNTA($A$1:$A88)+1))/INDIRECT("'TMP_BENCHMARK'!G" & (COUNTA($A$1:$A88)+1)))*INDIRECT("'TMP_BENCHMARK'!F" & (COUNTA($A$1:$A88)+1)),0) -> 1372.402765 | H89: =IFERROR(IF(INDIRECT("'TMP_BENCHMARK'!E" & (COUNTA($A$1:$A88)+1))<>"APPROX","REPORTED","APPROX"),0) -> APPROX
A90: =IFERROR(('2 - CHECK'!$H$6*INDIRECT("'TMP_BENCHMARK'!B" & (COUNTA($A$1:$A89)+1))/INDIRECT("'TMP_BENCHMARK'!G" & (COUNTA($A$1:$A89)+1)))*INDIRECT("'TMP_BENCHMARK'!D" & (COUNTA($A$1:$A89)+1)),0) -> 0.0008105733855 | B90: =IFERROR(SUMIF(INDIRECT("'TMP_BENCHMARK'!I:I"),INDIRECT("'TMP_BENCHMARK'!I" & (COUNTA($A$1:$A89)+1)),INDIRECT("'TMP_BENCHMARK'!B:B")),0) -> 0.0509091081 | C90: 0.01592197184 | D90: =IFERROR(INDIRECT("'TMP_BENCHMARK'!B" & (COUNTA($A$1:$A89)+1))*'2 - CHECK'!$H$6,0) -> 314.6024866 | E90: =IFERROR(INDIRECT("'TMP_BENCHMARK'!B" & (COUNTA($A$1:$A89)+1))*INDIRECT("'TMP_BENCHMARK'!D" & (COUNTA($A$1:$A89)+1)),0) -> 0.07181619722 | F90: =IFERROR(INDIRECT("'TMP_BENCHMARK'!B" & (COUNTA($A$1:$A89)+1))*INDIRECT("'TMP_BENCHMARK'!F" & (COUNTA($A$1:$A89)+1)),0) -> 17734.14217 | G90: =IFERROR(('2 - CHECK'!$H$6*INDIRECT("'TMP_BENCHMARK'!B" & (COUNTA($A$1:$A89)+1))/INDIRECT("'TMP_BENCHMARK'!G" & (COUNTA($A$1:$A89)+1)))*INDIRECT("'TMP_BENCHMARK'!F" & (COUNTA($A$1:$A89)+1)),0) -> 200.1613036 | H90: =IFERROR(IF(INDIRECT("'TMP_BENCHMARK'!E" & (COUNTA($A$1:$A89)+1))<>"APPROX","REPORTED","APPROX"),0) -> APPROX
A91: =IFERROR(('2 - CHECK'!$H$6*INDIRECT("'TMP_BENCHMARK'!B" & (COUNTA($A$1:$A90)+1))/INDIRECT("'TMP_BENCHMARK'!G" & (COUNTA($A$1:$A90)+1)))*INDIRECT("'TMP_BENCHMARK'!D" & (COUNTA($A$1:$A90)+1)),0) -> 0.003695154496 | B91: =IFERROR(SUMIF(INDIRECT("'TMP_BENCHMARK'!I:I"),INDIRECT("'TMP_BENCHMARK'!I" & (COUNTA($A$1:$A90)+1)),INDIRECT("'TMP_BENCHMARK'!B:B")),0) -> 0.2111922142 | C91: 0.01749664167 | D91: =IFERROR(INDIRECT("'TMP_BENCHMARK'!B" & (COUNTA($A$1:$A90)+1))*'2 - CHECK'!$H$6,0) -> 309.3714283 | E91: =IFERROR(INDIRECT("'TMP_BENCHMARK'!B" & (COUNTA($A$1:$A90)+1))*INDIRECT("'TMP_BENCHMARK'!D" & (COUNTA($A$1:$A90)+1)),0) -> 0.3219442832 | F91: =IFERROR(INDIRECT("'TMP_BENCHMARK'!B" & (COUNTA($A$1:$A90)+1))*INDIRECT("'TMP_BENCHMARK'!F" & (COUNTA($A$1:$A90)+1)),0) -> 11433.43988 | G91: =IFERROR(('2 - CHECK'!$H$6*INDIRECT("'TMP_BENCHMARK'!B" & (COUNTA($A$1:$A90)+1))/INDIRECT("'TMP_BENCHMARK'!G" & (COUNTA($A$1:$A90)+1)))*INDIRECT("'TMP_BENCHMARK'!F" & (COUNTA($A$1:$A90)+1)),0) -> 131.2286907 | H91: =IFERROR(IF(INDIRECT("'TMP_BENCHMARK'!E" & (COUNTA($A$1:$A90)+1))<>"APPROX","REPORTED","APPROX"),0) -> APPROX
A92: =IFERROR(('2 - CHECK'!$H$6*INDIRECT("'TMP_BENCHMARK'!B" & (COUNTA($A$1:$A91)+1))/INDIRECT("'TMP_BENCHMARK'!G" & (COUNTA($A$1:$A91)+1)))*INDIRECT("'TMP_BENCHMARK'!D" & (COUNTA($A$1:$A91)+1)),0) -> 0.0118827496 | B92: =IFERROR(SUMIF(INDIRECT("'TMP_BENCHMARK'!I:I"),INDIRECT("'TMP_BENCHMARK'!I" & (COUNTA($A$1:$A91)+1)),INDIRECT("'TMP_BENCHMARK'!B:B")),0) -> 0.0509091081 | C92: 0.2334110741 | D92: =IFERROR(INDIRECT("'TMP_BENCHMARK'!B" & (COUNTA($A$1:$A91)+1))*'2 - CHECK'!$H$6,0) -> 308.5393713 | E92: =IFERROR(INDIRECT("'TMP_BENCHMARK'!B" & (COUNTA($A$1:$A91)+1))*INDIRECT("'TMP_BENCHMARK'!D" & (COUNTA($A$1:$A91)+1)),0) -> 1.032512813 | F92: =IFERROR(INDIRECT("'TMP_BENCHMARK'!B" & (COUNTA($A$1:$A91)+1))*INDIRECT("'TMP_BENCHMARK'!F" & (COUNTA($A$1:$A91)+1)),0) -> 12248.39596 | G92: =IFERROR(('2 - CHECK'!$H$6*INDIRECT("'TMP_BENCHMARK'!B" & (COUNTA($A$1:$A91)+1))/INDIRECT("'TMP_BENCHMARK'!G" & (COUNTA($A$1:$A91)+1)))*INDIRECT("'TMP_BENCHMARK'!F" & (COUNTA($A$1:$A91)+1)),0) -> 140.9615652 | H92: =IFERROR(IF(INDIRECT("'TMP_BENCHMARK'!E" & (COUNTA($A$1:$A91)+1))<>"APPROX","REPORTED","APPROX"),0) -> APPROX
A93: =IFERROR(('2 - CHECK'!$H$6*INDIRECT("'TMP_BENCHMARK'!B" & (COUNTA($A$1:$A92)+1))/INDIRECT("'TMP_BENCHMARK'!G" & (COUNTA($A$1:$A92)+1)))*INDIRECT("'TMP_BENCHMARK'!D" & (COUNTA($A$1:$A92)+1)),0) -> 0.1411266938 | B93: =IFERROR(SUMIF(INDIRECT("'TMP_BENCHMARK'!I:I"),INDIRECT("'TMP_BENCHMARK'!I" & (COUNTA($A$1:$A92)+1)),INDIRECT("'TMP_BENCHMARK'!B:B")),0) -> 0.0509091081 | C93: 2.77213055 | D93: =IFERROR(INDIRECT("'TMP_BENCHMARK'!B" & (COUNTA($A$1:$A92)+1))*'2 - CHECK'!$H$6,0) -> 290.1222551 | E93: =IFERROR(INDIRECT("'TMP_BENCHMARK'!B" & (COUNTA($A$1:$A92)+1))*INDIRECT("'TMP_BENCHMARK'!D" & (COUNTA($A$1:$A92)+1)),0) -> 11.53076513 | F93: =IFERROR(INDIRECT("'TMP_BENCHMARK'!B" & (COUNTA($A$1:$A92)+1))*INDIRECT("'TMP_BENCHMARK'!F" & (COUNTA($A$1:$A92)+1)),0) -> 28900.23832 | G93: =IFERROR(('2 - CHECK'!$H$6*INDIRECT("'TMP_BENCHMARK'!B" & (COUNTA($A$1:$A92)+1))/INDIRECT("'TMP_BENCHMARK'!G" & (COUNTA($A$1:$A92)+1)))*INDIRECT("'TMP_BENCHMARK'!F" & (COUNTA($A$1:$A92)+1)),0) -> 353.7141759 | H93: =IFERROR(IF(INDIRECT("'TMP_BENCHMARK'!E" & (COUNTA($A$1:$A92)+1))<>"APPROX","REPORTED","APPROX"),0) -> APPROX
A94: =IFERROR(('2 - CHECK'!$H$6*INDIRECT("'TMP_BENCHMARK'!B" & (COUNTA($A$1:$A93)+1))/INDIRECT("'TMP_BENCHMARK'!G" & (COUNTA($A$1:$A93)+1)))*INDIRECT("'TMP_BENCHMARK'!D" & (COUNTA($A$1:$A93)+1)),0) -> 0.0187369054 | B94: =IFERROR(SUMIF(INDIRECT("'TMP_BENCHMARK'!I:I"),INDIRECT("'TMP_BENCHMARK'!I" & (COUNTA($A$1:$A93)+1)),INDIRECT("'TMP_BENCHMARK'!B:B")),0) -> 0.2111922142 | C94: 0.08871967874 | D94: =IFERROR(INDIRECT("'TMP_BENCHMARK'!B" & (COUNTA($A$1:$A93)+1))*'2 - CHECK'!$H$6,0) -> 277.5423018 | E94: =IFERROR(INDIRECT("'TMP_BENCHMARK'!B" & (COUNTA($A$1:$A93)+1))*INDIRECT("'TMP_BENCHMARK'!D" & (COUNTA($A$1:$A93)+1)),0) -> 1.464518843 | F94: =IFERROR(INDIRECT("'TMP_BENCHMARK'!B" & (COUNTA($A$1:$A93)+1))*INDIRECT("'TMP_BENCHMARK'!F" & (COUNTA($A$1:$A93)+1)),0) -> 20282.51388 | G94: =IFERROR(('2 - CHECK'!$H$6*INDIRECT("'TMP_BENCHMARK'!B" & (COUNTA($A$1:$A93)+1))/INDIRECT("'TMP_BENCHMARK'!G" & (COUNTA($A$1:$A93)+1)))*INDIRECT("'TMP_BENCHMARK'!F" & (COUNTA($A$1:$A93)+1)),0) -> 259.4924234 | H94: =IFERROR(IF(INDIRECT("'TMP_BENCHMARK'!E" & (COUNTA($A$1:$A93)+1))<>"APPROX","REPORTED","APPROX"),0) -> APPROX
A95: =IFERROR(('2 - CHECK'!$H$6*INDIRECT("'TMP_BENCHMARK'!B" & (COUNTA($A$1:$A94)+1))/INDIRECT("'TMP_BENCHMARK'!G" & (COUNTA($A$1:$A94)+1)))*INDIRECT("'TMP_BENCHMARK'!D" & (COUNTA($A$1:$A94)+1)),0) -> 0.001813737666 | B95: =IFERROR(SUMIF(INDIRECT("'TMP_BENCHMARK'!I:I"),INDIRECT("'TMP_BENCHMARK'!I" & (COUNTA($A$1:$A94)+1)),INDIRECT("'TMP_BENCHMARK'!B:B")),0) -> 0.09945778094 | C95: 0.01823625713 | D95: =IFERROR(INDIRECT("'TMP_BENCHMARK'!B" & (COUNTA($A$1:$A94)+1))*'2 - CHECK'!$H$6,0) -> 274.9190647 | E95: =IFERROR(INDIRECT("'TMP_BENCHMARK'!B" & (COUNTA($A$1:$A94)+1))*INDIRECT("'TMP_BENCHMARK'!D" & (COUNTA($A$1:$A94)+1)),0) -> 0.1404259091 | F95: =IFERROR(INDIRECT("'TMP_BENCHMARK'!B" & (COUNTA($A$1:$A94)+1))*INDIRECT("'TMP_BENCHMARK'!F" & (COUNTA($A$1:$A94)+1)),0) -> 13310.20652 | G95: =IFERROR(('2 - CHECK'!$H$6*INDIRECT("'TMP_BENCHMARK'!B" & (COUNTA($A$1:$A94)+1))/INDIRECT("'TMP_BENCHMARK'!G" & (COUNTA($A$1:$A94)+1)))*INDIRECT("'TMP_BENCHMARK'!F" & (COUNTA($A$1:$A94)+1)),0) -> 171.9143075 | H95: =IFERROR(IF(INDIRECT("'TMP_BENCHMARK'!E" & (COUNTA($A$1:$A94)+1))<>"APPROX","REPORTED","APPROX"),0) -> APPROX
A96: =IFERROR(('2 - CHECK'!$H$6*INDIRECT("'TMP_BENCHMARK'!B" & (COUNTA($A$1:$A95)+1))/INDIRECT("'TMP_BENCHMARK'!G" & (COUNTA($A$1:$A95)+1)))*INDIRECT("'TMP_BENCHMARK'!D" & (COUNTA($A$1:$A95)+1)),0) -> 0.0008427795771 | B96: =IFERROR(SUMIF(INDIRECT("'TMP_BENCHMARK'!I:I"),INDIRECT("'TMP_BENCHMARK'!I" & (COUNTA($A$1:$A95)+1)),INDIRECT("'TMP_BENCHMARK'!B:B")),0) -> 0.09945778094 | C96: 0.008473742016 | D96: =IFERROR(INDIRECT("'TMP_BENCHMARK'!B" & (COUNTA($A$1:$A95)+1))*'2 - CHECK'!$H$6,0) -> 241.6009888 | E96: =IFERROR(INDIRECT("'TMP_BENCHMARK'!B" & (COUNTA($A$1:$A95)+1))*INDIRECT("'TMP_BENCHMARK'!D" & (COUNTA($A$1:$A95)+1)),0) -> 0.05734302828 | F96: =IFERROR(INDIRECT("'TMP_BENCHMARK'!B" & (COUNTA($A$1:$A95)+1))*INDIRECT("'TMP_BENCHMARK'!F" & (COUNTA($A$1:$A95)+1)),0) -> 3653.442557 | G96: =IFERROR(('2 - CHECK'!$H$6*INDIRECT("'TMP_BENCHMARK'!B" & (COUNTA($A$1:$A95)+1))/INDIRECT("'TMP_BENCHMARK'!G" & (COUNTA($A$1:$A95)+1)))*INDIRECT("'TMP_BENCHMARK'!F" & (COUNTA($A$1:$A95)+1)),0) -> 53.69522443 | H96: =IFERROR(IF(INDIRECT("'TMP_BENCHMARK'!E" & (COUNTA($A$1:$A95)+1))<>"APPROX","REPORTED","APPROX"),0) -> APPROX
A97: =IFERROR(('2 - CHECK'!$H$6*INDIRECT("'TMP_BENCHMARK'!B" & (COUNTA($A$1:$A96)+1))/INDIRECT("'TMP_BENCHMARK'!G" & (COUNTA($A$1:$A96)+1)))*INDIRECT("'TMP_BENCHMARK'!D" & (COUNTA($A$1:$A96)+1)),0) -> 0.03324737487 | B97: =IFERROR(SUMIF(INDIRECT("'TMP_BENCHMARK'!I:I"),INDIRECT("'TMP_BENCHMARK'!I" & (COUNTA($A$1:$A96)+1)),INDIRECT("'TMP_BENCHMARK'!B:B")),0) -> 0.2111922142 | C97: 0.157427086 | D97: =IFERROR(INDIRECT("'TMP_BENCHMARK'!B" & (COUNTA($A$1:$A96)+1))*'2 - CHECK'!$H$6,0) -> 237.1798513 | E97: =IFERROR(INDIRECT("'TMP_BENCHMARK'!B" & (COUNTA($A$1:$A96)+1))*INDIRECT("'TMP_BENCHMARK'!D" & (COUNTA($A$1:$A96)+1)),0) -> 2.220767364 | F97: =IFERROR(INDIRECT("'TMP_BENCHMARK'!B" & (COUNTA($A$1:$A96)+1))*INDIRECT("'TMP_BENCHMARK'!F" & (COUNTA($A$1:$A96)+1)),0) -> 62036.28754 | G97: =IFERROR(('2 - CHECK'!$H$6*INDIRECT("'TMP_BENCHMARK'!B" & (COUNTA($A$1:$A96)+1))/INDIRECT("'TMP_BENCHMARK'!G" & (COUNTA($A$1:$A96)+1)))*INDIRECT("'TMP_BENCHMARK'!F" & (COUNTA($A$1:$A96)+1)),0) -> 928.7527097 | H97: =IFERROR(IF(INDIRECT("'TMP_BENCHMARK'!E" & (COUNTA($A$1:$A96)+1))<>"APPROX","REPORTED","APPROX"),0) -> APPROX
A98: =IFERROR(('2 - CHECK'!$H$6*INDIRECT("'TMP_BENCHMARK'!B" & (COUNTA($A$1:$A97)+1))/INDIRECT("'TMP_BENCHMARK'!G" & (COUNTA($A$1:$A97)+1)))*INDIRECT("'TMP_BENCHMARK'!D" & (COUNTA($A$1:$A97)+1)),0) -> 0.006695429338 | B98: =IFERROR(SUMIF(INDIRECT("'TMP_BENCHMARK'!I:I"),INDIRECT("'TMP_BENCHMARK'!I" & (COUNTA($A$1:$A97)+1)),INDIRECT("'TMP_BENCHMARK'!B:B")),0) -> 0.09945778094 | C98: 0.06731931152 | D98: =IFERROR(INDIRECT("'TMP_BENCHMARK'!B" & (COUNTA($A$1:$A97)+1))*'2 - CHECK'!$H$6,0) -> 223.8303655 | E98: =IFERROR(INDIRECT("'TMP_BENCHMARK'!B" & (COUNTA($A$1:$A97)+1))*INDIRECT("'TMP_BENCHMARK'!D" & (COUNTA($A$1:$A97)+1)),0) -> 0.4220514035 | F98: =IFERROR(INDIRECT("'TMP_BENCHMARK'!B" & (COUNTA($A$1:$A97)+1))*INDIRECT("'TMP_BENCHMARK'!F" & (COUNTA($A$1:$A97)+1)),0) -> 19352.99373 | G98: =IFERROR(('2 - CHECK'!$H$6*INDIRECT("'TMP_BENCHMARK'!B" & (COUNTA($A$1:$A97)+1))/INDIRECT("'TMP_BENCHMARK'!G" & (COUNTA($A$1:$A97)+1)))*INDIRECT("'TMP_BENCHMARK'!F" & (COUNTA($A$1:$A97)+1)),0) -> 307.0161617 | H98: =IFERROR(IF(INDIRECT("'TMP_BENCHMARK'!E" & (COUNTA($A$1:$A97)+1))<>"APPROX","REPORTED","APPROX"),0) -> APPROX
A99: =IFERROR(('2 - CHECK'!$H$6*INDIRECT("'TMP_BENCHMARK'!B" & (COUNTA($A$1:$A98)+1))/INDIRECT("'TMP_BENCHMARK'!G" & (COUNTA($A$1:$A98)+1)))*INDIRECT("'TMP_BENCHMARK'!D" & (COUNTA($A$1:$A98)+1)),0) -> 0.0004884475536 | B99: =IFERROR(SUMIF(INDIRECT("'TMP_BENCHMARK'!I:I"),INDIRECT("'TMP_BENCHMARK'!I" & (COUNTA($A$1:$A98)+1)),INDIRECT("'TMP_BENCHMARK'!B:B")),0) -> 0.01975923385 | C99: 0.02471996421 | D99: =IFERROR(INDIRECT("'TMP_BENCHMARK'!B" & (COUNTA($A$1:$A98)+1))*'2 - CHECK'!$H$6,0) -> 199.2856578 | E99: =IFERROR(INDIRECT("'TMP_BENCHMARK'!B" & (COUNTA($A$1:$A98)+1))*INDIRECT("'TMP_BENCHMARK'!D" & (COUNTA($A$1:$A98)+1)),0) -> 0.02741333651 | F99: =IFERROR(INDIRECT("'TMP_BENCHMARK'!B" & (COUNTA($A$1:$A98)+1))*INDIRECT("'TMP_BENCHMARK'!F" & (COUNTA($A$1:$A98)+1)),0) -> 1633.145965 | G99: =IFERROR(('2 - CHECK'!$H$6*INDIRECT("'TMP_BENCHMARK'!B" & (COUNTA($A$1:$A98)+1))/INDIRECT("'TMP_BENCHMARK'!G" & (COUNTA($A$1:$A98)+1)))*INDIRECT("'TMP_BENCHMARK'!F" & (COUNTA($A$1:$A98)+1)),0) -> 29.09919963 | H99: =IFERROR(IF(INDIRECT("'TMP_BENCHMARK'!E" & (COUNTA($A$1:$A98)+1))<>"APPROX","REPORTED","APPROX"),0) -> APPROX
A100: =IFERROR(('2 - CHECK'!$H$6*INDIRECT("'TMP_BENCHMARK'!B" & (COUNTA($A$1:$A99)+1))/INDIRECT("'TMP_BENCHMARK'!G" & (COUNTA($A$1:$A99)+1)))*INDIRECT("'TMP_BENCHMARK'!D" & (COUNTA($A$1:$A99)+1)),0) -> 0.02760836898 | B100: =IFERROR(SUMIF(INDIRECT("'TMP_BENCHMARK'!I:I"),INDIRECT("'TMP_BENCHMARK'!I" & (COUNTA($A$1:$A99)+1)),INDIRECT("'TMP_BENCHMARK'!B:B")),0) -> 0.2111922142 | C100: 0.1307262632 | D100: =IFERROR(INDIRECT("'TMP_BENCHMARK'!B" & (COUNTA($A$1:$A99)+1))*'2 - CHECK'!$H$6,0) -> 186.5370903 | E100: =IFERROR(INDIRECT("'TMP_BENCHMARK'!B" & (COUNTA($A$1:$A99)+1))*INDIRECT("'TMP_BENCHMARK'!D" & (COUNTA($A$1:$A99)+1)),0) -> 1.450353484 | F100: =IFERROR(INDIRECT("'TMP_BENCHMARK'!B" & (COUNTA($A$1:$A99)+1))*INDIRECT("'TMP_BENCHMARK'!F" & (COUNTA($A$1:$A99)+1)),0) -> 32173.17118 | G100: =IFERROR(('2 - CHECK'!$H$6*INDIRECT("'TMP_BENCHMARK'!B" & (COUNTA($A$1:$A99)+1))/INDIRECT("'TMP_BENCHMARK'!G" & (COUNTA($A$1:$A99)+1)))*INDIRECT("'TMP_BENCHMARK'!F" & (COUNTA($A$1:$A99)+1)),0) -> 612.4360652 | H100: =IFERROR(IF(INDIRECT("'TMP_BENCHMARK'!E" & (COUNTA($A$1:$A99)+1))<>"APPROX","REPORTED","APPROX"),0) -> APPROX
A101: =IFERROR(('2 - CHECK'!$H$6*INDIRECT("'TMP_BENCHMARK'!B" & (COUNTA($A$1:$A100)+1))/INDIRECT("'TMP_BENCHMARK'!G" & (COUNTA($A$1:$A100)+1)))*INDIRECT("'TMP_BENCHMARK'!D" & (COUNTA($A$1:$A100)+1)),0) -> 0.01790661415 | B101: =IFERROR(SUMIF(INDIRECT("'TMP_BENCHMARK'!I:I"),INDIRECT("'TMP_BENCHMARK'!I" & (COUNTA($A$1:$A100)+1)),INDIRECT("'TMP_BENCHMARK'!B:B")),0) -> 0.2111922142 | C101: 0.08478823057 | D101: =IFERROR(INDIRECT("'TMP_BENCHMARK'!B" & (COUNTA($A$1:$A100)+1))*'2 - CHECK'!$H$6,0) -> 171.2929091 | E101: =IFERROR(INDIRECT("'TMP_BENCHMARK'!B" & (COUNTA($A$1:$A100)+1))*INDIRECT("'TMP_BENCHMARK'!D" & (COUNTA($A$1:$A100)+1)),0) -> 0.8638150667 | F101: =IFERROR(INDIRECT("'TMP_BENCHMARK'!B" & (COUNTA($A$1:$A100)+1))*INDIRECT("'TMP_BENCHMARK'!F" & (COUNTA($A$1:$A100)+1)),0) -> 7366.965091 | G101: =IFERROR(('2 - CHECK'!$H$6*INDIRECT("'TMP_BENCHMARK'!B" & (COUNTA($A$1:$A100)+1))/INDIRECT("'TMP_BENCHMARK'!G" & (COUNTA($A$1:$A100)+1)))*INDIRECT("'TMP_BENCHMARK'!F" & (COUNTA($A$1:$A100)+1)),0) -> 152.7148651 | H101: =IFERROR(IF(INDIRECT("'TMP_BENCHMARK'!E" & (COUNTA($A$1:$A100)+1))<>"APPROX","REPORTED","APPROX"),0) -> APPROX
A102: =IFERROR(('2 - CHECK'!$H$6*INDIRECT("'TMP_BENCHMARK'!B" & (COUNTA($A$1:$A101)+1))/INDIRECT("'TMP_BENCHMARK'!G" & (COUNTA($A$1:$A101)+1)))*INDIRECT("'TMP_BENCHMARK'!D" & (COUNTA($A$1:$A101)+1)),0) -> 0.008824056208 | B102: =IFERROR(SUMIF(INDIRECT("'TMP_BENCHMARK'!I:I"),INDIRECT("'TMP_BENCHMARK'!I" & (COUNTA($A$1:$A101)+1)),INDIRECT("'TMP_BENCHMARK'!B:B")),0) -> 0.259800746 | C102: 0.03396470697 | D102: =IFERROR(INDIRECT("'TMP_BENCHMARK'!B" & (COUNTA($A$1:$A101)+1))*'2 - CHECK'!$H$6,0) -> 170.4213534 | E102: =IFERROR(INDIRECT("'TMP_BENCHMARK'!B" & (COUNTA($A$1:$A101)+1))*INDIRECT("'TMP_BENCHMARK'!D" & (COUNTA($A$1:$A101)+1)),0) -> 0.4235066069 | F102: =IFERROR(INDIRECT("'TMP_BENCHMARK'!B" & (COUNTA($A$1:$A101)+1))*INDIRECT("'TMP_BENCHMARK'!F" & (COUNTA($A$1:$A101)+1)),0) -> 2369.197655 | G102: =IFERROR(('2 - CHECK'!$H$6*INDIRECT("'TMP_BENCHMARK'!B" & (COUNTA($A$1:$A101)+1))/INDIRECT("'TMP_BENCHMARK'!G" & (COUNTA($A$1:$A101)+1)))*INDIRECT("'TMP_BENCHMARK'!F" & (COUNTA($A$1:$A101)+1)),0) -> 49.36388935 | H102: =IFERROR(IF(INDIRECT("'TMP_BENCHMARK'!E" & (COUNTA($A$1:$A101)+1))<>"APPROX","REPORTED","APPROX"),0) -> APPROX
A103: =IFERROR(('2 - CHECK'!$H$6*INDIRECT("'TMP_BENCHMARK'!B" & (COUNTA($A$1:$A102)+1))/INDIRECT("'TMP_BENCHMARK'!G" & (COUNTA($A$1:$A102)+1)))*INDIRECT("'TMP_BENCHMARK'!D" & (COUNTA($A$1:$A102)+1)),0) -> 0.01310636473 | B103: =IFERROR(SUMIF(INDIRECT("'TMP_BENCHMARK'!I:I"),INDIRECT("'TMP_BENCHMARK'!I" & (COUNTA($A$1:$A102)+1)),INDIRECT("'TMP_BENCHMARK'!B:B")),0) -> 0.1508628455 | C103: 0.0868760276 | D103: =IFERROR(INDIRECT("'TMP_BENCHMARK'!B" & (COUNTA($A$1:$A102)+1))*'2 - CHECK'!$H$6,0) -> 165.4457276 | E103: =IFERROR(INDIRECT("'TMP_BENCHMARK'!B" & (COUNTA($A$1:$A102)+1))*INDIRECT("'TMP_BENCHMARK'!D" & (COUNTA($A$1:$A102)+1)),0) -> 0.6106687839 | F103: =IFERROR(INDIRECT("'TMP_BENCHMARK'!B" & (COUNTA($A$1:$A102)+1))*INDIRECT("'TMP_BENCHMARK'!F" & (COUNTA($A$1:$A102)+1)),0) -> 0.9090940972 | G103: =IFERROR(('2 - CHECK'!$H$6*INDIRECT("'TMP_BENCHMARK'!B" & (COUNTA($A$1:$A102)+1))/INDIRECT("'TMP_BENCHMARK'!G" & (COUNTA($A$1:$A102)+1)))*INDIRECT("'TMP_BENCHMARK'!F" & (COUNTA($A$1:$A102)+1)),0) -> 0.01951126229 | H103: =IFERROR(IF(INDIRECT("'TMP_BENCHMARK'!E" & (COUNTA($A$1:$A102)+1))<>"APPROX","REPORTED","APPROX"),0) -> APPROX
A104: =IFERROR(('2 - CHECK'!$H$6*INDIRECT("'TMP_BENCHMARK'!B" & (COUNTA($A$1:$A103)+1))/INDIRECT("'TMP_BENCHMARK'!G" & (COUNTA($A$1:$A103)+1)))*INDIRECT("'TMP_BENCHMARK'!D" & (COUNTA($A$1:$A103)+1)),0) -> 0.0002280177064 | B104: =IFERROR(SUMIF(INDIRECT("'TMP_BENCHMARK'!I:I"),INDIRECT("'TMP_BENCHMARK'!I" & (COUNTA($A$1:$A103)+1)),INDIRECT("'TMP_BENCHMARK'!B:B")),0) -> 0.259800746 | C104: 0.0008776637863 | D104: =IFERROR(INDIRECT("'TMP_BENCHMARK'!B" & (COUNTA($A$1:$A103)+1))*'2 - CHECK'!$H$6,0) -> 162.4474761 | E104: =IFERROR(INDIRECT("'TMP_BENCHMARK'!B" & (COUNTA($A$1:$A103)+1))*INDIRECT("'TMP_BENCHMARK'!D" & (COUNTA($A$1:$A103)+1)),0) -> 0.01043156468 | F104: =IFERROR(INDIRECT("'TMP_BENCHMARK'!B" & (COUNTA($A$1:$A103)+1))*INDIRECT("'TMP_BENCHMARK'!F" & (COUNTA($A$1:$A103)+1)),0) -> 509.0652296 | G104: =IFERROR(('2 - CHECK'!$H$6*INDIRECT("'TMP_BENCHMARK'!B" & (COUNTA($A$1:$A103)+1))/INDIRECT("'TMP_BENCHMARK'!G" & (COUNTA($A$1:$A103)+1)))*INDIRECT("'TMP_BENCHMARK'!F" & (COUNTA($A$1:$A103)+1)),0) -> 11.1273706 | H104: =IFERROR(IF(INDIRECT("'TMP_BENCHMARK'!E" & (COUNTA($A$1:$A103)+1))<>"APPROX","REPORTED","APPROX"),0) -> APPROX
A105: =IFERROR(('2 - CHECK'!$H$6*INDIRECT("'TMP_BENCHMARK'!B" & (COUNTA($A$1:$A104)+1))/INDIRECT("'TMP_BENCHMARK'!G" & (COUNTA($A$1:$A104)+1)))*INDIRECT("'TMP_BENCHMARK'!D" & (COUNTA($A$1:$A104)+1)),0) -> 0.01068002056 | B105: =IFERROR(SUMIF(INDIRECT("'TMP_BENCHMARK'!I:I"),INDIRECT("'TMP_BENCHMARK'!I" & (COUNTA($A$1:$A104)+1)),INDIRECT("'TMP_BENCHMARK'!B:B")),0) -> 0.2111922142 | C105: 0.05057014341 | D105: =IFERROR(INDIRECT("'TMP_BENCHMARK'!B" & (COUNTA($A$1:$A104)+1))*'2 - CHECK'!$H$6,0) -> 147.3305229 | E105: =IFERROR(INDIRECT("'TMP_BENCHMARK'!B" & (COUNTA($A$1:$A104)+1))*INDIRECT("'TMP_BENCHMARK'!D" & (COUNTA($A$1:$A104)+1)),0) -> 0.4431316122 | F105: =IFERROR(INDIRECT("'TMP_BENCHMARK'!B" & (COUNTA($A$1:$A104)+1))*INDIRECT("'TMP_BENCHMARK'!F" & (COUNTA($A$1:$A104)+1)),0) -> 6502.137967 | G105: =IFERROR(('2 - CHECK'!$H$6*INDIRECT("'TMP_BENCHMARK'!B" & (COUNTA($A$1:$A104)+1))/INDIRECT("'TMP_BENCHMARK'!G" & (COUNTA($A$1:$A104)+1)))*INDIRECT("'TMP_BENCHMARK'!F" & (COUNTA($A$1:$A104)+1)),0) -> 156.7095762 | H105: =IFERROR(IF(INDIRECT("'TMP_BENCHMARK'!E" & (COUNTA($A$1:$A104)+1))<>"APPROX","REPORTED","APPROX"),0) -> APPROX
A106: =IFERROR(('2 - CHECK'!$H$6*INDIRECT("'TMP_BENCHMARK'!B" & (COUNTA($A$1:$A105)+1))/INDIRECT("'TMP_BENCHMARK'!G" & (COUNTA($A$1:$A105)+1)))*INDIRECT("'TMP_BENCHMARK'!D" & (COUNTA($A$1:$A105)+1)),0) -> 0.003322556911 | B106: =IFERROR(SUMIF(INDIRECT("'TMP_BENCHMARK'!I:I"),INDIRECT("'TMP_BENCHMARK'!I" & (COUNTA($A$1:$A105)+1)),INDIRECT("'TMP_BENCHMARK'!B:B")),0) -> 0.09945778094 | C106: 0.03340670664 | D106: =IFERROR(INDIRECT("'TMP_BENCHMARK'!B" & (COUNTA($A$1:$A105)+1))*'2 - CHECK'!$H$6,0) -> 120.1464598 | E106: =IFERROR(INDIRECT("'TMP_BENCHMARK'!B" & (COUNTA($A$1:$A105)+1))*INDIRECT("'TMP_BENCHMARK'!D" & (COUNTA($A$1:$A105)+1)),0) -> 0.1124220037 | F106: =IFERROR(INDIRECT("'TMP_BENCHMARK'!B" & (COUNTA($A$1:$A105)+1))*INDIRECT("'TMP_BENCHMARK'!F" & (COUNTA($A$1:$A105)+1)),0) -> 7162.65135 | G106: =IFERROR(('2 - CHECK'!$H$6*INDIRECT("'TMP_BENCHMARK'!B" & (COUNTA($A$1:$A105)+1))/INDIRECT("'TMP_BENCHMARK'!G" & (COUNTA($A$1:$A105)+1)))*INDIRECT("'TMP_BENCHMARK'!F" & (COUNTA($A$1:$A105)+1)),0) -> 211.6873563 | H106: =IFERROR(IF(INDIRECT("'TMP_BENCHMARK'!E" & (COUNTA($A$1:$A105)+1))<>"APPROX","REPORTED","APPROX"),0) -> APPROX
A107: =IFERROR(('2 - CHECK'!$H$6*INDIRECT("'TMP_BENCHMARK'!B" & (COUNTA($A$1:$A106)+1))/INDIRECT("'TMP_BENCHMARK'!G" & (COUNTA($A$1:$A106)+1)))*INDIRECT("'TMP_BENCHMARK'!D" & (COUNTA($A$1:$A106)+1)),0) -> 0.1008863392 | B107: =IFERROR(SUMIF(INDIRECT("'TMP_BENCHMARK'!I:I"),INDIRECT("'TMP_BENCHMARK'!I" & (COUNTA($A$1:$A106)+1)),INDIRECT("'TMP_BENCHMARK'!B:B")),0) -> 0.2111922142 | C107: 0.4776991405 | D107: =IFERROR(INDIRECT("'TMP_BENCHMARK'!B" & (COUNTA($A$1:$A106)+1))*'2 - CHECK'!$H$6,0) -> 110.2266035 | E107: =IFERROR(INDIRECT("'TMP_BENCHMARK'!B" & (COUNTA($A$1:$A106)+1))*INDIRECT("'TMP_BENCHMARK'!D" & (COUNTA($A$1:$A106)+1)),0) -> 3.131747236 | F107: =IFERROR(INDIRECT("'TMP_BENCHMARK'!B" & (COUNTA($A$1:$A106)+1))*INDIRECT("'TMP_BENCHMARK'!F" & (COUNTA($A$1:$A106)+1)),0) -> 14233.23063 | G107: =IFERROR(('2 - CHECK'!$H$6*INDIRECT("'TMP_BENCHMARK'!B" & (COUNTA($A$1:$A106)+1))/INDIRECT("'TMP_BENCHMARK'!G" & (COUNTA($A$1:$A106)+1)))*INDIRECT("'TMP_BENCHMARK'!F" & (COUNTA($A$1:$A106)+1)),0) -> 458.5103539 | H107: =IFERROR(IF(INDIRECT("'TMP_BENCHMARK'!E" & (COUNTA($A$1:$A106)+1))<>"APPROX","REPORTED","APPROX"),0) -> APPROX
A108: =IFERROR(('2 - CHECK'!$H$6*INDIRECT("'TMP_BENCHMARK'!B" & (COUNTA($A$1:$A107)+1))/INDIRECT("'TMP_BENCHMARK'!G" & (COUNTA($A$1:$A107)+1)))*INDIRECT("'TMP_BENCHMARK'!D" & (COUNTA($A$1:$A107)+1)),0) -> 0.01603335362 | B108: =IFERROR(SUMIF(INDIRECT("'TMP_BENCHMARK'!I:I"),INDIRECT("'TMP_BENCHMARK'!I" & (COUNTA($A$1:$A107)+1)),INDIRECT("'TMP_BENCHMARK'!B:B")),0) -> 0.2111922142 | C108: 0.07591829879 | D108: =IFERROR(INDIRECT("'TMP_BENCHMARK'!B" & (COUNTA($A$1:$A107)+1))*'2 - CHECK'!$H$6,0) -> 107.1006911 | E108: =IFERROR(INDIRECT("'TMP_BENCHMARK'!B" & (COUNTA($A$1:$A107)+1))*INDIRECT("'TMP_BENCHMARK'!D" & (COUNTA($A$1:$A107)+1)),0) -> 0.4835980696 | F108: =IFERROR(INDIRECT("'TMP_BENCHMARK'!B" & (COUNTA($A$1:$A107)+1))*INDIRECT("'TMP_BENCHMARK'!F" & (COUNTA($A$1:$A107)+1)),0) -> 10821.45383 | G108: =IFERROR(('2 - CHECK'!$H$6*INDIRECT("'TMP_BENCHMARK'!B" & (COUNTA($A$1:$A107)+1))/INDIRECT("'TMP_BENCHMARK'!G" & (COUNTA($A$1:$A107)+1)))*INDIRECT("'TMP_BENCHMARK'!F" & (COUNTA($A$1:$A107)+1)),0) -> 358.7776852 | H108: =IFERROR(IF(INDIRECT("'TMP_BENCHMARK'!E" & (COUNTA($A$1:$A107)+1))<>"APPROX","REPORTED","APPROX"),0) -> APPROX
A109: =IFERROR(('2 - CHECK'!$H$6*INDIRECT("'TMP_BENCHMARK'!B" & (COUNTA($A$1:$A108)+1))/INDIRECT("'TMP_BENCHMARK'!G" & (COUNTA($A$1:$A108)+1)))*INDIRECT("'TMP_BENCHMARK'!D" & (COUNTA($A$1:$A108)+1)),0) -> 0.002484872801 | B109: =IFERROR(SUMIF(INDIRECT("'TMP_BENCHMARK'!I:I"),INDIRECT("'TMP_BENCHMARK'!I" & (COUNTA($A$1:$A108)+1)),INDIRECT("'TMP_BENCHMARK'!B:B")),0) -> 0.09945778094 | C109: 0.02498419709 | D109: =IFERROR(INDIRECT("'TMP_BENCHMARK'!B" & (COUNTA($A$1:$A108)+1))*'2 - CHECK'!$H$6,0) -> 104.990421 | E109: =IFERROR(INDIRECT("'TMP_BENCHMARK'!B" & (COUNTA($A$1:$A108)+1))*INDIRECT("'TMP_BENCHMARK'!D" & (COUNTA($A$1:$A108)+1)),0) -> 0.07347198163 | F109: =IFERROR(INDIRECT("'TMP_BENCHMARK'!B" & (COUNTA($A$1:$A108)+1))*INDIRECT("'TMP_BENCHMARK'!F" & (COUNTA($A$1:$A108)+1)),0) -> 1601.733862 | G109: =IFERROR(('2 - CHECK'!$H$6*INDIRECT("'TMP_BENCHMARK'!B" & (COUNTA($A$1:$A108)+1))/INDIRECT("'TMP_BENCHMARK'!G" & (COUNTA($A$1:$A108)+1)))*INDIRECT("'TMP_BENCHMARK'!F" & (COUNTA($A$1:$A108)+1)),0) -> 54.17173758 | H109: =IFERROR(IF(INDIRECT("'TMP_BENCHMARK'!E" & (COUNTA($A$1:$A108)+1))<>"APPROX","REPORTED","APPROX"),0) -> APPROX
A110: =IFERROR(('2 - CHECK'!$H$6*INDIRECT("'TMP_BENCHMARK'!B" & (COUNTA($A$1:$A109)+1))/INDIRECT("'TMP_BENCHMARK'!G" & (COUNTA($A$1:$A109)+1)))*INDIRECT("'TMP_BENCHMARK'!D" & (COUNTA($A$1:$A109)+1)),0) -> 0.003513887255 | B110: =IFERROR(SUMIF(INDIRECT("'TMP_BENCHMARK'!I:I"),INDIRECT("'TMP_BENCHMARK'!I" & (COUNTA($A$1:$A109)+1)),INDIRECT("'TMP_BENCHMARK'!B:B")),0) -> 0.09945778094 | C110: 0.03533044094 | D110: =IFERROR(INDIRECT("'TMP_BENCHMARK'!B" & (COUNTA($A$1:$A109)+1))*'2 - CHECK'!$H$6,0) -> 100.808389 | E110: =IFERROR(INDIRECT("'TMP_BENCHMARK'!B" & (COUNTA($A$1:$A109)+1))*INDIRECT("'TMP_BENCHMARK'!D" & (COUNTA($A$1:$A109)+1)),0) -> 0.09975907449 | F110: =IFERROR(INDIRECT("'TMP_BENCHMARK'!B" & (COUNTA($A$1:$A109)+1))*INDIRECT("'TMP_BENCHMARK'!F" & (COUNTA($A$1:$A109)+1)),0) -> 6355.868119 | G110: =IFERROR(('2 - CHECK'!$H$6*INDIRECT("'TMP_BENCHMARK'!B" & (COUNTA($A$1:$A109)+1))/INDIRECT("'TMP_BENCHMARK'!G" & (COUNTA($A$1:$A109)+1)))*INDIRECT("'TMP_BENCHMARK'!F" & (COUNTA($A$1:$A109)+1)),0) -> 223.8774176 | H110: =IFERROR(IF(INDIRECT("'TMP_BENCHMARK'!E" & (COUNTA($A$1:$A109)+1))<>"APPROX","REPORTED","APPROX"),0) -> APPROX
A111: =IFERROR(('2 - CHECK'!$H$6*INDIRECT("'TMP_BENCHMARK'!B" & (COUNTA($A$1:$A110)+1))/INDIRECT("'TMP_BENCHMARK'!G" & (COUNTA($A$1:$A110)+1)))*INDIRECT("'TMP_BENCHMARK'!D" & (COUNTA($A$1:$A110)+1)),0) -> 0.005483837379 | B111: =IFERROR(SUMIF(INDIRECT("'TMP_BENCHMARK'!I:I"),INDIRECT("'TMP_BENCHMARK'!I" & (COUNTA($A$1:$A110)+1)),INDIRECT("'TMP_BENCHMARK'!B:B")),0) -> 0.2111922142 | C111: 0.02596609634 | D111: =IFERROR(INDIRECT("'TMP_BENCHMARK'!B" & (COUNTA($A$1:$A110)+1))*'2 - CHECK'!$H$6,0) -> 97.10175283 | E111: =IFERROR(INDIRECT("'TMP_BENCHMARK'!B" & (COUNTA($A$1:$A110)+1))*INDIRECT("'TMP_BENCHMARK'!D" & (COUNTA($A$1:$A110)+1)),0) -> 0.1499614224 | F111: =IFERROR(INDIRECT("'TMP_BENCHMARK'!B" & (COUNTA($A$1:$A110)+1))*INDIRECT("'TMP_BENCHMARK'!F" & (COUNTA($A$1:$A110)+1)),0) -> 8138.097905 | G111: =IFERROR(('2 - CHECK'!$H$6*INDIRECT("'TMP_BENCHMARK'!B" & (COUNTA($A$1:$A110)+1))/INDIRECT("'TMP_BENCHMARK'!G" & (COUNTA($A$1:$A110)+1)))*INDIRECT("'TMP_BENCHMARK'!F" & (COUNTA($A$1:$A110)+1)),0) -> 297.5965736 | H111: =IFERROR(IF(INDIRECT("'TMP_BENCHMARK'!E" & (COUNTA($A$1:$A110)+1))<>"APPROX","REPORTED","APPROX"),0) -> APPROX
A112: =IFERROR(('2 - CHECK'!$H$6*INDIRECT("'TMP_BENCHMARK'!B" & (COUNTA($A$1:$A111)+1))/INDIRECT("'TMP_BENCHMARK'!G" & (COUNTA($A$1:$A111)+1)))*INDIRECT("'TMP_BENCHMARK'!D" & (COUNTA($A$1:$A111)+1)),0) -> 0.006129296331 | B112: =IFERROR(SUMIF(INDIRECT("'TMP_BENCHMARK'!I:I"),INDIRECT("'TMP_BENCHMARK'!I" & (COUNTA($A$1:$A111)+1)),INDIRECT("'TMP_BENCHMARK'!B:B")),0) -> 0.09945778094 | C112: 0.06162711729 | D112: =IFERROR(INDIRECT("'TMP_BENCHMARK'!B" & (COUNTA($A$1:$A111)+1))*'2 - CHECK'!$H$6,0) -> 95.94529838 | E112: =IFERROR(INDIRECT("'TMP_BENCHMARK'!B" & (COUNTA($A$1:$A111)+1))*INDIRECT("'TMP_BENCHMARK'!D" & (COUNTA($A$1:$A111)+1)),0) -> 0.1656159768 | F112: =IFERROR(INDIRECT("'TMP_BENCHMARK'!B" & (COUNTA($A$1:$A111)+1))*INDIRECT("'TMP_BENCHMARK'!F" & (COUNTA($A$1:$A111)+1)),0) -> 3705.983095 | G112: =IFERROR(('2 - CHECK'!$H$6*INDIRECT("'TMP_BENCHMARK'!B" & (COUNTA($A$1:$A111)+1))/INDIRECT("'TMP_BENCHMARK'!G" & (COUNTA($A$1:$A111)+1)))*INDIRECT("'TMP_BENCHMARK'!F" & (COUNTA($A$1:$A111)+1)),0) -> 137.1550561 | H112: =IFERROR(IF(INDIRECT("'TMP_BENCHMARK'!E" & (COUNTA($A$1:$A111)+1))<>"APPROX","REPORTED","APPROX"),0) -> APPROX
A113: =IFERROR(('2 - CHECK'!$H$6*INDIRECT("'TMP_BENCHMARK'!B" & (COUNTA($A$1:$A112)+1))/INDIRECT("'TMP_BENCHMARK'!G" & (COUNTA($A$1:$A112)+1)))*INDIRECT("'TMP_BENCHMARK'!D" & (COUNTA($A$1:$A112)+1)),0) -> 0.05970579816 | B113: =IFERROR(SUMIF(INDIRECT("'TMP_BENCHMARK'!I:I"),INDIRECT("'TMP_BENCHMARK'!I" & (COUNTA($A$1:$A112)+1)),INDIRECT("'TMP_BENCHMARK'!B:B")),0) -> 0.2111922142 | C113: 0.2827083299 | D113: =IFERROR(INDIRECT("'TMP_BENCHMARK'!B" & (COUNTA($A$1:$A112)+1))*'2 - CHECK'!$H$6,0) -> 90.64167484 | E113: =IFERROR(INDIRECT("'TMP_BENCHMARK'!B" & (COUNTA($A$1:$A112)+1))*INDIRECT("'TMP_BENCHMARK'!D" & (COUNTA($A$1:$A112)+1)),0) -> 1.524096073 | F113: =IFERROR(INDIRECT("'TMP_BENCHMARK'!B" & (COUNTA($A$1:$A112)+1))*INDIRECT("'TMP_BENCHMARK'!F" & (COUNTA($A$1:$A112)+1)),0) -> 16641.8115 | G113: =IFERROR(('2 - CHECK'!$H$6*INDIRECT("'TMP_BENCHMARK'!B" & (COUNTA($A$1:$A112)+1))/INDIRECT("'TMP_BENCHMARK'!G" & (COUNTA($A$1:$A112)+1)))*INDIRECT("'TMP_BENCHMARK'!F" & (COUNTA($A$1:$A112)+1)),0) -> 651.9356988 | H113: =IFERROR(IF(INDIRECT("'TMP_BENCHMARK'!E" & (COUNTA($A$1:$A112)+1))<>"APPROX","REPORTED","APPROX"),0) -> APPROX
A114: =IFERROR(('2 - CHECK'!$H$6*INDIRECT("'TMP_BENCHMARK'!B" & (COUNTA($A$1:$A113)+1))/INDIRECT("'TMP_BENCHMARK'!G" & (COUNTA($A$1:$A113)+1)))*INDIRECT("'TMP_BENCHMARK'!D" & (COUNTA($A$1:$A113)+1)),0) -> 0.04567498789 | B114: =IFERROR(SUMIF(INDIRECT("'TMP_BENCHMARK'!I:I"),INDIRECT("'TMP_BENCHMARK'!I" & (COUNTA($A$1:$A113)+1)),INDIRECT("'TMP_BENCHMARK'!B:B")),0) -> 0.2111922142 | C114: 0.21627212 | D114: =IFERROR(INDIRECT("'TMP_BENCHMARK'!B" & (COUNTA($A$1:$A113)+1))*'2 - CHECK'!$H$6,0) -> 86.42691567 | E114: =IFERROR(INDIRECT("'TMP_BENCHMARK'!B" & (COUNTA($A$1:$A113)+1))*INDIRECT("'TMP_BENCHMARK'!D" & (COUNTA($A$1:$A113)+1)),0) -> 1.111719874 | F114: =IFERROR(INDIRECT("'TMP_BENCHMARK'!B" & (COUNTA($A$1:$A113)+1))*INDIRECT("'TMP_BENCHMARK'!F" & (COUNTA($A$1:$A113)+1)),0) -> 4318.839403 | G114: =IFERROR(('2 - CHECK'!$H$6*INDIRECT("'TMP_BENCHMARK'!B" & (COUNTA($A$1:$A113)+1))/INDIRECT("'TMP_BENCHMARK'!G" & (COUNTA($A$1:$A113)+1)))*INDIRECT("'TMP_BENCHMARK'!F" & (COUNTA($A$1:$A113)+1)),0) -> 177.439427 | H114: =IFERROR(IF(INDIRECT("'TMP_BENCHMARK'!E" & (COUNTA($A$1:$A113)+1))<>"APPROX","REPORTED","APPROX"),0) -> APPROX
A115: =IFERROR(('2 - CHECK'!$H$6*INDIRECT("'TMP_BENCHMARK'!B" & (COUNTA($A$1:$A114)+1))/INDIRECT("'TMP_BENCHMARK'!G" & (COUNTA($A$1:$A114)+1)))*INDIRECT("'TMP_BENCHMARK'!D" & (COUNTA($A$1:$A114)+1)),0) -> 0.01195963611 | B115: =IFERROR(SUMIF(INDIRECT("'TMP_BENCHMARK'!I:I"),INDIRECT("'TMP_BENCHMARK'!I" & (COUNTA($A$1:$A114)+1)),INDIRECT("'TMP_BENCHMARK'!B:B")),0) -> 0.2111922142 | C115: 0.05662915254 | D115: =IFERROR(INDIRECT("'TMP_BENCHMARK'!B" & (COUNTA($A$1:$A114)+1))*'2 - CHECK'!$H$6,0) -> 85.15765592 | E115: =IFERROR(INDIRECT("'TMP_BENCHMARK'!B" & (COUNTA($A$1:$A114)+1))*INDIRECT("'TMP_BENCHMARK'!D" & (COUNTA($A$1:$A114)+1)),0) -> 0.286820097 | F115: =IFERROR(INDIRECT("'TMP_BENCHMARK'!B" & (COUNTA($A$1:$A114)+1))*INDIRECT("'TMP_BENCHMARK'!F" & (COUNTA($A$1:$A114)+1)),0) -> 6418.162211 | G115: =IFERROR(('2 - CHECK'!$H$6*INDIRECT("'TMP_BENCHMARK'!B" & (COUNTA($A$1:$A114)+1))/INDIRECT("'TMP_BENCHMARK'!G" & (COUNTA($A$1:$A114)+1)))*INDIRECT("'TMP_BENCHMARK'!F" & (COUNTA($A$1:$A114)+1)),0) -> 267.6203145 | H115: =IFERROR(IF(INDIRECT("'TMP_BENCHMARK'!E" & (COUNTA($A$1:$A114)+1))<>"APPROX","REPORTED","APPROX"),0) -> APPROX
A116: =IFERROR(('2 - CHECK'!$H$6*INDIRECT("'TMP_BENCHMARK'!B" & (COUNTA($A$1:$A115)+1))/INDIRECT("'TMP_BENCHMARK'!G" & (COUNTA($A$1:$A115)+1)))*INDIRECT("'TMP_BENCHMARK'!D" & (COUNTA($A$1:$A115)+1)),0) -> 0.007034311622 | B116: =IFERROR(SUMIF(INDIRECT("'TMP_BENCHMARK'!I:I"),INDIRECT("'TMP_BENCHMARK'!I" & (COUNTA($A$1:$A115)+1)),INDIRECT("'TMP_BENCHMARK'!B:B")),0) -> 0.0509091081 | C116: 0.1381739316 | D116: =IFERROR(INDIRECT("'TMP_BENCHMARK'!B" & (COUNTA($A$1:$A115)+1))*'2 - CHECK'!$H$6,0) -> 79.62145581 | E116: =IFERROR(INDIRECT("'TMP_BENCHMARK'!B" & (COUNTA($A$1:$A115)+1))*INDIRECT("'TMP_BENCHMARK'!D" & (COUNTA($A$1:$A115)+1)),0) -> 0.1577319353 | F116: =IFERROR(INDIRECT("'TMP_BENCHMARK'!B" & (COUNTA($A$1:$A115)+1))*INDIRECT("'TMP_BENCHMARK'!F" & (COUNTA($A$1:$A115)+1)),0) -> 2872.742126 | G116: =IFERROR(('2 - CHECK'!$H$6*INDIRECT("'TMP_BENCHMARK'!B" & (COUNTA($A$1:$A115)+1))/INDIRECT("'TMP_BENCHMARK'!G" & (COUNTA($A$1:$A115)+1)))*INDIRECT("'TMP_BENCHMARK'!F" & (COUNTA($A$1:$A115)+1)),0) -> 128.114597 | H116: =IFERROR(IF(INDIRECT("'TMP_BENCHMARK'!E" & (COUNTA($A$1:$A115)+1))<>"APPROX","REPORTED","APPROX"),0) -> APPROX
A117: =IFERROR(('2 - CHECK'!$H$6*INDIRECT("'TMP_BENCHMARK'!B" & (COUNTA($A$1:$A116)+1))/INDIRECT("'TMP_BENCHMARK'!G" & (COUNTA($A$1:$A116)+1)))*INDIRECT("'TMP_BENCHMARK'!D" & (COUNTA($A$1:$A116)+1)),0) -> 0.002499012277 | B117: =IFERROR(SUMIF(INDIRECT("'TMP_BENCHMARK'!I:I"),INDIRECT("'TMP_BENCHMARK'!I" & (COUNTA($A$1:$A116)+1)),INDIRECT("'TMP_BENCHMARK'!B:B")),0) -> 0.09945778094 | C117: 0.0251263627 | D117: =IFERROR(INDIRECT("'TMP_BENCHMARK'!B" & (COUNTA($A$1:$A116)+1))*'2 - CHECK'!$H$6,0) -> 78.25181352 | E117: =IFERROR(INDIRECT("'TMP_BENCHMARK'!B" & (COUNTA($A$1:$A116)+1))*INDIRECT("'TMP_BENCHMARK'!D" & (COUNTA($A$1:$A116)+1)),0) -> 0.05507198306 | F117: =IFERROR(INDIRECT("'TMP_BENCHMARK'!B" & (COUNTA($A$1:$A116)+1))*INDIRECT("'TMP_BENCHMARK'!F" & (COUNTA($A$1:$A116)+1)),0) -> 3152.836697 | G117: =IFERROR(('2 - CHECK'!$H$6*INDIRECT("'TMP_BENCHMARK'!B" & (COUNTA($A$1:$A116)+1))/INDIRECT("'TMP_BENCHMARK'!G" & (COUNTA($A$1:$A116)+1)))*INDIRECT("'TMP_BENCHMARK'!F" & (COUNTA($A$1:$A116)+1)),0) -> 143.0668949 | H117: =IFERROR(IF(INDIRECT("'TMP_BENCHMARK'!E" & (COUNTA($A$1:$A116)+1))<>"APPROX","REPORTED","APPROX"),0) -> APPROX
A118: =IFERROR(('2 - CHECK'!$H$6*INDIRECT("'TMP_BENCHMARK'!B" & (COUNTA($A$1:$A117)+1))/INDIRECT("'TMP_BENCHMARK'!G" & (COUNTA($A$1:$A117)+1)))*INDIRECT("'TMP_BENCHMARK'!D" & (COUNTA($A$1:$A117)+1)),0) -> 0.000481196722 | B118: =IFERROR(SUMIF(INDIRECT("'TMP_BENCHMARK'!I:I"),INDIRECT("'TMP_BENCHMARK'!I" & (COUNTA($A$1:$A117)+1)),INDIRECT("'TMP_BENCHMARK'!B:B")),0) -> 0.09945778094 | C118: 0.004838200867 | D118: =IFERROR(INDIRECT("'TMP_BENCHMARK'!B" & (COUNTA($A$1:$A117)+1))*'2 - CHECK'!$H$6,0) -> 75.56458758 | E118: =IFERROR(INDIRECT("'TMP_BENCHMARK'!B" & (COUNTA($A$1:$A117)+1))*INDIRECT("'TMP_BENCHMARK'!D" & (COUNTA($A$1:$A117)+1)),0) -> 0.01024021065 | F118: =IFERROR(INDIRECT("'TMP_BENCHMARK'!B" & (COUNTA($A$1:$A117)+1))*INDIRECT("'TMP_BENCHMARK'!F" & (COUNTA($A$1:$A117)+1)),0) -> 652.4246492 | G118: =IFERROR(('2 - CHECK'!$H$6*INDIRECT("'TMP_BENCHMARK'!B" & (COUNTA($A$1:$A117)+1))/INDIRECT("'TMP_BENCHMARK'!G" & (COUNTA($A$1:$A117)+1)))*INDIRECT("'TMP_BENCHMARK'!F" & (COUNTA($A$1:$A117)+1)),0) -> 30.65802191 | H118: =IFERROR(IF(INDIRECT("'TMP_BENCHMARK'!E" & (COUNTA($A$1:$A117)+1))<>"APPROX","REPORTED","APPROX"),0) -> APPROX
A119: =IFERROR(('2 - CHECK'!$H$6*INDIRECT("'TMP_BENCHMARK'!B" & (COUNTA($A$1:$A118)+1))/INDIRECT("'TMP_BENCHMARK'!G" & (COUNTA($A$1:$A118)+1)))*INDIRECT("'TMP_BENCHMARK'!D" & (COUNTA($A$1:$A118)+1)),0) -> 0.007932804005 | B119: =IFERROR(SUMIF(INDIRECT("'TMP_BENCHMARK'!I:I"),INDIRECT("'TMP_BENCHMARK'!I" & (COUNTA($A$1:$A118)+1)),INDIRECT("'TMP_BENCHMARK'!B:B")),0) -> 0.2111922142 | C119: 0.03756200973 | D119: =IFERROR(INDIRECT("'TMP_BENCHMARK'!B" & (COUNTA($A$1:$A118)+1))*'2 - CHECK'!$H$6,0) -> 70.82205705 | E119: =IFERROR(INDIRECT("'TMP_BENCHMARK'!B" & (COUNTA($A$1:$A118)+1))*INDIRECT("'TMP_BENCHMARK'!D" & (COUNTA($A$1:$A118)+1)),0) -> 0.158220654 | F119: =IFERROR(INDIRECT("'TMP_BENCHMARK'!B" & (COUNTA($A$1:$A118)+1))*INDIRECT("'TMP_BENCHMARK'!F" & (COUNTA($A$1:$A118)+1)),0) -> 2576.293969 | G119: =IFERROR(('2 - CHECK'!$H$6*INDIRECT("'TMP_BENCHMARK'!B" & (COUNTA($A$1:$A118)+1))/INDIRECT("'TMP_BENCHMARK'!G" & (COUNTA($A$1:$A118)+1)))*INDIRECT("'TMP_BENCHMARK'!F" & (COUNTA($A$1:$A118)+1)),0) -> 129.1691989 | H119: =IFERROR(IF(INDIRECT("'TMP_BENCHMARK'!E" & (COUNTA($A$1:$A118)+1))<>"APPROX","REPORTED","APPROX"),0) -> APPROX
A120: =IFERROR(('2 - CHECK'!$H$6*INDIRECT("'TMP_BENCHMARK'!B" & (COUNTA($A$1:$A119)+1))/INDIRECT("'TMP_BENCHMARK'!G" & (COUNTA($A$1:$A119)+1)))*INDIRECT("'TMP_BENCHMARK'!D" & (COUNTA($A$1:$A119)+1)),0) -> 0.05673382357 | B120: =IFERROR(SUMIF(INDIRECT("'TMP_BENCHMARK'!I:I"),INDIRECT("'TMP_BENCHMARK'!I" & (COUNTA($A$1:$A119)+1)),INDIRECT("'TMP_BENCHMARK'!B:B")),0) -> 0.1508628455 | C120: 0.3760622662 | D120: =IFERROR(INDIRECT("'TMP_BENCHMARK'!B" & (COUNTA($A$1:$A119)+1))*'2 - CHECK'!$H$6,0) -> 62.47965672 | E120: =IFERROR(INDIRECT("'TMP_BENCHMARK'!B" & (COUNTA($A$1:$A119)+1))*INDIRECT("'TMP_BENCHMARK'!D" & (COUNTA($A$1:$A119)+1)),0) -> 0.9982713395 | F120: =IFERROR(INDIRECT("'TMP_BENCHMARK'!B" & (COUNTA($A$1:$A119)+1))*INDIRECT("'TMP_BENCHMARK'!F" & (COUNTA($A$1:$A119)+1)),0) -> 667.2115701 | G120: =IFERROR(('2 - CHECK'!$H$6*INDIRECT("'TMP_BENCHMARK'!B" & (COUNTA($A$1:$A119)+1))/INDIRECT("'TMP_BENCHMARK'!G" & (COUNTA($A$1:$A119)+1)))*INDIRECT("'TMP_BENCHMARK'!F" & (COUNTA($A$1:$A119)+1)),0) -> 37.91901261 | H120: =IFERROR(IF(INDIRECT("'TMP_BENCHMARK'!E" & (COUNTA($A$1:$A119)+1))<>"APPROX","REPORTED","APPROX"),0) -> APPROX
A121: =IFERROR(('2 - CHECK'!$H$6*INDIRECT("'TMP_BENCHMARK'!B" & (COUNTA($A$1:$A120)+1))/INDIRECT("'TMP_BENCHMARK'!G" & (COUNTA($A$1:$A120)+1)))*INDIRECT("'TMP_BENCHMARK'!D" & (COUNTA($A$1:$A120)+1)),0) -> 0.00682147024 | B121: =IFERROR(SUMIF(INDIRECT("'TMP_BENCHMARK'!I:I"),INDIRECT("'TMP_BENCHMARK'!I" & (COUNTA($A$1:$A120)+1)),INDIRECT("'TMP_BENCHMARK'!B:B")),0) -> 0.09945778094 | C121: 0.06858659198 | D121: =IFERROR(INDIRECT("'TMP_BENCHMARK'!B" & (COUNTA($A$1:$A120)+1))*'2 - CHECK'!$H$6,0) -> 56.10203841 | E121: =IFERROR(INDIRECT("'TMP_BENCHMARK'!B" & (COUNTA($A$1:$A120)+1))*INDIRECT("'TMP_BENCHMARK'!D" & (COUNTA($A$1:$A120)+1)),0) -> 0.1077766161 | F121: =IFERROR(INDIRECT("'TMP_BENCHMARK'!B" & (COUNTA($A$1:$A120)+1))*INDIRECT("'TMP_BENCHMARK'!F" & (COUNTA($A$1:$A120)+1)),0) -> 1213.094376 | G121: =IFERROR(('2 - CHECK'!$H$6*INDIRECT("'TMP_BENCHMARK'!B" & (COUNTA($A$1:$A120)+1))/INDIRECT("'TMP_BENCHMARK'!G" & (COUNTA($A$1:$A120)+1)))*INDIRECT("'TMP_BENCHMARK'!F" & (COUNTA($A$1:$A120)+1)),0) -> 76.77998701 | H121: =IFERROR(IF(INDIRECT("'TMP_BENCHMARK'!E" & (COUNTA($A$1:$A120)+1))<>"APPROX","REPORTED","APPROX"),0) -> APPROX
A122: =IFERROR(('2 - CHECK'!$H$6*INDIRECT("'TMP_BENCHMARK'!B" & (COUNTA($A$1:$A121)+1))/INDIRECT("'TMP_BENCHMARK'!G" & (COUNTA($A$1:$A121)+1)))*INDIRECT("'TMP_BENCHMARK'!D" & (COUNTA($A$1:$A121)+1)),0) -> 0.01133441345 | B122: =IFERROR(SUMIF(INDIRECT("'TMP_BENCHMARK'!I:I"),INDIRECT("'TMP_BENCHMARK'!I" & (COUNTA($A$1:$A121)+1)),INDIRECT("'TMP_BENCHMARK'!B:B")),0) -> 0.2111922142 | C122: 0.0536687088 | D122: =IFERROR(INDIRECT("'TMP_BENCHMARK'!B" & (COUNTA($A$1:$A121)+1))*'2 - CHECK'!$H$6,0) -> 52.85734857 | E122: =IFERROR(INDIRECT("'TMP_BENCHMARK'!B" & (COUNTA($A$1:$A121)+1))*INDIRECT("'TMP_BENCHMARK'!D" & (COUNTA($A$1:$A121)+1)),0) -> 0.1687222424 | F122: =IFERROR(INDIRECT("'TMP_BENCHMARK'!B" & (COUNTA($A$1:$A121)+1))*INDIRECT("'TMP_BENCHMARK'!F" & (COUNTA($A$1:$A121)+1)),0) -> 2219.902925 | G122: =IFERROR(('2 - CHECK'!$H$6*INDIRECT("'TMP_BENCHMARK'!B" & (COUNTA($A$1:$A121)+1))/INDIRECT("'TMP_BENCHMARK'!G" & (COUNTA($A$1:$A121)+1)))*INDIRECT("'TMP_BENCHMARK'!F" & (COUNTA($A$1:$A121)+1)),0) -> 149.1285157 | H122: =IFERROR(IF(INDIRECT("'TMP_BENCHMARK'!E" & (COUNTA($A$1:$A121)+1))<>"APPROX","REPORTED","APPROX"),0) -> APPROX
A123: =IFERROR(('2 - CHECK'!$H$6*INDIRECT("'TMP_BENCHMARK'!B" & (COUNTA($A$1:$A122)+1))/INDIRECT("'TMP_BENCHMARK'!G" & (COUNTA($A$1:$A122)+1)))*INDIRECT("'TMP_BENCHMARK'!D" & (COUNTA($A$1:$A122)+1)),0) -> 0.05904695606 | B123: =IFERROR(SUMIF(INDIRECT("'TMP_BENCHMARK'!I:I"),INDIRECT("'TMP_BENCHMARK'!I" & (COUNTA($A$1:$A122)+1)),INDIRECT("'TMP_BENCHMARK'!B:B")),0) -> 0.2111922142 | C123: 0.2795886973 | D123: =IFERROR(INDIRECT("'TMP_BENCHMARK'!B" & (COUNTA($A$1:$A122)+1))*'2 - CHECK'!$H$6,0) -> 41.24317497 | E123: =IFERROR(INDIRECT("'TMP_BENCHMARK'!B" & (COUNTA($A$1:$A122)+1))*INDIRECT("'TMP_BENCHMARK'!D" & (COUNTA($A$1:$A122)+1)),0) -> 0.685831643 | F123: =IFERROR(INDIRECT("'TMP_BENCHMARK'!B" & (COUNTA($A$1:$A122)+1))*INDIRECT("'TMP_BENCHMARK'!F" & (COUNTA($A$1:$A122)+1)),0) -> 1257.298189 | G123: =IFERROR(('2 - CHECK'!$H$6*INDIRECT("'TMP_BENCHMARK'!B" & (COUNTA($A$1:$A122)+1))/INDIRECT("'TMP_BENCHMARK'!G" & (COUNTA($A$1:$A122)+1)))*INDIRECT("'TMP_BENCHMARK'!F" & (COUNTA($A$1:$A122)+1)),0) -> 108.2476023 | H123: =IFERROR(IF(INDIRECT("'TMP_BENCHMARK'!E" & (COUNTA($A$1:$A122)+1))<>"APPROX","REPORTED","APPROX"),0) -> APPROX
A124: =IFERROR(('2 - CHECK'!$H$6*INDIRECT("'TMP_BENCHMARK'!B" & (COUNTA($A$1:$A123)+1))/INDIRECT("'TMP_BENCHMARK'!G" & (COUNTA($A$1:$A123)+1)))*INDIRECT("'TMP_BENCHMARK'!D" & (COUNTA($A$1:$A123)+1)),0) -> 0.006594496483 | B124: =IFERROR(SUMIF(INDIRECT("'TMP_BENCHMARK'!I:I"),INDIRECT("'TMP_BENCHMARK'!I" & (COUNTA($A$1:$A123)+1)),INDIRECT("'TMP_BENCHMARK'!B:B")),0) -> 0.0509091081 | C124: 0.1295347086 | D124: =IFERROR(INDIRECT("'TMP_BENCHMARK'!B" & (COUNTA($A$1:$A123)+1))*'2 - CHECK'!$H$6,0) -> 38.71342676 | E124: =IFERROR(INDIRECT("'TMP_BENCHMARK'!B" & (COUNTA($A$1:$A123)+1))*INDIRECT("'TMP_BENCHMARK'!D" & (COUNTA($A$1:$A123)+1)),0) -> 0.07189706635 | F124: =IFERROR(INDIRECT("'TMP_BENCHMARK'!B" & (COUNTA($A$1:$A123)+1))*INDIRECT("'TMP_BENCHMARK'!F" & (COUNTA($A$1:$A123)+1)),0) -> 2295.86106 | G124: =IFERROR(('2 - CHECK'!$H$6*INDIRECT("'TMP_BENCHMARK'!B" & (COUNTA($A$1:$A123)+1))/INDIRECT("'TMP_BENCHMARK'!G" & (COUNTA($A$1:$A123)+1)))*INDIRECT("'TMP_BENCHMARK'!F" & (COUNTA($A$1:$A123)+1)),0) -> 210.5794917 | H124: =IFERROR(IF(INDIRECT("'TMP_BENCHMARK'!E" & (COUNTA($A$1:$A123)+1))<>"APPROX","REPORTED","APPROX"),0) -> APPROX
A125: =IFERROR(('2 - CHECK'!$H$6*INDIRECT("'TMP_BENCHMARK'!B" & (COUNTA($A$1:$A124)+1))/INDIRECT("'TMP_BENCHMARK'!G" & (COUNTA($A$1:$A124)+1)))*INDIRECT("'TMP_BENCHMARK'!D" & (COUNTA($A$1:$A124)+1)),0) -> 0.0005647091168 | B125: =IFERROR(SUMIF(INDIRECT("'TMP_BENCHMARK'!I:I"),INDIRECT("'TMP_BENCHMARK'!I" & (COUNTA($A$1:$A124)+1)),INDIRECT("'TMP_BENCHMARK'!B:B")),0) -> 0.2111922142 | C125: 0.002673910679 | D125: =IFERROR(INDIRECT("'TMP_BENCHMARK'!B" & (COUNTA($A$1:$A124)+1))*'2 - CHECK'!$H$6,0) -> 37.52170157 | E125: =IFERROR(INDIRECT("'TMP_BENCHMARK'!B" & (COUNTA($A$1:$A124)+1))*INDIRECT("'TMP_BENCHMARK'!D" & (COUNTA($A$1:$A124)+1)),0) -> 0.00596726381 | F125: =IFERROR(INDIRECT("'TMP_BENCHMARK'!B" & (COUNTA($A$1:$A124)+1))*INDIRECT("'TMP_BENCHMARK'!F" & (COUNTA($A$1:$A124)+1)),0) -> 331.8801183 | G125: =IFERROR(('2 - CHECK'!$H$6*INDIRECT("'TMP_BENCHMARK'!B" & (COUNTA($A$1:$A124)+1))/INDIRECT("'TMP_BENCHMARK'!G" & (COUNTA($A$1:$A124)+1)))*INDIRECT("'TMP_BENCHMARK'!F" & (COUNTA($A$1:$A124)+1)),0) -> 31.40731405 | H125: =IFERROR(IF(INDIRECT("'TMP_BENCHMARK'!E" & (COUNTA($A$1:$A124)+1))<>"APPROX","REPORTED","APPROX"),0) -> APPROX
A126: =IFERROR(('2 - CHECK'!$H$6*INDIRECT("'TMP_BENCHMARK'!B" & (COUNTA($A$1:$A125)+1))/INDIRECT("'TMP_BENCHMARK'!G" & (COUNTA($A$1:$A125)+1)))*INDIRECT("'TMP_BENCHMARK'!D" & (COUNTA($A$1:$A125)+1)),0) -> 0.003349532703 | B126: =IFERROR(SUMIF(INDIRECT("'TMP_BENCHMARK'!I:I"),INDIRECT("'TMP_BENCHMARK'!I" & (COUNTA($A$1:$A125)+1)),INDIRECT("'TMP_BENCHMARK'!B:B")),0) -> 0.09945778094 | C126: 0.03367793522 | D126: =IFERROR(INDIRECT("'TMP_BENCHMARK'!B" & (COUNTA($A$1:$A125)+1))*'2 - CHECK'!$H$6,0) -> 31.7867486 | E126: =IFERROR(INDIRECT("'TMP_BENCHMARK'!B" & (COUNTA($A$1:$A125)+1))*INDIRECT("'TMP_BENCHMARK'!D" & (COUNTA($A$1:$A125)+1)),0) -> 0.02998459889 | F126: =IFERROR(INDIRECT("'TMP_BENCHMARK'!B" & (COUNTA($A$1:$A125)+1))*INDIRECT("'TMP_BENCHMARK'!F" & (COUNTA($A$1:$A125)+1)),0) -> 1910.383591 | G126: =IFERROR(('2 - CHECK'!$H$6*INDIRECT("'TMP_BENCHMARK'!B" & (COUNTA($A$1:$A125)+1))/INDIRECT("'TMP_BENCHMARK'!G" & (COUNTA($A$1:$A125)+1)))*INDIRECT("'TMP_BENCHMARK'!F" & (COUNTA($A$1:$A125)+1)),0) -> 213.4059668 | H126: =IFERROR(IF(INDIRECT("'TMP_BENCHMARK'!E" & (COUNTA($A$1:$A125)+1))<>"APPROX","REPORTED","APPROX"),0) -> APPROX
A127: =IFERROR(('2 - CHECK'!$H$6*INDIRECT("'TMP_BENCHMARK'!B" & (COUNTA($A$1:$A126)+1))/INDIRECT("'TMP_BENCHMARK'!G" & (COUNTA($A$1:$A126)+1)))*INDIRECT("'TMP_BENCHMARK'!D" & (COUNTA($A$1:$A126)+1)),0) -> 0.001277129961 | B127: =IFERROR(SUMIF(INDIRECT("'TMP_BENCHMARK'!I:I"),INDIRECT("'TMP_BENCHMARK'!I" & (COUNTA($A$1:$A126)+1)),INDIRECT("'TMP_BENCHMARK'!B:B")),0) -> 0.09945778094 | C127: 0.01284092556 | D127: =IFERROR(INDIRECT("'TMP_BENCHMARK'!B" & (COUNTA($A$1:$A126)+1))*'2 - CHECK'!$H$6,0) -> 29.66788655 | E127: =IFERROR(INDIRECT("'TMP_BENCHMARK'!B" & (COUNTA($A$1:$A126)+1))*INDIRECT("'TMP_BENCHMARK'!D" & (COUNTA($A$1:$A126)+1)),0) -> 0.01067061909 | F127: =IFERROR(INDIRECT("'TMP_BENCHMARK'!B" & (COUNTA($A$1:$A126)+1))*INDIRECT("'TMP_BENCHMARK'!F" & (COUNTA($A$1:$A126)+1)),0) -> 494.2966578 | G127: =IFERROR(('2 - CHECK'!$H$6*INDIRECT("'TMP_BENCHMARK'!B" & (COUNTA($A$1:$A126)+1))/INDIRECT("'TMP_BENCHMARK'!G" & (COUNTA($A$1:$A126)+1)))*INDIRECT("'TMP_BENCHMARK'!F" & (COUNTA($A$1:$A126)+1)),0) -> 59.16067907 | H127: =IFERROR(IF(INDIRECT("'TMP_BENCHMARK'!E" & (COUNTA($A$1:$A126)+1))<>"APPROX","REPORTED","APPROX"),0) -> APPROX
A128: =IFERROR(('2 - CHECK'!$H$6*INDIRECT("'TMP_BENCHMARK'!B" & (COUNTA($A$1:$A127)+1))/INDIRECT("'TMP_BENCHMARK'!G" & (COUNTA($A$1:$A127)+1)))*INDIRECT("'TMP_BENCHMARK'!D" & (COUNTA($A$1:$A127)+1)),0) -> 0.0003494283023 | B128: =IFERROR(SUMIF(INDIRECT("'TMP_BENCHMARK'!I:I"),INDIRECT("'TMP_BENCHMARK'!I" & (COUNTA($A$1:$A127)+1)),INDIRECT("'TMP_BENCHMARK'!B:B")),0) -> 0.09945778094 | C128: 0.003513332985 | D128: =IFERROR(INDIRECT("'TMP_BENCHMARK'!B" & (COUNTA($A$1:$A127)+1))*'2 - CHECK'!$H$6,0) -> 12.80540551 | E128: =IFERROR(INDIRECT("'TMP_BENCHMARK'!B" & (COUNTA($A$1:$A127)+1))*INDIRECT("'TMP_BENCHMARK'!D" & (COUNTA($A$1:$A127)+1)),0) -> 0.00126014154 | F128: =IFERROR(INDIRECT("'TMP_BENCHMARK'!B" & (COUNTA($A$1:$A127)+1))*INDIRECT("'TMP_BENCHMARK'!F" & (COUNTA($A$1:$A127)+1)),0) -> 7.081389244 | G128: =IFERROR(('2 - CHECK'!$H$6*INDIRECT("'TMP_BENCHMARK'!B" & (COUNTA($A$1:$A127)+1))/INDIRECT("'TMP_BENCHMARK'!G" & (COUNTA($A$1:$A127)+1)))*INDIRECT("'TMP_BENCHMARK'!F" & (COUNTA($A$1:$A127)+1)),0) -> 1.963618962 | H128: =IFERROR(IF(INDIRECT("'TMP_BENCHMARK'!E" & (COUNTA($A$1:$A127)+1))<>"APPROX","REPORTED","APPROX"),0) -> APPROX
A129: =IFERROR(('2 - CHECK'!$H$6*INDIRECT("'TMP_BENCHMARK'!B" & (COUNTA($A$1:$A128)+1))/INDIRECT("'TMP_BENCHMARK'!G" & (COUNTA($A$1:$A128)+1)))*INDIRECT("'TMP_BENCHMARK'!D" & (COUNTA($A$1:$A128)+1)),0) -> 0 | B129: =IFERROR(SUMIF(INDIRECT("'TMP_BENCHMARK'!I:I"),INDIRECT("'TMP_BENCHMARK'!I" & (COUNTA($A$1:$A128)+1)),INDIRECT("'TMP_BENCHMARK'!B:B")),0) -> 0.2111922142 | C129: 0 | D129: =IFERROR(INDIRECT("'TMP_BENCHMARK'!B" & (COUNTA($A$1:$A128)+1))*'2 - CHECK'!$H$6,0) -> 0 | E129: =IFERROR(INDIRECT("'TMP_BENCHMARK'!B" & (COUNTA($A$1:$A128)+1))*INDIRECT("'TMP_BENCHMARK'!D" & (COUNTA($A$1:$A128)+1)),0) -> 0 | F129: =IFERROR(INDIRECT("'TMP_BENCHMARK'!B" & (COUNTA($A$1:$A128)+1))*INDIRECT("'TMP_BENCHMARK'!F" & (COUNTA($A$1:$A128)+1)),0) -> 0 | G129: =IFERROR(('2 - CHECK'!$H$6*INDIRECT("'TMP_BENCHMARK'!B" & (COUNTA($A$1:$A128)+1))/INDIRECT("'TMP_BENCHMARK'!G" & (COUNTA($A$1:$A128)+1)))*INDIRECT("'TMP_BENCHMARK'!F" & (COUNTA($A$1:$A128)+1)),0) -> 0 | H129: =IFERROR(IF(INDIRECT("'TMP_BENCHMARK'!E" & (COUNTA($A$1:$A128)+1))<>"APPROX","REPORTED","APPROX"),0) -> APPROX
A130: =IFERROR(('2 - CHECK'!$H$6*INDIRECT("'TMP_BENCHMARK'!B" & (COUNTA($A$1:$A129)+1))/INDIRECT("'TMP_BENCHMARK'!G" & (COUNTA($A$1:$A129)+1)))*INDIRECT("'TMP_BENCHMARK'!D" & (COUNTA($A$1:$A129)+1)),0) -> 0 | B130: =IFERROR(SUMIF(INDIRECT("'TMP_BENCHMARK'!I:I"),INDIRECT("'TMP_BENCHMARK'!I" & (COUNTA($A$1:$A129)+1)),INDIRECT("'TMP_BENCHMARK'!B:B")),0) -> 0 | C130: 0 | D130: =IFERROR(INDIRECT("'TMP_BENCHMARK'!B" & (COUNTA($A$1:$A129)+1))*'2 - CHECK'!$H$6,0) -> 0 | E130: =IFERROR(INDIRECT("'TMP_BENCHMARK'!B" & (COUNTA($A$1:$A129)+1))*INDIRECT("'TMP_BENCHMARK'!D" & (COUNTA($A$1:$A129)+1)),0) -> 0 | F130: =IFERROR(INDIRECT("'TMP_BENCHMARK'!B" & (COUNTA($A$1:$A129)+1))*INDIRECT("'TMP_BENCHMARK'!F" & (COUNTA($A$1:$A129)+1)),0) -> 0 | G130: =IFERROR(('2 - CHECK'!$H$6*INDIRECT("'TMP_BENCHMARK'!B" & (COUNTA($A$1:$A129)+1))/INDIRECT("'TMP_BENCHMARK'!G" & (COUNTA($A$1:$A129)+1)))*INDIRECT("'TMP_BENCHMARK'!F" & (COUNTA($A$1:$A129)+1)),0) -> 0 | H130: =IFERROR(IF(INDIRECT("'TMP_BENCHMARK'!E" & (COUNTA($A$1:$A129)+1))<>"APPROX","REPORTED","APPROX"),0) -> REPORTED
A131: =IFERROR(('2 - CHECK'!$H$6*INDIRECT("'TMP_BENCHMARK'!B" & (COUNTA($A$1:$A130)+1))/INDIRECT("'TMP_BENCHMARK'!G" & (COUNTA($A$1:$A130)+1)))*INDIRECT("'TMP_BENCHMARK'!D" & (COUNTA($A$1:$A130)+1)),0) -> 0 | B131: =IFERROR(SUMIF(INDIRECT("'TMP_BENCHMARK'!I:I"),INDIRECT("'TMP_BENCHMARK'!I" & (COUNTA($A$1:$A130)+1)),INDIRECT("'TMP_BENCHMARK'!B:B")),0) -> 0 | C131: =IFERROR(A131/B131,0) -> 0 | D131: =IFERROR(INDIRECT("'TMP_BENCHMARK'!B" & (COUNTA($A$1:$A130)+1))*'2 - CHECK'!$H$6,0) -> 0 | E131: =IFERROR(INDIRECT("'TMP_BENCHMARK'!B" & (COUNTA($A$1:$A130)+1))*INDIRECT("'TMP_BENCHMARK'!D" & (COUNTA($A$1:$A130)+1)),0) -> 0 | F131: =IFERROR(INDIRECT("'TMP_BENCHMARK'!B" & (COUNTA($A$1:$A130)+1))*INDIRECT("'TMP_BENCHMARK'!F" & (COUNTA($A$1:$A130)+1)),0) -> 0 | G131: =IFERROR(('2 - CHECK'!$H$6*INDIRECT("'TMP_BENCHMARK'!B" & (COUNTA($A$1:$A130)+1))/INDIRECT("'TMP_BENCHMARK'!G" & (COUNTA($A$1:$A130)+1)))*INDIRECT("'TMP_BENCHMARK'!F" & (COUNTA($A$1:$A130)+1)),0) -> 0 | H131: =IFERROR(IF(INDIRECT("'TMP_BENCHMARK'!E" & (COUNTA($A$1:$A130)+1))<>"APPROX","REPORTED","APPROX"),0) -> REPORTED
A132: =IFERROR(('2 - CHECK'!$H$6*INDIRECT("'TMP_BENCHMARK'!B" & (COUNTA($A$1:$A131)+1))/INDIRECT("'TMP_BENCHMARK'!G" & (COUNTA($A$1:$A131)+1)))*INDIRECT("'TMP_BENCHMARK'!D" & (COUNTA($A$1:$A131)+1)),0) -> 0 | B132: =IFERROR(SUMIF(INDIRECT("'TMP_BENCHMARK'!I:I"),INDIRECT("'TMP_BENCHMARK'!I" & (COUNTA($A$1:$A131)+1)),INDIRECT("'TMP_BENCHMARK'!B:B")),0) -> 0 | C132: 0 | D132: =IFERROR(INDIRECT("'TMP_BENCHMARK'!B" & (COUNTA($A$1:$A131)+1))*'2 - CHECK'!$H$6,0) -> 0 | E132: =IFERROR(INDIRECT("'TMP_BENCHMARK'!B" & (COUNTA($A$1:$A131)+1))*INDIRECT("'TMP_BENCHMARK'!D" & (COUNTA($A$1:$A131)+1)),0) -> 0 | F132: =IFERROR(INDIRECT("'TMP_BENCHMARK'!B" & (COUNTA($A$1:$A131)+1))*INDIRECT("'TMP_BENCHMARK'!F" & (COUNTA($A$1:$A131)+1)),0) -> 0 | G132: =IFERROR(('2 - CHECK'!$H$6*INDIRECT("'TMP_BENCHMARK'!B" & (COUNTA($A$1:$A131)+1))/INDIRECT("'TMP_BENCHMARK'!G" & (COUNTA($A$1:$A131)+1)))*INDIRECT("'TMP_BENCHMARK'!F" & (COUNTA($A$1:$A131)+1)),0) -> 0 | H132: =IFERROR(IF(INDIRECT("'TMP_BENCHMARK'!E" & (COUNTA($A$1:$A131)+1))<>"APPROX","REPORTED","APPROX"),0) -> REPORTED
A133: =IFERROR(('2 - CHECK'!$H$6*INDIRECT("'TMP_BENCHMARK'!B" & (COUNTA($A$1:$A132)+1))/INDIRECT("'TMP_BENCHMARK'!G" & (COUNTA($A$1:$A132)+1)))*INDIRECT("'TMP_BENCHMARK'!D" & (COUNTA($A$1:$A132)+1)),0) -> 0 | B133: =IFERROR(SUMIF(INDIRECT("'TMP_BENCHMARK'!I:I"),INDIRECT("'TMP_BENCHMARK'!I" & (COUNTA($A$1:$A132)+1)),INDIRECT("'TMP_BENCHMARK'!B:B")),0) -> 0 | C133: 0 | D133: =IFERROR(INDIRECT("'TMP_BENCHMARK'!B" & (COUNTA($A$1:$A132)+1))*'2 - CHECK'!$H$6,0) -> 0 | E133: =IFERROR(INDIRECT("'TMP_BENCHMARK'!B" & (COUNTA($A$1:$A132)+1))*INDIRECT("'TMP_BENCHMARK'!D" & (COUNTA($A$1:$A132)+1)),0) -> 0 | F133: =IFERROR(INDIRECT("'TMP_BENCHMARK'!B" & (COUNTA($A$1:$A132)+1))*INDIRECT("'TMP_BENCHMARK'!F" & (COUNTA($A$1:$A132)+1)),0) -> 0 | G133: =IFERROR(('2 - CHECK'!$H$6*INDIRECT("'TMP_BENCHMARK'!B" & (COUNTA($A$1:$A132)+1))/INDIRECT("'TMP_BENCHMARK'!G" & (COUNTA($A$1:$A132)+1)))*INDIRECT("'TMP_BENCHMARK'!F" & (COUNTA($A$1:$A132)+1)),0) -> 0 | H133: =IFERROR(IF(INDIRECT("'TMP_BENCHMARK'!E" & (COUNTA($A$1:$A132)+1))<>"APPROX","REPORTED","APPROX"),0) -> REPORTED
A134: =IFERROR(('2 - CHECK'!$H$6*INDIRECT("'TMP_BENCHMARK'!B" & (COUNTA($A$1:$A133)+1))/INDIRECT("'TMP_BENCHMARK'!G" & (COUNTA($A$1:$A133)+1)))*INDIRECT("'TMP_BENCHMARK'!D" & (COUNTA($A$1:$A133)+1)),0) -> 0 | B134: =IFERROR(SUMIF(INDIRECT("'TMP_BENCHMARK'!I:I"),INDIRECT("'TMP_BENCHMARK'!I" & (COUNTA($A$1:$A133)+1)),INDIRECT("'TMP_BENCHMARK'!B:B")),0) -> 0 | C134: 0 | D134: =IFERROR(INDIRECT("'TMP_BENCHMARK'!B" & (COUNTA($A$1:$A133)+1))*'2 - CHECK'!$H$6,0) -> 0 | E134: =IFERROR(INDIRECT("'TMP_BENCHMARK'!B" & (COUNTA($A$1:$A133)+1))*INDIRECT("'TMP_BENCHMARK'!D" & (COUNTA($A$1:$A133)+1)),0) -> 0 | F134: =IFERROR(INDIRECT("'TMP_BENCHMARK'!B" & (COUNTA($A$1:$A133)+1))*INDIRECT("'TMP_BENCHMARK'!F" & (COUNTA($A$1:$A133)+1)),0) -> 0 | G134: =IFERROR(('2 - CHECK'!$H$6*INDIRECT("'TMP_BENCHMARK'!B" & (COUNTA($A$1:$A133)+1))/INDIRECT("'TMP_BENCHMARK'!G" & (COUNTA($A$1:$A133)+1)))*INDIRECT("'TMP_BENCHMARK'!F" & (COUNTA($A$1:$A133)+1)),0) -> 0 | H134: =IFERROR(IF(INDIRECT("'TMP_BENCHMARK'!E" & (COUNTA($A$1:$A133)+1))<>"APPROX","REPORTED","APPROX"),0) -> REPORTED
A135: =IFERROR(('2 - CHECK'!$H$6*INDIRECT("'TMP_BENCHMARK'!B" & (COUNTA($A$1:$A134)+1))/INDIRECT("'TMP_BENCHMARK'!G" & (COUNTA($A$1:$A134)+1)))*INDIRECT("'TMP_BENCHMARK'!D" & (COUNTA($A$1:$A134)+1)),0) -> 0 | B135: =IFERROR(SUMIF(INDIRECT("'TMP_BENCHMARK'!I:I"),INDIRECT("'TMP_BENCHMARK'!I" & (COUNTA($A$1:$A134)+1)),INDIRECT("'TMP_BENCHMARK'!B:B")),0) -> 0 | C135: 0 | D135: =IFERROR(INDIRECT("'TMP_BENCHMARK'!B" & (COUNTA($A$1:$A134)+1))*'2 - CHECK'!$H$6,0) -> 0 | E135: =IFERROR(INDIRECT("'TMP_BENCHMARK'!B" & (COUNTA($A$1:$A134)+1))*INDIRECT("'TMP_BENCHMARK'!D" & (COUNTA($A$1:$A134)+1)),0) -> 0 | F135: =IFERROR(INDIRECT("'TMP_BENCHMARK'!B" & (COUNTA($A$1:$A134)+1))*INDIRECT("'TMP_BENCHMARK'!F" & (COUNTA($A$1:$A134)+1)),0) -> 0 | G135: =IFERROR(('2 - CHECK'!$H$6*INDIRECT("'TMP_BENCHMARK'!B" & (COUNTA($A$1:$A134)+1))/INDIRECT("'TMP_BENCHMARK'!G" & (COUNTA($A$1:$A134)+1)))*INDIRECT("'TMP_BENCHMARK'!F" & (COUNTA($A$1:$A134)+1)),0) -> 0 | H135: =IFERROR(IF(INDIRECT("'TMP_BENCHMARK'!E" & (COUNTA($A$1:$A134)+1))<>"APPROX","REPORTED","APPROX"),0) -> REPORTED
A136: =IFERROR(('2 - CHECK'!$H$6*INDIRECT("'TMP_BENCHMARK'!B" & (COUNTA($A$1:$A135)+1))/INDIRECT("'TMP_BENCHMARK'!G" & (COUNTA($A$1:$A135)+1)))*INDIRECT("'TMP_BENCHMARK'!D" & (COUNTA($A$1:$A135)+1)),0) -> 0 | B136: =IFERROR(SUMIF(INDIRECT("'TMP_BENCHMARK'!I:I"),INDIRECT("'TMP_BENCHMARK'!I" & (COUNTA($A$1:$A135)+1)),INDIRECT("'TMP_BENCHMARK'!B:B")),0) -> 0 | C136: 0 | D136: =IFERROR(INDIRECT("'TMP_BENCHMARK'!B" & (COUNTA($A$1:$A135)+1))*'2 - CHECK'!$H$6,0) -> 0 | E136: =IFERROR(INDIRECT("'TMP_BENCHMARK'!B" & (COUNTA($A$1:$A135)+1))*INDIRECT("'TMP_BENCHMARK'!D" & (COUNTA($A$1:$A135)+1)),0) -> 0 | F136: =IFERROR(INDIRECT("'TMP_BENCHMARK'!B" & (COUNTA($A$1:$A135)+1))*INDIRECT("'TMP_BENCHMARK'!F" & (COUNTA($A$1:$A135)+1)),0) -> 0 | G136: =IFERROR(('2 - CHECK'!$H$6*INDIRECT("'TMP_BENCHMARK'!B" & (COUNTA($A$1:$A135)+1))/INDIRECT("'TMP_BENCHMARK'!G" & (COUNTA($A$1:$A135)+1)))*INDIRECT("'TMP_BENCHMARK'!F" & (COUNTA($A$1:$A135)+1)),0) -> 0 | H136: =IFERROR(IF(INDIRECT("'TMP_BENCHMARK'!E" & (COUNTA($A$1:$A135)+1))<>"APPROX","REPORTED","APPROX"),0) -> REPORTED
A137: =IFERROR(('2 - CHECK'!$H$6*INDIRECT("'TMP_BENCHMARK'!B" & (COUNTA($A$1:$A136)+1))/INDIRECT("'TMP_BENCHMARK'!G" & (COUNTA($A$1:$A136)+1)))*INDIRECT("'TMP_BENCHMARK'!D" & (COUNTA($A$1:$A136)+1)),0) -> 0 | B137: =IFERROR(SUMIF(INDIRECT("'TMP_BENCHMARK'!I:I"),INDIRECT("'TMP_BENCHMARK'!I" & (COUNTA($A$1:$A136)+1)),INDIRECT("'TMP_BENCHMARK'!B:B")),0) -> 0 | C137: 0 | D137: =IFERROR(INDIRECT("'TMP_BENCHMARK'!B" & (COUNTA($A$1:$A136)+1))*'2 - CHECK'!$H$6,0) -> 0 | E137: =IFERROR(INDIRECT("'TMP_BENCHMARK'!B" & (COUNTA($A$1:$A136)+1))*INDIRECT("'TMP_BENCHMARK'!D" & (COUNTA($A$1:$A136)+1)),0) -> 0 | F137: =IFERROR(INDIRECT("'TMP_BENCHMARK'!B" & (COUNTA($A$1:$A136)+1))*INDIRECT("'TMP_BENCHMARK'!F" & (COUNTA($A$1:$A136)+1)),0) -> 0 | G137: =IFERROR(('2 - CHECK'!$H$6*INDIRECT("'TMP_BENCHMARK'!B" & (COUNTA($A$1:$A136)+1))/INDIRECT("'TMP_BENCHMARK'!G" & (COUNTA($A$1:$A136)+1)))*INDIRECT("'TMP_BENCHMARK'!F" & (COUNTA($A$1:$A136)+1)),0) -> 0 | H137: =IFERROR(IF(INDIRECT("'TMP_BENCHMARK'!E" & (COUNTA($A$1:$A136)+1))<>"APPROX","REPORTED","APPROX"),0) -> REPORTED
A138: =IFERROR(('2 - CHECK'!$H$6*INDIRECT("'TMP_BENCHMARK'!B" & (COUNTA($A$1:$A137)+1))/INDIRECT("'TMP_BENCHMARK'!G" & (COUNTA($A$1:$A137)+1)))*INDIRECT("'TMP_BENCHMARK'!D" & (COUNTA($A$1:$A137)+1)),0) -> 0 | B138: =IFERROR(SUMIF(INDIRECT("'TMP_BENCHMARK'!I:I"),INDIRECT("'TMP_BENCHMARK'!I" & (COUNTA($A$1:$A137)+1)),INDIRECT("'TMP_BENCHMARK'!B:B")),0) -> 0 | C138: 0 | D138: =IFERROR(INDIRECT("'TMP_BENCHMARK'!B" & (COUNTA($A$1:$A137)+1))*'2 - CHECK'!$H$6,0) -> 0 | E138: =IFERROR(INDIRECT("'TMP_BENCHMARK'!B" & (COUNTA($A$1:$A137)+1))*INDIRECT("'TMP_BENCHMARK'!D" & (COUNTA($A$1:$A137)+1)),0) -> 0 | F138: =IFERROR(INDIRECT("'TMP_BENCHMARK'!B" & (COUNTA($A$1:$A137)+1))*INDIRECT("'TMP_BENCHMARK'!F" & (COUNTA($A$1:$A137)+1)),0) -> 0 | G138: =IFERROR(('2 - CHECK'!$H$6*INDIRECT("'TMP_BENCHMARK'!B" & (COUNTA($A$1:$A137)+1))/INDIRECT("'TMP_BENCHMARK'!G" & (COUNTA($A$1:$A137)+1)))*INDIRECT("'TMP_BENCHMARK'!F" & (COUNTA($A$1:$A137)+1)),0) -> 0 | H138: =IFERROR(IF(INDIRECT("'TMP_BENCHMARK'!E" & (COUNTA($A$1:$A137)+1))<>"APPROX","REPORTED","APPROX"),0) -> REPORTED
A139: =IFERROR(('2 - CHECK'!$H$6*INDIRECT("'TMP_BENCHMARK'!B" & (COUNTA($A$1:$A138)+1))/INDIRECT("'TMP_BENCHMARK'!G" & (COUNTA($A$1:$A138)+1)))*INDIRECT("'TMP_BENCHMARK'!D" & (COUNTA($A$1:$A138)+1)),0) -> 0 | B139: =IFERROR(SUMIF(INDIRECT("'TMP_BENCHMARK'!I:I"),INDIRECT("'TMP_BENCHMARK'!I" & (COUNTA($A$1:$A138)+1)),INDIRECT("'TMP_BENCHMARK'!B:B")),0) -> 0 | C139: 0 | D139: =IFERROR(INDIRECT("'TMP_BENCHMARK'!B" & (COUNTA($A$1:$A138)+1))*'2 - CHECK'!$H$6,0) -> 0 | E139: =IFERROR(INDIRECT("'TMP_BENCHMARK'!B" & (COUNTA($A$1:$A138)+1))*INDIRECT("'TMP_BENCHMARK'!D" & (COUNTA($A$1:$A138)+1)),0) -> 0 | F139: =IFERROR(INDIRECT("'TMP_BENCHMARK'!B" & (COUNTA($A$1:$A138)+1))*INDIRECT("'TMP_BENCHMARK'!F" & (COUNTA($A$1:$A138)+1)),0) -> 0 | G139: =IFERROR(('2 - CHECK'!$H$6*INDIRECT("'TMP_BENCHMARK'!B" & (COUNTA($A$1:$A138)+1))/INDIRECT("'TMP_BENCHMARK'!G" & (COUNTA($A$1:$A138)+1)))*INDIRECT("'TMP_BENCHMARK'!F" & (COUNTA($A$1:$A138)+1)),0) -> 0 | H139: =IFERROR(IF(INDIRECT("'TMP_BENCHMARK'!E" & (COUNTA($A$1:$A138)+1))<>"APPROX","REPORTED","APPROX"),0) -> REPORTED
A140: =IFERROR(('2 - CHECK'!$H$6*INDIRECT("'TMP_BENCHMARK'!B" & (COUNTA($A$1:$A139)+1))/INDIRECT("'TMP_BENCHMARK'!G" & (COUNTA($A$1:$A139)+1)))*INDIRECT("'TMP_BENCHMARK'!D" & (COUNTA($A$1:$A139)+1)),0) -> 0 | B140: =IFERROR(SUMIF(INDIRECT("'TMP_BENCHMARK'!I:I"),INDIRECT("'TMP_BENCHMARK'!I" & (COUNTA($A$1:$A139)+1)),INDIRECT("'TMP_BENCHMARK'!B:B")),0) -> 0 | C140: 0 | D140: =IFERROR(INDIRECT("'TMP_BENCHMARK'!B" & (COUNTA($A$1:$A139)+1))*'2 - CHECK'!$H$6,0) -> 0 | E140: =IFERROR(INDIRECT("'TMP_BENCHMARK'!B" & (COUNTA($A$1:$A139)+1))*INDIRECT("'TMP_BENCHMARK'!D" & (COUNTA($A$1:$A139)+1)),0) -> 0 | F140: =IFERROR(INDIRECT("'TMP_BENCHMARK'!B" & (COUNTA($A$1:$A139)+1))*INDIRECT("'TMP_BENCHMARK'!F" & (COUNTA($A$1:$A139)+1)),0) -> 0 | G140: =IFERROR(('2 - CHECK'!$H$6*INDIRECT("'TMP_BENCHMARK'!B" & (COUNTA($A$1:$A139)+1))/INDIRECT("'TMP_BENCHMARK'!G" & (COUNTA($A$1:$A139)+1)))*INDIRECT("'TMP_BENCHMARK'!F" & (COUNTA($A$1:$A139)+1)),0) -> 0 | H140: =IFERROR(IF(INDIRECT("'TMP_BENCHMARK'!E" & (COUNTA($A$1:$A139)+1))<>"APPROX","REPORTED","APPROX"),0) -> REPORTED
A141: =IFERROR(('2 - CHECK'!$H$6*INDIRECT("'TMP_BENCHMARK'!B" & (COUNTA($A$1:$A140)+1))/INDIRECT("'TMP_BENCHMARK'!G" & (COUNTA($A$1:$A140)+1)))*INDIRECT("'TMP_BENCHMARK'!D" & (COUNTA($A$1:$A140)+1)),0) -> 0 | B141: =IFERROR(SUMIF(INDIRECT("'TMP_BENCHMARK'!I:I"),INDIRECT("'TMP_BENCHMARK'!I" & (COUNTA($A$1:$A140)+1)),INDIRECT("'TMP_BENCHMARK'!B:B")),0) -> 0 | C141: 0 | D141: =IFERROR(INDIRECT("'TMP_BENCHMARK'!B" & (COUNTA($A$1:$A140)+1))*'2 - CHECK'!$H$6,0) -> 0 | E141: =IFERROR(INDIRECT("'TMP_BENCHMARK'!B" & (COUNTA($A$1:$A140)+1))*INDIRECT("'TMP_BENCHMARK'!D" & (COUNTA($A$1:$A140)+1)),0) -> 0 | F141: =IFERROR(INDIRECT("'TMP_BENCHMARK'!B" & (COUNTA($A$1:$A140)+1))*INDIRECT("'TMP_BENCHMARK'!F" & (COUNTA($A$1:$A140)+1)),0) -> 0 | G141: =IFERROR(('2 - CHECK'!$H$6*INDIRECT("'TMP_BENCHMARK'!B" & (COUNTA($A$1:$A140)+1))/INDIRECT("'TMP_BENCHMARK'!G" & (COUNTA($A$1:$A140)+1)))*INDIRECT("'TMP_BENCHMARK'!F" & (COUNTA($A$1:$A140)+1)),0) -> 0 | H141: =IFERROR(IF(INDIRECT("'TMP_BENCHMARK'!E" & (COUNTA($A$1:$A140)+1))<>"APPROX","REPORTED","APPROX"),0) -> REPORTED
A142: =IFERROR(('2 - CHECK'!$H$6*INDIRECT("'TMP_BENCHMARK'!B" & (COUNTA($A$1:$A141)+1))/INDIRECT("'TMP_BENCHMARK'!G" & (COUNTA($A$1:$A141)+1)))*INDIRECT("'TMP_BENCHMARK'!D" & (COUNTA($A$1:$A141)+1)),0) -> 0 | B142: =IFERROR(SUMIF(INDIRECT("'TMP_BENCHMARK'!I:I"),INDIRECT("'TMP_BENCHMARK'!I" & (COUNTA($A$1:$A141)+1)),INDIRECT("'TMP_BENCHMARK'!B:B")),0) -> 0 | C142: 0 | D142: =IFERROR(INDIRECT("'TMP_BENCHMARK'!B" & (COUNTA($A$1:$A141)+1))*'2 - CHECK'!$H$6,0) -> 0 | E142: =IFERROR(INDIRECT("'TMP_BENCHMARK'!B" & (COUNTA($A$1:$A141)+1))*INDIRECT("'TMP_BENCHMARK'!D" & (COUNTA($A$1:$A141)+1)),0) -> 0 | F142: =IFERROR(INDIRECT("'TMP_BENCHMARK'!B" & (COUNTA($A$1:$A141)+1))*INDIRECT("'TMP_BENCHMARK'!F" & (COUNTA($A$1:$A141)+1)),0) -> 0 | G142: =IFERROR(('2 - CHECK'!$H$6*INDIRECT("'TMP_BENCHMARK'!B" & (COUNTA($A$1:$A141)+1))/INDIRECT("'TMP_BENCHMARK'!G" & (COUNTA($A$1:$A141)+1)))*INDIRECT("'TMP_BENCHMARK'!F" & (COUNTA($A$1:$A141)+1)),0) -> 0 | H142: =IFERROR(IF(INDIRECT("'TMP_BENCHMARK'!E" & (COUNTA($A$1:$A141)+1))<>"APPROX","REPORTED","APPROX"),0) -> REPORTED
A143: =IFERROR(('2 - CHECK'!$H$6*INDIRECT("'TMP_BENCHMARK'!B" & (COUNTA($A$1:$A142)+1))/INDIRECT("'TMP_BENCHMARK'!G" & (COUNTA($A$1:$A142)+1)))*INDIRECT("'TMP_BENCHMARK'!D" & (COUNTA($A$1:$A142)+1)),0) -> 0 | B143: =IFERROR(SUMIF(INDIRECT("'TMP_BENCHMARK'!I:I"),INDIRECT("'TMP_BENCHMARK'!I" & (COUNTA($A$1:$A142)+1)),INDIRECT("'TMP_BENCHMARK'!B:B")),0) -> 0 | C143: 0 | D143: =IFERROR(INDIRECT("'TMP_BENCHMARK'!B" & (COUNTA($A$1:$A142)+1))*'2 - CHECK'!$H$6,0) -> 0 | E143: =IFERROR(INDIRECT("'TMP_BENCHMARK'!B" & (COUNTA($A$1:$A142)+1))*INDIRECT("'TMP_BENCHMARK'!D" & (COUNTA($A$1:$A142)+1)),0) -> 0 | F143: =IFERROR(INDIRECT("'TMP_BENCHMARK'!B" & (COUNTA($A$1:$A142)+1))*INDIRECT("'TMP_BENCHMARK'!F" & (COUNTA($A$1:$A142)+1)),0) -> 0 | G143: =IFERROR(('2 - CHECK'!$H$6*INDIRECT("'TMP_BENCHMARK'!B" & (COUNTA($A$1:$A142)+1))/INDIRECT("'TMP_BENCHMARK'!G" & (COUNTA($A$1:$A142)+1)))*INDIRECT("'TMP_BENCHMARK'!F" & (COUNTA($A$1:$A142)+1)),0) -> 0 | H143: =IFERROR(IF(INDIRECT("'TMP_BENCHMARK'!E" & (COUNTA($A$1:$A142)+1))<>"APPROX","REPORTED","APPROX"),0) -> REPORTED
A144: =IFERROR(('2 - CHECK'!$H$6*INDIRECT("'TMP_BENCHMARK'!B" & (COUNTA($A$1:$A143)+1))/INDIRECT("'TMP_BENCHMARK'!G" & (COUNTA($A$1:$A143)+1)))*INDIRECT("'TMP_BENCHMARK'!D" & (COUNTA($A$1:$A143)+1)),0) -> 0 | B144: =IFERROR(SUMIF(INDIRECT("'TMP_BENCHMARK'!I:I"),INDIRECT("'TMP_BENCHMARK'!I" & (COUNTA($A$1:$A143)+1)),INDIRECT("'TMP_BENCHMARK'!B:B")),0) -> 0 | C144: 0 | D144: =IFERROR(INDIRECT("'TMP_BENCHMARK'!B" & (COUNTA($A$1:$A143)+1))*'2 - CHECK'!$H$6,0) -> 0 | E144: =IFERROR(INDIRECT("'TMP_BENCHMARK'!B" & (COUNTA($A$1:$A143)+1))*INDIRECT("'TMP_BENCHMARK'!D" & (COUNTA($A$1:$A143)+1)),0) -> 0 | F144: =IFERROR(INDIRECT("'TMP_BENCHMARK'!B" & (COUNTA($A$1:$A143)+1))*INDIRECT("'TMP_BENCHMARK'!F" & (COUNTA($A$1:$A143)+1)),0) -> 0 | G144: =IFERROR(('2 - CHECK'!$H$6*INDIRECT("'TMP_BENCHMARK'!B" & (COUNTA($A$1:$A143)+1))/INDIRECT("'TMP_BENCHMARK'!G" & (COUNTA($A$1:$A143)+1)))*INDIRECT("'TMP_BENCHMARK'!F" & (COUNTA($A$1:$A143)+1)),0) -> 0 | H144: =IFERROR(IF(INDIRECT("'TMP_BENCHMARK'!E" & (COUNTA($A$1:$A143)+1))<>"APPROX","REPORTED","APPROX"),0) -> REPORTED
A145: =IFERROR(('2 - CHECK'!$H$6*INDIRECT("'TMP_BENCHMARK'!B" & (COUNTA($A$1:$A144)+1))/INDIRECT("'TMP_BENCHMARK'!G" & (COUNTA($A$1:$A144)+1)))*INDIRECT("'TMP_BENCHMARK'!D" & (COUNTA($A$1:$A144)+1)),0) -> 0 | B145: =IFERROR(SUMIF(INDIRECT("'TMP_BENCHMARK'!I:I"),INDIRECT("'TMP_BENCHMARK'!I" & (COUNTA($A$1:$A144)+1)),INDIRECT("'TMP_BENCHMARK'!B:B")),0) -> 0 | C145: 0 | D145: =IFERROR(INDIRECT("'TMP_BENCHMARK'!B" & (COUNTA($A$1:$A144)+1))*'2 - CHECK'!$H$6,0) -> 0 | E145: =IFERROR(INDIRECT("'TMP_BENCHMARK'!B" & (COUNTA($A$1:$A144)+1))*INDIRECT("'TMP_BENCHMARK'!D" & (COUNTA($A$1:$A144)+1)),0) -> 0 | F145: =IFERROR(INDIRECT("'TMP_BENCHMARK'!B" & (COUNTA($A$1:$A144)+1))*INDIRECT("'TMP_BENCHMARK'!F" & (COUNTA($A$1:$A144)+1)),0) -> 0 | G145: =IFERROR(('2 - CHECK'!$H$6*INDIRECT("'TMP_BENCHMARK'!B" & (COUNTA($A$1:$A144)+1))/INDIRECT("'TMP_BENCHMARK'!G" & (COUNTA($A$1:$A144)+1)))*INDIRECT("'TMP_BENCHMARK'!F" & (COUNTA($A$1:$A144)+1)),0) -> 0 | H145: =IFERROR(IF(INDIRECT("'TMP_BENCHMARK'!E" & (COUNTA($A$1:$A144)+1))<>"APPROX","REPORTED","APPROX"),0) -> REPORTED
A146: =IFERROR(('2 - CHECK'!$H$6*INDIRECT("'TMP_BENCHMARK'!B" & (COUNTA($A$1:$A145)+1))/INDIRECT("'TMP_BENCHMARK'!G" & (COUNTA($A$1:$A145)+1)))*INDIRECT("'TMP_BENCHMARK'!D" & (COUNTA($A$1:$A145)+1)),0) -> 0 | B146: =IFERROR(SUMIF(INDIRECT("'TMP_BENCHMARK'!I:I"),INDIRECT("'TMP_BENCHMARK'!I" & (COUNTA($A$1:$A145)+1)),INDIRECT("'TMP_BENCHMARK'!B:B")),0) -> 0 | C146: 0 | D146: =IFERROR(INDIRECT("'TMP_BENCHMARK'!B" & (COUNTA($A$1:$A145)+1))*'2 - CHECK'!$H$6,0) -> 0 | E146: =IFERROR(INDIRECT("'TMP_BENCHMARK'!B" & (COUNTA($A$1:$A145)+1))*INDIRECT("'TMP_BENCHMARK'!D" & (COUNTA($A$1:$A145)+1)),0) -> 0 | F146: =IFERROR(INDIRECT("'TMP_BENCHMARK'!B" & (COUNTA($A$1:$A145)+1))*INDIRECT("'TMP_BENCHMARK'!F" & (COUNTA($A$1:$A145)+1)),0) -> 0 | G146: =IFERROR(('2 - CHECK'!$H$6*INDIRECT("'TMP_BENCHMARK'!B" & (COUNTA($A$1:$A145)+1))/INDIRECT("'TMP_BENCHMARK'!G" & (COUNTA($A$1:$A145)+1)))*INDIRECT("'TMP_BENCHMARK'!F" & (COUNTA($A$1:$A145)+1)),0) -> 0 | H146: =IFERROR(IF(INDIRECT("'TMP_BENCHMARK'!E" & (COUNTA($A$1:$A145)+1))<>"APPROX","REPORTED","APPROX"),0) -> REPORTED
A147: =IFERROR(('2 - CHECK'!$H$6*INDIRECT("'TMP_BENCHMARK'!B" & (COUNTA($A$1:$A146)+1))/INDIRECT("'TMP_BENCHMARK'!G" & (COUNTA($A$1:$A146)+1)))*INDIRECT("'TMP_BENCHMARK'!D" & (COUNTA($A$1:$A146)+1)),0) -> 0 | B147: =IFERROR(SUMIF(INDIRECT("'TMP_BENCHMARK'!I:I"),INDIRECT("'TMP_BENCHMARK'!I" & (COUNTA($A$1:$A146)+1)),INDIRECT("'TMP_BENCHMARK'!B:B")),0) -> 0 | C147: 0 | D147: =IFERROR(INDIRECT("'TMP_BENCHMARK'!B" & (COUNTA($A$1:$A146)+1))*'2 - CHECK'!$H$6,0) -> 0 | E147: =IFERROR(INDIRECT("'TMP_BENCHMARK'!B" & (COUNTA($A$1:$A146)+1))*INDIRECT("'TMP_BENCHMARK'!D" & (COUNTA($A$1:$A146)+1)),0) -> 0 | F147: =IFERROR(INDIRECT("'TMP_BENCHMARK'!B" & (COUNTA($A$1:$A146)+1))*INDIRECT("'TMP_BENCHMARK'!F" & (COUNTA($A$1:$A146)+1)),0) -> 0 | G147: =IFERROR(('2 - CHECK'!$H$6*INDIRECT("'TMP_BENCHMARK'!B" & (COUNTA($A$1:$A146)+1))/INDIRECT("'TMP_BENCHMARK'!G" & (COUNTA($A$1:$A146)+1)))*INDIRECT("'TMP_BENCHMARK'!F" & (COUNTA($A$1:$A146)+1)),0) -> 0 | H147: =IFERROR(IF(INDIRECT("'TMP_BENCHMARK'!E" & (COUNTA($A$1:$A146)+1))<>"APPROX","REPORTED","APPROX"),0) -> REPORTED
A148: =IFERROR(('2 - CHECK'!$H$6*INDIRECT("'TMP_BENCHMARK'!B" & (COUNTA($A$1:$A147)+1))/INDIRECT("'TMP_BENCHMARK'!G" & (COUNTA($A$1:$A147)+1)))*INDIRECT("'TMP_BENCHMARK'!D" & (COUNTA($A$1:$A147)+1)),0) -> 0 | B148: =IFERROR(SUMIF(INDIRECT("'TMP_BENCHMARK'!I:I"),INDIRECT("'TMP_BENCHMARK'!I" & (COUNTA($A$1:$A147)+1)),INDIRECT("'TMP_BENCHMARK'!B:B")),0) -> 0 | C148: 0 | D148: =IFERROR(INDIRECT("'TMP_BENCHMARK'!B" & (COUNTA($A$1:$A147)+1))*'2 - CHECK'!$H$6,0) -> 0 | E148: =IFERROR(INDIRECT("'TMP_BENCHMARK'!B" & (COUNTA($A$1:$A147)+1))*INDIRECT("'TMP_BENCHMARK'!D" & (COUNTA($A$1:$A147)+1)),0) -> 0 | F148: =IFERROR(INDIRECT("'TMP_BENCHMARK'!B" & (COUNTA($A$1:$A147)+1))*INDIRECT("'TMP_BENCHMARK'!F" & (COUNTA($A$1:$A147)+1)),0) -> 0 | G148: =IFERROR(('2 - CHECK'!$H$6*INDIRECT("'TMP_BENCHMARK'!B" & (COUNTA($A$1:$A147)+1))/INDIRECT("'TMP_BENCHMARK'!G" & (COUNTA($A$1:$A147)+1)))*INDIRECT("'TMP_BENCHMARK'!F" & (COUNTA($A$1:$A147)+1)),0) -> 0 | H148: =IFERROR(IF(INDIRECT("'TMP_BENCHMARK'!E" & (COUNTA($A$1:$A147)+1))<>"APPROX","REPORTED","APPROX"),0) -> REPORTED
A149: =IFERROR(('2 - CHECK'!$H$6*INDIRECT("'TMP_BENCHMARK'!B" & (COUNTA($A$1:$A148)+1))/INDIRECT("'TMP_BENCHMARK'!G" & (COUNTA($A$1:$A148)+1)))*INDIRECT("'TMP_BENCHMARK'!D" & (COUNTA($A$1:$A148)+1)),0) -> 0 | B149: =IFERROR(SUMIF(INDIRECT("'TMP_BENCHMARK'!I:I"),INDIRECT("'TMP_BENCHMARK'!I" & (COUNTA($A$1:$A148)+1)),INDIRECT("'TMP_BENCHMARK'!B:B")),0) -> 0 | C149: 0 | D149: =IFERROR(INDIRECT("'TMP_BENCHMARK'!B" & (COUNTA($A$1:$A148)+1))*'2 - CHECK'!$H$6,0) -> 0 | E149: =IFERROR(INDIRECT("'TMP_BENCHMARK'!B" & (COUNTA($A$1:$A148)+1))*INDIRECT("'TMP_BENCHMARK'!D" & (COUNTA($A$1:$A148)+1)),0) -> 0 | F149: =IFERROR(INDIRECT("'TMP_BENCHMARK'!B" & (COUNTA($A$1:$A148)+1))*INDIRECT("'TMP_BENCHMARK'!F" & (COUNTA($A$1:$A148)+1)),0) -> 0 | G149: =IFERROR(('2 - CHECK'!$H$6*INDIRECT("'TMP_BENCHMARK'!B" & (COUNTA($A$1:$A148)+1))/INDIRECT("'TMP_BENCHMARK'!G" & (COUNTA($A$1:$A148)+1)))*INDIRECT("'TMP_BENCHMARK'!F" & (COUNTA($A$1:$A148)+1)),0) -> 0 | H149: =IFERROR(IF(INDIRECT("'TMP_BENCHMARK'!E" & (COUNTA($A$1:$A148)+1))<>"APPROX","REPORTED","APPROX"),0) -> REPORTED
A150: =IFERROR(('2 - CHECK'!$H$6*INDIRECT("'TMP_BENCHMARK'!B" & (COUNTA($A$1:$A149)+1))/INDIRECT("'TMP_BENCHMARK'!G" & (COUNTA($A$1:$A149)+1)))*INDIRECT("'TMP_BENCHMARK'!D" & (COUNTA($A$1:$A149)+1)),0) -> 0 | B150: =IFERROR(SUMIF(INDIRECT("'TMP_BENCHMARK'!I:I"),INDIRECT("'TMP_BENCHMARK'!I" & (COUNTA($A$1:$A149)+1)),INDIRECT("'TMP_BENCHMARK'!B:B")),0) -> 0 | C150: 0 | D150: =IFERROR(INDIRECT("'TMP_BENCHMARK'!B" & (COUNTA($A$1:$A149)+1))*'2 - CHECK'!$H$6,0) -> 0 | E150: =IFERROR(INDIRECT("'TMP_BENCHMARK'!B" & (COUNTA($A$1:$A149)+1))*INDIRECT("'TMP_BENCHMARK'!D" & (COUNTA($A$1:$A149)+1)),0) -> 0 | F150: =IFERROR(INDIRECT("'TMP_BENCHMARK'!B" & (COUNTA($A$1:$A149)+1))*INDIRECT("'TMP_BENCHMARK'!F" & (COUNTA($A$1:$A149)+1)),0) -> 0 | G150: =IFERROR(('2 - CHECK'!$H$6*INDIRECT("'TMP_BENCHMARK'!B" & (COUNTA($A$1:$A149)+1))/INDIRECT("'TMP_BENCHMARK'!G" & (COUNTA($A$1:$A149)+1)))*INDIRECT("'TMP_BENCHMARK'!F" & (COUNTA($A$1:$A149)+1)),0) -> 0 | H150: =IFERROR(IF(INDIRECT("'TMP_BENCHMARK'!E" & (COUNTA($A$1:$A149)+1))<>"APPROX","REPORTED","APPROX"),0) -> REPORTED
A151: =IFERROR(('2 - CHECK'!$H$6*INDIRECT("'TMP_BENCHMARK'!B" & (COUNTA($A$1:$A150)+1))/INDIRECT("'TMP_BENCHMARK'!G" & (COUNTA($A$1:$A150)+1)))*INDIRECT("'TMP_BENCHMARK'!D" & (COUNTA($A$1:$A150)+1)),0) -> 0 | B151: =IFERROR(SUMIF(INDIRECT("'TMP_BENCHMARK'!I:I"),INDIRECT("'TMP_BENCHMARK'!I" & (COUNTA($A$1:$A150)+1)),INDIRECT("'TMP_BENCHMARK'!B:B")),0) -> 0 | C151: 0 | D151: =IFERROR(INDIRECT("'TMP_BENCHMARK'!B" & (COUNTA($A$1:$A150)+1))*'2 - CHECK'!$H$6,0) -> 0 | E151: =IFERROR(INDIRECT("'TMP_BENCHMARK'!B" & (COUNTA($A$1:$A150)+1))*INDIRECT("'TMP_BENCHMARK'!D" & (COUNTA($A$1:$A150)+1)),0) -> 0 | F151: =IFERROR(INDIRECT("'TMP_BENCHMARK'!B" & (COUNTA($A$1:$A150)+1))*INDIRECT("'TMP_BENCHMARK'!F" & (COUNTA($A$1:$A150)+1)),0) -> 0 | G151: =IFERROR(('2 - CHECK'!$H$6*INDIRECT("'TMP_BENCHMARK'!B" & (COUNTA($A$1:$A150)+1))/INDIRECT("'TMP_BENCHMARK'!G" & (COUNTA($A$1:$A150)+1)))*INDIRECT("'TMP_BENCHMARK'!F" & (COUNTA($A$1:$A150)+1)),0) -> 0 | H151: =IFERROR(IF(INDIRECT("'TMP_BENCHMARK'!E" & (COUNTA($A$1:$A150)+1))<>"APPROX","REPORTED","APPROX"),0) -> REPORTED
A152: =IFERROR(('2 - CHECK'!$H$6*INDIRECT("'TMP_BENCHMARK'!B" & (COUNTA($A$1:$A151)+1))/INDIRECT("'TMP_BENCHMARK'!G" & (COUNTA($A$1:$A151)+1)))*INDIRECT("'TMP_BENCHMARK'!D" & (COUNTA($A$1:$A151)+1)),0) -> 0 | B152: =IFERROR(SUMIF(INDIRECT("'TMP_BENCHMARK'!I:I"),INDIRECT("'TMP_BENCHMARK'!I" & (COUNTA($A$1:$A151)+1)),INDIRECT("'TMP_BENCHMARK'!B:B")),0) -> 0 | C152: 0 | D152: =IFERROR(INDIRECT("'TMP_BENCHMARK'!B" & (COUNTA($A$1:$A151)+1))*'2 - CHECK'!$H$6,0) -> 0 | E152: =IFERROR(INDIRECT("'TMP_BENCHMARK'!B" & (COUNTA($A$1:$A151)+1))*INDIRECT("'TMP_BENCHMARK'!D" & (COUNTA($A$1:$A151)+1)),0) -> 0 | F152: =IFERROR(INDIRECT("'TMP_BENCHMARK'!B" & (COUNTA($A$1:$A151)+1))*INDIRECT("'TMP_BENCHMARK'!F" & (COUNTA($A$1:$A151)+1)),0) -> 0 | G152: =IFERROR(('2 - CHECK'!$H$6*INDIRECT("'TMP_BENCHMARK'!B" & (COUNTA($A$1:$A151)+1))/INDIRECT("'TMP_BENCHMARK'!G" & (COUNTA($A$1:$A151)+1)))*INDIRECT("'TMP_BENCHMARK'!F" & (COUNTA($A$1:$A151)+1)),0) -> 0 | H152: =IFERROR(IF(INDIRECT("'TMP_BENCHMARK'!E" & (COUNTA($A$1:$A151)+1))<>"APPROX","REPORTED","APPROX"),0) -> REPORTED
A153: =IFERROR(('2 - CHECK'!$H$6*INDIRECT("'TMP_BENCHMARK'!B" & (COUNTA($A$1:$A152)+1))/INDIRECT("'TMP_BENCHMARK'!G" & (COUNTA($A$1:$A152)+1)))*INDIRECT("'TMP_BENCHMARK'!D" & (COUNTA($A$1:$A152)+1)),0) -> 0 | B153: =IFERROR(SUMIF(INDIRECT("'TMP_BENCHMARK'!I:I"),INDIRECT("'TMP_BENCHMARK'!I" & (COUNTA($A$1:$A152)+1)),INDIRECT("'TMP_BENCHMARK'!B:B")),0) -> 0 | C153: 0 | D153: =IFERROR(INDIRECT("'TMP_BENCHMARK'!B" & (COUNTA($A$1:$A152)+1))*'2 - CHECK'!$H$6,0) -> 0 | E153: =IFERROR(INDIRECT("'TMP_BENCHMARK'!B" & (COUNTA($A$1:$A152)+1))*INDIRECT("'TMP_BENCHMARK'!D" & (COUNTA($A$1:$A152)+1)),0) -> 0 | F153: =IFERROR(INDIRECT("'TMP_BENCHMARK'!B" & (COUNTA($A$1:$A152)+1))*INDIRECT("'TMP_BENCHMARK'!F" & (COUNTA($A$1:$A152)+1)),0) -> 0 | G153: =IFERROR(('2 - CHECK'!$H$6*INDIRECT("'TMP_BENCHMARK'!B" & (COUNTA($A$1:$A152)+1))/INDIRECT("'TMP_BENCHMARK'!G" & (COUNTA($A$1:$A152)+1)))*INDIRECT("'TMP_BENCHMARK'!F" & (COUNTA($A$1:$A152)+1)),0) -> 0 | H153: =IFERROR(IF(INDIRECT("'TMP_BENCHMARK'!E" & (COUNTA($A$1:$A152)+1))<>"APPROX","REPORTED","APPROX"),0) -> REPORTED
A154: =IFERROR(('2 - CHECK'!$H$6*INDIRECT("'TMP_BENCHMARK'!B" & (COUNTA($A$1:$A153)+1))/INDIRECT("'TMP_BENCHMARK'!G" & (COUNTA($A$1:$A153)+1)))*INDIRECT("'TMP_BENCHMARK'!D" & (COUNTA($A$1:$A153)+1)),0) -> 0 | B154: =IFERROR(SUMIF(INDIRECT("'TMP_BENCHMARK'!I:I"),INDIRECT("'TMP_BENCHMARK'!I" & (COUNTA($A$1:$A153)+1)),INDIRECT("'TMP_BENCHMARK'!B:B")),0) -> 0 | C154: 0 | D154: =IFERROR(INDIRECT("'TMP_BENCHMARK'!B" & (COUNTA($A$1:$A153)+1))*'2 - CHECK'!$H$6,0) -> 0 | E154: =IFERROR(INDIRECT("'TMP_BENCHMARK'!B" & (COUNTA($A$1:$A153)+1))*INDIRECT("'TMP_BENCHMARK'!D" & (COUNTA($A$1:$A153)+1)),0) -> 0 | F154: =IFERROR(INDIRECT("'TMP_BENCHMARK'!B" & (COUNTA($A$1:$A153)+1))*INDIRECT("'TMP_BENCHMARK'!F" & (COUNTA($A$1:$A153)+1)),0) -> 0 | G154: =IFERROR(('2 - CHECK'!$H$6*INDIRECT("'TMP_BENCHMARK'!B" & (COUNTA($A$1:$A153)+1))/INDIRECT("'TMP_BENCHMARK'!G" & (COUNTA($A$1:$A153)+1)))*INDIRECT("'TMP_BENCHMARK'!F" & (COUNTA($A$1:$A153)+1)),0) -> 0 | H154: =IFERROR(IF(INDIRECT("'TMP_BENCHMARK'!E" & (COUNTA($A$1:$A153)+1))<>"APPROX","REPORTED","APPROX"),0) -> REPORTED
A155: =IFERROR(('2 - CHECK'!$H$6*INDIRECT("'TMP_BENCHMARK'!B" & (COUNTA($A$1:$A154)+1))/INDIRECT("'TMP_BENCHMARK'!G" & (COUNTA($A$1:$A154)+1)))*INDIRECT("'TMP_BENCHMARK'!D" & (COUNTA($A$1:$A154)+1)),0) -> 0 | B155: =IFERROR(SUMIF(INDIRECT("'TMP_BENCHMARK'!I:I"),INDIRECT("'TMP_BENCHMARK'!I" & (COUNTA($A$1:$A154)+1)),INDIRECT("'TMP_BENCHMARK'!B:B")),0) -> 0 | C155: 0 | D155: =IFERROR(INDIRECT("'TMP_BENCHMARK'!B" & (COUNTA($A$1:$A154)+1))*'2 - CHECK'!$H$6,0) -> 0 | E155: =IFERROR(INDIRECT("'TMP_BENCHMARK'!B" & (COUNTA($A$1:$A154)+1))*INDIRECT("'TMP_BENCHMARK'!D" & (COUNTA($A$1:$A154)+1)),0) -> 0 | F155: =IFERROR(INDIRECT("'TMP_BENCHMARK'!B" & (COUNTA($A$1:$A154)+1))*INDIRECT("'TMP_BENCHMARK'!F" & (COUNTA($A$1:$A154)+1)),0) -> 0 | G155: =IFERROR(('2 - CHECK'!$H$6*INDIRECT("'TMP_BENCHMARK'!B" & (COUNTA($A$1:$A154)+1))/INDIRECT("'TMP_BENCHMARK'!G" & (COUNTA($A$1:$A154)+1)))*INDIRECT("'TMP_BENCHMARK'!F" & (COUNTA($A$1:$A154)+1)),0) -> 0 | H155: =IFERROR(IF(INDIRECT("'TMP_BENCHMARK'!E" & (COUNTA($A$1:$A154)+1))<>"APPROX","REPORTED","APPROX"),0) -> REPORTED
A156: =IFERROR(('2 - CHECK'!$H$6*INDIRECT("'TMP_BENCHMARK'!B" & (COUNTA($A$1:$A155)+1))/INDIRECT("'TMP_BENCHMARK'!G" & (COUNTA($A$1:$A155)+1)))*INDIRECT("'TMP_BENCHMARK'!D" & (COUNTA($A$1:$A155)+1)),0) -> 0 | B156: =IFERROR(SUMIF(INDIRECT("'TMP_BENCHMARK'!I:I"),INDIRECT("'TMP_BENCHMARK'!I" & (COUNTA($A$1:$A155)+1)),INDIRECT("'TMP_BENCHMARK'!B:B")),0) -> 0 | C156: 0 | D156: =IFERROR(INDIRECT("'TMP_BENCHMARK'!B" & (COUNTA($A$1:$A155)+1))*'2 - CHECK'!$H$6,0) -> 0 | E156: =IFERROR(INDIRECT("'TMP_BENCHMARK'!B" & (COUNTA($A$1:$A155)+1))*INDIRECT("'TMP_BENCHMARK'!D" & (COUNTA($A$1:$A155)+1)),0) -> 0 | F156: =IFERROR(INDIRECT("'TMP_BENCHMARK'!B" & (COUNTA($A$1:$A155)+1))*INDIRECT("'TMP_BENCHMARK'!F" & (COUNTA($A$1:$A155)+1)),0) -> 0 | G156: =IFERROR(('2 - CHECK'!$H$6*INDIRECT("'TMP_BENCHMARK'!B" & (COUNTA($A$1:$A155)+1))/INDIRECT("'TMP_BENCHMARK'!G" & (COUNTA($A$1:$A155)+1)))*INDIRECT("'TMP_BENCHMARK'!F" & (COUNTA($A$1:$A155)+1)),0) -> 0 | H156: =IFERROR(IF(INDIRECT("'TMP_BENCHMARK'!E" & (COUNTA($A$1:$A155)+1))<>"APPROX","REPORTED","APPROX"),0) -> REPORTED
A157: =IFERROR(('2 - CHECK'!$H$6*INDIRECT("'TMP_BENCHMARK'!B" & (COUNTA($A$1:$A156)+1))/INDIRECT("'TMP_BENCHMARK'!G" & (COUNTA($A$1:$A156)+1)))*INDIRECT("'TMP_BENCHMARK'!D" & (COUNTA($A$1:$A156)+1)),0) -> 0 | B157: =IFERROR(SUMIF(INDIRECT("'TMP_BENCHMARK'!I:I"),INDIRECT("'TMP_BENCHMARK'!I" & (COUNTA($A$1:$A156)+1)),INDIRECT("'TMP_BENCHMARK'!B:B")),0) -> 0 | C157: 0 | D157: =IFERROR(INDIRECT("'TMP_BENCHMARK'!B" & (COUNTA($A$1:$A156)+1))*'2 - CHECK'!$H$6,0) -> 0 | E157: =IFERROR(INDIRECT("'TMP_BENCHMARK'!B" & (COUNTA($A$1:$A156)+1))*INDIRECT("'TMP_BENCHMARK'!D" & (COUNTA($A$1:$A156)+1)),0) -> 0 | F157: =IFERROR(INDIRECT("'TMP_BENCHMARK'!B" & (COUNTA($A$1:$A156)+1))*INDIRECT("'TMP_BENCHMARK'!F" & (COUNTA($A$1:$A156)+1)),0) -> 0 | G157: =IFERROR(('2 - CHECK'!$H$6*INDIRECT("'TMP_BENCHMARK'!B" & (COUNTA($A$1:$A156)+1))/INDIRECT("'TMP_BENCHMARK'!G" & (COUNTA($A$1:$A156)+1)))*INDIRECT("'TMP_BENCHMARK'!F" & (COUNTA($A$1:$A156)+1)),0) -> 0 | H157: =IFERROR(IF(INDIRECT("'TMP_BENCHMARK'!E" & (COUNTA($A$1:$A156)+1))<>"APPROX","REPORTED","APPROX"),0) -> REPORTED
A158: =IFERROR(('2 - CHECK'!$H$6*INDIRECT("'TMP_BENCHMARK'!B" & (COUNTA($A$1:$A157)+1))/INDIRECT("'TMP_BENCHMARK'!G" & (COUNTA($A$1:$A157)+1)))*INDIRECT("'TMP_BENCHMARK'!D" & (COUNTA($A$1:$A157)+1)),0) -> 0 | B158: =IFERROR(SUMIF(INDIRECT("'TMP_BENCHMARK'!I:I"),INDIRECT("'TMP_BENCHMARK'!I" & (COUNTA($A$1:$A157)+1)),INDIRECT("'TMP_BENCHMARK'!B:B")),0) -> 0 | C158: 0 | D158: =IFERROR(INDIRECT("'TMP_BENCHMARK'!B" & (COUNTA($A$1:$A157)+1))*'2 - CHECK'!$H$6,0) -> 0 | E158: =IFERROR(INDIRECT("'TMP_BENCHMARK'!B" & (COUNTA($A$1:$A157)+1))*INDIRECT("'TMP_BENCHMARK'!D" & (COUNTA($A$1:$A157)+1)),0) -> 0 | F158: =IFERROR(INDIRECT("'TMP_BENCHMARK'!B" & (COUNTA($A$1:$A157)+1))*INDIRECT("'TMP_BENCHMARK'!F" & (COUNTA($A$1:$A157)+1)),0) -> 0 | G158: =IFERROR(('2 - CHECK'!$H$6*INDIRECT("'TMP_BENCHMARK'!B" & (COUNTA($A$1:$A157)+1))/INDIRECT("'TMP_BENCHMARK'!G" & (COUNTA($A$1:$A157)+1)))*INDIRECT("'TMP_BENCHMARK'!F" & (COUNTA($A$1:$A157)+1)),0) -> 0 | H158: =IFERROR(IF(INDIRECT("'TMP_BENCHMARK'!E" & (COUNTA($A$1:$A157)+1))<>"APPROX","REPORTED","APPROX"),0) -> REPORTED
A159: =IFERROR(('2 - CHECK'!$H$6*INDIRECT("'TMP_BENCHMARK'!B" & (COUNTA($A$1:$A158)+1))/INDIRECT("'TMP_BENCHMARK'!G" & (COUNTA($A$1:$A158)+1)))*INDIRECT("'TMP_BENCHMARK'!D" & (COUNTA($A$1:$A158)+1)),0) -> 0 | B159: =IFERROR(SUMIF(INDIRECT("'TMP_BENCHMARK'!I:I"),INDIRECT("'TMP_BENCHMARK'!I" & (COUNTA($A$1:$A158)+1)),INDIRECT("'TMP_BENCHMARK'!B:B")),0) -> 0 | C159: 0 | D159: =IFERROR(INDIRECT("'TMP_BENCHMARK'!B" & (COUNTA($A$1:$A158)+1))*'2 - CHECK'!$H$6,0) -> 0 | E159: =IFERROR(INDIRECT("'TMP_BENCHMARK'!B" & (COUNTA($A$1:$A158)+1))*INDIRECT("'TMP_BENCHMARK'!D" & (COUNTA($A$1:$A158)+1)),0) -> 0 | F159: =IFERROR(INDIRECT("'TMP_BENCHMARK'!B" & (COUNTA($A$1:$A158)+1))*INDIRECT("'TMP_BENCHMARK'!F" & (COUNTA($A$1:$A158)+1)),0) -> 0 | G159: =IFERROR(('2 - CHECK'!$H$6*INDIRECT("'TMP_BENCHMARK'!B" & (COUNTA($A$1:$A158)+1))/INDIRECT("'TMP_BENCHMARK'!G" & (COUNTA($A$1:$A158)+1)))*INDIRECT("'TMP_BENCHMARK'!F" & (COUNTA($A$1:$A158)+1)),0) -> 0 | H159: =IFERROR(IF(INDIRECT("'TMP_BENCHMARK'!E" & (COUNTA($A$1:$A158)+1))<>"APPROX","REPORTED","APPROX"),0) -> REPORTED
A160: =IFERROR(('2 - CHECK'!$H$6*INDIRECT("'TMP_BENCHMARK'!B" & (COUNTA($A$1:$A159)+1))/INDIRECT("'TMP_BENCHMARK'!G" & (COUNTA($A$1:$A159)+1)))*INDIRECT("'TMP_BENCHMARK'!D" & (COUNTA($A$1:$A159)+1)),0) -> 0 | B160: =IFERROR(SUMIF(INDIRECT("'TMP_BENCHMARK'!I:I"),INDIRECT("'TMP_BENCHMARK'!I" & (COUNTA($A$1:$A159)+1)),INDIRECT("'TMP_BENCHMARK'!B:B")),0) -> 0 | C160: 0 | D160: =IFERROR(INDIRECT("'TMP_BENCHMARK'!B" & (COUNTA($A$1:$A159)+1))*'2 - CHECK'!$H$6,0) -> 0 | E160: =IFERROR(INDIRECT("'TMP_BENCHMARK'!B" & (COUNTA($A$1:$A159)+1))*INDIRECT("'TMP_BENCHMARK'!D" & (COUNTA($A$1:$A159)+1)),0) -> 0 | F160: =IFERROR(INDIRECT("'TMP_BENCHMARK'!B" & (COUNTA($A$1:$A159)+1))*INDIRECT("'TMP_BENCHMARK'!F" & (COUNTA($A$1:$A159)+1)),0) -> 0 | G160: =IFERROR(('2 - CHECK'!$H$6*INDIRECT("'TMP_BENCHMARK'!B" & (COUNTA($A$1:$A159)+1))/INDIRECT("'TMP_BENCHMARK'!G" & (COUNTA($A$1:$A159)+1)))*INDIRECT("'TMP_BENCHMARK'!F" & (COUNTA($A$1:$A159)+1)),0) -> 0 | H160: =IFERROR(IF(INDIRECT("'TMP_BENCHMARK'!E" & (COUNTA($A$1:$A159)+1))<>"APPROX","REPORTED","APPROX"),0) -> REPORTED
A161: =IFERROR(('2 - CHECK'!$H$6*INDIRECT("'TMP_BENCHMARK'!B" & (COUNTA($A$1:$A160)+1))/INDIRECT("'TMP_BENCHMARK'!G" & (COUNTA($A$1:$A160)+1)))*INDIRECT("'TMP_BENCHMARK'!D" & (COUNTA($A$1:$A160)+1)),0) -> 0 | B161: =IFERROR(SUMIF(INDIRECT("'TMP_BENCHMARK'!I:I"),INDIRECT("'TMP_BENCHMARK'!I" & (COUNTA($A$1:$A160)+1)),INDIRECT("'TMP_BENCHMARK'!B:B")),0) -> 0 | C161: 0 | D161: =IFERROR(INDIRECT("'TMP_BENCHMARK'!B" & (COUNTA($A$1:$A160)+1))*'2 - CHECK'!$H$6,0) -> 0 | E161: =IFERROR(INDIRECT("'TMP_BENCHMARK'!B" & (COUNTA($A$1:$A160)+1))*INDIRECT("'TMP_BENCHMARK'!D" & (COUNTA($A$1:$A160)+1)),0) -> 0 | F161: =IFERROR(INDIRECT("'TMP_BENCHMARK'!B" & (COUNTA($A$1:$A160)+1))*INDIRECT("'TMP_BENCHMARK'!F" & (COUNTA($A$1:$A160)+1)),0) -> 0 | G161: =IFERROR(('2 - CHECK'!$H$6*INDIRECT("'TMP_BENCHMARK'!B" & (COUNTA($A$1:$A160)+1))/INDIRECT("'TMP_BENCHMARK'!G" & (COUNTA($A$1:$A160)+1)))*INDIRECT("'TMP_BENCHMARK'!F" & (COUNTA($A$1:$A160)+1)),0) -> 0 | H161: =IFERROR(IF(INDIRECT("'TMP_BENCHMARK'!E" & (COUNTA($A$1:$A160)+1))<>"APPROX","REPORTED","APPROX"),0) -> REPORTED
A162: =IFERROR(('2 - CHECK'!$H$6*INDIRECT("'TMP_BENCHMARK'!B" & (COUNTA($A$1:$A161)+1))/INDIRECT("'TMP_BENCHMARK'!G" & (COUNTA($A$1:$A161)+1)))*INDIRECT("'TMP_BENCHMARK'!D" & (COUNTA($A$1:$A161)+1)),0) -> 0 | B162: =IFERROR(SUMIF(INDIRECT("'TMP_BENCHMARK'!I:I"),INDIRECT("'TMP_BENCHMARK'!I" & (COUNTA($A$1:$A161)+1)),INDIRECT("'TMP_BENCHMARK'!B:B")),0) -> 0 | C162: 0 | D162: =IFERROR(INDIRECT("'TMP_BENCHMARK'!B" & (COUNTA($A$1:$A161)+1))*'2 - CHECK'!$H$6,0) -> 0 | E162: =IFERROR(INDIRECT("'TMP_BENCHMARK'!B" & (COUNTA($A$1:$A161)+1))*INDIRECT("'TMP_BENCHMARK'!D" & (COUNTA($A$1:$A161)+1)),0) -> 0 | F162: =IFERROR(INDIRECT("'TMP_BENCHMARK'!B" & (COUNTA($A$1:$A161)+1))*INDIRECT("'TMP_BENCHMARK'!F" & (COUNTA($A$1:$A161)+1)),0) -> 0 | G162: =IFERROR(('2 - CHECK'!$H$6*INDIRECT("'TMP_BENCHMARK'!B" & (COUNTA($A$1:$A161)+1))/INDIRECT("'TMP_BENCHMARK'!G" & (COUNTA($A$1:$A161)+1)))*INDIRECT("'TMP_BENCHMARK'!F" & (COUNTA($A$1:$A161)+1)),0) -> 0 | H162: =IFERROR(IF(INDIRECT("'TMP_BENCHMARK'!E" & (COUNTA($A$1:$A161)+1))<>"APPROX","REPORTED","APPROX"),0) -> REPORTED
A163: =IFERROR(('2 - CHECK'!$H$6*INDIRECT("'TMP_BENCHMARK'!B" & (COUNTA($A$1:$A162)+1))/INDIRECT("'TMP_BENCHMARK'!G" & (COUNTA($A$1:$A162)+1)))*INDIRECT("'TMP_BENCHMARK'!D" & (COUNTA($A$1:$A162)+1)),0) -> 0 | B163: =IFERROR(SUMIF(INDIRECT("'TMP_BENCHMARK'!I:I"),INDIRECT("'TMP_BENCHMARK'!I" & (COUNTA($A$1:$A162)+1)),INDIRECT("'TMP_BENCHMARK'!B:B")),0) -> 0 | C163: 0 | D163: =IFERROR(INDIRECT("'TMP_BENCHMARK'!B" & (COUNTA($A$1:$A162)+1))*'2 - CHECK'!$H$6,0) -> 0 | E163: =IFERROR(INDIRECT("'TMP_BENCHMARK'!B" & (COUNTA($A$1:$A162)+1))*INDIRECT("'TMP_BENCHMARK'!D" & (COUNTA($A$1:$A162)+1)),0) -> 0 | F163: =IFERROR(INDIRECT("'TMP_BENCHMARK'!B" & (COUNTA($A$1:$A162)+1))*INDIRECT("'TMP_BENCHMARK'!F" & (COUNTA($A$1:$A162)+1)),0) -> 0 | G163: =IFERROR(('2 - CHECK'!$H$6*INDIRECT("'TMP_BENCHMARK'!B" & (COUNTA($A$1:$A162)+1))/INDIRECT("'TMP_BENCHMARK'!G" & (COUNTA($A$1:$A162)+1)))*INDIRECT("'TMP_BENCHMARK'!F" & (COUNTA($A$1:$A162)+1)),0) -> 0 | H163: =IFERROR(IF(INDIRECT("'TMP_BENCHMARK'!E" & (COUNTA($A$1:$A162)+1))<>"APPROX","REPORTED","APPROX"),0) -> REPORTED
A164: =IFERROR(('2 - CHECK'!$H$6*INDIRECT("'TMP_BENCHMARK'!B" & (COUNTA($A$1:$A163)+1))/INDIRECT("'TMP_BENCHMARK'!G" & (COUNTA($A$1:$A163)+1)))*INDIRECT("'TMP_BENCHMARK'!D" & (COUNTA($A$1:$A163)+1)),0) -> 0 | B164: =IFERROR(SUMIF(INDIRECT("'TMP_BENCHMARK'!I:I"),INDIRECT("'TMP_BENCHMARK'!I" & (COUNTA($A$1:$A163)+1)),INDIRECT("'TMP_BENCHMARK'!B:B")),0) -> 0 | C164: 0 | D164: =IFERROR(INDIRECT("'TMP_BENCHMARK'!B" & (COUNTA($A$1:$A163)+1))*'2 - CHECK'!$H$6,0) -> 0 | E164: =IFERROR(INDIRECT("'TMP_BENCHMARK'!B" & (COUNTA($A$1:$A163)+1))*INDIRECT("'TMP_BENCHMARK'!D" & (COUNTA($A$1:$A163)+1)),0) -> 0 | F164: =IFERROR(INDIRECT("'TMP_BENCHMARK'!B" & (COUNTA($A$1:$A163)+1))*INDIRECT("'TMP_BENCHMARK'!F" & (COUNTA($A$1:$A163)+1)),0) -> 0 | G164: =IFERROR(('2 - CHECK'!$H$6*INDIRECT("'TMP_BENCHMARK'!B" & (COUNTA($A$1:$A163)+1))/INDIRECT("'TMP_BENCHMARK'!G" & (COUNTA($A$1:$A163)+1)))*INDIRECT("'TMP_BENCHMARK'!F" & (COUNTA($A$1:$A163)+1)),0) -> 0 | H164: =IFERROR(IF(INDIRECT("'TMP_BENCHMARK'!E" & (COUNTA($A$1:$A163)+1))<>"APPROX","REPORTED","APPROX"),0) -> REPORTED
A165: =IFERROR(('2 - CHECK'!$H$6*INDIRECT("'TMP_BENCHMARK'!B" & (COUNTA($A$1:$A164)+1))/INDIRECT("'TMP_BENCHMARK'!G" & (COUNTA($A$1:$A164)+1)))*INDIRECT("'TMP_BENCHMARK'!D" & (COUNTA($A$1:$A164)+1)),0) -> 0 | B165: =IFERROR(SUMIF(INDIRECT("'TMP_BENCHMARK'!I:I"),INDIRECT("'TMP_BENCHMARK'!I" & (COUNTA($A$1:$A164)+1)),INDIRECT("'TMP_BENCHMARK'!B:B")),0) -> 0 | C165: 0 | D165: =IFERROR(INDIRECT("'TMP_BENCHMARK'!B" & (COUNTA($A$1:$A164)+1))*'2 - CHECK'!$H$6,0) -> 0 | E165: =IFERROR(INDIRECT("'TMP_BENCHMARK'!B" & (COUNTA($A$1:$A164)+1))*INDIRECT("'TMP_BENCHMARK'!D" & (COUNTA($A$1:$A164)+1)),0) -> 0 | F165: =IFERROR(INDIRECT("'TMP_BENCHMARK'!B" & (COUNTA($A$1:$A164)+1))*INDIRECT("'TMP_BENCHMARK'!F" & (COUNTA($A$1:$A164)+1)),0) -> 0 | G165: =IFERROR(('2 - CHECK'!$H$6*INDIRECT("'TMP_BENCHMARK'!B" & (COUNTA($A$1:$A164)+1))/INDIRECT("'TMP_BENCHMARK'!G" & (COUNTA($A$1:$A164)+1)))*INDIRECT("'TMP_BENCHMARK'!F" & (COUNTA($A$1:$A164)+1)),0) -> 0 | H165: =IFERROR(IF(INDIRECT("'TMP_BENCHMARK'!E" & (COUNTA($A$1:$A164)+1))<>"APPROX","REPORTED","APPROX"),0) -> REPORTED
A166: =IFERROR(('2 - CHECK'!$H$6*INDIRECT("'TMP_BENCHMARK'!B" & (COUNTA($A$1:$A165)+1))/INDIRECT("'TMP_BENCHMARK'!G" & (COUNTA($A$1:$A165)+1)))*INDIRECT("'TMP_BENCHMARK'!D" & (COUNTA($A$1:$A165)+1)),0) -> 0 | B166: =IFERROR(SUMIF(INDIRECT("'TMP_BENCHMARK'!I:I"),INDIRECT("'TMP_BENCHMARK'!I" & (COUNTA($A$1:$A165)+1)),INDIRECT("'TMP_BENCHMARK'!B:B")),0) -> 0 | C166: 0 | D166: =IFERROR(INDIRECT("'TMP_BENCHMARK'!B" & (COUNTA($A$1:$A165)+1))*'2 - CHECK'!$H$6,0) -> 0 | E166: =IFERROR(INDIRECT("'TMP_BENCHMARK'!B" & (COUNTA($A$1:$A165)+1))*INDIRECT("'TMP_BENCHMARK'!D" & (COUNTA($A$1:$A165)+1)),0) -> 0 | F166: =IFERROR(INDIRECT("'TMP_BENCHMARK'!B" & (COUNTA($A$1:$A165)+1))*INDIRECT("'TMP_BENCHMARK'!F" & (COUNTA($A$1:$A165)+1)),0) -> 0 | G166: =IFERROR(('2 - CHECK'!$H$6*INDIRECT("'TMP_BENCHMARK'!B" & (COUNTA($A$1:$A165)+1))/INDIRECT("'TMP_BENCHMARK'!G" & (COUNTA($A$1:$A165)+1)))*INDIRECT("'TMP_BENCHMARK'!F" & (COUNTA($A$1:$A165)+1)),0) -> 0 | H166: =IFERROR(IF(INDIRECT("'TMP_BENCHMARK'!E" & (COUNTA($A$1:$A165)+1))<>"APPROX","REPORTED","APPROX"),0) -> REPORTED
A167: =IFERROR(('2 - CHECK'!$H$6*INDIRECT("'TMP_BENCHMARK'!B" & (COUNTA($A$1:$A166)+1))/INDIRECT("'TMP_BENCHMARK'!G" & (COUNTA($A$1:$A166)+1)))*INDIRECT("'TMP_BENCHMARK'!D" & (COUNTA($A$1:$A166)+1)),0) -> 0 | B167: =IFERROR(SUMIF(INDIRECT("'TMP_BENCHMARK'!I:I"),INDIRECT("'TMP_BENCHMARK'!I" & (COUNTA($A$1:$A166)+1)),INDIRECT("'TMP_BENCHMARK'!B:B")),0) -> 0 | C167: 0 | D167: =IFERROR(INDIRECT("'TMP_BENCHMARK'!B" & (COUNTA($A$1:$A166)+1))*'2 - CHECK'!$H$6,0) -> 0 | E167: =IFERROR(INDIRECT("'TMP_BENCHMARK'!B" & (COUNTA($A$1:$A166)+1))*INDIRECT("'TMP_BENCHMARK'!D" & (COUNTA($A$1:$A166)+1)),0) -> 0 | F167: =IFERROR(INDIRECT("'TMP_BENCHMARK'!B" & (COUNTA($A$1:$A166)+1))*INDIRECT("'TMP_BENCHMARK'!F" & (COUNTA($A$1:$A166)+1)),0) -> 0 | G167: =IFERROR(('2 - CHECK'!$H$6*INDIRECT("'TMP_BENCHMARK'!B" & (COUNTA($A$1:$A166)+1))/INDIRECT("'TMP_BENCHMARK'!G" & (COUNTA($A$1:$A166)+1)))*INDIRECT("'TMP_BENCHMARK'!F" & (COUNTA($A$1:$A166)+1)),0) -> 0 | H167: =IFERROR(IF(INDIRECT("'TMP_BENCHMARK'!E" & (COUNTA($A$1:$A166)+1))<>"APPROX","REPORTED","APPROX"),0) -> REPORTED
A168: =IFERROR(('2 - CHECK'!$H$6*INDIRECT("'TMP_BENCHMARK'!B" & (COUNTA($A$1:$A167)+1))/INDIRECT("'TMP_BENCHMARK'!G" & (COUNTA($A$1:$A167)+1)))*INDIRECT("'TMP_BENCHMARK'!D" & (COUNTA($A$1:$A167)+1)),0) -> 0 | B168: =IFERROR(SUMIF(INDIRECT("'TMP_BENCHMARK'!I:I"),INDIRECT("'TMP_BENCHMARK'!I" & (COUNTA($A$1:$A167)+1)),INDIRECT("'TMP_BENCHMARK'!B:B")),0) -> 0 | C168: 0 | D168: =IFERROR(INDIRECT("'TMP_BENCHMARK'!B" & (COUNTA($A$1:$A167)+1))*'2 - CHECK'!$H$6,0) -> 0 | E168: =IFERROR(INDIRECT("'TMP_BENCHMARK'!B" & (COUNTA($A$1:$A167)+1))*INDIRECT("'TMP_BENCHMARK'!D" & (COUNTA($A$1:$A167)+1)),0) -> 0 | F168: =IFERROR(INDIRECT("'TMP_BENCHMARK'!B" & (COUNTA($A$1:$A167)+1))*INDIRECT("'TMP_BENCHMARK'!F" & (COUNTA($A$1:$A167)+1)),0) -> 0 | G168: =IFERROR(('2 - CHECK'!$H$6*INDIRECT("'TMP_BENCHMARK'!B" & (COUNTA($A$1:$A167)+1))/INDIRECT("'TMP_BENCHMARK'!G" & (COUNTA($A$1:$A167)+1)))*INDIRECT("'TMP_BENCHMARK'!F" & (COUNTA($A$1:$A167)+1)),0) -> 0 | H168: =IFERROR(IF(INDIRECT("'TMP_BENCHMARK'!E" & (COUNTA($A$1:$A167)+1))<>"APPROX","REPORTED","APPROX"),0) -> REPORTED
A169: =IFERROR(('2 - CHECK'!$H$6*INDIRECT("'TMP_BENCHMARK'!B" & (COUNTA($A$1:$A168)+1))/INDIRECT("'TMP_BENCHMARK'!G" & (COUNTA($A$1:$A168)+1)))*INDIRECT("'TMP_BENCHMARK'!D" & (COUNTA($A$1:$A168)+1)),0) -> 0 | B169: =IFERROR(SUMIF(INDIRECT("'TMP_BENCHMARK'!I:I"),INDIRECT("'TMP_BENCHMARK'!I" & (COUNTA($A$1:$A168)+1)),INDIRECT("'TMP_BENCHMARK'!B:B")),0) -> 0 | C169: 0 | D169: =IFERROR(INDIRECT("'TMP_BENCHMARK'!B" & (COUNTA($A$1:$A168)+1))*'2 - CHECK'!$H$6,0) -> 0 | E169: =IFERROR(INDIRECT("'TMP_BENCHMARK'!B" & (COUNTA($A$1:$A168)+1))*INDIRECT("'TMP_BENCHMARK'!D" & (COUNTA($A$1:$A168)+1)),0) -> 0 | F169: =IFERROR(INDIRECT("'TMP_BENCHMARK'!B" & (COUNTA($A$1:$A168)+1))*INDIRECT("'TMP_BENCHMARK'!F" & (COUNTA($A$1:$A168)+1)),0) -> 0 | G169: =IFERROR(('2 - CHECK'!$H$6*INDIRECT("'TMP_BENCHMARK'!B" & (COUNTA($A$1:$A168)+1))/INDIRECT("'TMP_BENCHMARK'!G" & (COUNTA($A$1:$A168)+1)))*INDIRECT("'TMP_BENCHMARK'!F" & (COUNTA($A$1:$A168)+1)),0) -> 0 | H169: =IFERROR(IF(INDIRECT("'TMP_BENCHMARK'!E" & (COUNTA($A$1:$A168)+1))<>"APPROX","REPORTED","APPROX"),0) -> REPORTED
A170: =IFERROR(('2 - CHECK'!$H$6*INDIRECT("'TMP_BENCHMARK'!B" & (COUNTA($A$1:$A169)+1))/INDIRECT("'TMP_BENCHMARK'!G" & (COUNTA($A$1:$A169)+1)))*INDIRECT("'TMP_BENCHMARK'!D" & (COUNTA($A$1:$A169)+1)),0) -> 0 | B170: =IFERROR(SUMIF(INDIRECT("'TMP_BENCHMARK'!I:I"),INDIRECT("'TMP_BENCHMARK'!I" & (COUNTA($A$1:$A169)+1)),INDIRECT("'TMP_BENCHMARK'!B:B")),0) -> 0 | C170: 0 | D170: =IFERROR(INDIRECT("'TMP_BENCHMARK'!B" & (COUNTA($A$1:$A169)+1))*'2 - CHECK'!$H$6,0) -> 0 | E170: =IFERROR(INDIRECT("'TMP_BENCHMARK'!B" & (COUNTA($A$1:$A169)+1))*INDIRECT("'TMP_BENCHMARK'!D" & (COUNTA($A$1:$A169)+1)),0) -> 0 | F170: =IFERROR(INDIRECT("'TMP_BENCHMARK'!B" & (COUNTA($A$1:$A169)+1))*INDIRECT("'TMP_BENCHMARK'!F" & (COUNTA($A$1:$A169)+1)),0) -> 0 | G170: =IFERROR(('2 - CHECK'!$H$6*INDIRECT("'TMP_BENCHMARK'!B" & (COUNTA($A$1:$A169)+1))/INDIRECT("'TMP_BENCHMARK'!G" & (COUNTA($A$1:$A169)+1)))*INDIRECT("'TMP_BENCHMARK'!F" & (COUNTA($A$1:$A169)+1)),0) -> 0 | H170: =IFERROR(IF(INDIRECT("'TMP_BENCHMARK'!E" & (COUNTA($A$1:$A169)+1))<>"APPROX","REPORTED","APPROX"),0) -> REPORTED
A171: =IFERROR(('2 - CHECK'!$H$6*INDIRECT("'TMP_BENCHMARK'!B" & (COUNTA($A$1:$A170)+1))/INDIRECT("'TMP_BENCHMARK'!G" & (COUNTA($A$1:$A170)+1)))*INDIRECT("'TMP_BENCHMARK'!D" & (COUNTA($A$1:$A170)+1)),0) -> 0 | B171: =IFERROR(SUMIF(INDIRECT("'TMP_BENCHMARK'!I:I"),INDIRECT("'TMP_BENCHMARK'!I" & (COUNTA($A$1:$A170)+1)),INDIRECT("'TMP_BENCHMARK'!B:B")),0) -> 0 | C171: 0 | D171: =IFERROR(INDIRECT("'TMP_BENCHMARK'!B" & (COUNTA($A$1:$A170)+1))*'2 - CHECK'!$H$6,0) -> 0 | E171: =IFERROR(INDIRECT("'TMP_BENCHMARK'!B" & (COUNTA($A$1:$A170)+1))*INDIRECT("'TMP_BENCHMARK'!D" & (COUNTA($A$1:$A170)+1)),0) -> 0 | F171: =IFERROR(INDIRECT("'TMP_BENCHMARK'!B" & (COUNTA($A$1:$A170)+1))*INDIRECT("'TMP_BENCHMARK'!F" & (COUNTA($A$1:$A170)+1)),0) -> 0 | G171: =IFERROR(('2 - CHECK'!$H$6*INDIRECT("'TMP_BENCHMARK'!B" & (COUNTA($A$1:$A170)+1))/INDIRECT("'TMP_BENCHMARK'!G" & (COUNTA($A$1:$A170)+1)))*INDIRECT("'TMP_BENCHMARK'!F" & (COUNTA($A$1:$A170)+1)),0) -> 0 | H171: =IFERROR(IF(INDIRECT("'TMP_BENCHMARK'!E" & (COUNTA($A$1:$A170)+1))<>"APPROX","REPORTED","APPROX"),0) -> REPORTED
A172: =IFERROR(('2 - CHECK'!$H$6*INDIRECT("'TMP_BENCHMARK'!B" & (COUNTA($A$1:$A171)+1))/INDIRECT("'TMP_BENCHMARK'!G" & (COUNTA($A$1:$A171)+1)))*INDIRECT("'TMP_BENCHMARK'!D" & (COUNTA($A$1:$A171)+1)),0) -> 0 | B172: =IFERROR(SUMIF(INDIRECT("'TMP_BENCHMARK'!I:I"),INDIRECT("'TMP_BENCHMARK'!I" & (COUNTA($A$1:$A171)+1)),INDIRECT("'TMP_BENCHMARK'!B:B")),0) -> 0 | C172: 0 | D172: =IFERROR(INDIRECT("'TMP_BENCHMARK'!B" & (COUNTA($A$1:$A171)+1))*'2 - CHECK'!$H$6,0) -> 0 | E172: =IFERROR(INDIRECT("'TMP_BENCHMARK'!B" & (COUNTA($A$1:$A171)+1))*INDIRECT("'TMP_BENCHMARK'!D" & (COUNTA($A$1:$A171)+1)),0) -> 0 | F172: =IFERROR(INDIRECT("'TMP_BENCHMARK'!B" & (COUNTA($A$1:$A171)+1))*INDIRECT("'TMP_BENCHMARK'!F" & (COUNTA($A$1:$A171)+1)),0) -> 0 | G172: =IFERROR(('2 - CHECK'!$H$6*INDIRECT("'TMP_BENCHMARK'!B" & (COUNTA($A$1:$A171)+1))/INDIRECT("'TMP_BENCHMARK'!G" & (COUNTA($A$1:$A171)+1)))*INDIRECT("'TMP_BENCHMARK'!F" & (COUNTA($A$1:$A171)+1)),0) -> 0 | H172: =IFERROR(IF(INDIRECT("'TMP_BENCHMARK'!E" & (COUNTA($A$1:$A171)+1))<>"APPROX","REPORTED","APPROX"),0) -> REPORTED
A173: =IFERROR(('2 - CHECK'!$H$6*INDIRECT("'TMP_BENCHMARK'!B" & (COUNTA($A$1:$A172)+1))/INDIRECT("'TMP_BENCHMARK'!G" & (COUNTA($A$1:$A172)+1)))*INDIRECT("'TMP_BENCHMARK'!D" & (COUNTA($A$1:$A172)+1)),0) -> 0 | B173: =IFERROR(SUMIF(INDIRECT("'TMP_BENCHMARK'!I:I"),INDIRECT("'TMP_BENCHMARK'!I" & (COUNTA($A$1:$A172)+1)),INDIRECT("'TMP_BENCHMARK'!B:B")),0) -> 0 | C173: 0 | D173: =IFERROR(INDIRECT("'TMP_BENCHMARK'!B" & (COUNTA($A$1:$A172)+1))*'2 - CHECK'!$H$6,0) -> 0 | E173: =IFERROR(INDIRECT("'TMP_BENCHMARK'!B" & (COUNTA($A$1:$A172)+1))*INDIRECT("'TMP_BENCHMARK'!D" & (COUNTA($A$1:$A172)+1)),0) -> 0 | F173: =IFERROR(INDIRECT("'TMP_BENCHMARK'!B" & (COUNTA($A$1:$A172)+1))*INDIRECT("'TMP_BENCHMARK'!F" & (COUNTA($A$1:$A172)+1)),0) -> 0 | G173: =IFERROR(('2 - CHECK'!$H$6*INDIRECT("'TMP_BENCHMARK'!B" & (COUNTA($A$1:$A172)+1))/INDIRECT("'TMP_BENCHMARK'!G" & (COUNTA($A$1:$A172)+1)))*INDIRECT("'TMP_BENCHMARK'!F" & (COUNTA($A$1:$A172)+1)),0) -> 0 | H173: =IFERROR(IF(INDIRECT("'TMP_BENCHMARK'!E" & (COUNTA($A$1:$A172)+1))<>"APPROX","REPORTED","APPROX"),0) -> REPORTED
A174: =IFERROR(('2 - CHECK'!$H$6*INDIRECT("'TMP_BENCHMARK'!B" & (COUNTA($A$1:$A173)+1))/INDIRECT("'TMP_BENCHMARK'!G" & (COUNTA($A$1:$A173)+1)))*INDIRECT("'TMP_BENCHMARK'!D" & (COUNTA($A$1:$A173)+1)),0) -> 0 | B174: =IFERROR(SUMIF(INDIRECT("'TMP_BENCHMARK'!I:I"),INDIRECT("'TMP_BENCHMARK'!I" & (COUNTA($A$1:$A173)+1)),INDIRECT("'TMP_BENCHMARK'!B:B")),0) -> 0 | C174: 0 | D174: =IFERROR(INDIRECT("'TMP_BENCHMARK'!B" & (COUNTA($A$1:$A173)+1))*'2 - CHECK'!$H$6,0) -> 0 | E174: =IFERROR(INDIRECT("'TMP_BENCHMARK'!B" & (COUNTA($A$1:$A173)+1))*INDIRECT("'TMP_BENCHMARK'!D" & (COUNTA($A$1:$A173)+1)),0) -> 0 | F174: =IFERROR(INDIRECT("'TMP_BENCHMARK'!B" & (COUNTA($A$1:$A173)+1))*INDIRECT("'TMP_BENCHMARK'!F" & (COUNTA($A$1:$A173)+1)),0) -> 0 | G174: =IFERROR(('2 - CHECK'!$H$6*INDIRECT("'TMP_BENCHMARK'!B" & (COUNTA($A$1:$A173)+1))/INDIRECT("'TMP_BENCHMARK'!G" & (COUNTA($A$1:$A173)+1)))*INDIRECT("'TMP_BENCHMARK'!F" & (COUNTA($A$1:$A173)+1)),0) -> 0 | H174: =IFERROR(IF(INDIRECT("'TMP_BENCHMARK'!E" & (COUNTA($A$1:$A173)+1))<>"APPROX","REPORTED","APPROX"),0) -> REPORTED
A175: =IFERROR(('2 - CHECK'!$H$6*INDIRECT("'TMP_BENCHMARK'!B" & (COUNTA($A$1:$A174)+1))/INDIRECT("'TMP_BENCHMARK'!G" & (COUNTA($A$1:$A174)+1)))*INDIRECT("'TMP_BENCHMARK'!D" & (COUNTA($A$1:$A174)+1)),0) -> 0 | B175: =IFERROR(SUMIF(INDIRECT("'TMP_BENCHMARK'!I:I"),INDIRECT("'TMP_BENCHMARK'!I" & (COUNTA($A$1:$A174)+1)),INDIRECT("'TMP_BENCHMARK'!B:B")),0) -> 0 | C175: 0 | D175: =IFERROR(INDIRECT("'TMP_BENCHMARK'!B" & (COUNTA($A$1:$A174)+1))*'2 - CHECK'!$H$6,0) -> 0 | E175: =IFERROR(INDIRECT("'TMP_BENCHMARK'!B" & (COUNTA($A$1:$A174)+1))*INDIRECT("'TMP_BENCHMARK'!D" & (COUNTA($A$1:$A174)+1)),0) -> 0 | F175: =IFERROR(INDIRECT("'TMP_BENCHMARK'!B" & (COUNTA($A$1:$A174)+1))*INDIRECT("'TMP_BENCHMARK'!F" & (COUNTA($A$1:$A174)+1)),0) -> 0 | G175: =IFERROR(('2 - CHECK'!$H$6*INDIRECT("'TMP_BENCHMARK'!B" & (COUNTA($A$1:$A174)+1))/INDIRECT("'TMP_BENCHMARK'!G" & (COUNTA($A$1:$A174)+1)))*INDIRECT("'TMP_BENCHMARK'!F" & (COUNTA($A$1:$A174)+1)),0) -> 0 | H175: =IFERROR(IF(INDIRECT("'TMP_BENCHMARK'!E" & (COUNTA($A$1:$A174)+1))<>"APPROX","REPORTED","APPROX"),0) -> REPORTED
A176: =IFERROR(('2 - CHECK'!$H$6*INDIRECT("'TMP_BENCHMARK'!B" & (COUNTA($A$1:$A175)+1))/INDIRECT("'TMP_BENCHMARK'!G" & (COUNTA($A$1:$A175)+1)))*INDIRECT("'TMP_BENCHMARK'!D" & (COUNTA($A$1:$A175)+1)),0) -> 0 | B176: =IFERROR(SUMIF(INDIRECT("'TMP_BENCHMARK'!I:I"),INDIRECT("'TMP_BENCHMARK'!I" & (COUNTA($A$1:$A175)+1)),INDIRECT("'TMP_BENCHMARK'!B:B")),0) -> 0 | C176: 0 | D176: =IFERROR(INDIRECT("'TMP_BENCHMARK'!B" & (COUNTA($A$1:$A175)+1))*'2 - CHECK'!$H$6,0) -> 0 | E176: =IFERROR(INDIRECT("'TMP_BENCHMARK'!B" & (COUNTA($A$1:$A175)+1))*INDIRECT("'TMP_BENCHMARK'!D" & (COUNTA($A$1:$A175)+1)),0) -> 0 | F176: =IFERROR(INDIRECT("'TMP_BENCHMARK'!B" & (COUNTA($A$1:$A175)+1))*INDIRECT("'TMP_BENCHMARK'!F" & (COUNTA($A$1:$A175)+1)),0) -> 0 | G176: =IFERROR(('2 - CHECK'!$H$6*INDIRECT("'TMP_BENCHMARK'!B" & (COUNTA($A$1:$A175)+1))/INDIRECT("'TMP_BENCHMARK'!G" & (COUNTA($A$1:$A175)+1)))*INDIRECT("'TMP_BENCHMARK'!F" & (COUNTA($A$1:$A175)+1)),0) -> 0 | H176: =IFERROR(IF(INDIRECT("'TMP_BENCHMARK'!E" & (COUNTA($A$1:$A175)+1))<>"APPROX","REPORTED","APPROX"),0) -> REPORTED
A177: =IFERROR(('2 - CHECK'!$H$6*INDIRECT("'TMP_BENCHMARK'!B" & (COUNTA($A$1:$A176)+1))/INDIRECT("'TMP_BENCHMARK'!G" & (COUNTA($A$1:$A176)+1)))*INDIRECT("'TMP_BENCHMARK'!D" & (COUNTA($A$1:$A176)+1)),0) -> 0 | B177: =IFERROR(SUMIF(INDIRECT("'TMP_BENCHMARK'!I:I"),INDIRECT("'TMP_BENCHMARK'!I" & (COUNTA($A$1:$A176)+1)),INDIRECT("'TMP_BENCHMARK'!B:B")),0) -> 0 | C177: 0 | D177: =IFERROR(INDIRECT("'TMP_BENCHMARK'!B" & (COUNTA($A$1:$A176)+1))*'2 - CHECK'!$H$6,0) -> 0 | E177: =IFERROR(INDIRECT("'TMP_BENCHMARK'!B" & (COUNTA($A$1:$A176)+1))*INDIRECT("'TMP_BENCHMARK'!D" & (COUNTA($A$1:$A176)+1)),0) -> 0 | F177: =IFERROR(INDIRECT("'TMP_BENCHMARK'!B" & (COUNTA($A$1:$A176)+1))*INDIRECT("'TMP_BENCHMARK'!F" & (COUNTA($A$1:$A176)+1)),0) -> 0 | G177: =IFERROR(('2 - CHECK'!$H$6*INDIRECT("'TMP_BENCHMARK'!B" & (COUNTA($A$1:$A176)+1))/INDIRECT("'TMP_BENCHMARK'!G" & (COUNTA($A$1:$A176)+1)))*INDIRECT("'TMP_BENCHMARK'!F" & (COUNTA($A$1:$A176)+1)),0) -> 0 | H177: =IFERROR(IF(INDIRECT("'TMP_BENCHMARK'!E" & (COUNTA($A$1:$A176)+1))<>"APPROX","REPORTED","APPROX"),0) -> REPORTED
A178: =IFERROR(('2 - CHECK'!$H$6*INDIRECT("'TMP_BENCHMARK'!B" & (COUNTA($A$1:$A177)+1))/INDIRECT("'TMP_BENCHMARK'!G" & (COUNTA($A$1:$A177)+1)))*INDIRECT("'TMP_BENCHMARK'!D" & (COUNTA($A$1:$A177)+1)),0) -> 0 | B178: =IFERROR(SUMIF(INDIRECT("'TMP_BENCHMARK'!I:I"),INDIRECT("'TMP_BENCHMARK'!I" & (COUNTA($A$1:$A177)+1)),INDIRECT("'TMP_BENCHMARK'!B:B")),0) -> 0 | C178: 0 | D178: =IFERROR(INDIRECT("'TMP_BENCHMARK'!B" & (COUNTA($A$1:$A177)+1))*'2 - CHECK'!$H$6,0) -> 0 | E178: =IFERROR(INDIRECT("'TMP_BENCHMARK'!B" & (COUNTA($A$1:$A177)+1))*INDIRECT("'TMP_BENCHMARK'!D" & (COUNTA($A$1:$A177)+1)),0) -> 0 | F178: =IFERROR(INDIRECT("'TMP_BENCHMARK'!B" & (COUNTA($A$1:$A177)+1))*INDIRECT("'TMP_BENCHMARK'!F" & (COUNTA($A$1:$A177)+1)),0) -> 0 | G178: =IFERROR(('2 - CHECK'!$H$6*INDIRECT("'TMP_BENCHMARK'!B" & (COUNTA($A$1:$A177)+1))/INDIRECT("'TMP_BENCHMARK'!G" & (COUNTA($A$1:$A177)+1)))*INDIRECT("'TMP_BENCHMARK'!F" & (COUNTA($A$1:$A177)+1)),0) -> 0 | H178: =IFERROR(IF(INDIRECT("'TMP_BENCHMARK'!E" & (COUNTA($A$1:$A177)+1))<>"APPROX","REPORTED","APPROX"),0) -> REPORTED
A179: =IFERROR(('2 - CHECK'!$H$6*INDIRECT("'TMP_BENCHMARK'!B" & (COUNTA($A$1:$A178)+1))/INDIRECT("'TMP_BENCHMARK'!G" & (COUNTA($A$1:$A178)+1)))*INDIRECT("'TMP_BENCHMARK'!D" & (COUNTA($A$1:$A178)+1)),0) -> 0 | B179: =IFERROR(SUMIF(INDIRECT("'TMP_BENCHMARK'!I:I"),INDIRECT("'TMP_BENCHMARK'!I" & (COUNTA($A$1:$A178)+1)),INDIRECT("'TMP_BENCHMARK'!B:B")),0) -> 0 | C179: 0 | D179: =IFERROR(INDIRECT("'TMP_BENCHMARK'!B" & (COUNTA($A$1:$A178)+1))*'2 - CHECK'!$H$6,0) -> 0 | E179: =IFERROR(INDIRECT("'TMP_BENCHMARK'!B" & (COUNTA($A$1:$A178)+1))*INDIRECT("'TMP_BENCHMARK'!D" & (COUNTA($A$1:$A178)+1)),0) -> 0 | F179: =IFERROR(INDIRECT("'TMP_BENCHMARK'!B" & (COUNTA($A$1:$A178)+1))*INDIRECT("'TMP_BENCHMARK'!F" & (COUNTA($A$1:$A178)+1)),0) -> 0 | G179: =IFERROR(('2 - CHECK'!$H$6*INDIRECT("'TMP_BENCHMARK'!B" & (COUNTA($A$1:$A178)+1))/INDIRECT("'TMP_BENCHMARK'!G" & (COUNTA($A$1:$A178)+1)))*INDIRECT("'TMP_BENCHMARK'!F" & (COUNTA($A$1:$A178)+1)),0) -> 0 | H179: =IFERROR(IF(INDIRECT("'TMP_BENCHMARK'!E" & (COUNTA($A$1:$A178)+1))<>"APPROX","REPORTED","APPROX"),0) -> REPORTED
A180: =IFERROR(('2 - CHECK'!$H$6*INDIRECT("'TMP_BENCHMARK'!B" & (COUNTA($A$1:$A179)+1))/INDIRECT("'TMP_BENCHMARK'!G" & (COUNTA($A$1:$A179)+1)))*INDIRECT("'TMP_BENCHMARK'!D" & (COUNTA($A$1:$A179)+1)),0) -> 0 | B180: =IFERROR(SUMIF(INDIRECT("'TMP_BENCHMARK'!I:I"),INDIRECT("'TMP_BENCHMARK'!I" & (COUNTA($A$1:$A179)+1)),INDIRECT("'TMP_BENCHMARK'!B:B")),0) -> 0 | C180: 0 | D180: =IFERROR(INDIRECT("'TMP_BENCHMARK'!B" & (COUNTA($A$1:$A179)+1))*'2 - CHECK'!$H$6,0) -> 0 | E180: =IFERROR(INDIRECT("'TMP_BENCHMARK'!B" & (COUNTA($A$1:$A179)+1))*INDIRECT("'TMP_BENCHMARK'!D" & (COUNTA($A$1:$A179)+1)),0) -> 0 | F180: =IFERROR(INDIRECT("'TMP_BENCHMARK'!B" & (COUNTA($A$1:$A179)+1))*INDIRECT("'TMP_BENCHMARK'!F" & (COUNTA($A$1:$A179)+1)),0) -> 0 | G180: =IFERROR(('2 - CHECK'!$H$6*INDIRECT("'TMP_BENCHMARK'!B" & (COUNTA($A$1:$A179)+1))/INDIRECT("'TMP_BENCHMARK'!G" & (COUNTA($A$1:$A179)+1)))*INDIRECT("'TMP_BENCHMARK'!F" & (COUNTA($A$1:$A179)+1)),0) -> 0 | H180: =IFERROR(IF(INDIRECT("'TMP_BENCHMARK'!E" & (COUNTA($A$1:$A179)+1))<>"APPROX","REPORTED","APPROX"),0) -> REPORTED
A181: =IFERROR(('2 - CHECK'!$H$6*INDIRECT("'TMP_BENCHMARK'!B" & (COUNTA($A$1:$A180)+1))/INDIRECT("'TMP_BENCHMARK'!G" & (COUNTA($A$1:$A180)+1)))*INDIRECT("'TMP_BENCHMARK'!D" & (COUNTA($A$1:$A180)+1)),0) -> 0 | B181: =IFERROR(SUMIF(INDIRECT("'TMP_BENCHMARK'!I:I"),INDIRECT("'TMP_BENCHMARK'!I" & (COUNTA($A$1:$A180)+1)),INDIRECT("'TMP_BENCHMARK'!B:B")),0) -> 0 | C181: 0 | D181: =IFERROR(INDIRECT("'TMP_BENCHMARK'!B" & (COUNTA($A$1:$A180)+1))*'2 - CHECK'!$H$6,0) -> 0 | E181: =IFERROR(INDIRECT("'TMP_BENCHMARK'!B" & (COUNTA($A$1:$A180)+1))*INDIRECT("'TMP_BENCHMARK'!D" & (COUNTA($A$1:$A180)+1)),0) -> 0 | F181: =IFERROR(INDIRECT("'TMP_BENCHMARK'!B" & (COUNTA($A$1:$A180)+1))*INDIRECT("'TMP_BENCHMARK'!F" & (COUNTA($A$1:$A180)+1)),0) -> 0 | G181: =IFERROR(('2 - CHECK'!$H$6*INDIRECT("'TMP_BENCHMARK'!B" & (COUNTA($A$1:$A180)+1))/INDIRECT("'TMP_BENCHMARK'!G" & (COUNTA($A$1:$A180)+1)))*INDIRECT("'TMP_BENCHMARK'!F" & (COUNTA($A$1:$A180)+1)),0) -> 0 | H181: =IFERROR(IF(INDIRECT("'TMP_BENCHMARK'!E" & (COUNTA($A$1:$A180)+1))<>"APPROX","REPORTED","APPROX"),0) -> REPORTED
A182: =IFERROR(('2 - CHECK'!$H$6*INDIRECT("'TMP_BENCHMARK'!B" & (COUNTA($A$1:$A181)+1))/INDIRECT("'TMP_BENCHMARK'!G" & (COUNTA($A$1:$A181)+1)))*INDIRECT("'TMP_BENCHMARK'!D" & (COUNTA($A$1:$A181)+1)),0) -> 0 | B182: =IFERROR(SUMIF(INDIRECT("'TMP_BENCHMARK'!I:I"),INDIRECT("'TMP_BENCHMARK'!I" & (COUNTA($A$1:$A181)+1)),INDIRECT("'TMP_BENCHMARK'!B:B")),0) -> 0 | C182: 0 | D182: =IFERROR(INDIRECT("'TMP_BENCHMARK'!B" & (COUNTA($A$1:$A181)+1))*'2 - CHECK'!$H$6,0) -> 0 | E182: =IFERROR(INDIRECT("'TMP_BENCHMARK'!B" & (COUNTA($A$1:$A181)+1))*INDIRECT("'TMP_BENCHMARK'!D" & (COUNTA($A$1:$A181)+1)),0) -> 0 | F182: =IFERROR(INDIRECT("'TMP_BENCHMARK'!B" & (COUNTA($A$1:$A181)+1))*INDIRECT("'TMP_BENCHMARK'!F" & (COUNTA($A$1:$A181)+1)),0) -> 0 | G182: =IFERROR(('2 - CHECK'!$H$6*INDIRECT("'TMP_BENCHMARK'!B" & (COUNTA($A$1:$A181)+1))/INDIRECT("'TMP_BENCHMARK'!G" & (COUNTA($A$1:$A181)+1)))*INDIRECT("'TMP_BENCHMARK'!F" & (COUNTA($A$1:$A181)+1)),0) -> 0 | H182: =IFERROR(IF(INDIRECT("'TMP_BENCHMARK'!E" & (COUNTA($A$1:$A181)+1))<>"APPROX","REPORTED","APPROX"),0) -> REPORTED
A183: =IFERROR(('2 - CHECK'!$H$6*INDIRECT("'TMP_BENCHMARK'!B" & (COUNTA($A$1:$A182)+1))/INDIRECT("'TMP_BENCHMARK'!G" & (COUNTA($A$1:$A182)+1)))*INDIRECT("'TMP_BENCHMARK'!D" & (COUNTA($A$1:$A182)+1)),0) -> 0 | B183: =IFERROR(SUMIF(INDIRECT("'TMP_BENCHMARK'!I:I"),INDIRECT("'TMP_BENCHMARK'!I" & (COUNTA($A$1:$A182)+1)),INDIRECT("'TMP_BENCHMARK'!B:B")),0) -> 0 | C183: 0 | D183: =IFERROR(INDIRECT("'TMP_BENCHMARK'!B" & (COUNTA($A$1:$A182)+1))*'2 - CHECK'!$H$6,0) -> 0 | E183: =IFERROR(INDIRECT("'TMP_BENCHMARK'!B" & (COUNTA($A$1:$A182)+1))*INDIRECT("'TMP_BENCHMARK'!D" & (COUNTA($A$1:$A182)+1)),0) -> 0 | F183: =IFERROR(INDIRECT("'TMP_BENCHMARK'!B" & (COUNTA($A$1:$A182)+1))*INDIRECT("'TMP_BENCHMARK'!F" & (COUNTA($A$1:$A182)+1)),0) -> 0 | G183: =IFERROR(('2 - CHECK'!$H$6*INDIRECT("'TMP_BENCHMARK'!B" & (COUNTA($A$1:$A182)+1))/INDIRECT("'TMP_BENCHMARK'!G" & (COUNTA($A$1:$A182)+1)))*INDIRECT("'TMP_BENCHMARK'!F" & (COUNTA($A$1:$A182)+1)),0) -> 0 | H183: =IFERROR(IF(INDIRECT("'TMP_BENCHMARK'!E" & (COUNTA($A$1:$A182)+1))<>"APPROX","REPORTED","APPROX"),0) -> REPORTED
A184: =IFERROR(('2 - CHECK'!$H$6*INDIRECT("'TMP_BENCHMARK'!B" & (COUNTA($A$1:$A183)+1))/INDIRECT("'TMP_BENCHMARK'!G" & (COUNTA($A$1:$A183)+1)))*INDIRECT("'TMP_BENCHMARK'!D" & (COUNTA($A$1:$A183)+1)),0) -> 0 | B184: =IFERROR(SUMIF(INDIRECT("'TMP_BENCHMARK'!I:I"),INDIRECT("'TMP_BENCHMARK'!I" & (COUNTA($A$1:$A183)+1)),INDIRECT("'TMP_BENCHMARK'!B:B")),0) -> 0 | C184: 0 | D184: =IFERROR(INDIRECT("'TMP_BENCHMARK'!B" & (COUNTA($A$1:$A183)+1))*'2 - CHECK'!$H$6,0) -> 0 | E184: =IFERROR(INDIRECT("'TMP_BENCHMARK'!B" & (COUNTA($A$1:$A183)+1))*INDIRECT("'TMP_BENCHMARK'!D" & (COUNTA($A$1:$A183)+1)),0) -> 0 | F184: =IFERROR(INDIRECT("'TMP_BENCHMARK'!B" & (COUNTA($A$1:$A183)+1))*INDIRECT("'TMP_BENCHMARK'!F" & (COUNTA($A$1:$A183)+1)),0) -> 0 | G184: =IFERROR(('2 - CHECK'!$H$6*INDIRECT("'TMP_BENCHMARK'!B" & (COUNTA($A$1:$A183)+1))/INDIRECT("'TMP_BENCHMARK'!G" & (COUNTA($A$1:$A183)+1)))*INDIRECT("'TMP_BENCHMARK'!F" & (COUNTA($A$1:$A183)+1)),0) -> 0 | H184: =IFERROR(IF(INDIRECT("'TMP_BENCHMARK'!E" & (COUNTA($A$1:$A183)+1))<>"APPROX","REPORTED","APPROX"),0) -> REPORTED
A185: =IFERROR(('2 - CHECK'!$H$6*INDIRECT("'TMP_BENCHMARK'!B" & (COUNTA($A$1:$A184)+1))/INDIRECT("'TMP_BENCHMARK'!G" & (COUNTA($A$1:$A184)+1)))*INDIRECT("'TMP_BENCHMARK'!D" & (COUNTA($A$1:$A184)+1)),0) -> 0 | B185: =IFERROR(SUMIF(INDIRECT("'TMP_BENCHMARK'!I:I"),INDIRECT("'TMP_BENCHMARK'!I" & (COUNTA($A$1:$A184)+1)),INDIRECT("'TMP_BENCHMARK'!B:B")),0) -> 0 | C185: 0 | D185: =IFERROR(INDIRECT("'TMP_BENCHMARK'!B" & (COUNTA($A$1:$A184)+1))*'2 - CHECK'!$H$6,0) -> 0 | E185: =IFERROR(INDIRECT("'TMP_BENCHMARK'!B" & (COUNTA($A$1:$A184)+1))*INDIRECT("'TMP_BENCHMARK'!D" & (COUNTA($A$1:$A184)+1)),0) -> 0 | F185: =IFERROR(INDIRECT("'TMP_BENCHMARK'!B" & (COUNTA($A$1:$A184)+1))*INDIRECT("'TMP_BENCHMARK'!F" & (COUNTA($A$1:$A184)+1)),0) -> 0 | G185: =IFERROR(('2 - CHECK'!$H$6*INDIRECT("'TMP_BENCHMARK'!B" & (COUNTA($A$1:$A184)+1))/INDIRECT("'TMP_BENCHMARK'!G" & (COUNTA($A$1:$A184)+1)))*INDIRECT("'TMP_BENCHMARK'!F" & (COUNTA($A$1:$A184)+1)),0) -> 0 | H185: =IFERROR(IF(INDIRECT("'TMP_BENCHMARK'!E" & (COUNTA($A$1:$A184)+1))<>"APPROX","REPORTED","APPROX"),0) -> REPORTED
A186: =IFERROR(('2 - CHECK'!$H$6*INDIRECT("'TMP_BENCHMARK'!B" & (COUNTA($A$1:$A185)+1))/INDIRECT("'TMP_BENCHMARK'!G" & (COUNTA($A$1:$A185)+1)))*INDIRECT("'TMP_BENCHMARK'!D" & (COUNTA($A$1:$A185)+1)),0) -> 0 | B186: =IFERROR(SUMIF(INDIRECT("'TMP_BENCHMARK'!I:I"),INDIRECT("'TMP_BENCHMARK'!I" & (COUNTA($A$1:$A185)+1)),INDIRECT("'TMP_BENCHMARK'!B:B")),0) -> 0 | C186: 0 | D186: =IFERROR(INDIRECT("'TMP_BENCHMARK'!B" & (COUNTA($A$1:$A185)+1))*'2 - CHECK'!$H$6,0) -> 0 | E186: =IFERROR(INDIRECT("'TMP_BENCHMARK'!B" & (COUNTA($A$1:$A185)+1))*INDIRECT("'TMP_BENCHMARK'!D" & (COUNTA($A$1:$A185)+1)),0) -> 0 | F186: =IFERROR(INDIRECT("'TMP_BENCHMARK'!B" & (COUNTA($A$1:$A185)+1))*INDIRECT("'TMP_BENCHMARK'!F" & (COUNTA($A$1:$A185)+1)),0) -> 0 | G186: =IFERROR(('2 - CHECK'!$H$6*INDIRECT("'TMP_BENCHMARK'!B" & (COUNTA($A$1:$A185)+1))/INDIRECT("'TMP_BENCHMARK'!G" & (COUNTA($A$1:$A185)+1)))*INDIRECT("'TMP_BENCHMARK'!F" & (COUNTA($A$1:$A185)+1)),0) -> 0 | H186: =IFERROR(IF(INDIRECT("'TMP_BENCHMARK'!E" & (COUNTA($A$1:$A185)+1))<>"APPROX","REPORTED","APPROX"),0) -> REPORTED
A187: =IFERROR(('2 - CHECK'!$H$6*INDIRECT("'TMP_BENCHMARK'!B" & (COUNTA($A$1:$A186)+1))/INDIRECT("'TMP_BENCHMARK'!G" & (COUNTA($A$1:$A186)+1)))*INDIRECT("'TMP_BENCHMARK'!D" & (COUNTA($A$1:$A186)+1)),0) -> 0 | B187: =IFERROR(SUMIF(INDIRECT("'TMP_BENCHMARK'!I:I"),INDIRECT("'TMP_BENCHMARK'!I" & (COUNTA($A$1:$A186)+1)),INDIRECT("'TMP_BENCHMARK'!B:B")),0) -> 0 | C187: 0 | D187: =IFERROR(INDIRECT("'TMP_BENCHMARK'!B" & (COUNTA($A$1:$A186)+1))*'2 - CHECK'!$H$6,0) -> 0 | E187: =IFERROR(INDIRECT("'TMP_BENCHMARK'!B" & (COUNTA($A$1:$A186)+1))*INDIRECT("'TMP_BENCHMARK'!D" & (COUNTA($A$1:$A186)+1)),0) -> 0 | F187: =IFERROR(INDIRECT("'TMP_BENCHMARK'!B" & (COUNTA($A$1:$A186)+1))*INDIRECT("'TMP_BENCHMARK'!F" & (COUNTA($A$1:$A186)+1)),0) -> 0 | G187: =IFERROR(('2 - CHECK'!$H$6*INDIRECT("'TMP_BENCHMARK'!B" & (COUNTA($A$1:$A186)+1))/INDIRECT("'TMP_BENCHMARK'!G" & (COUNTA($A$1:$A186)+1)))*INDIRECT("'TMP_BENCHMARK'!F" & (COUNTA($A$1:$A186)+1)),0) -> 0 | H187: =IFERROR(IF(INDIRECT("'TMP_BENCHMARK'!E" & (COUNTA($A$1:$A186)+1))<>"APPROX","REPORTED","APPROX"),0) -> REPORTED
A188: =IFERROR(('2 - CHECK'!$H$6*INDIRECT("'TMP_BENCHMARK'!B" & (COUNTA($A$1:$A187)+1))/INDIRECT("'TMP_BENCHMARK'!G" & (COUNTA($A$1:$A187)+1)))*INDIRECT("'TMP_BENCHMARK'!D" & (COUNTA($A$1:$A187)+1)),0) -> 0 | B188: =IFERROR(SUMIF(INDIRECT("'TMP_BENCHMARK'!I:I"),INDIRECT("'TMP_BENCHMARK'!I" & (COUNTA($A$1:$A187)+1)),INDIRECT("'TMP_BENCHMARK'!B:B")),0) -> 0 | C188: 0 | D188: =IFERROR(INDIRECT("'TMP_BENCHMARK'!B" & (COUNTA($A$1:$A187)+1))*'2 - CHECK'!$H$6,0) -> 0 | E188: =IFERROR(INDIRECT("'TMP_BENCHMARK'!B" & (COUNTA($A$1:$A187)+1))*INDIRECT("'TMP_BENCHMARK'!D" & (COUNTA($A$1:$A187)+1)),0) -> 0 | F188: =IFERROR(INDIRECT("'TMP_BENCHMARK'!B" & (COUNTA($A$1:$A187)+1))*INDIRECT("'TMP_BENCHMARK'!F" & (COUNTA($A$1:$A187)+1)),0) -> 0 | G188: =IFERROR(('2 - CHECK'!$H$6*INDIRECT("'TMP_BENCHMARK'!B" & (COUNTA($A$1:$A187)+1))/INDIRECT("'TMP_BENCHMARK'!G" & (COUNTA($A$1:$A187)+1)))*INDIRECT("'TMP_BENCHMARK'!F" & (COUNTA($A$1:$A187)+1)),0) -> 0 | H188: =IFERROR(IF(INDIRECT("'TMP_BENCHMARK'!E" & (COUNTA($A$1:$A187)+1))<>"APPROX","REPORTED","APPROX"),0) -> REPORTED
A189: =IFERROR(('2 - CHECK'!$H$6*INDIRECT("'TMP_BENCHMARK'!B" & (COUNTA($A$1:$A188)+1))/INDIRECT("'TMP_BENCHMARK'!G" & (COUNTA($A$1:$A188)+1)))*INDIRECT("'TMP_BENCHMARK'!D" & (COUNTA($A$1:$A188)+1)),0) -> 0 | B189: =IFERROR(SUMIF(INDIRECT("'TMP_BENCHMARK'!I:I"),INDIRECT("'TMP_BENCHMARK'!I" & (COUNTA($A$1:$A188)+1)),INDIRECT("'TMP_BENCHMARK'!B:B")),0) -> 0 | C189: 0 | D189: =IFERROR(INDIRECT("'TMP_BENCHMARK'!B" & (COUNTA($A$1:$A188)+1))*'2 - CHECK'!$H$6,0) -> 0 | E189: =IFERROR(INDIRECT("'TMP_BENCHMARK'!B" & (COUNTA($A$1:$A188)+1))*INDIRECT("'TMP_BENCHMARK'!D" & (COUNTA($A$1:$A188)+1)),0) -> 0 | F189: =IFERROR(INDIRECT("'TMP_BENCHMARK'!B" & (COUNTA($A$1:$A188)+1))*INDIRECT("'TMP_BENCHMARK'!F" & (COUNTA($A$1:$A188)+1)),0) -> 0 | G189: =IFERROR(('2 - CHECK'!$H$6*INDIRECT("'TMP_BENCHMARK'!B" & (COUNTA($A$1:$A188)+1))/INDIRECT("'TMP_BENCHMARK'!G" & (COUNTA($A$1:$A188)+1)))*INDIRECT("'TMP_BENCHMARK'!F" & (COUNTA($A$1:$A188)+1)),0) -> 0 | H189: =IFERROR(IF(INDIRECT("'TMP_BENCHMARK'!E" & (COUNTA($A$1:$A188)+1))<>"APPROX","REPORTED","APPROX"),0) -> REPORTED
A190: =IFERROR(('2 - CHECK'!$H$6*INDIRECT("'TMP_BENCHMARK'!B" & (COUNTA($A$1:$A189)+1))/INDIRECT("'TMP_BENCHMARK'!G" & (COUNTA($A$1:$A189)+1)))*INDIRECT("'TMP_BENCHMARK'!D" & (COUNTA($A$1:$A189)+1)),0) -> 0 | B190: =IFERROR(SUMIF(INDIRECT("'TMP_BENCHMARK'!I:I"),INDIRECT("'TMP_BENCHMARK'!I" & (COUNTA($A$1:$A189)+1)),INDIRECT("'TMP_BENCHMARK'!B:B")),0) -> 0 | C190: 0 | D190: =IFERROR(INDIRECT("'TMP_BENCHMARK'!B" & (COUNTA($A$1:$A189)+1))*'2 - CHECK'!$H$6,0) -> 0 | E190: =IFERROR(INDIRECT("'TMP_BENCHMARK'!B" & (COUNTA($A$1:$A189)+1))*INDIRECT("'TMP_BENCHMARK'!D" & (COUNTA($A$1:$A189)+1)),0) -> 0 | F190: =IFERROR(INDIRECT("'TMP_BENCHMARK'!B" & (COUNTA($A$1:$A189)+1))*INDIRECT("'TMP_BENCHMARK'!F" & (COUNTA($A$1:$A189)+1)),0) -> 0 | G190: =IFERROR(('2 - CHECK'!$H$6*INDIRECT("'TMP_BENCHMARK'!B" & (COUNTA($A$1:$A189)+1))/INDIRECT("'TMP_BENCHMARK'!G" & (COUNTA($A$1:$A189)+1)))*INDIRECT("'TMP_BENCHMARK'!F" & (COUNTA($A$1:$A189)+1)),0) -> 0 | H190: =IFERROR(IF(INDIRECT("'TMP_BENCHMARK'!E" & (COUNTA($A$1:$A189)+1))<>"APPROX","REPORTED","APPROX"),0) -> REPORTED
A191: =IFERROR(('2 - CHECK'!$H$6*INDIRECT("'TMP_BENCHMARK'!B" & (COUNTA($A$1:$A190)+1))/INDIRECT("'TMP_BENCHMARK'!G" & (COUNTA($A$1:$A190)+1)))*INDIRECT("'TMP_BENCHMARK'!D" & (COUNTA($A$1:$A190)+1)),0) -> 0 | B191: =IFERROR(SUMIF(INDIRECT("'TMP_BENCHMARK'!I:I"),INDIRECT("'TMP_BENCHMARK'!I" & (COUNTA($A$1:$A190)+1)),INDIRECT("'TMP_BENCHMARK'!B:B")),0) -> 0 | C191: 0 | D191: =IFERROR(INDIRECT("'TMP_BENCHMARK'!B" & (COUNTA($A$1:$A190)+1))*'2 - CHECK'!$H$6,0) -> 0 | E191: =IFERROR(INDIRECT("'TMP_BENCHMARK'!B" & (COUNTA($A$1:$A190)+1))*INDIRECT("'TMP_BENCHMARK'!D" & (COUNTA($A$1:$A190)+1)),0) -> 0 | F191: =IFERROR(INDIRECT("'TMP_BENCHMARK'!B" & (COUNTA($A$1:$A190)+1))*INDIRECT("'TMP_BENCHMARK'!F" & (COUNTA($A$1:$A190)+1)),0) -> 0 | G191: =IFERROR(('2 - CHECK'!$H$6*INDIRECT("'TMP_BENCHMARK'!B" & (COUNTA($A$1:$A190)+1))/INDIRECT("'TMP_BENCHMARK'!G" & (COUNTA($A$1:$A190)+1)))*INDIRECT("'TMP_BENCHMARK'!F" & (COUNTA($A$1:$A190)+1)),0) -> 0 | H191: =IFERROR(IF(INDIRECT("'TMP_BENCHMARK'!E" & (COUNTA($A$1:$A190)+1))<>"APPROX","REPORTED","APPROX"),0) -> REPORTED
A192: =IFERROR(('2 - CHECK'!$H$6*INDIRECT("'TMP_BENCHMARK'!B" & (COUNTA($A$1:$A191)+1))/INDIRECT("'TMP_BENCHMARK'!G" & (COUNTA($A$1:$A191)+1)))*INDIRECT("'TMP_BENCHMARK'!D" & (COUNTA($A$1:$A191)+1)),0) -> 0 | B192: =IFERROR(SUMIF(INDIRECT("'TMP_BENCHMARK'!I:I"),INDIRECT("'TMP_BENCHMARK'!I" & (COUNTA($A$1:$A191)+1)),INDIRECT("'TMP_BENCHMARK'!B:B")),0) -> 0 | C192: 0 | D192: =IFERROR(INDIRECT("'TMP_BENCHMARK'!B" & (COUNTA($A$1:$A191)+1))*'2 - CHECK'!$H$6,0) -> 0 | E192: =IFERROR(INDIRECT("'TMP_BENCHMARK'!B" & (COUNTA($A$1:$A191)+1))*INDIRECT("'TMP_BENCHMARK'!D" & (COUNTA($A$1:$A191)+1)),0) -> 0 | F192: =IFERROR(INDIRECT("'TMP_BENCHMARK'!B" & (COUNTA($A$1:$A191)+1))*INDIRECT("'TMP_BENCHMARK'!F" & (COUNTA($A$1:$A191)+1)),0) -> 0 | G192: =IFERROR(('2 - CHECK'!$H$6*INDIRECT("'TMP_BENCHMARK'!B" & (COUNTA($A$1:$A191)+1))/INDIRECT("'TMP_BENCHMARK'!G" & (COUNTA($A$1:$A191)+1)))*INDIRECT("'TMP_BENCHMARK'!F" & (COUNTA($A$1:$A191)+1)),0) -> 0 | H192: =IFERROR(IF(INDIRECT("'TMP_BENCHMARK'!E" & (COUNTA($A$1:$A191)+1))<>"APPROX","REPORTED","APPROX"),0) -> REPORTED
A193: =IFERROR(('2 - CHECK'!$H$6*INDIRECT("'TMP_BENCHMARK'!B" & (COUNTA($A$1:$A192)+1))/INDIRECT("'TMP_BENCHMARK'!G" & (COUNTA($A$1:$A192)+1)))*INDIRECT("'TMP_BENCHMARK'!D" & (COUNTA($A$1:$A192)+1)),0) -> 0 | B193: =IFERROR(SUMIF(INDIRECT("'TMP_BENCHMARK'!I:I"),INDIRECT("'TMP_BENCHMARK'!I" & (COUNTA($A$1:$A192)+1)),INDIRECT("'TMP_BENCHMARK'!B:B")),0) -> 0 | C193: 0 | D193: =IFERROR(INDIRECT("'TMP_BENCHMARK'!B" & (COUNTA($A$1:$A192)+1))*'2 - CHECK'!$H$6,0) -> 0 | E193: =IFERROR(INDIRECT("'TMP_BENCHMARK'!B" & (COUNTA($A$1:$A192)+1))*INDIRECT("'TMP_BENCHMARK'!D" & (COUNTA($A$1:$A192)+1)),0) -> 0 | F193: =IFERROR(INDIRECT("'TMP_BENCHMARK'!B" & (COUNTA($A$1:$A192)+1))*INDIRECT("'TMP_BENCHMARK'!F" & (COUNTA($A$1:$A192)+1)),0) -> 0 | G193: =IFERROR(('2 - CHECK'!$H$6*INDIRECT("'TMP_BENCHMARK'!B" & (COUNTA($A$1:$A192)+1))/INDIRECT("'TMP_BENCHMARK'!G" & (COUNTA($A$1:$A192)+1)))*INDIRECT("'TMP_BENCHMARK'!F" & (COUNTA($A$1:$A192)+1)),0) -> 0 | H193: =IFERROR(IF(INDIRECT("'TMP_BENCHMARK'!E" & (COUNTA($A$1:$A192)+1))<>"APPROX","REPORTED","APPROX"),0) -> REPORTED
A194: =IFERROR(('2 - CHECK'!$H$6*INDIRECT("'TMP_BENCHMARK'!B" & (COUNTA($A$1:$A193)+1))/INDIRECT("'TMP_BENCHMARK'!G" & (COUNTA($A$1:$A193)+1)))*INDIRECT("'TMP_BENCHMARK'!D" & (COUNTA($A$1:$A193)+1)),0) -> 0 | B194: =IFERROR(SUMIF(INDIRECT("'TMP_BENCHMARK'!I:I"),INDIRECT("'TMP_BENCHMARK'!I" & (COUNTA($A$1:$A193)+1)),INDIRECT("'TMP_BENCHMARK'!B:B")),0) -> 0 | C194: 0 | D194: =IFERROR(INDIRECT("'TMP_BENCHMARK'!B" & (COUNTA($A$1:$A193)+1))*'2 - CHECK'!$H$6,0) -> 0 | E194: =IFERROR(INDIRECT("'TMP_BENCHMARK'!B" & (COUNTA($A$1:$A193)+1))*INDIRECT("'TMP_BENCHMARK'!D" & (COUNTA($A$1:$A193)+1)),0) -> 0 | F194: =IFERROR(INDIRECT("'TMP_BENCHMARK'!B" & (COUNTA($A$1:$A193)+1))*INDIRECT("'TMP_BENCHMARK'!F" & (COUNTA($A$1:$A193)+1)),0) -> 0 | G194: =IFERROR(('2 - CHECK'!$H$6*INDIRECT("'TMP_BENCHMARK'!B" & (COUNTA($A$1:$A193)+1))/INDIRECT("'TMP_BENCHMARK'!G" & (COUNTA($A$1:$A193)+1)))*INDIRECT("'TMP_BENCHMARK'!F" & (COUNTA($A$1:$A193)+1)),0) -> 0 | H194: =IFERROR(IF(INDIRECT("'TMP_BENCHMARK'!E" & (COUNTA($A$1:$A193)+1))<>"APPROX","REPORTED","APPROX"),0) -> REPORTED
A195: =IFERROR(('2 - CHECK'!$H$6*INDIRECT("'TMP_BENCHMARK'!B" & (COUNTA($A$1:$A194)+1))/INDIRECT("'TMP_BENCHMARK'!G" & (COUNTA($A$1:$A194)+1)))*INDIRECT("'TMP_BENCHMARK'!D" & (COUNTA($A$1:$A194)+1)),0) -> 0 | B195: =IFERROR(SUMIF(INDIRECT("'TMP_BENCHMARK'!I:I"),INDIRECT("'TMP_BENCHMARK'!I" & (COUNTA($A$1:$A194)+1)),INDIRECT("'TMP_BENCHMARK'!B:B")),0) -> 0 | C195: =IFERROR(A195/B195,0) -> 0 | D195: =IFERROR(INDIRECT("'TMP_BENCHMARK'!B" & (COUNTA($A$1:$A194)+1))*'2 - CHECK'!$H$6,0) -> 0 | E195: =IFERROR(INDIRECT("'TMP_BENCHMARK'!B" & (COUNTA($A$1:$A194)+1))*INDIRECT("'TMP_BENCHMARK'!D" & (COUNTA($A$1:$A194)+1)),0) -> 0 | F195: =IFERROR(INDIRECT("'TMP_BENCHMARK'!B" & (COUNTA($A$1:$A194)+1))*INDIRECT("'TMP_BENCHMARK'!F" & (COUNTA($A$1:$A194)+1)),0) -> 0 | G195: =IFERROR(('2 - CHECK'!$H$6*INDIRECT("'TMP_BENCHMARK'!B" & (COUNTA($A$1:$A194)+1))/INDIRECT("'TMP_BENCHMARK'!G" & (COUNTA($A$1:$A194)+1)))*INDIRECT("'TMP_BENCHMARK'!F" & (COUNTA($A$1:$A194)+1)),0) -> 0 | H195: =IFERROR(IF(INDIRECT("'TMP_BENCHMARK'!E" & (COUNTA($A$1:$A194)+1))<>"APPROX","REPORTED","APPROX"),0) -> REPORTED
A196: =IFERROR(('2 - CHECK'!$H$6*INDIRECT("'TMP_BENCHMARK'!B" & (COUNTA($A$1:$A195)+1))/INDIRECT("'TMP_BENCHMARK'!G" & (COUNTA($A$1:$A195)+1)))*INDIRECT("'TMP_BENCHMARK'!D" & (COUNTA($A$1:$A195)+1)),0) -> 0 | B196: =IFERROR(SUMIF(INDIRECT("'TMP_BENCHMARK'!I:I"),INDIRECT("'TMP_BENCHMARK'!I" & (COUNTA($A$1:$A195)+1)),INDIRECT("'TMP_BENCHMARK'!B:B")),0) -> 0 | C196: 0 | D196: =IFERROR(INDIRECT("'TMP_BENCHMARK'!B" & (COUNTA($A$1:$A195)+1))*'2 - CHECK'!$H$6,0) -> 0 | E196: =IFERROR(INDIRECT("'TMP_BENCHMARK'!B" & (COUNTA($A$1:$A195)+1))*INDIRECT("'TMP_BENCHMARK'!D" & (COUNTA($A$1:$A195)+1)),0) -> 0 | F196: =IFERROR(INDIRECT("'TMP_BENCHMARK'!B" & (COUNTA($A$1:$A195)+1))*INDIRECT("'TMP_BENCHMARK'!F" & (COUNTA($A$1:$A195)+1)),0) -> 0 | G196: =IFERROR(('2 - CHECK'!$H$6*INDIRECT("'TMP_BENCHMARK'!B" & (COUNTA($A$1:$A195)+1))/INDIRECT("'TMP_BENCHMARK'!G" & (COUNTA($A$1:$A195)+1)))*INDIRECT("'TMP_BENCHMARK'!F" & (COUNTA($A$1:$A195)+1)),0) -> 0 | H196: =IFERROR(IF(INDIRECT("'TMP_BENCHMARK'!E" & (COUNTA($A$1:$A195)+1))<>"APPROX","REPORTED","APPROX"),0) -> REPORTED
A197: =IFERROR(('2 - CHECK'!$H$6*INDIRECT("'TMP_BENCHMARK'!B" & (COUNTA($A$1:$A196)+1))/INDIRECT("'TMP_BENCHMARK'!G" & (COUNTA($A$1:$A196)+1)))*INDIRECT("'TMP_BENCHMARK'!D" & (COUNTA($A$1:$A196)+1)),0) -> 0 | B197: =IFERROR(SUMIF(INDIRECT("'TMP_BENCHMARK'!I:I"),INDIRECT("'TMP_BENCHMARK'!I" & (COUNTA($A$1:$A196)+1)),INDIRECT("'TMP_BENCHMARK'!B:B")),0) -> 0 | C197: 0 | D197: =IFERROR(INDIRECT("'TMP_BENCHMARK'!B" & (COUNTA($A$1:$A196)+1))*'2 - CHECK'!$H$6,0) -> 0 | E197: =IFERROR(INDIRECT("'TMP_BENCHMARK'!B" & (COUNTA($A$1:$A196)+1))*INDIRECT("'TMP_BENCHMARK'!D" & (COUNTA($A$1:$A196)+1)),0) -> 0 | F197: =IFERROR(INDIRECT("'TMP_BENCHMARK'!B" & (COUNTA($A$1:$A196)+1))*INDIRECT("'TMP_BENCHMARK'!F" & (COUNTA($A$1:$A196)+1)),0) -> 0 | G197: =IFERROR(('2 - CHECK'!$H$6*INDIRECT("'TMP_BENCHMARK'!B" & (COUNTA($A$1:$A196)+1))/INDIRECT("'TMP_BENCHMARK'!G" & (COUNTA($A$1:$A196)+1)))*INDIRECT("'TMP_BENCHMARK'!F" & (COUNTA($A$1:$A196)+1)),0) -> 0 | H197: =IFERROR(IF(INDIRECT("'TMP_BENCHMARK'!E" & (COUNTA($A$1:$A196)+1))<>"APPROX","REPORTED","APPROX"),0) -> REPORTED
A198: =IFERROR(('2 - CHECK'!$H$6*INDIRECT("'TMP_BENCHMARK'!B" & (COUNTA($A$1:$A197)+1))/INDIRECT("'TMP_BENCHMARK'!G" & (COUNTA($A$1:$A197)+1)))*INDIRECT("'TMP_BENCHMARK'!D" & (COUNTA($A$1:$A197)+1)),0) -> 0 | B198: =IFERROR(SUMIF(INDIRECT("'TMP_BENCHMARK'!I:I"),INDIRECT("'TMP_BENCHMARK'!I" & (COUNTA($A$1:$A197)+1)),INDIRECT("'TMP_BENCHMARK'!B:B")),0) -> 0 | C198: 0 | D198: =IFERROR(INDIRECT("'TMP_BENCHMARK'!B" & (COUNTA($A$1:$A197)+1))*'2 - CHECK'!$H$6,0) -> 0 | E198: =IFERROR(INDIRECT("'TMP_BENCHMARK'!B" & (COUNTA($A$1:$A197)+1))*INDIRECT("'TMP_BENCHMARK'!D" & (COUNTA($A$1:$A197)+1)),0) -> 0 | F198: =IFERROR(INDIRECT("'TMP_BENCHMARK'!B" & (COUNTA($A$1:$A197)+1))*INDIRECT("'TMP_BENCHMARK'!F" & (COUNTA($A$1:$A197)+1)),0) -> 0 | G198: =IFERROR(('2 - CHECK'!$H$6*INDIRECT("'TMP_BENCHMARK'!B" & (COUNTA($A$1:$A197)+1))/INDIRECT("'TMP_BENCHMARK'!G" & (COUNTA($A$1:$A197)+1)))*INDIRECT("'TMP_BENCHMARK'!F" & (COUNTA($A$1:$A197)+1)),0) -> 0 | H198: =IFERROR(IF(INDIRECT("'TMP_BENCHMARK'!E" & (COUNTA($A$1:$A197)+1))<>"APPROX","REPORTED","APPROX"),0) -> REPORTED
A199: =IFERROR(('2 - CHECK'!$H$6*INDIRECT("'TMP_BENCHMARK'!B" & (COUNTA($A$1:$A198)+1))/INDIRECT("'TMP_BENCHMARK'!G" & (COUNTA($A$1:$A198)+1)))*INDIRECT("'TMP_BENCHMARK'!D" & (COUNTA($A$1:$A198)+1)),0) -> 0 | B199: =IFERROR(SUMIF(INDIRECT("'TMP_BENCHMARK'!I:I"),INDIRECT("'TMP_BENCHMARK'!I" & (COUNTA($A$1:$A198)+1)),INDIRECT("'TMP_BENCHMARK'!B:B")),0) -> 0 | C199: 0 | D199: =IFERROR(INDIRECT("'TMP_BENCHMARK'!B" & (COUNTA($A$1:$A198)+1))*'2 - CHECK'!$H$6,0) -> 0 | E199: =IFERROR(INDIRECT("'TMP_BENCHMARK'!B" & (COUNTA($A$1:$A198)+1))*INDIRECT("'TMP_BENCHMARK'!D" & (COUNTA($A$1:$A198)+1)),0) -> 0 | F199: =IFERROR(INDIRECT("'TMP_BENCHMARK'!B" & (COUNTA($A$1:$A198)+1))*INDIRECT("'TMP_BENCHMARK'!F" & (COUNTA($A$1:$A198)+1)),0) -> 0 | G199: =IFERROR(('2 - CHECK'!$H$6*INDIRECT("'TMP_BENCHMARK'!B" & (COUNTA($A$1:$A198)+1))/INDIRECT("'TMP_BENCHMARK'!G" & (COUNTA($A$1:$A198)+1)))*INDIRECT("'TMP_BENCHMARK'!F" & (COUNTA($A$1:$A198)+1)),0) -> 0 | H199: =IFERROR(IF(INDIRECT("'TMP_BENCHMARK'!E" & (COUNTA($A$1:$A198)+1))<>"APPROX","REPORTED","APPROX"),0) -> REPORTED
A200: =IFERROR(('2 - CHECK'!$H$6*INDIRECT("'TMP_BENCHMARK'!B" & (COUNTA($A$1:$A199)+1))/INDIRECT("'TMP_BENCHMARK'!G" & (COUNTA($A$1:$A199)+1)))*INDIRECT("'TMP_BENCHMARK'!D" & (COUNTA($A$1:$A199)+1)),0) -> 0 | B200: =IFERROR(SUMIF(INDIRECT("'TMP_BENCHMARK'!I:I"),INDIRECT("'TMP_BENCHMARK'!I" & (COUNTA($A$1:$A199)+1)),INDIRECT("'TMP_BENCHMARK'!B:B")),0) -> 0 | C200: 0 | D200: =IFERROR(INDIRECT("'TMP_BENCHMARK'!B" & (COUNTA($A$1:$A199)+1))*'2 - CHECK'!$H$6,0) -> 0 | E200: =IFERROR(INDIRECT("'TMP_BENCHMARK'!B" & (COUNTA($A$1:$A199)+1))*INDIRECT("'TMP_BENCHMARK'!D" & (COUNTA($A$1:$A199)+1)),0) -> 0 | F200: =IFERROR(INDIRECT("'TMP_BENCHMARK'!B" & (COUNTA($A$1:$A199)+1))*INDIRECT("'TMP_BENCHMARK'!F" & (COUNTA($A$1:$A199)+1)),0) -> 0 | G200: =IFERROR(('2 - CHECK'!$H$6*INDIRECT("'TMP_BENCHMARK'!B" & (COUNTA($A$1:$A199)+1))/INDIRECT("'TMP_BENCHMARK'!G" & (COUNTA($A$1:$A199)+1)))*INDIRECT("'TMP_BENCHMARK'!F" & (COUNTA($A$1:$A199)+1)),0) -> 0 | H200: =IFERROR(IF(INDIRECT("'TMP_BENCHMARK'!E" & (COUNTA($A$1:$A199)+1))<>"APPROX","REPORTED","APPROX"),0) -> REPORTED
... 2344 more rows

Sheet TMP_PORTFOLIO_2 (hidden)
A1: FINANCED_EMISSIONS | B1: SECTOR_WEIGHT | C1: IF_WAS_SECTOR | D1: MONEY_INVESTED | E1: WEIGHT x EMISSIONS | F1: WEIGHT x REVENUE | G1: FINANCED_REVENUE | H1: SOURCE_2 | I1: UNIQUE_WEIGHT
A2: =IFERROR(('2 - CHECK'!$H$6*INDIRECT("'TMP_PORTFOLIO'!B" & (COUNTA($A$1:$A1)+1))/INDIRECT("'TMP_PORTFOLIO'!G" & (COUNTA($A$1:$A1)+1)))*INDIRECT("'TMP_PORTFOLIO'!D" & (COUNTA($A$1:$A1)+1)),0) -> 8.076528417 | B2: =IFERROR(SUMIF(INDIRECT("'TMP_PORTFOLIO'!I:I"),INDIRECT("'TMP_PORTFOLIO'!I" & (COUNTA($A$1:$A1)+1)),INDIRECT("'TMP_PORTFOLIO'!B:B")),0) -> 0.1 | C2: =IFERROR(A2/B2,0) -> 80.76528417 | D2: =IFERROR(INDIRECT("'TMP_PORTFOLIO'!B" & (COUNTA($A$1:$A1)+1))*'2 - CHECK'!$H$6,0) -> 100000 | E2: =IFERROR(INDIRECT("'TMP_PORTFOLIO'!B" & (COUNTA($A$1:$A1)+1))*INDIRECT("'TMP_PORTFOLIO'!D" & (COUNTA($A$1:$A1)+1)),0) -> 24400 | F2: =IFERROR(INDIRECT("'TMP_PORTFOLIO'!B" & (COUNTA($A$1:$A1)+1))*INDIRECT("'TMP_PORTFOLIO'!F" & (COUNTA($A$1:$A1)+1)),0) -> 233075369.1 | G2: =IFERROR(('2 - CHECK'!$H$6*INDIRECT("'TMP_PORTFOLIO'!B" & (COUNTA($A$1:$A1)+1))/INDIRECT("'TMP_PORTFOLIO'!G" & (COUNTA($A$1:$A1)+1)))*INDIRECT("'TMP_PORTFOLIO'!F" & (COUNTA($A$1:$A1)+1)),0) -> 77149.17386 | H2: =IFERROR(IF(INDIRECT("'TMP_PORTFOLIO'!E" & (COUNTA($A$1:$A1)+1))<>"APPROX","Disclosed","Approx"),0) -> Disclosed | I2: =IFERROR(INDIRECT("'TMP_PORTFOLIO'!B" & (COUNTA($A$1:$A1)+1))+0.0000000000001*COUNTA($A$1:$A1),0) -> 0.1
A3: =IFERROR(('2 - CHECK'!$H$6*INDIRECT("'TMP_PORTFOLIO'!B" & (COUNTA($A$1:$A2)+1))/INDIRECT("'TMP_PORTFOLIO'!G" & (COUNTA($A$1:$A2)+1)))*INDIRECT("'TMP_PORTFOLIO'!D" & (COUNTA($A$1:$A2)+1)),0) -> 0.009176594438 | B3: =IFERROR(SUMIF(INDIRECT("'TMP_PORTFOLIO'!I:I"),INDIRECT("'TMP_PORTFOLIO'!I" & (COUNTA($A$1:$A2)+1)),INDIRECT("'TMP_PORTFOLIO'!B:B")),0) -> 0.1 | C3: =IFERROR(A3/B3,0) -> 0.09176594438 | D3: =IFERROR(INDIRECT("'TMP_PORTFOLIO'!B" & (COUNTA($A$1:$A2)+1))*'2 - CHECK'!$H$6,0) -> 100000 | E3: =IFERROR(INDIRECT("'TMP_PORTFOLIO'!B" & (COUNTA($A$1:$A2)+1))*INDIRECT("'TMP_PORTFOLIO'!D" & (COUNTA($A$1:$A2)+1)),0) -> 2.711 | F3: =IFERROR(INDIRECT("'TMP_PORTFOLIO'!B" & (COUNTA($A$1:$A2)+1))*INDIRECT("'TMP_PORTFOLIO'!F" & (COUNTA($A$1:$A2)+1)),0) -> 4350416.171 | G3: =IFERROR(('2 - CHECK'!$H$6*INDIRECT("'TMP_PORTFOLIO'!B" & (COUNTA($A$1:$A2)+1))/INDIRECT("'TMP_PORTFOLIO'!G" & (COUNTA($A$1:$A2)+1)))*INDIRECT("'TMP_PORTFOLIO'!F" & (COUNTA($A$1:$A2)+1)),0) -> 14725.93317 | H3: =IFERROR(IF(INDIRECT("'TMP_PORTFOLIO'!E" & (COUNTA($A$1:$A2)+1))<>"APPROX","Disclosed","Approx"),0) -> Approx | I3: =IFERROR(INDIRECT("'TMP_PORTFOLIO'!B" & (COUNTA($A$1:$A2)+1))+0.0000000000001*COUNTA($A$1:$A2),0) -> 0.1
A4: =IFERROR(('2 - CHECK'!$H$6*INDIRECT("'TMP_PORTFOLIO'!B" & (COUNTA($A$1:$A3)+1))/INDIRECT("'TMP_PORTFOLIO'!G" & (COUNTA($A$1:$A3)+1)))*INDIRECT("'TMP_PORTFOLIO'!D" & (COUNTA($A$1:$A3)+1)),0) -> 1.396261072 | B4: =IFERROR(SUMIF(INDIRECT("'TMP_PORTFOLIO'!I:I"),INDIRECT("'TMP_PORTFOLIO'!I" & (COUNTA($A$1:$A3)+1)),INDIRECT("'TMP_PORTFOLIO'!B:B")),0) -> 0.2 | C4: 6.981305358 | D4: =IFERROR(INDIRECT("'TMP_PORTFOLIO'!B" & (COUNTA($A$1:$A3)+1))*'2 - CHECK'!$H$6,0) -> 100000 | E4: =IFERROR(INDIRECT("'TMP_PORTFOLIO'!B" & (COUNTA($A$1:$A3)+1))*INDIRECT("'TMP_PORTFOLIO'!D" & (COUNTA($A$1:$A3)+1)),0) -> 1057.6908 | F4: =IFERROR(INDIRECT("'TMP_PORTFOLIO'!B" & (COUNTA($A$1:$A3)+1))*INDIRECT("'TMP_PORTFOLIO'!F" & (COUNTA($A$1:$A3)+1)),0) -> 92251906.15 | G4: =IFERROR(('2 - CHECK'!$H$6*INDIRECT("'TMP_PORTFOLIO'!B" & (COUNTA($A$1:$A3)+1))/INDIRECT("'TMP_PORTFOLIO'!G" & (COUNTA($A$1:$A3)+1)))*INDIRECT("'TMP_PORTFOLIO'!F" & (COUNTA($A$1:$A3)+1)),0) -> 121782.0419 | H4: =IFERROR(IF(INDIRECT("'TMP_PORTFOLIO'!E" & (COUNTA($A$1:$A3)+1))<>"APPROX","Disclosed","Approx"),0) -> Approx | I4: =IFERROR(INDIRECT("'TMP_PORTFOLIO'!B" & (COUNTA($A$1:$A3)+1))+0.0000000000001*COUNTA($A$1:$A3),0) -> 0.1
A5: =IFERROR(('2 - CHECK'!$H$6*INDIRECT("'TMP_PORTFOLIO'!B" & (COUNTA($A$1:$A4)+1))/INDIRECT("'TMP_PORTFOLIO'!G" & (COUNTA($A$1:$A4)+1)))*INDIRECT("'TMP_PORTFOLIO'!D" & (COUNTA($A$1:$A4)+1)),0) -> 20.83370289 | B5: =IFERROR(SUMIF(INDIRECT("'TMP_PORTFOLIO'!I:I"),INDIRECT("'TMP_PORTFOLIO'!I" & (COUNTA($A$1:$A4)+1)),INDIRECT("'TMP_PORTFOLIO'!B:B")),0) -> 0.2 | C5: 104.1685144 | D5: =IFERROR(INDIRECT("'TMP_PORTFOLIO'!B" & (COUNTA($A$1:$A4)+1))*'2 - CHECK'!$H$6,0) -> 100000 | E5: =IFERROR(INDIRECT("'TMP_PORTFOLIO'!B" & (COUNTA($A$1:$A4)+1))*INDIRECT("'TMP_PORTFOLIO'!D" & (COUNTA($A$1:$A4)+1)),0) -> 1273.133 | F5: =IFERROR(INDIRECT("'TMP_PORTFOLIO'!B" & (COUNTA($A$1:$A4)+1))*INDIRECT("'TMP_PORTFOLIO'!F" & (COUNTA($A$1:$A4)+1)),0) -> 8474741.731 | G5: =IFERROR(('2 - CHECK'!$H$6*INDIRECT("'TMP_PORTFOLIO'!B" & (COUNTA($A$1:$A4)+1))/INDIRECT("'TMP_PORTFOLIO'!G" & (COUNTA($A$1:$A4)+1)))*INDIRECT("'TMP_PORTFOLIO'!F" & (COUNTA($A$1:$A4)+1)),0) -> 138681.702 | H5: =IFERROR(IF(INDIRECT("'TMP_PORTFOLIO'!E" & (COUNTA($A$1:$A4)+1))<>"APPROX","Disclosed","Approx"),0) -> Approx | I5: =IFERROR(INDIRECT("'TMP_PORTFOLIO'!B" & (COUNTA($A$1:$A4)+1))+0.0000000000001*COUNTA($A$1:$A4),0) -> 0.1
A6: =IFERROR(('2 - CHECK'!$H$6*INDIRECT("'TMP_PORTFOLIO'!B" & (COUNTA($A$1:$A5)+1))/INDIRECT("'TMP_PORTFOLIO'!G" & (COUNTA($A$1:$A5)+1)))*INDIRECT("'TMP_PORTFOLIO'!D" & (COUNTA($A$1:$A5)+1)),0) -> 19.30072199 | B6: =IFERROR(SUMIF(INDIRECT("'TMP_PORTFOLIO'!I:I"),INDIRECT("'TMP_PORTFOLIO'!I" & (COUNTA($A$1:$A5)+1)),INDIRECT("'TMP_PORTFOLIO'!B:B")),0) -> 0.1 | C6: 193.0072199 | D6: =IFERROR(INDIRECT("'TMP_PORTFOLIO'!B" & (COUNTA($A$1:$A5)+1))*'2 - CHECK'!$H$6,0) -> 100000 | E6: =IFERROR(INDIRECT("'TMP_PORTFOLIO'!B" & (COUNTA($A$1:$A5)+1))*INDIRECT("'TMP_PORTFOLIO'!D" & (COUNTA($A$1:$A5)+1)),0) -> 330.6812 | F6: =IFERROR(INDIRECT("'TMP_PORTFOLIO'!B" & (COUNTA($A$1:$A5)+1))*INDIRECT("'TMP_PORTFOLIO'!F" & (COUNTA($A$1:$A5)+1)),0) -> 201215.994 | G6: =IFERROR(('2 - CHECK'!$H$6*INDIRECT("'TMP_PORTFOLIO'!B" & (COUNTA($A$1:$A5)+1))/INDIRECT("'TMP_PORTFOLIO'!G" & (COUNTA($A$1:$A5)+1)))*INDIRECT("'TMP_PORTFOLIO'!F" & (COUNTA($A$1:$A5)+1)),0) -> 11744.2841 | H6: =IFERROR(IF(INDIRECT("'TMP_PORTFOLIO'!E" & (COUNTA($A$1:$A5)+1))<>"APPROX","Disclosed","Approx"),0) -> Approx | I6: =IFERROR(INDIRECT("'TMP_PORTFOLIO'!B" & (COUNTA($A$1:$A5)+1))+0.0000000000001*COUNTA($A$1:$A5),0) -> 0.1
A7: =IFERROR(('2 - CHECK'!$H$6*INDIRECT("'TMP_PORTFOLIO'!B" & (COUNTA($A$1:$A6)+1))/INDIRECT("'TMP_PORTFOLIO'!G" & (COUNTA($A$1:$A6)+1)))*INDIRECT("'TMP_PORTFOLIO'!D" & (COUNTA($A$1:$A6)+1)),0) -> 1.411306793 | B7: =IFERROR(SUMIF(INDIRECT("'TMP_PORTFOLIO'!I:I"),INDIRECT("'TMP_PORTFOLIO'!I" & (COUNTA($A$1:$A6)+1)),INDIRECT("'TMP_PORTFOLIO'!B:B")),0) -> 0.4 | C7: 3.528266983 | D7: =IFERROR(INDIRECT("'TMP_PORTFOLIO'!B" & (COUNTA($A$1:$A6)+1))*'2 - CHECK'!$H$6,0) -> 200000 | E7: =IFERROR(INDIRECT("'TMP_PORTFOLIO'!B" & (COUNTA($A$1:$A6)+1))*INDIRECT("'TMP_PORTFOLIO'!D" & (COUNTA($A$1:$A6)+1)),0) -> 420.2818 | F7: =IFERROR(INDIRECT("'TMP_PORTFOLIO'!B" & (COUNTA($A$1:$A6)+1))*INDIRECT("'TMP_PORTFOLIO'!F" & (COUNTA($A$1:$A6)+1)),0) -> 46626718.62 | G7: =IFERROR(('2 - CHECK'!$H$6*INDIRECT("'TMP_PORTFOLIO'!B" & (COUNTA($A$1:$A6)+1))/INDIRECT("'TMP_PORTFOLIO'!G" & (COUNTA($A$1:$A6)+1)))*INDIRECT("'TMP_PORTFOLIO'!F" & (COUNTA($A$1:$A6)+1)),0) -> 156572.5775 | H7: =IFERROR(IF(INDIRECT("'TMP_PORTFOLIO'!E" & (COUNTA($A$1:$A6)+1))<>"APPROX","Disclosed","Approx"),0) -> Approx | I7: =IFERROR(INDIRECT("'TMP_PORTFOLIO'!B" & (COUNTA($A$1:$A6)+1))+0.0000000000001*COUNTA($A$1:$A6),0) -> 0.2
A8: =IFERROR(('2 - CHECK'!$H$6*INDIRECT("'TMP_PORTFOLIO'!B" & (COUNTA($A$1:$A7)+1))/INDIRECT("'TMP_PORTFOLIO'!G" & (COUNTA($A$1:$A7)+1)))*INDIRECT("'TMP_PORTFOLIO'!D" & (COUNTA($A$1:$A7)+1)),0) -> 1.392666092 | B8: =IFERROR(SUMIF(INDIRECT("'TMP_PORTFOLIO'!I:I"),INDIRECT("'TMP_PORTFOLIO'!I" & (COUNTA($A$1:$A7)+1)),INDIRECT("'TMP_PORTFOLIO'!B:B")),0) -> 0.4 | C8: 3.481665229 | D8: =IFERROR(INDIRECT("'TMP_PORTFOLIO'!B" & (COUNTA($A$1:$A7)+1))*'2 - CHECK'!$H$6,0) -> 200000 | E8: =IFERROR(INDIRECT("'TMP_PORTFOLIO'!B" & (COUNTA($A$1:$A7)+1))*INDIRECT("'TMP_PORTFOLIO'!D" & (COUNTA($A$1:$A7)+1)),0) -> 327.142 | F8: =IFERROR(INDIRECT("'TMP_PORTFOLIO'!B" & (COUNTA($A$1:$A7)+1))*INDIRECT("'TMP_PORTFOLIO'!F" & (COUNTA($A$1:$A7)+1)),0) -> 46389279.09 | G8: =IFERROR(('2 - CHECK'!$H$6*INDIRECT("'TMP_PORTFOLIO'!B" & (COUNTA($A$1:$A7)+1))/INDIRECT("'TMP_PORTFOLIO'!G" & (COUNTA($A$1:$A7)+1)))*INDIRECT("'TMP_PORTFOLIO'!F" & (COUNTA($A$1:$A7)+1)),0) -> 197482.3655 | H8: =IFERROR(IF(INDIRECT("'TMP_PORTFOLIO'!E" & (COUNTA($A$1:$A7)+1))<>"APPROX","Disclosed","Approx"),0) -> Approx | I8: =IFERROR(INDIRECT("'TMP_PORTFOLIO'!B" & (COUNTA($A$1:$A7)+1))+0.0000000000001*COUNTA($A$1:$A7),0) -> 0.2
A9: =IFERROR(('2 - CHECK'!$H$6*INDIRECT("'TMP_PORTFOLIO'!B" & (COUNTA($A$1:$A8)+1))/INDIRECT("'TMP_PORTFOLIO'!G" & (COUNTA($A$1:$A8)+1)))*INDIRECT("'TMP_PORTFOLIO'!D" & (COUNTA($A$1:$A8)+1)),0) -> 1.175435778 | B9: =IFERROR(SUMIF(INDIRECT("'TMP_PORTFOLIO'!I:I"),INDIRECT("'TMP_PORTFOLIO'!I" & (COUNTA($A$1:$A8)+1)),INDIRECT("'TMP_PORTFOLIO'!B:B")),0) -> 0.1 | C9: 11.75435778 | D9: =IFERROR(INDIRECT("'TMP_PORTFOLIO'!B" & (COUNTA($A$1:$A8)+1))*'2 - CHECK'!$H$6,0) -> 100000 | E9: =IFERROR(INDIRECT("'TMP_PORTFOLIO'!B" & (COUNTA($A$1:$A8)+1))*INDIRECT("'TMP_PORTFOLIO'!D" & (COUNTA($A$1:$A8)+1)),0) -> 1463.3 | F9: =IFERROR(INDIRECT("'TMP_PORTFOLIO'!B" & (COUNTA($A$1:$A8)+1))*INDIRECT("'TMP_PORTFOLIO'!F" & (COUNTA($A$1:$A8)+1)),0) -> 65884966.62 | G9: =IFERROR(('2 - CHECK'!$H$6*INDIRECT("'TMP_PORTFOLIO'!B" & (COUNTA($A$1:$A8)+1))/INDIRECT("'TMP_PORTFOLIO'!G" & (COUNTA($A$1:$A8)+1)))*INDIRECT("'TMP_PORTFOLIO'!F" & (COUNTA($A$1:$A8)+1)),0) -> 52923.90282 | H9: =IFERROR(IF(INDIRECT("'TMP_PORTFOLIO'!E" & (COUNTA($A$1:$A8)+1))<>"APPROX","Disclosed","Approx"),0) -> Disclosed | I9: =IFERROR(INDIRECT("'TMP_PORTFOLIO'!B" & (COUNTA($A$1:$A8)+1))+0.0000000000001*COUNTA($A$1:$A8),0) -> 0.1
A10: =IFERROR(('2 - CHECK'!$H$6*INDIRECT("'TMP_PORTFOLIO'!B" & (COUNTA($A$1:$A9)+1))/INDIRECT("'TMP_PORTFOLIO'!G" & (COUNTA($A$1:$A9)+1)))*INDIRECT("'TMP_PORTFOLIO'!D" & (COUNTA($A$1:$A9)+1)),0) -> 0 | B10: =IFERROR(SUMIF(INDIRECT("'TMP_PORTFOLIO'!I:I"),INDIRECT("'TMP_PORTFOLIO'!I" & (COUNTA($A$1:$A9)+1)),INDIRECT("'TMP_PORTFOLIO'!B:B")),0) -> 0 | C10: 0 | D10: =IFERROR(INDIRECT("'TMP_PORTFOLIO'!B" & (COUNTA($A$1:$A9)+1))*'2 - CHECK'!$H$6,0) -> 0 | E10: =IFERROR(INDIRECT("'TMP_PORTFOLIO'!B" & (COUNTA($A$1:$A9)+1))*INDIRECT("'TMP_PORTFOLIO'!D" & (COUNTA($A$1:$A9)+1)),0) -> 0 | F10: =IFERROR(INDIRECT("'TMP_PORTFOLIO'!B" & (COUNTA($A$1:$A9)+1))*INDIRECT("'TMP_PORTFOLIO'!F" & (COUNTA($A$1:$A9)+1)),0) -> 0 | G10: =IFERROR(('2 - CHECK'!$H$6*INDIRECT("'TMP_PORTFOLIO'!B" & (COUNTA($A$1:$A9)+1))/INDIRECT("'TMP_PORTFOLIO'!G" & (COUNTA($A$1:$A9)+1)))*INDIRECT("'TMP_PORTFOLIO'!F" & (COUNTA($A$1:$A9)+1)),0) -> 0 | H10: =IFERROR(IF(INDIRECT("'TMP_PORTFOLIO'!E" & (COUNTA($A$1:$A9)+1))<>"APPROX","Disclosed","Approx"),0) -> Disclosed | I10: =IFERROR(INDIRECT("'TMP_PORTFOLIO'!B" & (COUNTA($A$1:$A9)+1))+0.0000000000001*COUNTA($A$1:$A9),0) -> 9e-13
A11: =IFERROR(('2 - CHECK'!$H$6*INDIRECT("'TMP_PORTFOLIO'!B" & (COUNTA($A$1:$A10)+1))/INDIRECT("'TMP_PORTFOLIO'!G" & (COUNTA($A$1:$A10)+1)))*INDIRECT("'TMP_PORTFOLIO'!D" & (COUNTA($A$1:$A10)+1)),0) -> 0 | B11: =IFERROR(SUMIF(INDIRECT("'TMP_PORTFOLIO'!I:I"),INDIRECT("'TMP_PORTFOLIO'!I" & (COUNTA($A$1:$A10)+1)),INDIRECT("'TMP_PORTFOLIO'!B:B")),0) -> 0 | C11: 0 | D11: =IFERROR(INDIRECT("'TMP_PORTFOLIO'!B" & (COUNTA($A$1:$A10)+1))*'2 - CHECK'!$H$6,0) -> 0 | E11: =IFERROR(INDIRECT("'TMP_PORTFOLIO'!B" & (COUNTA($A$1:$A10)+1))*INDIRECT("'TMP_PORTFOLIO'!D" & (COUNTA($A$1:$A10)+1)),0) -> 0 | F11: =IFERROR(INDIRECT("'TMP_PORTFOLIO'!B" & (COUNTA($A$1:$A10)+1))*INDIRECT("'TMP_PORTFOLIO'!F" & (COUNTA($A$1:$A10)+1)),0) -> 0 | G11: =IFERROR(('2 - CHECK'!$H$6*INDIRECT("'TMP_PORTFOLIO'!B" & (COUNTA($A$1:$A10)+1))/INDIRECT("'TMP_PORTFOLIO'!G" & (COUNTA($A$1:$A10)+1)))*INDIRECT("'TMP_PORTFOLIO'!F" & (COUNTA($A$1:$A10)+1)),0) -> 0 | H11: =IFERROR(IF(INDIRECT("'TMP_PORTFOLIO'!E" & (COUNTA($A$1:$A10)+1))<>"APPROX","Disclosed","Approx"),0) -> Disclosed | I11: =IFERROR(INDIRECT("'TMP_PORTFOLIO'!B" & (COUNTA($A$1:$A10)+1))+0.0000000000001*COUNTA($A$1:$A10),0) -> 1e-12
A12: =IFERROR(('2 - CHECK'!$H$6*INDIRECT("'TMP_PORTFOLIO'!B" & (COUNTA($A$1:$A11)+1))/INDIRECT("'TMP_PORTFOLIO'!G" & (COUNTA($A$1:$A11)+1)))*INDIRECT("'TMP_PORTFOLIO'!D" & (COUNTA($A$1:$A11)+1)),0) -> 0 | B12: =IFERROR(SUMIF(INDIRECT("'TMP_PORTFOLIO'!I:I"),INDIRECT("'TMP_PORTFOLIO'!I" & (COUNTA($A$1:$A11)+1)),INDIRECT("'TMP_PORTFOLIO'!B:B")),0) -> 0 | C12: 0 | D12: =IFERROR(INDIRECT("'TMP_PORTFOLIO'!B" & (COUNTA($A$1:$A11)+1))*'2 - CHECK'!$H$6,0) -> 0 | E12: =IFERROR(INDIRECT("'TMP_PORTFOLIO'!B" & (COUNTA($A$1:$A11)+1))*INDIRECT("'TMP_PORTFOLIO'!D" & (COUNTA($A$1:$A11)+1)),0) -> 0 | F12: =IFERROR(INDIRECT("'TMP_PORTFOLIO'!B" & (COUNTA($A$1:$A11)+1))*INDIRECT("'TMP_PORTFOLIO'!F" & (COUNTA($A$1:$A11)+1)),0) -> 0 | G12: =IFERROR(('2 - CHECK'!$H$6*INDIRECT("'TMP_PORTFOLIO'!B" & (COUNTA($A$1:$A11)+1))/INDIRECT("'TMP_PORTFOLIO'!G" & (COUNTA($A$1:$A11)+1)))*INDIRECT("'TMP_PORTFOLIO'!F" & (COUNTA($A$1:$A11)+1)),0) -> 0 | H12: =IFERROR(IF(INDIRECT("'TMP_PORTFOLIO'!E" & (COUNTA($A$1:$A11)+1))<>"APPROX","Disclosed","Approx"),0) -> Disclosed | I12: =IFERROR(INDIRECT("'TMP_PORTFOLIO'!B" & (COUNTA($A$1:$A11)+1))+0.0000000000001*COUNTA($A$1:$A11),0) -> 1.1e-12
A13: =IFERROR(('2 - CHECK'!$H$6*INDIRECT("'TMP_PORTFOLIO'!B" & (COUNTA($A$1:$A12)+1))/INDIRECT("'TMP_PORTFOLIO'!G" & (COUNTA($A$1:$A12)+1)))*INDIRECT("'TMP_PORTFOLIO'!D" & (COUNTA($A$1:$A12)+1)),0) -> 0 | B13: =IFERROR(SUMIF(INDIRECT("'TMP_PORTFOLIO'!I:I"),INDIRECT("'TMP_PORTFOLIO'!I" & (COUNTA($A$1:$A12)+1)),INDIRECT("'TMP_PORTFOLIO'!B:B")),0) -> 0 | C13: 0 | D13: =IFERROR(INDIRECT("'TMP_PORTFOLIO'!B" & (COUNTA($A$1:$A12)+1))*'2 - CHECK'!$H$6,0) -> 0 | E13: =IFERROR(INDIRECT("'TMP_PORTFOLIO'!B" & (COUNTA($A$1:$A12)+1))*INDIRECT("'TMP_PORTFOLIO'!D" & (COUNTA($A$1:$A12)+1)),0) -> 0 | F13: =IFERROR(INDIRECT("'TMP_PORTFOLIO'!B" & (COUNTA($A$1:$A12)+1))*INDIRECT("'TMP_PORTFOLIO'!F" & (COUNTA($A$1:$A12)+1)),0) -> 0 | G13: =IFERROR(('2 - CHECK'!$H$6*INDIRECT("'TMP_PORTFOLIO'!B" & (COUNTA($A$1:$A12)+1))/INDIRECT("'TMP_PORTFOLIO'!G" & (COUNTA($A$1:$A12)+1)))*INDIRECT("'TMP_PORTFOLIO'!F" & (COUNTA($A$1:$A12)+1)),0) -> 0 | H13: =IFERROR(IF(INDIRECT("'TMP_PORTFOLIO'!E" & (COUNTA($A$1:$A12)+1))<>"APPROX","Disclosed","Approx"),0) -> Disclosed | I13: =IFERROR(INDIRECT("'TMP_PORTFOLIO'!B" & (COUNTA($A$1:$A12)+1))+0.0000000000001*COUNTA($A$1:$A12),0) -> 1.2e-12
A14: =IFERROR(('2 - CHECK'!$H$6*INDIRECT("'TMP_PORTFOLIO'!B" & (COUNTA($A$1:$A13)+1))/INDIRECT("'TMP_PORTFOLIO'!G" & (COUNTA($A$1:$A13)+1)))*INDIRECT("'TMP_PORTFOLIO'!D" & (COUNTA($A$1:$A13)+1)),0) -> 0 | B14: =IFERROR(SUMIF(INDIRECT("'TMP_PORTFOLIO'!I:I"),INDIRECT("'TMP_PORTFOLIO'!I" & (COUNTA($A$1:$A13)+1)),INDIRECT("'TMP_PORTFOLIO'!B:B")),0) -> 0 | C14: 0 | D14: =IFERROR(INDIRECT("'TMP_PORTFOLIO'!B" & (COUNTA($A$1:$A13)+1))*'2 - CHECK'!$H$6,0) -> 0 | E14: =IFERROR(INDIRECT("'TMP_PORTFOLIO'!B" & (COUNTA($A$1:$A13)+1))*INDIRECT("'TMP_PORTFOLIO'!D" & (COUNTA($A$1:$A13)+1)),0) -> 0 | F14: =IFERROR(INDIRECT("'TMP_PORTFOLIO'!B" & (COUNTA($A$1:$A13)+1))*INDIRECT("'TMP_PORTFOLIO'!F" & (COUNTA($A$1:$A13)+1)),0) -> 0 | G14: =IFERROR(('2 - CHECK'!$H$6*INDIRECT("'TMP_PORTFOLIO'!B" & (COUNTA($A$1:$A13)+1))/INDIRECT("'TMP_PORTFOLIO'!G" & (COUNTA($A$1:$A13)+1)))*INDIRECT("'TMP_PORTFOLIO'!F" & (COUNTA($A$1:$A13)+1)),0) -> 0 | H14: =IFERROR(IF(INDIRECT("'TMP_PORTFOLIO'!E" & (COUNTA($A$1:$A13)+1))<>"APPROX","Disclosed","Approx"),0) -> Disclosed | I14: =IFERROR(INDIRECT("'TMP_PORTFOLIO'!B" & (COUNTA($A$1:$A13)+1))+0.0000000000001*COUNTA($A$1:$A13),0) -> 1.3e-12
A15: =IFERROR(('2 - CHECK'!$H$6*INDIRECT("'TMP_PORTFOLIO'!B" & (COUNTA($A$1:$A14)+1))/INDIRECT("'TMP_PORTFOLIO'!G" & (COUNTA($A$1:$A14)+1)))*INDIRECT("'TMP_PORTFOLIO'!D" & (COUNTA($A$1:$A14)+1)),0) -> 0 | B15: =IFERROR(SUMIF(INDIRECT("'TMP_PORTFOLIO'!I:I"),INDIRECT("'TMP_PORTFOLIO'!I" & (COUNTA($A$1:$A14)+1)),INDIRECT("'TMP_PORTFOLIO'!B:B")),0) -> 0 | C15: 0 | D15: =IFERROR(INDIRECT("'TMP_PORTFOLIO'!B" & (COUNTA($A$1:$A14)+1))*'2 - CHECK'!$H$6,0) -> 0 | E15: =IFERROR(INDIRECT("'TMP_PORTFOLIO'!B" & (COUNTA($A$1:$A14)+1))*INDIRECT("'TMP_PORTFOLIO'!D" & (COUNTA($A$1:$A14)+1)),0) -> 0 | F15: =IFERROR(INDIRECT("'TMP_PORTFOLIO'!B" & (COUNTA($A$1:$A14)+1))*INDIRECT("'TMP_PORTFOLIO'!F" & (COUNTA($A$1:$A14)+1)),0) -> 0 | G15: =IFERROR(('2 - CHECK'!$H$6*INDIRECT("'TMP_PORTFOLIO'!B" & (COUNTA($A$1:$A14)+1))/INDIRECT("'TMP_PORTFOLIO'!G" & (COUNTA($A$1:$A14)+1)))*INDIRECT("'TMP_PORTFOLIO'!F" & (COUNTA($A$1:$A14)+1)),0) -> 0 | H15: =IFERROR(IF(INDIRECT("'TMP_PORTFOLIO'!E" & (COUNTA($A$1:$A14)+1))<>"APPROX","Disclosed","Approx"),0) -> Disclosed | I15: =IFERROR(INDIRECT("'TMP_PORTFOLIO'!B" & (COUNTA($A$1:$A14)+1))+0.0000000000001*COUNTA($A$1:$A14),0) -> 1.4e-12
A16: =IFERROR(('2 - CHECK'!$H$6*INDIRECT("'TMP_PORTFOLIO'!B" & (COUNTA($A$1:$A15)+1))/INDIRECT("'TMP_PORTFOLIO'!G" & (COUNTA($A$1:$A15)+1)))*INDIRECT("'TMP_PORTFOLIO'!D" & (COUNTA($A$1:$A15)+1)),0) -> 0 | B16: =IFERROR(SUMIF(INDIRECT("'TMP_PORTFOLIO'!I:I"),INDIRECT("'TMP_PORTFOLIO'!I" & (COUNTA($A$1:$A15)+1)),INDIRECT("'TMP_PORTFOLIO'!B:B")),0) -> 0 | C16: 0 | D16: =IFERROR(INDIRECT("'TMP_PORTFOLIO'!B" & (COUNTA($A$1:$A15)+1))*'2 - CHECK'!$H$6,0) -> 0 | E16: =IFERROR(INDIRECT("'TMP_PORTFOLIO'!B" & (COUNTA($A$1:$A15)+1))*INDIRECT("'TMP_PORTFOLIO'!D" & (COUNTA($A$1:$A15)+1)),0) -> 0 | F16: =IFERROR(INDIRECT("'TMP_PORTFOLIO'!B" & (COUNTA($A$1:$A15)+1))*INDIRECT("'TMP_PORTFOLIO'!F" & (COUNTA($A$1:$A15)+1)),0) -> 0 | G16: =IFERROR(('2 - CHECK'!$H$6*INDIRECT("'TMP_PORTFOLIO'!B" & (COUNTA($A$1:$A15)+1))/INDIRECT("'TMP_PORTFOLIO'!G" & (COUNTA($A$1:$A15)+1)))*INDIRECT("'TMP_PORTFOLIO'!F" & (COUNTA($A$1:$A15)+1)),0) -> 0 | H16: =IFERROR(IF(INDIRECT("'TMP_PORTFOLIO'!E" & (COUNTA($A$1:$A15)+1))<>"APPROX","Disclosed","Approx"),0) -> Disclosed | I16: =IFERROR(INDIRECT("'TMP_PORTFOLIO'!B" & (COUNTA($A$1:$A15)+1))+0.0000000000001*COUNTA($A$1:$A15),0) -> 1.5e-12
A17: =IFERROR(('2 - CHECK'!$H$6*INDIRECT("'TMP_PORTFOLIO'!B" & (COUNTA($A$1:$A16)+1))/INDIRECT("'TMP_PORTFOLIO'!G" & (COUNTA($A$1:$A16)+1)))*INDIRECT("'TMP_PORTFOLIO'!D" & (COUNTA($A$1:$A16)+1)),0) -> 0 | B17: =IFERROR(SUMIF(INDIRECT("'TMP_PORTFOLIO'!I:I"),INDIRECT("'TMP_PORTFOLIO'!I" & (COUNTA($A$1:$A16)+1)),INDIRECT("'TMP_PORTFOLIO'!B:B")),0) -> 0 | C17: 0 | D17: =IFERROR(INDIRECT("'TMP_PORTFOLIO'!B" & (COUNTA($A$1:$A16)+1))*'2 - CHECK'!$H$6,0) -> 0 | E17: =IFERROR(INDIRECT("'TMP_PORTFOLIO'!B" & (COUNTA($A$1:$A16)+1))*INDIRECT("'TMP_PORTFOLIO'!D" & (COUNTA($A$1:$A16)+1)),0) -> 0 | F17: =IFERROR(INDIRECT("'TMP_PORTFOLIO'!B" & (COUNTA($A$1:$A16)+1))*INDIRECT("'TMP_PORTFOLIO'!F" & (COUNTA($A$1:$A16)+1)),0) -> 0 | G17: =IFERROR(('2 - CHECK'!$H$6*INDIRECT("'TMP_PORTFOLIO'!B" & (COUNTA($A$1:$A16)+1))/INDIRECT("'TMP_PORTFOLIO'!G" & (COUNTA($A$1:$A16)+1)))*INDIRECT("'TMP_PORTFOLIO'!F" & (COUNTA($A$1:$A16)+1)),0) -> 0 | H17: =IFERROR(IF(INDIRECT("'TMP_PORTFOLIO'!E" & (COUNTA($A$1:$A16)+1))<>"APPROX","Disclosed","Approx"),0) -> Disclosed | I17: =IFERROR(INDIRECT("'TMP_PORTFOLIO'!B" & (COUNTA($A$1:$A16)+1))+0.0000000000001*COUNTA($A$1:$A16),0) -> 1.6e-12
A18: =IFERROR(('2 - CHECK'!$H$6*INDIRECT("'TMP_PORTFOLIO'!B" & (COUNTA($A$1:$A17)+1))/INDIRECT("'TMP_PORTFOLIO'!G" & (COUNTA($A$1:$A17)+1)))*INDIRECT("'TMP_PORTFOLIO'!D" & (COUNTA($A$1:$A17)+1)),0) -> 0 | B18: =IFERROR(SUMIF(INDIRECT("'TMP_PORTFOLIO'!I:I"),INDIRECT("'TMP_PORTFOLIO'!I" & (COUNTA($A$1:$A17)+1)),INDIRECT("'TMP_PORTFOLIO'!B:B")),0) -> 0 | C18: 0 | D18: =IFERROR(INDIRECT("'TMP_PORTFOLIO'!B" & (COUNTA($A$1:$A17)+1))*'2 - CHECK'!$H$6,0) -> 0 | E18: =IFERROR(INDIRECT("'TMP_PORTFOLIO'!B" & (COUNTA($A$1:$A17)+1))*INDIRECT("'TMP_PORTFOLIO'!D" & (COUNTA($A$1:$A17)+1)),0) -> 0 | F18: =IFERROR(INDIRECT("'TMP_PORTFOLIO'!B" & (COUNTA($A$1:$A17)+1))*INDIRECT("'TMP_PORTFOLIO'!F" & (COUNTA($A$1:$A17)+1)),0) -> 0 | G18: =IFERROR(('2 - CHECK'!$H$6*INDIRECT("'TMP_PORTFOLIO'!B" & (COUNTA($A$1:$A17)+1))/INDIRECT("'TMP_PORTFOLIO'!G" & (COUNTA($A$1:$A17)+1)))*INDIRECT("'TMP_PORTFOLIO'!F" & (COUNTA($A$1:$A17)+1)),0) -> 0 | H18: =IFERROR(IF(INDIRECT("'TMP_PORTFOLIO'!E" & (COUNTA($A$1:$A17)+1))<>"APPROX","Disclosed","Approx"),0) -> Disclosed | I18: =IFERROR(INDIRECT("'TMP_PORTFOLIO'!B" & (COUNTA($A$1:$A17)+1))+0.0000000000001*COUNTA($A$1:$A17),0) -> 1.7e-12
A19: =IFERROR(('2 - CHECK'!$H$6*INDIRECT("'TMP_PORTFOLIO'!B" & (COUNTA($A$1:$A18)+1))/INDIRECT("'TMP_PORTFOLIO'!G" & (COUNTA($A$1:$A18)+1)))*INDIRECT("'TMP_PORTFOLIO'!D" & (COUNTA($A$1:$A18)+1)),0) -> 0 | B19: =IFERROR(SUMIF(INDIRECT("'TMP_PORTFOLIO'!I:I"),INDIRECT("'TMP_PORTFOLIO'!I" & (COUNTA($A$1:$A18)+1)),INDIRECT("'TMP_PORTFOLIO'!B:B")),0) -> 0 | C19: 0 | D19: =IFERROR(INDIRECT("'TMP_PORTFOLIO'!B" & (COUNTA($A$1:$A18)+1))*'2 - CHECK'!$H$6,0) -> 0 | E19: =IFERROR(INDIRECT("'TMP_PORTFOLIO'!B" & (COUNTA($A$1:$A18)+1))*INDIRECT("'TMP_PORTFOLIO'!D" & (COUNTA($A$1:$A18)+1)),0) -> 0 | F19: =IFERROR(INDIRECT("'TMP_PORTFOLIO'!B" & (COUNTA($A$1:$A18)+1))*INDIRECT("'TMP_PORTFOLIO'!F" & (COUNTA($A$1:$A18)+1)),0) -> 0 | G19: =IFERROR(('2 - CHECK'!$H$6*INDIRECT("'TMP_PORTFOLIO'!B" & (COUNTA($A$1:$A18)+1))/INDIRECT("'TMP_PORTFOLIO'!G" & (COUNTA($A$1:$A18)+1)))*INDIRECT("'TMP_PORTFOLIO'!F" & (COUNTA($A$1:$A18)+1)),0) -> 0 | H19: =IFERROR(IF(INDIRECT("'TMP_PORTFOLIO'!E" & (COUNTA($A$1:$A18)+1))<>"APPROX","Disclosed","Approx"),0) -> Disclosed | I19: =IFERROR(INDIRECT("'TMP_PORTFOLIO'!B" & (COUNTA($A$1:$A18)+1))+0.0000000000001*COUNTA($A$1:$A18),0) -> 1.8e-12
A20: =IFERROR(('2 - CHECK'!$H$6*INDIRECT("'TMP_PORTFOLIO'!B" & (COUNTA($A$1:$A19)+1))/INDIRECT("'TMP_PORTFOLIO'!G" & (COUNTA($A$1:$A19)+1)))*INDIRECT("'TMP_PORTFOLIO'!D" & (COUNTA($A$1:$A19)+1)),0) -> 0 | B20: =IFERROR(SUMIF(INDIRECT("'TMP_PORTFOLIO'!I:I"),INDIRECT("'TMP_PORTFOLIO'!I" & (COUNTA($A$1:$A19)+1)),INDIRECT("'TMP_PORTFOLIO'!B:B")),0) -> 0 | C20: 0 | D20: =IFERROR(INDIRECT("'TMP_PORTFOLIO'!B" & (COUNTA($A$1:$A19)+1))*'2 - CHECK'!$H$6,0) -> 0 | E20: =IFERROR(INDIRECT("'TMP_PORTFOLIO'!B" & (COUNTA($A$1:$A19)+1))*INDIRECT("'TMP_PORTFOLIO'!D" & (COUNTA($A$1:$A19)+1)),0) -> 0 | F20: =IFERROR(INDIRECT("'TMP_PORTFOLIO'!B" & (COUNTA($A$1:$A19)+1))*INDIRECT("'TMP_PORTFOLIO'!F" & (COUNTA($A$1:$A19)+1)),0) -> 0 | G20: =IFERROR(('2 - CHECK'!$H$6*INDIRECT("'TMP_PORTFOLIO'!B" & (COUNTA($A$1:$A19)+1))/INDIRECT("'TMP_PORTFOLIO'!G" & (COUNTA($A$1:$A19)+1)))*INDIRECT("'TMP_PORTFOLIO'!F" & (COUNTA($A$1:$A19)+1)),0) -> 0 | H20: =IFERROR(IF(INDIRECT("'TMP_PORTFOLIO'!E" & (COUNTA($A$1:$A19)+1))<>"APPROX","Disclosed","Approx"),0) -> Disclosed | I20: =IFERROR(INDIRECT("'TMP_PORTFOLIO'!B" & (COUNTA($A$1:$A19)+1))+0.0000000000001*COUNTA($A$1:$A19),0) -> 1.9e-12
A21: =IFERROR(('2 - CHECK'!$H$6*INDIRECT("'TMP_PORTFOLIO'!B" & (COUNTA($A$1:$A20)+1))/INDIRECT("'TMP_PORTFOLIO'!G" & (COUNTA($A$1:$A20)+1)))*INDIRECT("'TMP_PORTFOLIO'!D" & (COUNTA($A$1:$A20)+1)),0) -> 0 | B21: =IFERROR(SUMIF(INDIRECT("'TMP_PORTFOLIO'!I:I"),INDIRECT("'TMP_PORTFOLIO'!I" & (COUNTA($A$1:$A20)+1)),INDIRECT("'TMP_PORTFOLIO'!B:B")),0) -> 0 | C21: 0 | D21: =IFERROR(INDIRECT("'TMP_PORTFOLIO'!B" & (COUNTA($A$1:$A20)+1))*'2 - CHECK'!$H$6,0) -> 0 | E21: =IFERROR(INDIRECT("'TMP_PORTFOLIO'!B" & (COUNTA($A$1:$A20)+1))*INDIRECT("'TMP_PORTFOLIO'!D" & (COUNTA($A$1:$A20)+1)),0) -> 0 | F21: =IFERROR(INDIRECT("'TMP_PORTFOLIO'!B" & (COUNTA($A$1:$A20)+1))*INDIRECT("'TMP_PORTFOLIO'!F" & (COUNTA($A$1:$A20)+1)),0) -> 0 | G21: =IFERROR(('2 - CHECK'!$H$6*INDIRECT("'TMP_PORTFOLIO'!B" & (COUNTA($A$1:$A20)+1))/INDIRECT("'TMP_PORTFOLIO'!G" & (COUNTA($A$1:$A20)+1)))*INDIRECT("'TMP_PORTFOLIO'!F" & (COUNTA($A$1:$A20)+1)),0) -> 0 | H21: =IFERROR(IF(INDIRECT("'TMP_PORTFOLIO'!E" & (COUNTA($A$1:$A20)+1))<>"APPROX","Disclosed","Approx"),0) -> Disclosed | I21: =IFERROR(INDIRECT("'TMP_PORTFOLIO'!B" & (COUNTA($A$1:$A20)+1))+0.0000000000001*COUNTA($A$1:$A20),0) -> 2e-12
A22: =IFERROR(('2 - CHECK'!$H$6*INDIRECT("'TMP_PORTFOLIO'!B" & (COUNTA($A$1:$A21)+1))/INDIRECT("'TMP_PORTFOLIO'!G" & (COUNTA($A$1:$A21)+1)))*INDIRECT("'TMP_PORTFOLIO'!D" & (COUNTA($A$1:$A21)+1)),0) -> 0 | B22: =IFERROR(SUMIF(INDIRECT("'TMP_PORTFOLIO'!I:I"),INDIRECT("'TMP_PORTFOLIO'!I" & (COUNTA($A$1:$A21)+1)),INDIRECT("'TMP_PORTFOLIO'!B:B")),0) -> 0 | C22: 0 | D22: =IFERROR(INDIRECT("'TMP_PORTFOLIO'!B" & (COUNTA($A$1:$A21)+1))*'2 - CHECK'!$H$6,0) -> 0 | E22: =IFERROR(INDIRECT("'TMP_PORTFOLIO'!B" & (COUNTA($A$1:$A21)+1))*INDIRECT("'TMP_PORTFOLIO'!D" & (COUNTA($A$1:$A21)+1)),0) -> 0 | F22: =IFERROR(INDIRECT("'TMP_PORTFOLIO'!B" & (COUNTA($A$1:$A21)+1))*INDIRECT("'TMP_PORTFOLIO'!F" & (COUNTA($A$1:$A21)+1)),0) -> 0 | G22: =IFERROR(('2 - CHECK'!$H$6*INDIRECT("'TMP_PORTFOLIO'!B" & (COUNTA($A$1:$A21)+1))/INDIRECT("'TMP_PORTFOLIO'!G" & (COUNTA($A$1:$A21)+1)))*INDIRECT("'TMP_PORTFOLIO'!F" & (COUNTA($A$1:$A21)+1)),0) -> 0 | H22: =IFERROR(IF(INDIRECT("'TMP_PORTFOLIO'!E" & (COUNTA($A$1:$A21)+1))<>"APPROX","Disclosed","Approx"),0) -> Disclosed | I22: =IFERROR(INDIRECT("'TMP_PORTFOLIO'!B" & (COUNTA($A$1:$A21)+1))+0.0000000000001*COUNTA($A$1:$A21),0) -> 2.1e-12
A23: =IFERROR(('2 - CHECK'!$H$6*INDIRECT("'TMP_PORTFOLIO'!B" & (COUNTA($A$1:$A22)+1))/INDIRECT("'TMP_PORTFOLIO'!G" & (COUNTA($A$1:$A22)+1)))*INDIRECT("'TMP_PORTFOLIO'!D" & (COUNTA($A$1:$A22)+1)),0) -> 0 | B23: =IFERROR(SUMIF(INDIRECT("'TMP_PORTFOLIO'!I:I"),INDIRECT("'TMP_PORTFOLIO'!I" & (COUNTA($A$1:$A22)+1)),INDIRECT("'TMP_PORTFOLIO'!B:B")),0) -> 0 | C23: 0 | D23: =IFERROR(INDIRECT("'TMP_PORTFOLIO'!B" & (COUNTA($A$1:$A22)+1))*'2 - CHECK'!$H$6,0) -> 0 | E23: =IFERROR(INDIRECT("'TMP_PORTFOLIO'!B" & (COUNTA($A$1:$A22)+1))*INDIRECT("'TMP_PORTFOLIO'!D" & (COUNTA($A$1:$A22)+1)),0) -> 0 | F23: =IFERROR(INDIRECT("'TMP_PORTFOLIO'!B" & (COUNTA($A$1:$A22)+1))*INDIRECT("'TMP_PORTFOLIO'!F" & (COUNTA($A$1:$A22)+1)),0) -> 0 | G23: =IFERROR(('2 - CHECK'!$H$6*INDIRECT("'TMP_PORTFOLIO'!B" & (COUNTA($A$1:$A22)+1))/INDIRECT("'TMP_PORTFOLIO'!G" & (COUNTA($A$1:$A22)+1)))*INDIRECT("'TMP_PORTFOLIO'!F" & (COUNTA($A$1:$A22)+1)),0) -> 0 | H23: =IFERROR(IF(INDIRECT("'TMP_PORTFOLIO'!E" & (COUNTA($A$1:$A22)+1))<>"APPROX","Disclosed","Approx"),0) -> Disclosed | I23: =IFERROR(INDIRECT("'TMP_PORTFOLIO'!B" & (COUNTA($A$1:$A22)+1))+0.0000000000001*COUNTA($A$1:$A22),0) -> 2.2e-12
A24: =IFERROR(('2 - CHECK'!$H$6*INDIRECT("'TMP_PORTFOLIO'!B" & (COUNTA($A$1:$A23)+1))/INDIRECT("'TMP_PORTFOLIO'!G" & (COUNTA($A$1:$A23)+1)))*INDIRECT("'TMP_PORTFOLIO'!D" & (COUNTA($A$1:$A23)+1)),0) -> 0 | B24: =IFERROR(SUMIF(INDIRECT("'TMP_PORTFOLIO'!I:I"),INDIRECT("'TMP_PORTFOLIO'!I" & (COUNTA($A$1:$A23)+1)),INDIRECT("'TMP_PORTFOLIO'!B:B")),0) -> 0 | C24: 0 | D24: =IFERROR(INDIRECT("'TMP_PORTFOLIO'!B" & (COUNTA($A$1:$A23)+1))*'2 - CHECK'!$H$6,0) -> 0 | E24: =IFERROR(INDIRECT("'TMP_PORTFOLIO'!B" & (COUNTA($A$1:$A23)+1))*INDIRECT("'TMP_PORTFOLIO'!D" & (COUNTA($A$1:$A23)+1)),0) -> 0 | F24: =IFERROR(INDIRECT("'TMP_PORTFOLIO'!B" & (COUNTA($A$1:$A23)+1))*INDIRECT("'TMP_PORTFOLIO'!F" & (COUNTA($A$1:$A23)+1)),0) -> 0 | G24: =IFERROR(('2 - CHECK'!$H$6*INDIRECT("'TMP_PORTFOLIO'!B" & (COUNTA($A$1:$A23)+1))/INDIRECT("'TMP_PORTFOLIO'!G" & (COUNTA($A$1:$A23)+1)))*INDIRECT("'TMP_PORTFOLIO'!F" & (COUNTA($A$1:$A23)+1)),0) -> 0 | H24: =IFERROR(IF(INDIRECT("'TMP_PORTFOLIO'!E" & (COUNTA($A$1:$A23)+1))<>"APPROX","Disclosed","Approx"),0) -> Disclosed | I24: =IFERROR(INDIRECT("'TMP_PORTFOLIO'!B" & (COUNTA($A$1:$A23)+1))+0.0000000000001*COUNTA($A$1:$A23),0) -> 2.3e-12
A25: =IFERROR(('2 - CHECK'!$H$6*INDIRECT("'TMP_PORTFOLIO'!B" & (COUNTA($A$1:$A24)+1))/INDIRECT("'TMP_PORTFOLIO'!G" & (COUNTA($A$1:$A24)+1)))*INDIRECT("'TMP_PORTFOLIO'!D" & (COUNTA($A$1:$A24)+1)),0) -> 0 | B25: =IFERROR(SUMIF(INDIRECT("'TMP_PORTFOLIO'!I:I"),INDIRECT("'TMP_PORTFOLIO'!I" & (COUNTA($A$1:$A24)+1)),INDIRECT("'TMP_PORTFOLIO'!B:B")),0) -> 0 | C25: 0 | D25: =IFERROR(INDIRECT("'TMP_PORTFOLIO'!B" & (COUNTA($A$1:$A24)+1))*'2 - CHECK'!$H$6,0) -> 0 | E25: =IFERROR(INDIRECT("'TMP_PORTFOLIO'!B" & (COUNTA($A$1:$A24)+1))*INDIRECT("'TMP_PORTFOLIO'!D" & (COUNTA($A$1:$A24)+1)),0) -> 0 | F25: =IFERROR(INDIRECT("'TMP_PORTFOLIO'!B" & (COUNTA($A$1:$A24)+1))*INDIRECT("'TMP_PORTFOLIO'!F" & (COUNTA($A$1:$A24)+1)),0) -> 0 | G25: =IFERROR(('2 - CHECK'!$H$6*INDIRECT("'TMP_PORTFOLIO'!B" & (COUNTA($A$1:$A24)+1))/INDIRECT("'TMP_PORTFOLIO'!G" & (COUNTA($A$1:$A24)+1)))*INDIRECT("'TMP_PORTFOLIO'!F" & (COUNTA($A$1:$A24)+1)),0) -> 0 | H25: =IFERROR(IF(INDIRECT("'TMP_PORTFOLIO'!E" & (COUNTA($A$1:$A24)+1))<>"APPROX","Disclosed","Approx"),0) -> Disclosed | I25: =IFERROR(INDIRECT("'TMP_PORTFOLIO'!B" & (COUNTA($A$1:$A24)+1))+0.0000000000001*COUNTA($A$1:$A24),0) -> 2.4e-12
A26: =IFERROR(('2 - CHECK'!$H$6*INDIRECT("'TMP_PORTFOLIO'!B" & (COUNTA($A$1:$A25)+1))/INDIRECT("'TMP_PORTFOLIO'!G" & (COUNTA($A$1:$A25)+1)))*INDIRECT("'TMP_PORTFOLIO'!D" & (COUNTA($A$1:$A25)+1)),0) -> 0 | B26: =IFERROR(SUMIF(INDIRECT("'TMP_PORTFOLIO'!I:I"),INDIRECT("'TMP_PORTFOLIO'!I" & (COUNTA($A$1:$A25)+1)),INDIRECT("'TMP_PORTFOLIO'!B:B")),0) -> 0 | C26: 0 | D26: =IFERROR(INDIRECT("'TMP_PORTFOLIO'!B" & (COUNTA($A$1:$A25)+1))*'2 - CHECK'!$H$6,0) -> 0 | E26: =IFERROR(INDIRECT("'TMP_PORTFOLIO'!B" & (COUNTA($A$1:$A25)+1))*INDIRECT("'TMP_PORTFOLIO'!D" & (COUNTA($A$1:$A25)+1)),0) -> 0 | F26: =IFERROR(INDIRECT("'TMP_PORTFOLIO'!B" & (COUNTA($A$1:$A25)+1))*INDIRECT("'TMP_PORTFOLIO'!F" & (COUNTA($A$1:$A25)+1)),0) -> 0 | G26: =IFERROR(('2 - CHECK'!$H$6*INDIRECT("'TMP_PORTFOLIO'!B" & (COUNTA($A$1:$A25)+1))/INDIRECT("'TMP_PORTFOLIO'!G" & (COUNTA($A$1:$A25)+1)))*INDIRECT("'TMP_PORTFOLIO'!F" & (COUNTA($A$1:$A25)+1)),0) -> 0 | H26: =IFERROR(IF(INDIRECT("'TMP_PORTFOLIO'!E" & (COUNTA($A$1:$A25)+1))<>"APPROX","Disclosed","Approx"),0) -> Disclosed | I26: =IFERROR(INDIRECT("'TMP_PORTFOLIO'!B" & (COUNTA($A$1:$A25)+1))+0.0000000000001*COUNTA($A$1:$A25),0) -> 2.5e-12
A27: =IFERROR(('2 - CHECK'!$H$6*INDIRECT("'TMP_PORTFOLIO'!B" & (COUNTA($A$1:$A26)+1))/INDIRECT("'TMP_PORTFOLIO'!G" & (COUNTA($A$1:$A26)+1)))*INDIRECT("'TMP_PORTFOLIO'!D" & (COUNTA($A$1:$A26)+1)),0) -> 0 | B27: =IFERROR(SUMIF(INDIRECT("'TMP_PORTFOLIO'!I:I"),INDIRECT("'TMP_PORTFOLIO'!I" & (COUNTA($A$1:$A26)+1)),INDIRECT("'TMP_PORTFOLIO'!B:B")),0) -> 0 | C27: 0 | D27: =IFERROR(INDIRECT("'TMP_PORTFOLIO'!B" & (COUNTA($A$1:$A26)+1))*'2 - CHECK'!$H$6,0) -> 0 | E27: =IFERROR(INDIRECT("'TMP_PORTFOLIO'!B" & (COUNTA($A$1:$A26)+1))*INDIRECT("'TMP_PORTFOLIO'!D" & (COUNTA($A$1:$A26)+1)),0) -> 0 | F27: =IFERROR(INDIRECT("'TMP_PORTFOLIO'!B" & (COUNTA($A$1:$A26)+1))*INDIRECT("'TMP_PORTFOLIO'!F" & (COUNTA($A$1:$A26)+1)),0) -> 0 | G27: =IFERROR(('2 - CHECK'!$H$6*INDIRECT("'TMP_PORTFOLIO'!B" & (COUNTA($A$1:$A26)+1))/INDIRECT("'TMP_PORTFOLIO'!G" & (COUNTA($A$1:$A26)+1)))*INDIRECT("'TMP_PORTFOLIO'!F" & (COUNTA($A$1:$A26)+1)),0) -> 0 | H27: =IFERROR(IF(INDIRECT("'TMP_PORTFOLIO'!E" & (COUNTA($A$1:$A26)+1))<>"APPROX","Disclosed","Approx"),0) -> Disclosed | I27: =IFERROR(INDIRECT("'TMP_PORTFOLIO'!B" & (COUNTA($A$1:$A26)+1))+0.0000000000001*COUNTA($A$1:$A26),0) -> 2.6e-12
